Workbook

Sheet Design the Power Module
A1: TLVM136x0 3V‒36VIN, 1V‒6VOUT Buck Power Module Design Tool
O2: http://www.ti.com/product/lm5175
A3: About | C3: xx | F3: = Input Box | O3: TERMS OF USE
A5: Step 1: Operating Specifications
D6: Input Voltage – Min, VIN(min) | E6: 12 | F6: V
D7: Input Voltage – Nom, VIN(nom) | E7: 24 | F7: V
D8: Input Voltage – Max, VIN(max) | E8: 36 | F8: V
D9: Output Voltage, VOUT | E9: 5 | F9: V
D10: Full Load Output Current, IOUT | E10: 6 | F10: A
D11: Switching Frequency, FSW | E11: 1000 | F11: kHz
D12: Frequency Set Resistor, RT | E12: ='Variable Management'!C340 -> 13 | F12: ='Variable Management'!E340 -> kΩ
D13: Ambient Temperature, TA | E13: 25 | F13: °C
A15: Step 2: Buck Inductor
D16: Inductor Pk-Pk Ripple Current at VIN(nom) | E16: ='Variable Management'!B60 -> 6.751690537 | F16: Apk-pk
D17: DIL as a % of Full Load at VIN(nom) | E17: ='Variable Management'!D60*100 -> 112.5281756 | F17: %
D18: Peak Inductor Current at VIN(max) and Full Load | E18: ='Variable Management'!B99 -> 9.716417402 | F18: Apk
D19: Peak Inductor Current Limit | E19: =Ipk_OCP -> 6.2 | F19: Apk
A21: Step 3: Output Capacitors
D22: Desired Output Voltage Ripple | E22: 50 | F22: mVpk-pk
D23: Effective COUT Value to Meet Ripple Spec | E23: ='Variable Management'!B113 -> 16.87922634 | F23: µF
D24: Desired Crossover Frequency | E24: 80 | F24: =" kHz " -> kHz
D25: Effective COUT Value to Meet Crossover Spec | E25: ='Variable Management'!B206 -> 25.33311597 | F25: µF
D26: Output Capacitance (derated), COUT | E26: 50 | F26: µF
D27: Output Cap ESR (Max) to Meet Ripple Spec | E27: ='Variable Management'!B117 -> 6.970811331 | F27: mΩ
D28: Output Capacitor ESR | E28: 2 | F28: mΩ
D29: Resulting Output Voltage Ripple (max) | E29: ='Variable Management'!B119*1000 -> 21.61595666 | F29: mVpk-pk
D30: Output Capacitor RMS Current (max) | E30: ='Variable Management'!B106 -> 2.145674587 | F30: A (rms)
A32: Step 4: Input Capacitors
D33: Input Voltage Ripple Spec | E33: 120 | F33: mVpk-pk
D34: Minimum Input Capacitance | E34: ='Variable Management'!B136 -> 12.5 | F34: µF
D35: Input Capacitance (derated), CIN | E35: 20 | F35: µF
D36: Maximum Permitted ESR | E36: ='Variable Management'!B141 -> 4.631336648 | F36: mΩ
D37: Input Capacitor ESR | E37: 1 | F37: mΩ
D38: Resulting Input Voltage Ripple (max) | E38: ='Variable Management'!B146*1000 -> 84.7164174 | F38: mVpk-pk
D39: Input Capacitor RMS Current (max) | E39: ='Variable Management'!B129 -> 3.132643223 | F39: A (rms)
L40: =CHOOSE(SCH_MODE, "", "** For Single-Output Operation in 2-Phase Mode, tie MODE to VDDA and use FB1 to set VOUT **", "** For Single-Output Operation in 3-Phase Mode, tie both MODE pins to VDDA. Use FB1 of master IC to set VOUT. Connect FB2 of master IC to AGND. Connect FB2 of slave IC to VDDA to configure it as a slave **", "** For Single-Output Operation in 4-Phase Mode, tie both MODE pins to VDDA. Use FB1 of master IC to set VOUT. Connect FB2 of master IC to AGND. Connect FB2 of slave IC to VDDA to configure it as a slave **") -> 
A41: Step 5: Feedback Network
D42: =CHOOSE(TPSM63603_Fixed_Vout, "Lower Feedback Resistance", "* Tie FB to VOUT for a Fixed 5V Output", "* Tie FB to VOUT for a Fixed 3.3V Output") -> * Tie FB to VOUT for a Fixed 5V Output | E42: 10 | F42: kΩ | L42: =CHOOSE(SCH_MODE, "", "** For Single-Output Operation in 2-Phase Mode, tie MODE to VDDA and use FB1 to set VOUT **", "** For Single-Output Operation in 3-Phase Mode, tie both MODE pins to VDDA. Use FB1 of master IC to set VOUT. Connect FB2 of master IC to AGND. Connect FB2 of slave IC to VDDA to configure it as a slave **", "** For Single-Output Operation in 4-Phase Mode, tie both MODE pins to VDDA. Use FB1 of master IC to set VOUT. Connect FB2 of master IC to AGND. Connect FB2 of slave IC to VDDA to configure it as a slave **") -> 
D43: Upper Feedback Resistance (E96), RFBT | E43: =IF(Vout=Vref,"SHORT",Rfb2_u/1000) -> 40.2 | F43: =IF(Vout=Vref,"","kΩ") -> kΩ
D44: Feedforward Capacitance, CFF | E44: 22 | F44: pF
A46: Step 6: VIN UVLO
D47: Desired VIN UVLO Turn-On Threshold | E47: 8.9 | F47: V
D48: UVLO Divider Upper Resistance, RENT | E48: 604 | F48: kΩ
D49: UVLO Divider Lower Resistance (E96), RENB | E49: =Renb_u/1000 -> 100 | F49: =IF(Vout=Vref,"","kΩ") -> kΩ
D50: Actual VIN UVLO Turn-On Threshold | E50: =1.263/E49*(E48+E49) -> 8.89152 | F50: V
D51: Actual VIN UVLO Turn-Off Threshold | E51: =E50*0.72 -> 6.4018944 | F51: V
A53: Step 7: Power Loss & Thermals
D54: Total Power Dissipation | E54: ='Efficiency Calculations'!AT109 -> 7.481140059 | F54: W
D55: Junction Temperature (estimate) | E55: ='Variable Management'!B285 -> 189.5850813 | F55: °C
E56: =CHOOSE(Ext_VCC, "", "* Tie VLDOIN to GND") -> 

Sheet Schematic & BOM
A34: ="VIN = "&VIN_min&" V to "&VIN_max&" V, VOUT = "&Vout&" V, IOUT = "&Iout&" A, Fsw = "&Fsw/1000&" kHz" -> VIN = 12 V to 36 V, VOUT = 5 V, IOUT = 6 A, Fsw = 1000 kHz
A35: High-Efficiency Synchronous Buck Power Module BOM
A36: Count | B36: Ref Des | C36: Value | D36: Description | H36: Size | I36: Part Number | J36: MFR
A37: =ROUNDUP('Design the Power Module'!E35/10,0) -> 2 | B37: CIN1, CIN2 | C37: 10 | D37: =C37 -> 10 | H37: 1210 | I37: Std | J37: Std
A38: 2 | B38: COUT | C38: 22 | D38: =C38 -> 22 | H38: 1210 | I38: Std | J38: Std
A39: 1 | B39: CVCC | C39: 1 | D39: =C39 -> 1 | H39: 0402 | I39: Std | J39: Std
A40: 1 | B40: CSYNC | C40: 1 | D40: =C40 -> 1 | H40: 0402 | I40: Std | J40: Std
A41: 1 | B41: CFF | C41: ='Variable Management'!D299 -> 22 | D41: =C41 -> 22 | H41: 0402 | I41: Std | J41: Std
A42: 1 | B42: RRT | C42: ='Design the Power Module'!E12 -> 13 | D42: =C42 -> 13 | H42: 0402 | I42: Std | J42: Std
A43: 1 | B43: RFBT | C43: ='Design the Power Module'!E42 -> 10 | D43: 10 | H43: 0402 | I43: Std | J43: Std
A44: 1 | B44: RFBB | C44: ='Design the Power Module'!E43 -> 40.2 | D44: 40.2 | H44: 0402 | I44: Std | J44: Std
A45: 1 | B45: RENT | C45: ='Variable Management'!D302 -> 604 | D45: 604 | H45: 0402 | I45: Std | J45: Std
A46: 1 | B46: RENB | C46: ='Variable Management'!D303 -> 100 | D46: 100 | H46: 0402 | I46: Std | J46: Std
A47: 1 | B47: RPGOOD | C47: 100 | D47: 100 | H47: 0402 | I47: Std | J47: Std
A48: 1 | B48: U1 | C48: ='Variable Management'!N19 -> TLVM13630 | D48: =CHOOSE(GPN, "IC, TLVM13660 Synchronous Buck Power Module, 3V–36V Input, 6A Output", "IC, TLVM13640 Synchronous Buck Power Module, 3V–36V Input, 4A Output", "IC, TLVM13630 Synchronous Buck Power Module, 3V–36V Input, 3A Output", "IC, TLVM13620 Synchronous Buck Power Module, 3V–36V Input, 2A Output") -> IC, TLVM13630 Synchronous Buck Power Module, 3V–36V Input, 3A Output | H48: =CHOOSE(GPN, "B3QFN", "B3QFN", "B0QFN", "B0QFN") -> B0QFN | I48: =CHOOSE(VARIANT, "TLVM13660RDLR", "TLVM13640RDLR", "TLVM13630RDHR", "TLVM13620RDHR", "TLVM13630V5RDHR", "TLVM13630V3RDHR") -> TLVM13630RDHR | J48: TI
A51: NOTES:
A52: ** Effective input and output capacitances should be appropriately derated for applied voltage and temperature, particularly with ceramics **

Sheet EVMs
A1: TLVM136x0 Quickstart Design Tool
B4: TLVM13660EVM PCB Layout

Sheet Variable Management (hidden)
A1: EXCEL Variables Names/Calculations
B2: Input from user =
B3: Output =
B4: Constant
A5: Variable Name | B5: Value | C5: STD Units | E5: Notes | I5: Iteration
A6: Step 1: Operational Specs
A7: VIN_min | B7: ='Design the Power Module'!E6 -> 12 | C7: V | D7: Minimum input voltage | I7: 1
A8: VIN_nom | B8: ='Design the Power Module'!E7 -> 24 | C8: V | D8: Nominal input voltage | K8: Use CFF | L8: 1 | N8: TLVM13630 3.3Vout | O8: =IF(Vout = 3.3, 1, 0) -> 0 | T8: Dual Outputs | U8: 1 | W8: FPWM | X8: 1 | Z8: =CHOOSE(SCH_MODE, "Bode Plot (Ch1)", "Bode Plot - 2 Ph", "Bode Plot - 3 Ph", "Bode Plot - 4 Ph") -> Bode Plot (Ch1) | AA8: 1
A9: VIN_max | B9: ='Design the Power Module'!E8 -> 36 | C9: V | D9: Maximum input voltage | K9: No CFF | L9: 2 | N9: TLVM13630 5Vout | O9: =IF(Vout = 5, 1, 0) -> 1 | T9: Single Output – 2 Phases | U9: 2 | W9: DEM | X9: 2 | Z9: =IF(MODE=1, "Bode Plot (Ch2)", "N/A - Do Not Use") -> Bode Plot (Ch2) | AA9: 2
L10: 1 | N10: TLVM13630 Fixed Vout | O10: =IF(AND(GPN=3,Vout=3.3),3,IF(AND(GPN=3,Vout=5),2,1)) -> 2 | P10: 1 = No, 2 = 5V, 3 = 3.3V | T10: Single Output – 3 Phases | U10: 3 | W10: FPWM/DEM | X10: 2 | Z10: BODE_PLOT_TYPE | AA10: 1
A11: Vout | B11: ='Design the Power Module'!E9 -> 5 | C11: V | D11: Output voltage | K11: NO_FF_CAP | L11: =IF(L10=2, TRUE, FALSE) -> FALSE | O11: =AND(GPN=3, OR(O8,O9)) -> TRUE | T11: Single Output – 4 Phases | U11: 4
A12: Iout | B12: ='Design the Power Module'!E10 -> 6 | C12: A | D12: Output current | F12: Iout-max | G12: =CHOOSE(GPN, 6, 4, 3, 2) -> 3 | H12: A | I12: 1 | T12: Single/Dual Yes/No | U12: 1
I13: 1 | T13: MODE (Single/Dual), DUAL = 1, SINGLE = 2 | U13: =IF(U12=1, 1, 2) -> 1 | W13: External BIAS | X13: 1
A14: Rout | B14: =Vout/Iout -> 0.8333333333 | C14: W | D14: Load resistance | T14: SINGLE OUTPUT (1 = YES) | U14: =IF(U12=1, 2, 1) -> 2 | W14: No External BIAS | X14: 2
A15: Pout | B15: =Vout*Iout -> 30 | C15: W | D15: Output power | N15: TLVM13660 6A module | O15: 1 | T15: Number of Phases | U15: =SCH_MODE -> 1 | W15: Ext_VCC | X15: 1
N16: TLVM13640 4A module | O16: 2
A17: Efficiency | B17: 0.9 | D17: Estimate of efficiency | L17: =Vout -> 5 | N17: TLVM13630 3A module | O17: 3
A18: Pin | B18: =Pout/Efficiency -> 33.33333333 | C18: W | D18: Calculate input power assuming finite efficiency | N18: TLVM13620 2A module | O18: 4
L19: GPN | N19: =CHOOSE(GPN, "TLVM13660", "TLVM13640", "TLVM13630", "TLVM13620") -> TLVM13630 | O19: 3 | W19: 2.2 MHz Fsw Setting | X19: 1
A20: Iin_Vinmin | B20: =Pin/VIN_min -> 2.777777778 | C20: A | W20: 440 kHz Fsw Setting | X20: 2
A21: Iin_Vinnom | B21: =Pin/VIN_nom -> 1.388888889 | C21: A | D21: Input currents at min, nom, max Vin | H21: =AND(OSC=1, OR(Fsw/1000>2530, Fsw/1000<1800)) -> FALSE | K21: Variant | L21: VARIANT | N21: =CHOOSE(VARIANT, "TLVM13660", "TLVM13640", "TLVM13630", "TLVM13620", "TLVM13630V5", "TLVM13630V3") -> TLVM13630 | O21: =GPN -> 3 | W21: OSC | X21: 2
A22: Iin_Vinmax | B22: =Pin/VIN_max -> 0.9259259259 | C22: A | H22: =AND(OSC=2, OR(Fsw/1000>500, Fsw/1000<300)) -> TRUE | O22: =IF(AND(GPN=3,Vout=5),5,IF(AND(GPN=3,Vout=3.3),6,GPN)) -> 5
H23: =OR(H21,H22) -> TRUE
A24: Fsw | B24: ='Design the Power Module'!E11*1000 -> 1000000 | C24: Hz | D24: Nominal switching frequency - determines RT resistor
A25: RT resistor to AGND | B25: =13.46/(Fsw/1000000)-0.44 -> 13.02 | C25: kΩ | I25: 1
A26: Tsw | B26: =1/Fsw -> 1e-06 | C26: sec | D26: Switching period
A27: Max crossover frequency = 20% Fsw | B27: =Fsw*0.2/1000 -> 200 | C27: kHz | F27: Min Crossover | G27: 10 | K27: Adjustable | L27: 1
A28: Vref | B28: 1 | C28: V | D28: Reference voltage | K28: 5V | L28: 2
A29: Rt | B29: ='Standard Value Calculator'!O12/1000 -> 13 | C29: kΩ | D29: Frequency set resistor | F29: =IF(OR((Fsw=440000),(Fsw=2200000)),"N/A",Rfadj/1000) -> 0.013 | K29: 3.3V | L29: 3
K30: Adjustable_NoRT | L30: 4 | O30: TPSM63603V5
K31: 5V_NoRT | L31: 5 | O31: TPSM63603V3
K32: 3.3V_NoRT | L32: 6
A33: Step 2: Buck Inductor | B33: Channel 1 | K33: Schematic setting | L33: =IF(No_RT, IF(Vout=3.3, 6, IF(Vout=5, 5, 4)),IF(Vout=3.3, 3, IF(Vout=5, 2, 1))) -> 5
A34: Don1 | B34: =Vout/VIN_nom -> 0.2083333333 | F34: Ideal Duty Cycle at VIN(nom)
A35: Doff1 | B35: =1-34:34 -> 0.7916666667 | F35: Ideal 1- Duty Cycle at VIN(nom)
A37: D_Vinmin | B37: =Vout/VIN_min -> 0.4166666667
A38: D_Vinnom | B38: =Vout/VIN_nom -> 0.2083333333
A39: D_Vinmax | B39: =Vout/VIN_max -> 0.1388888889 | K39: Toko chip inductor for the TPSM63602/03
A41: L_Vinnom | B41: =(VIN_nom-Vout)*D1_Vinnom/(Fsw*Iout*0.35) -> 1.884920635e-06 | C41: H | F41: Calculated inductance for 35% ripple at VIN(nom) | K41: Current (A) | L41: L (uH)
A42: L_slopecomp | C42: H | F42: Calculated inductance based on one times inductor downslope | K42: 0 | L42: 2
K43: 0.5 | L43: 1.96
A44: Lopt | B44: =B41 -> 1.884920635e-06 | C44: H | F44: min of calculated inductances at VIN(min) and VIN(nom) | K44: 1 | L44: 1.91
A45: L_actual_TPSM63602-03 | B45: =-0.0238*Iout^2-0.0868*Iout+2.0073 -> 0.6297 | C45: uH | F45: Calculate TOKO chip inductance based on entered load current value | K45: 1.5 | L45: 1.82
A46: L_actual_TPSM63604-06 | B46: =-0.1304*Iout+2.32 -> 1.5376 | C46: uH | F46: Calculate MagLayers inductance based on entered load current value | K46: 2 | L46: 1.74
K47: 2.5 | L47: 1.64
A48: Lo | B48: =CHOOSE(GPN, B46, B46, B45, B45)*0.000001 -> 6.297e-07 | C48: H | F48: Chosen inductance | K48: 3 | L48: 1.53
A49: Rdcr | B49: =CHOOSE(GPN, 0.021, 0.021, 0.068, 0.068) -> 0.068 | C49: W | F49: Chosen inductor DCR | K49: 3.5 | L49: 1.4
K50: 4 | L50: 1.29
A51: Don2 | B51: =(Vout+Iout*(Rdcr+Rdson2))/(Vin+Iout*(Rdson2-Rdson1)) -> 0.2317420436
A52: Doff2 | B52: =1-_Don2 -> 0.7682579564
A54: D_Vinmin_2 | B54: =(Vout+Iout*(Rdcr+Rdson2))/(VIN_min+Iout*(Rdson2-Rdson1)) -> 0.4658249158 | D54: =Vout/VIN_min -> 0.4166666667 | F54: Duty cycles adjusted for DCR/Rdson voltage drops
A55: D_Vinnom_2 | B55: =(Vout+Iout*(Rdcr+Rdson2))/(VIN_nom+Iout*(Rdson2-Rdson1)) -> 0.2317420436 | D55: =Vout/VIN_nom -> 0.2083333333
A56: D_Vinmax_2 | B56: =(Vout+Iout*(Rdcr+Rdson2))/(VIN_max+Iout*(Rdson2-Rdson1)) -> 0.1542363434 | D56: =Vout/VIN_max -> 0.1388888889 | F56: =(Ts-0.000000085)/Ts -> 0.915 | G56: Dmax = [Ts-toff(min)]/Ts
A59: Iripple_Vinmin | B59: =(VIN_min-Vout-Iout*(Rdcr+Rdson1))*D1_Vinmin_2/(Fsw*Lf) -> 4.694497246 | C59: A | D59: =B59/Iout -> 0.7824162077 | F59: Ripple calculations include DCR and Rdson | K59: MagLayers inductor for the TPSM63604/06
A60: Iripple_Vinnom | B60: =(VIN_nom-Vout-Iout*(Rdcr+Rdson1))*D1_Vinnom_2/(Fsw*Lf) -> 6.751690537 | C60: A | D60: =B60/Iout -> 1.125281756 | F60: % ripple current at Vin-nom
A61: Iripple_Vinmax | B61: =(VIN_max-Vout-Iout*(Rdcr+Rdson1))*D1_Vinmax_2/(Fsw*Lf) -> 7.432834804 | C61: A | D61: =B61/Iout -> 1.238805801 | F61: Max inductor ripple current - it's at Vin-max | K61: Current (A) | L61: L (uH)
K62: 0 | L62: 2.2
A63: Iinductor_rms_Vinmin | B63: =SQRT(Iout^2+(Iripple_Vinmin^2)/12) -> 6.151140168 | C63: A | K63: 1 | L63: 2.18
A64: Iinductor_rms_Vinnom | B64: =SQRT(Iout^2+(Iripple_Vinnom^2)/12) -> 6.308627196 | C64: A | K64: 1.5 | L64: 2.14
A65: Iinudctor_rms_Vinmax | B65: =SQRT(Iout^2+(Iripple_Vinmax^2)/12) -> 6.372120482 | C65: A | K65: 2 | L65: 2.07
E66: TPSM63604/06 | F66: TPSM63602/03 | G66: => Result based on GPN | K66: 2.5 | L66: 2
A67: Core loss estimate - Vin(min) | B67: =kcore*Iripple_Vinmin^kcore1*(Fsw/1000)^kcore2 -> 0.7098915657 | C67: W | D67: kcore | E67: 4.2e-08 | F67: =0.000000042*0.5 -> 2.1e-08 | G67: =CHOOSE(GPN, E67, E67, F67, F67) -> 2.1e-08 | H67: Core loss constant | K67: 3 | L67: 1.93
A68: Core loss estimate - Vin(nom) | B68: =CHOOSE(GPN, kcore*Iripple_Vinnom^kcore1*(Fsw/1000)^kcore2, kcore*Iripple_Vinnom^kcore1*(Fsw/1000)^kcore2, 0.5*kcore*Iripple_Vinnom^kcore1*(Fsw/1000)^kcore2, 0.5*kcore*Iripple_Vinnom^kcore1*(Fsw/1000)^kcore2) -> 0.8804822791 | C68: W | D68: kcore1 | E68: 2.5 | F68: 2.5 | G68: =CHOOSE(GPN, E68, E68, F68, F68) -> 2.5 | H68: Ripple current exponent | K68: 4 | L68: 1.8
A69: Core loss estimate - Vin(max) | B69: =kcore*Iripple_Vinmax^kcore1*(Fsw/1000)^kcore2 -> 2.239265022 | C69: W | D69: kcore2 | E69: 1.95 | F69: 1.95 | G69: =CHOOSE(GPN, E69, E69, F69, F69) -> 1.95 | H69: Fsw exponent | K69: 6 | L69: 1.55
D70: Pcore = kcore*(deltaI)^kcore1*(Fsw)^kcore2 | K70: 8 | L70: 1.28
D71: Note: ** core loss for 2A/3A versions scaled by 50% for smaller 2520 core size** | K71: 10 | L71: 1
A75: Inductor copper temperature | B75: 125 | C75: °C
A76: Inductor DCR at hot | B76: =Rdcr*(1+Ltc*(B75-25))*1000 -> 94.724 | C76: mW
A79: Step 2b: Sense Resistors, Slope Comp, Current Limit
A81: Ilimit_inductor_Vinmin | B81: =Ipk_OCP -> 6.2 | C81: A | F81: Peak inductor current at current limit inception
A82: Ilimit_inductor_Vinnom | B82: =Ipk_OCP -> 6.2 | C82: A
A83: Ilimit_inductor_Vinmax | B83: =Ipk_OCP -> 6.2 | C83: A
A85: CS threshold_min | B85: 0.068 | C85: V | D85: not applicable here
A86: CS threshold | B86: 0.075 | C86: V
A87: CS threshold_max | B87: 0.082 | C87: V
A89: Rs | B89: 0.041 | C89: W | F89: Current sense resistance Rs = high-side MOSFET Rdson
A91: Current limit setpoint - peak | B91: =CHOOSE(GPN, 9.3, 7, 6.2, 4.87) -> 6.2 | C91: A | D91: 9.3, 7, 6.2, 4.87A | F91: Peak current limit (trimmed at ATE) = min inductor sat current at hot
A93: Iout_OCP_Vinmin | B93: =Ipk_OCP-Iripple_Vinmin/2 -> 3.852751377 | C93: A | F93: Current limit setpoints (i.e. IOUT) assuming no CS delay
A94: Iout_OCP_Vinnom | B94: =Ipk_OCP-Iripple_Vinnom/2 -> 2.824154732 | C94: A
A95: Iout_OCP_Vinmax | B95: =Ipk_OCP-Iripple_Vinmax/2 -> 2.483582598 | C95: A
A97: Ipk_full-load_Vinmin | B97: =Iout+Iripple_Vinmin/2 -> 8.347248623 | C97: A
A98: Ipk_full-load_Vinnom | B98: =Iout+Iripple_Vinnom/2 -> 9.375845268 | C98: A
A99: Ipk_full-load_Vinmax | B99: =Iout+Iripple_Vinmax/2 -> 9.716417402 | C99: A
A102: Step 3: Output Capacitor
A103: Icoutrms_VINmin | B103: =Iripple_Vinmin/SQRT(12) -> 1.355184624 | C103: A | F103: Output cap RMS current
A104: Icoutrms_VINnom | B104: =Iripple_Vinnom/SQRT(12) -> 1.949045174 | C104: A
A105: Icoutrms_VINmax | B105: =Iripple_Vinmax/SQRT(12) -> 2.145674587 | C105: A
A106: Max Cout rms current | B106: =MAX(B103:B105) -> 2.145674587 | C106: A
A108: Vripple1 | B108: ='Design the Power Module'!E22/1000 -> 0.05 | C108: V | F108: Output voltage ripple spec(pk-pk)
A110: Output Ripple Spec (pk-pk) | B110: =Vo1_ripple*1000 -> 50 | C110: mV | F110: Vout ripple spec at Vin(nom)
A112: Coutmin | B112: =Iripple_Vinnom/(Fsw*8*Vo1_ripple) -> 1.687922634e-05 | C112: F | F112: Minimum output capacitnace | H112: =Vo2_ripple -> 0 | I112: 1
A113: Reported Coutmin | B113: =IF(Cout_min*1000000<2, 2.2,Cout_min*1000000) -> 16.87922634 | C113: uF
A114: Cout | B114: ='Design the Power Module'!E26/1000000 -> 5e-05 | C114: F | F114: Chosen output capacitance | I114: 1
A115: Resrmax | B115: =SQRT((Vo1_ripple/Iripple_Vinnom)^2-(1/(Fsw*Cout*8))^2) -> 0.006970811331 | C115: W | F115: Max ESR before ripple exceeds Vripple1 | I115: 1
A117: Reported Cout ESR max | B117: =IF(OR(CoutEsrMax>0.3, CoutEsrMax<0, (ISERROR(CoutEsrMax))), "N/A", CoutEsrMax*1000) -> 6.970811331 | C117: mΩ
A118: CoutEsr | B118: ='Design the Power Module'!E28/1000 -> 0.002 | C118: W | F118: Chosen ESR | I118: 1 | K118: =ISERROR(CoutEsrMax) -> FALSE | L118: =ISERROR(B117) -> FALSE
A119: Vripple | B119: =Iripple_Vinnom*SQRT(Cout_ESR^2+(1/(8*Fsw*Cout))^2) -> 0.02161595666 | C119: Vp-p | L119: =OR(CoutEsrMax>0.3,CoutEsrMax<0) -> FALSE
K120: =OR(TRUE, FALSE, TRUE) -> TRUE
A121: Step 4: Input Capacitor
A123: Icinrms_VINmin | B123: =SQRT(D1_Vinmin_2*(Iout^2*(1-D1_Vinmin_2)+Iripple_Vinmin^2/12)) -> 3.132643223 | C123: A | F123: Calculate input cap rms current | N123: A
A124: Icinrms_VINnom | B124: =SQRT(D1_Vinnom_2*(Iout^2*(1-D1_Vinnom_2)+Iripple_Vinnom^2/12)) -> 2.699943044 | C124: A
A125: Icinrms_VINmax | B125: =SQRT(D1_Vinmax_2*(Iout^2*(1-D1_Vinmax_2)+Iripple_Vinmax^2/12)) -> 2.32512397 | C125: A
A126: Max Cin rms current | B126: =MAX(B123:B125) -> 3.132643223 | C126: A
A128: Icinrms - max at D = 0.5 | B128: =Iout/2 -> 3 | C128: A
A129: Final result | B129: =IF(VIN_min<2*Vout, Iout/2, B123) -> 3.132643223 | C129: A | D129: …report this
A131: Vinripple1 | B131: ='Design the Power Module'!E33/1000 -> 0.12 | C131: Vp-p | F131: Input voltage ripple spec (pk-pk)
F132: =Number_of_Phases -> 1
A133: Cinmin_Vinmax | B133: =Iout*D1_Vinmax*(1-D1_Vinmax)/(Vinripple1*Fsw) -> 5.979938272e-06 | C133: F | F133: Calculate cap at Vinmax and 50% duty cycle (Vin = 2*Vout)
A134: Cinmin_50%D | B134: =Iout*0.5*(1-0.5)/(Vinripple1*Fsw) -> 1.25e-05 | C134: F | F134: Buck 50% typically worst case
A135: Cinmin | B135: =IF(VIN_max<2*Vout, B133,B134) -> 1.25e-05 | C135: F
A136: Reported Cinmin | B136: =IF(Cinmin*1000000<4.7, 4.7,Cinmin*1000000) -> 12.5 | C136: uF | F136: …report this
A137: Cin | B137: ='Design the Power Module'!E35/1000000 -> 2e-05 | C137: F | F137: Input capacitance
A138: CinEsrMax_Vinmax | B138: =-(Iout*D1_Vinmax*(1-D1_Vinmax)/(Cin*Fsw)-Vinripple1)/(Iout+Iripple_Vinmax/2) -> 0.008657550092 | C138: W
A139: CinEsrMax_50%D | B139: =-(Iout*0.5*(1-0.5)/(Cin*Fsw)-Vinripple1)/(Iout+Iripple_Vinmax/2) -> 0.004631336648 | C139: W | F139: Calculate ESR at Vinmax and 50% duty cycle (Vin = 2*Vout)
A140: CinEsrMax | B140: =IF(VIN_max<2*Vout, B138,B139) -> 0.004631336648 | C140: W
A141: Reported Cin ESR max | B141: =IF(OR(CinEsrMax>0.3, CinEsrMax<0), "N/A",CinEsrMax*1000) -> 4.631336648 | C141: mΩ | F141: …report this
A142: RCinEsr | B142: ='Design the Power Module'!E37/1000 -> 0.001 | C142: W | F142: Input capacitance series resistance (ESR)
A144: Vinripple2_Vinmax | B144: =Iout*D1_Vinmax_2*(1-D1_Vinmax_2)/(Cin*Fsw)+(Iout +Iripple_Vinmax/2)*RCinEsr -> 0.04885066553 | C144: Vp-p
A145: Vinripple2_50%D | B145: =Iout*0.5*(1-0.5)/(Cin*Fsw)+(Iout +Iripple_Vinmax/2)*RCinEsr -> 0.0847164174 | C145: Vp-p | F145: Calculate ripple at Vinmax and 50% duty cycle (Vin = 2*Vout)
A146: Vinripple2 | B146: =IF(VIN_max<2*Vout, B144,B145) -> 0.0847164174 | C146: Vp-p | F146: …report highest of these
B148: =Iout*D1_Vinmax_2*(1-D1_Vinmax_2)/(Cin*Fsw) -> 0.03913424813 | C148: Vp-p
A150: Step ?: Other Components - MODE
A152: RPG1/2 | B152: 100 | C152: kΩ
A153: RFB1/2 | C153: W | E153: Tie to VDDA or AGND for 3.3V/5V output, respectively.
A154: R_MODE | C154: W | E154: Tie to VDDA or AGND for Single/Dual operation, respectively.
A155: R_DEMB | C155: W | E155: Tie to VDDA or AGND for FPWM/DEM, respectively.
A158: Step 5: Feedback Network and Internal Compensation
A159: Pi | B159: 3.14159265 | D159: p
A160: CS Amp Gain (effective value) | B160: 3.414 | F160: Effective CS gain - depending on control architecture
A161: Ri | B161: =CHOOSE(GPN, 0.139, 0.139*9.3/Ipk_OCP, 0.139*9.3/Ipk_OCP, 0.139*9.3/Ipk_OCP) -> 0.2085 | C161: W | F161: Current Sense effective resistance = shunt resistor Rs * CS amp gain
A163: Se_ext | B163: =B167/Ri*1000 -> 3600000 | C163: A/s | F163: Slope comp slope - referred to inductor current
A164: Sn | B164: =(Vin-Vout)/Lf -> 30173098.3 | C164: A/s | F164: On-time Slope
A165: Sf | B165: =Vout/Lf -> 7940289.027 | C165: A/s | F165: Off-time Slope
A167: Se_int | B167: =6*0.6*Ri*Fsw/1000 -> 750.6 | C167: mV/μs | F167: Slope comp slope - referred to IC
A168: Sn_int | B168: =Sn*Ri/1000 -> 6291.090996 | C168: mV/μs | F168: Upslope
A169: Sf_int | B169: =Sf*Ri/1000 -> 1655.550262 | C169: mV/μs | F169: Downslope
A171: mc_buck | B171: =1+Se_ext/Sn -> 1.119311579 | F171: mc = 1 + Se/Sn for peak current-mode buck
A172: k_buck | B172: =mc_buck*(1-D1_Vinnom_2) -> 0.8599200263 | F172: mc*(1-d)
A174: mc | B174: =1+Se_ext/Sn -> 1.119311579
A175: k | B175: =mc_buck*(1-D1_Vinnom_2) -> 0.8599200263
A176: Q | B176: =1/Pi/(k-0.5) -> 0.884390596 | F176: 1/(Pi*(k-0.5)) | H176: Q = 2/Pi = 0.636 gives ideal one-cycle damping
A178: Error Amp (EA)
A179: gm | B179: =14.75/1000000*1 -> 1.475e-05 | C179: S | F179: Error Amp Transconductance
A180: GBW | B180: 6 | C180: MHz | F180: EA gain-bandwidth product
A181: Cbw | B181: =gm/(2*Pi*GBW*1000000) -> 3.912559022e-13 | C181: F | F181: EA effective bandwidth limiting capacitance = gm/(2*Pi*GBW)
A183: RoEA | B183: =118300000 -> 118300000 | C183: W | F183: EA output resistance
A184: AEA | B184: =gm*RoEA -> 1744.925 | C184: V/V | F184: EA DC gain = gm*RoEA
A185: Afb | B185: =Vref/Vout -> 0.2 | C185: V/V | F185: Feedback gain from Vout to FB
A186: Acs | B186: =1/Ri -> 4.79616307 | F186: Acs = 1/Ri
A187: Am_buck | B187: =(Ro/Number_of_Phases)/Ri/((1+Ro/Number_of_Phases*(k-0.5)/(Fsw*Lf))) -> 2.707289445
A188: Am | B188: =Ro/Ri/((1+Ro*(k-0.5)/(Fsw*Lf))) -> 2.707289445 | F188: Buck modulator gain
A190: Scaling factor to calculate Rcomp - buck | B190: =2*Pi*Ri/gm -> 88816.55153 | F190: 2*Pi*Ri/gm -- scaling factor to calculate Rcomp given desired buck crossover frequency
A191: DC Gain is Adc = AEA*Afb*Am
A193: Rout | B193: =Rout -> 0.8333333333 | C193: W | F193: Output Resistance (Load)
A195: Fp_load_buck | B195: =1/(2*Pi*Ro*Cout)+(k-0.5)/(2*Pi*Fsw*Lf*Cout) -> 5639.094575 | C195: Hz | F195: Buck dominant pole frequency -- note slope comp influence
A196: Fp_dominant | B196: =Fload_u -> 5639.094575 | C196: Hz
A197: Cbw | B197: =Cbw -> 3.912559022e-13 | C197: F | F197: Cbw
A198: Fp_EA | B198: =1/(2*Pi*(RoEA+Rcea1_u)*Cc1ea_u) -> 74.17735984 | C198: Hz | F198: Error Amp LF pole -- related to amplifier ouptut resistance and comp cap
A199: Fp_HF | B199: =1/(2*Pi*Rcea1_u*(Cc2ea_u+Cbw)) -> 451977.4011 | C199: Hz | F199: Error Amp HF pole cancels zero related to Output Cap ESR
A200: Fesr | B200: =1/(2*Pi*Cout*Cout_ESR) -> 1591549.433 | C200: Hz | F200: Cout ESR zero frequency
A201: F_mod | B201: =Fsw/2 -> 500000 | C201: Hz | F201: Zero-order sample-and-hold effects of current-mode control modeled as double pole at Fsw/2
A202: Fz_ff | B202: =IF(NO_FF_CAP=TRUE, 1000000000, 1/(2*Pi*Rfb2_u*Cff_u*0.000000000001)) -> 179958.0996 | C202: Hz
A203: Fp_ff | B203: =IF(NO_FF_CAP=TRUE, 1000000000, 1/(2*Pi*Rfb4_u*Cff_u*0.000000000001)) -> 903389.6599 | C203: Hz
A205: Desired Crossover Frequency | B205: ='Design the Power Module'!E24*1000 -> 80000 | C205: Hz
A206: Cout - for the Fc spec | B206: =Rcea1_u/Fcross/(2*Pi*Ri/(gm*Afb))*1000000 -> 25.33311597 | C206: uF | F206: Output cap to meet the crossover frequeny spec
A207: Rcea1 | B207: =Fcross*Cout*2*Pi*Ri/(gm*Afb) -> 1776331.031 | C207: W | F207: This component will largely determine the crossover frequency | K207: =Fcross/Fp_dominant/(gm*Afb*Am) -> 1776331.031
A208: Cc1ea, Cc3ea | B208: =10/(Rcea1*Fcross*2*Pi) -> 1.119969621e-11 | C208: F | F208: This along with Rcea1 will set a zero at Fcrossover/5 to optimize phase margin
A209: Cc2ea, Cc4ea | B209: =MAX(1/(Rcea1*2*Pi*Fesr)-Cbw, 1/(Rcea1*2*Pi*(Fsw/2))-Cbw) -> -2.120607629e-13 | C209: F | F209: This along with Rcea1 places a pole at the output cap ESR zero
A212: Rcea1_u | B212: =900000 -> 900000 | C212: W | F212: =1/(Rcea1*2*Pi*(Fsw/2))-Cbw -> -2.120607629e-13
A213: Cc1ea_u | B213: =0.000000000018 -> 1.8e-11 | C213: F
A214: Cc2ea_u | B214: =0 -> 0 | C214: F
A216: Resulting Pole/Zero Locations | F216: =Cout -> 5e-05 | G216: =Cout_ESR -> 0.002
A217: Fz1 | B217: =1/(2*Pi*Rcea1_u*Cc1ea_u) -> 9824.379214 | C217: Hz | F217: This zero is set at or close to the dominant load pole
A218: Fp2 | B218: =1/(2*Pi*Rcea1_u*(Cc1ea_u*(Cc2ea_u+Cbw)/(Cc1ea_u+Cc2ea_u+Cbw))) -> 461801.7803 | C218: Hz | F218: This pole cancels the zero from the Output Cap ESR
A220: Rfb1 | B220: ='Design the Power Module'!E42*1000 -> 10000 | C220: W | F220: Lower Feedback Resistance - chosen by user
A221: Rfb2 | B221: =IF(Vout=Vref,0,(Vout-Vref)*B220/Vref) -> 40000 | C221: W | D221: =Rfb2_u -> 40200 | F221: Upper Feedback Resistance
A222: Rfb2_u | B222: =IF(Vout=Vref,"N/A",'Standard Value Calculator'!O11) -> 40200 | C222: W | F222: Std Value Upper Feedback Resistance
A223: Cff | B223: =1/(2*Pi*200000)/Rfb2_u -> 1.979539095e-11 | C223: F | D223: =1/(1/Rfb1_+1/Rfb2_u) -> 8007.968127 | E223: W | F223: Based on a 200kHz zero frequency
A224: Cff_u | B224: =IF('Design the Power Module'!E44<0.1, 0.1, 'Design the Power Module'!E44) -> 22 | C224: pF
A227: Step 6: UVLO Divider
A228: VIN UVLO turn-on voltage | B228: ='Design the Power Module'!E47 -> 8.9 | C228: V
A229: VIN UVLO turn-off voltage | B229: ='Design the Power Module'!E51 -> 6.4018944 | C229: V
A230: Rent | B230: ='Design the Power Module'!E48*1000 -> 604000 | C230: W
A231: Renb | B231: =B230*(1.263/(B228-1.263)) -> 99888.96163 | C231: W
A232: Renb_u | B232: ='Standard Value Calculator'!O7 -> 100000 | C232: W
A234: Step 7: Efficiency
A235: VAR | B235: 0
A236: Design
A237: Ta | B237: ='Design the Power Module'!E13 -> 25 | C237: °C | D237: Ambient Temperature
A238: Components
A239: LTc | B239: =3930/1000000 -> 0.00393 | C239: %/°C | D239: Inductor DCR Temp Co
A240: θCA | B240: 22 | C240: °C/W | D240: Inductor Core-to-Ambient Thermal Resistance
A241: RCinEsr | B241: =RCinEsr -> 0.001 | C241: W | D241: Input Capacitor ESR
A243: Controller Characteristics
A244: VCC | B244: 3.3 | C244: V
A245: Top Driver
A246: RdsonDRT | B246: 0.5 | C246: W | D246: Drain-Source Resistance of Pullup High-side FET Driver
A247: RdsonDRT2 | B247: 0.5 | C247: W | D247: Drain-Source Resistance of Pulldown High-side FET Driver
A248: Bottom Driver
A249: RdsonDRB | B249: 0.5 | C249: W | D249: Drain-Source Resistance of Pullup Low-side FET Driver
... 72 more rows

Sheet MOSFET Parameters (hidden)
A3: MOSFET Parameters
E4: Internal Power MOSFETs
E5: High-side | F5: Low-side
D6: On-State Resistance, RDS(on) | E6: 41 | F6: 21 | G6: mΩ
D7: Total Gate Charge, QG | E7: 3 | F7: 6 | G7: nC
D8: Gate-Drain Charge, QGD | E8: 1 | F8: 2 | G8: nC
D9: Gate-Source Charge, QGS | E9: 1 | F9: 2 | G9: nC
D10: Output Charge, QOSS | F10: 2 | G10: nC
D11: Output Capacitance, COSS | E11: 100 | F11: 200 | G11: pF
D12: Gate Resistance, RGATE | E12: 1 | F12: 1 | G12: Ω
D13: Transconductance, gFS | E13: 100 | F13: 100 | G13: S
D14: Gate-Source Miller Plateau Voltage, VTH | E14: 1.5 | F14: 1.5 | G14: V
D15: Body Diode Forward Voltage, VBD | E15: 0.7 | F15: 0.7 | G15: V
D16: Body Diode Rev Recovery Charge, QRR | F16: 3 | G16: nC
D17: Thermal Resistance, θJA | E17: 22 | F17: 22 | G17: °C/W

Sheet Schematic Management (hidden)
A1: =VARIANT -> 3
A2: =CHOOSE(VARIANT, "TPSM63606", "TPSM63604", "TPSM63603", "TPSM63602", "TPSM63603V5", "TPSM63603V3") -> TPSM63603

Sheet Stability Calculations (hidden)
A2: Divider Network & EA Poles/Zeros | E2: Modulator | J2: Power Stage Poles/Zeros | M2: Complex Pole Pair | P2: Total System
B3: Afb1 | C3: =Afb -> 0.2 | D3: V/V | E3: Acs | F3: =Acs -> 4.79616307 | G3: A/V | H3: gm | I3: =gm -> 1.475e-05 | J3: z_ESR | K3: =Fesr -> 1591549.433 | L3: Hz | M3: p3 | N3: =Fsw/2 -> 500000 | O3: Hz | P3: Adc | Q3: =Am*Afb*AEA -> 944.8034071 | R3: V/V
B4: EA zero, z1 | C4: =Fz1_u -> 9824.379214 | D4: Hz | E4: Am | F4: =Am -> 2.707289445 | G4: V/V | J4: p_dom | K4: =Fp_dominant -> 5639.094575 | L4: Hz | M4: pterm1 | N4: =Q*pole3 -> 442195.298 | P4: Crossover | Q4: =AI7 -> 41.92975 | R4: kHz
B5: EA pole, p1 | C5: =Fp1_u -> 74.17735984 | D5: Hz | E5: Q | F5: =Q -> 0.884390596 | M5: pterm2 | N5: =pole3^2 -> 250000000000 | P5: Phase Margin | Q5: =AI9 -> 72.53095761 | R5: °
B6: Aea | C6: =AEA -> 1744.925 | D6: V/V | E6: mc | F6: =mc -> 1.119311579 | H6: FF zero, z5 | I6: =Fz_ff -> 179958.0996 | P6: radconv | Q6: =180/Pi -> 57.29577958 | AH6: XOVER SEARCH
B7: EA pole, p2 | C7: =Fp2_u -> 451977.4011 | D7: Hz | E7: k | F7: =k -> 0.8599200263 | H7: FF pole, p5 | I7: =Fp_ff -> 903389.6599 | AH7: xover | AI7: =SUM(AH12:AH613)/1000 -> 41.92975
AH9: phase margin | AI9: =SUM(AI13:AI613) -> 72.53095761
A10: Freq (Hz) | C10: Power Stage | I10: Error Amplifier | P10: FF Network | S10: Sampling Double Pole | U10: System Response | AB10: ERROR AMP Response | AE10: PLANT Response
C11: p_dom | E11: z_ESR | G11: z_RHP | I11: p1 | K11: z1 | M11: p2 | O11: z3 | Q11: p3 | S11: p3
C12: Gain(V/V) | D12: Phase(rad) | E12: Gain(V/V) | F12: Phase(rad) | G12: Gain(V/V) | H12: Phase(rad) | I12: Gain(V/V) | J12: Phase(rad) | K12: Gain(V/V) | L12: Phase(rad) | M12: Gain(V/V) | N12: Phase(rad) | O12: Gain(V/V) | P12: Phase(rad) | Q12: Gain(V/V) | R12: Phase(rad) | S12: Gain(V/V) | T12: Phase(rad) | U12: Gain (dB) | V12: Phase (°) | W12: Phase Margin (°) | Z12: Fsquare | AB12: Gain(dB) | AC12: Phase(Deg) | AE12: Gain(dB) | AF12: Phase(Deg)
A13: 1 | B13: =A13/1000 -> 0.001 | C13: =SQRT(1+(A13/pole1)^2) -> 1.000000016 | D13: =ATAN(A13/pole1) -> 0.0001773334311 | E13: =SQRT(1+(A13/Zero1)^2) -> 1 | F13: =ATAN(A13/Zero1) -> 6.2831853e-07 | G13: =IF(VIN_nom>Vout, 1, SQRT(1+(A13/z_RHP)^2)) -> 1 | H13: =IF(VIN_nom>Vout, 0, -ATAN(A13/z_RHP)) -> 0 | I13: =SQRT(1+(A13/Pole2)^2) -> 1.000090867 | J13: =ATAN(A13/Pole2) -> 0.01348038576 | K13: =SQRT(1+(A13/Zero2)^2) -> 1.000000005 | L13: =ATAN(A13/Zero2) -> 0.0001017876015 | M13: =SQRT(1+(A13/pole4)^2) -> 1 | N13: =ATAN(A13/pole4) -> 2.2125e-06 | O13: =SQRT(1+(A13/Zero3)^2) -> 1 | P13: =ATAN(A13/Zero3) -> 5.556849079e-06 | Q13: =SQRT(1+(A13/pole5)^2) -> 1 | R13: =ATAN(A13/pole5) -> 1.106942048e-06 | S13: =SQRT((1-(Z13/pterm2))^2+(A13/pterm1)^2) -> 1 | T13: =IF((ATAN((A13/pterm1)/(1-A13^2/pterm2))>0),ATAN((A13/pterm1)/(1-A13^2/pterm2)),PI()+ATAN((A13/pterm1)/(1-A13^2/pterm2))) -> 2.261444218e-06 | U13: =20*LOG10(((E13*K13*G13*O13)/(C13*I13*S13*M13*Q13))*Adc) -> 59.5060397 | V13: =((F13+L13+H13+R13)-(D13+J13+T13+N13+T13))*radconv -> -0.7769841548 | W13: =IF(V13>0,V13,V13+180) -> 179.2230158 | Y13: =IF(U13<0,A13,1000000000) -> 1000000000 | Z13: =A13^2 -> 1 | AB13: =20*LOG10((K13/(I13*M13))*AEA) -> 64.83474612 | AC13: =(L13-(J13+N13))*radconv -> -0.7666639783 | AE13: =20*LOG10((E13*G13/(C13*S13))*Acs*Am) -> 22.26857248 | AF13: =(F13+H13-(D13+T13))*radconv -> -0.01025402839 | AH13: =SUM((U14<0)*(U13>0))*A13 -> 0 | AI13: =IF(AH13>0,W11,0) -> 0
A14: 1.0965 | B14: =A14/1000 -> 0.0010965 | C14: 1.000000019 | D14: 0.0001944461068 | E14: 1 | F14: 6.889512681e-07 | G14: 1 | H14: 0 | I14: 1.00010925 | J14: 0.01478106186 | K14: 1.000000006 | L14: 0.000111610105 | M14: 1 | N14: 2.42600625e-06 | O14: 1 | P14: 6.093085015e-06 | Q14: 1 | R14: 1.213761955e-06 | S14: 1 | T14: 2.479673585e-06 | U14: 59.50588002 | V14: -0.8519527478 | W14: 179.1480473 | Y14: 1000000000 | Z14: 1.20231225 | AB14: 64.83458647 | AC14: -0.8406366743 | AE14: 22.26857245 | AF14: -0.01124354211 | AH14: 0 | AI14: 0
A15: 1.2023 | B15: 0.0012023 | C15: 1.000000023 | D15: 0.0002132079833 | E15: 1 | F15: 7.554273686e-07 | G15: 1 | H15: 0 | I15: 1.000131348 | J15: 0.01620703045 | K15: 1.000000007 | L15: 0.0001223792331 | M15: 1 | N15: 2.66008875e-06 | O15: 1 | P15: 6.680999648e-06 | Q15: 1 | R15: 1.330876424e-06 | S15: 1 | T15: 2.718934384e-06 | U15: 59.50568808 | V15: -0.9341429907 | W15: 179.065857 | Y15: 1000000000 | Z15: 1.44552529 | AB15: 64.83439456 | AC15: -0.9217350426 | AE15: 22.26857242 | AF15: -0.01232841828 | AH15: 0 | AI15: 0
A16: 1.3183 | B16: 0.0013183 | C16: 1.000000027 | D16: 0.0002337786605 | E16: 1 | F16: 8.283123181e-07 | G16: 1 | H16: 0 | I16: 1.000157914 | J16: 0.01777039831 | K16: 1.000000009 | L16: 0.0001341865947 | M16: 1 | N16: 2.91673875e-06 | O16: 1 | P16: 7.325594141e-06 | Q16: 1 | R16: 1.459281701e-06 | S16: 1 | T16: 2.981261913e-06 | U16: 59.50545734 | V16: -1.024252704 | W16: 178.9757473 | Y16: 1000000000 | Z16: 1.73791489 | AB16: 64.83416386 | AC16: -1.010647616 | AE16: 22.26857238 | AF16: -0.01351788553 | AH16: 0 | AI16: 0
A17: 1.4454 | B17: 0.0014454 | C17: 1.000000033 | D17: 0.0002563177384 | E17: 1 | F17: 9.081716033e-07 | G17: 1 | H17: 0 | I17: 1.000189829 | J17: 0.01948326428 | K17: 1.000000011 | L17: 0.0001471237987 | M17: 1 | N17: 3.1979475e-06 | O17: 1 | P17: 8.031869659e-06 | Q17: 1 | R17: 1.599974036e-06 | S17: 1 | T17: 3.268691473e-06 | U17: 59.50518015 | V17: -1.122979255 | W17: 178.8770207 | Y17: 1000000000 | Z17: 2.08918116 | AB17: 64.83388672 | AC17: -1.108062472 | AE17: 22.26857233 | AF17: -0.01482117247 | AH17: 0 | AI17: 0
A18: 1.5849 | B18: 0.0015849 | C18: 1.000000039 | D18: 0.0002810557506 | E18: 1 | F18: 9.958220382e-07 | G18: 1 | H18: 0 | I18: 1.000228235 | J18: 0.02136310714 | K18: 1.000000013 | L18: 0.0001613231688 | M18: 1 | N18: 3.50659125e-06 | O18: 1 | P18: 8.807050106e-06 | Q18: 1 | R18: 1.754392451e-06 | S18: 1 | T18: 3.584162942e-06 | U18: 59.50484659 | V18: -1.231330102 | W18: 178.7686699 | Y18: 1000000000 | Z18: 2.51190801 | AB18: 64.83355322 | AC18: -1.214973654 | AE18: 22.26857227 | AF18: -0.01625160934 | AH18: 0 | AI18: 0
A19: 1.7378 | B19: 0.0017378 | C19: 1.000000047 | D19: 0.0003081700301 | E19: 1 | F19: 1.091891941e-06 | G19: 1 | H19: 0 | I19: 1.000274389 | J19: 0.02342334879 | K19: 1.000000016 | L19: 0.0001768864927 | M19: 1 | N19: 3.8448825e-06 | O19: 1 | P19: 9.65669233e-06 | Q19: 1 | R19: 1.92364389e-06 | S19: 1 | T19: 3.929937762e-06 | U19: 59.50444575 | V19: -1.350078878 | W19: 178.6499211 | Y19: 1000000000 | Z19: 3.01994884 | AB19: 64.83315245 | AC19: -1.332144475 | AE19: 22.2685722 | AF19: -0.01781945017 | AH19: 0 | AI19: 0
A20: 1.9055 | B20: 0.0019055 | C20: 1.000000057 | D20: 0.0003379088437 | E20: 1 | F20: 1.197260959e-06 | G20: 1 | H20: 0 | I20: 1.000329893 | J20: 0.02568278281 | K20: 1.000000019 | L20: 0.0001939562729 | M20: 1 | N20: 4.21591875e-06 | O20: 1 | P20: 1.058857592e-05 | Q20: 1 | R20: 2.109278072e-06 | S20: 1 | T20: 4.309181958e-06 | U20: 59.50396374 | V20: -1.480308837 | W20: 178.5196912 | Y20: 1000000000 | Z20: 3.63093025 | AB20: 64.83267052 | AC20: -1.460643741 | AE20: 22.26857212 | AF20: -0.01953905057 | AH20: 0 | AI20: 0
A21: 2.0893 | B21: 0.0020893 | C21: 1.000000069 | D21: 0.0003705027246 | E21: 1 | F21: 1.312745905e-06 | G21: 1 | H21: 0 | I21: 1.000396591 | J21: 0.02815883121 | K21: 1.000000023 | L21: 0.0002126648334 | M21: 1 | N21: 4.62257625e-06 | O21: 1 | P21: 1.160992478e-05 | Q21: 1 | R21: 2.31273402e-06 | S21: 1 | T21: 4.724835405e-06 | U21: 59.50338455 | V21: -1.623024187 | W21: 178.3769758 | Y21: 1000000000 | Z21: 4.36517449 | AB21: 64.83209143 | AC21: -1.601462243 | AE21: 22.26857202 | AF21: -0.02142374077 | AH21: 0 | AI21: 0
A22: 2.2909 | B22: 0.0022909 | C22: 1.000000083 | D22: 0.0004062531393 | E22: 1 | F22: 1.43941492e-06 | G22: 1 | H22: 0 | I22: 1.0004768 | J22: 0.03087427279 | K22: 1.000000027 | L22: 0.0002331852129 | M22: 1 | N22: 5.06861625e-06 | O22: 1 | P22: 1.273018556e-05 | Q22: 1 | R22: 2.535893537e-06 | S22: 1 | T22: 5.18074256e-06 | U22: 59.50268809 | V22: -1.779537902 | W22: 178.2204621 | Y22: 1000000000 | Z22: 5.24822281 | AB22: 64.83139509 | AC22: -1.75589541 | AE22: 22.2685719 | AF22: -0.02349095261 | AH22: 0 | AI22: 0
A23: 2.5119 | B23: 0.0025119 | C23: 1.000000099 | D23: 0.0004454438209 | E23: 1 | F23: 1.578273316e-06 | G23: 1 | H23: 0 | I23: 1.000573202 | J23: 0.03385049706 | K23: 1.000000033 | L23: 0.0002556802715 | M23: 1 | N23: 5.55757875e-06 | O23: 1 | P23: 1.39582492e-05 | Q23: 1 | R23: 2.78052773e-06 | S23: 1 | T23: 5.680521732e-06 | U23: 59.5018511 | V23: -1.951082894 | W23: 178.0489171 | Y23: 1000000000 | Z23: 6.30964161 | AB23: 64.83055824 | AC23: -1.925159644 | AE23: 22.26857175 | AF23: -0.0257570925 | AH23: 0 | AI23: 0
A24: 2.7542 | B24: 0.0027542 | C24: 1.000000119 | D24: 0.0004884117023 | E24: 1 | F24: 1.730514895e-06 | G24: 1 | H24: 0 | I24: 1.000689078 | J24: 0.03711287886 | K24: 1.000000039 | L24: 0.0002803434057 | M24: 1 | N24: 6.0936675e-06 | O24: 1 | P24: 1.530467373e-05 | Q24: 1 | R24: 3.048739788e-06 | S24: 1 | T24: 6.228469666e-06 | U24: 59.50084512 | V24: -2.139121803 | W24: 177.8608782 | Y24: 1000000000 | Z24: 7.58561764 | AB24: 64.82955244 | AC24: -2.110697974 | AE24: 22.26857158 | AF24: -0.02824164306 | AH24: 0 | AI24: 0
A25: 3.02 | B25: 0.00302 | C25: 1.000000143 | D25: 0.0005355469164 | E25: 1 | F25: 1.897521961e-06 | G25: 1 | H25: 0 | I25: 1.00082844 | J25: 0.04069075856 | K25: 1.000000047 | L25: 0.0003073985479 | M25: 1 | N25: 6.68175e-06 | O25: 1 | P25: 1.678168422e-05 | Q25: 1 | R25: 3.342964984e-06 | S25: 1 | T25: 6.829561539e-06 | U25: 59.49963542 | V25: -2.34534586 | W25: 177.6546541 | Y25: 1000000000 | Z25: 9.1204 | AB25: 64.82834295 | AC25: -2.31417893 | AE25: 22.26857137 | AF25: -0.03096716313 | AH25: 0 | AI25: 0
A26: 3.3113 | B26: 0.0033113 | C26: 1.000000172 | D26: 0.0005872041292 | E26: 1 | F26: 2.080551148e-06 | G26: 1 | H26: 0 | I26: 1.000995883 | J26: 0.04461068842 | K26: 1.000000057 | L26: 0.0003370492733 | M26: 1 | N26: 7.32625125e-06 | O26: 1 | P26: 1.840039435e-05 | Q26: 1 | R26: 3.665417202e-06 | S26: 1 | T26: 7.48832024e-06 | U26: 59.49818219 | V26: -2.57128563 | W26: 177.4287144 | Y26: 1000000000 | Z26: 10.96470769 | AB26: 64.82688997 | AC26: -2.537112433 | AE26: 22.26857112 | AF26: -0.0339541607 | AH26: 0 | AI26: 0
A27: 3.6308 | B27: 0.0036308 | C27: 1.000000207 | D27: 0.0006438621395 | E27: 1 | F27: 2.281298919e-06 | G27: 1 | H27: 0 | I27: 1.001197215 | J27: 0.04890851516 | K27: 1.000000068 | L27: 0.000369570408 | M27: 1 | N27: 8.033145e-06 | O27: 1 | P27: 2.017580763e-05 | Q27: 1 | R27: 4.019085187e-06 | S27: 1 | T27: 8.210851668e-06 | U27: 59.49643515 | V27: -2.819007437 | W27: 177.1809926 | Y27: 1000000000 | Z27: 13.18270864 | AB27: 64.82514324 | AC27: -2.781536945 | AE27: 22.26857082 | AF27: -0.03723032157 | AH27: 0 | AI27: 0
A28: 3.9811 | B28: 0.0039811 | C28: 1.000000249 | D28: 0.0007059820128 | E28: 1 | F28: 2.5013989e-06 | G28: 1 | H28: 0 | I28: 1.0014392 | J28: 0.05361857204 | K28: 1.000000082 | L28: 0.0004052265996 | M28: 1 | N28: 8.80818375e-06 | O28: 1 | P28: 2.212237187e-05 | Q28: 1 | R28: 4.406846986e-06 | S28: 1 | T28: 9.003035578e-06 | U28: 59.49433582 | V28: -3.090490431 | W28: 176.9095096 | Y28: 1000000000 | Z28: 15.84915721 | AB28: 64.82304427 | AC28: -3.049404783 | AE28: 22.26857045 | AF28: -0.04082230613 | AH28: 0 | AI28: 0
A29: 4.3652 | B29: 0.0043652 | C29: 1.0000003 | D29: 0.0007740957471 | E29: 1 | F29: 2.742736047e-06 | G29: 1 | H29: 0 | I29: 1.001730056 | J29: 0.05878035302 | K29: 1.000000099 | L29: 0.0004443232104 | M29: 1 | N29: 9.658005e-06 | O29: 1 | P29: 2.42567576e-05 | Q29: 1 | R29: 4.832023426e-06 | S29: 1 | T29: 9.871656302e-06 | U29: 59.49181318 | V29: -3.388011294 | W29: 176.6119887 | Y29: 1000000000 | Z29: 19.05497104 | AB29: 64.82052207 | AC29: -3.342961668 | AE29: 22.26857001 | AF29: -0.04476087634 | AH29: 0 | AI29: 0
A30: 4.7863 | B30: 0.0047863 | C30: 1.00000036 | D30: 0.0008487708065 | E30: 1 | F30: 3.00732098e-06 | G30: 1 | H30: 0 | I30: 1.002079581 | J30: 0.06443575224 | K30: 1.000000119 | L30: 0.0004871859602 | M30: 1 | N30: 1.058968875e-05 | O30: 1 | P30: 2.659674674e-05 | Q30: 1 | R30: 5.298156723e-06 | S30: 1 | T30: 1.082395046e-05 | U30: 59.48878267 | V30: -3.713985152 | W30: 176.2860148 | Y30: 1000000000 | Z30: 22.90866769 | AB30: 64.81749208 | AC30: -3.664589702 | AE30: 22.26856949 | AF30: -0.04907884492 | AH30: 0 | AI30: 0
A31: 5.2481 | B31: 0.0052481 | C31: 1.000000433 | D31: 0.000930663321 | E31: 1 | F31: 3.297478477e-06 | G31: 1 | H31: 0 | I31: 1.002499706 | J31: 0.07063300016 | K31: 1.000000143 | L31: 0.0005341914625 | M31: 1 | N31: 1.161142125e-05 | O31: 1 | P31: 2.916289964e-05 | Q31: 1 | R31: 5.80934256e-06 | S31: 1 | T31: 1.18682854e-05 | U31: 59.48514141 | V31: -4.071192481 | W31: 175.9288075 | Y31: 1000000000 | Z31: 27.54255361 | AB31: 64.81385146 | AC31: -4.017031177 | AE31: 22.26856886 | AF31: -0.05381415157 | AH31: 0 | AI31: 0
A32: 5.7544 | B32: 0.0057544 | C32: 1.000000521 | D32: 0.001020447153 | E32: 1 | F32: 3.615596149e-06 | G32: 1 | H32: 0 | I32: 1.003004522 | J32: 0.07742117072 | K32: 1.000000172 | L32: 0.0005857265092 | M32: 1 | N32: 1.273161e-05 | O32: 1.000000001 | P32: 3.197633233e-05 | Q32: 1 | R32: 6.369787319e-06 | S32: 1 | T32: 1.301325461e-05 | U32: 59.48076816 | V32: -4.462462547 | W32: 175.5375375 | Y32: 1000000000 | Z32: 33.11311936 | AB32: 64.80947897 | AC32: -4.403076143 | AE32: 22.26856809 | AF32: -0.0590057613 | AH32: 0 | AI32: 0
A33: 6.3096 | B33: 0.0063096 | C33: 1.000000626 | D33: 0.001118902562 | E33: 1 | F33: 3.964438597e-06 | G33: 1 | H33: 0 | I33: 1.003611166 | J33: 0.08485673122 | K33: 1.000000206 | L33: 0.0006422389644 | M33: 1 | N33: 1.395999e-05 | O33: 1.000000001 | P33: 3.506149494e-05 | Q33: 1 | R33: 6.984361544e-06 | S33: 0.9999999999 | T33: 1.426880844e-05 | U33: 59.47551568 | V33: -4.891050994 | W33: 175.108949 | Y33: 1000000000 | Z33: 39.81105216 | AB33: 64.8042274 | AC33: -4.825934834 | AE33: 22.26856718 | AF33: -0.06469879146 | AH33: 0 | AI33: 0
A34: 6.9183 | B34: 0.0069183 | C34: 1.000000753 | D34: 0.001226845274 | E34: 1 | F34: 4.346896086e-06 | G34: 1 | H34: 0 | I34: 1.004339949 | J34: 0.09299797024 | K34: 1.000000248 | L34: 0.0007041970495 | M34: 1 | N34: 1.530673875e-05 | O34: 1.000000001 | P34: 3.844394897e-05 | Q34: 1 | R34: 7.658157168e-06 | S34: 0.9999999999 | T34: 1.564534954e-05 | U34: 59.46920988 | V34: -5.360318739 | W34: 174.6396813 | Y34: 1000000000 | Z34: 47.86287489 | AB34: 64.7979227 | AC34: -5.288920697 | AE34: 22.26856608 | AF34: -0.07094041009 | AH34: 0 | AI34: 0
A35: 7.5858 | B35: 0.0075858 | C35: 1.000000905 | D35: 0.001345215145 | E35: 1 | F35: 4.766298705e-06 | G35: 1 | H35: 0 | I35: 1.005215536 | J35: 0.1019114179 | K35: 1.000000298 | L35: 0.0007721402367 | M35: 1 | N35: 1.67835825e-05 | O35: 1.000000001 | P35: 4.215314572e-05 | Q35: 1 | R35: 8.397040985e-06 | S35: 0.9999999999 | T35: 1.715486355e-05 | U35: 59.46163991 | V35: -5.874102138 | W35: 174.1258979 | Y35: 1000000000 | Z35: 57.54436164 | AB35: 64.79035404 | AC35: -5.795815388 | AE35: 22.26856476 | AF35: -0.07778496289 | AH35: 0 | AI35: 0
A36: 8.3176 | B36: 0.0083176 | C36: 1.000001088 | D36: 0.001474987493 | E36: 1 | F36: 5.226102205e-06 | G36: 1 | H36: 0 | I36: 1.00626707 | J36: 0.1116648051 | K36: 1.000000358 | L36: 0.0008466283549 | M36: 1 | N36: 1.840269e-05 | O36: 1.000000001 | P36: 4.621964787e-05 | Q36: 1 | R36: 9.207101175e-06 | S36: 0.9999999999 | T36: 1.880978843e-05 | U36: 59.45255747 | V36: -6.436307265 | W36: 173.5636927 | Y36: 1000000000 | Z36: 69.18246976 | AB36: 64.78127319 | AC36: -6.350468225 | AE36: 22.26856317 | AF36: -0.08528884615 | AH36: 0 | AI36: 0
A37: 9.1201 | B37: 0.0091201 | C37: 1.000001308 | D37: 0.001617297232 | E37: 1 | F37: 5.730327825e-06 | G37: 1 | H37: 0 | I37: 1.00752999 | J37: 0.1223359415 | K37: 1.000000431 | L37: 0.0009283128411 | M37: 1 | N37: 2.017822125e-05 | O37: 1.000000001 | P37: 5.067901924e-05 | Q37: 1 | R37: 1.009542217e-05 | S37: 0.9999999999 | T37: 2.062459742e-05 | U37: 59.44166176 | V37: -7.051421817 | W37: 172.9485782 | Y37: 1000000000 | Z37: 83.17622401 | AB37: 64.77037939 | AC37: -6.957300855 | AE37: 22.26856126 | AF37: -0.09351768451 | AH37: 0 | AI37: 0
A38: 10 | B38: 0.01 | C38: 1.000001572 | D38: 0.001773332471 | E38: 1 | F38: 6.2831853e-06 | G38: 1 | H38: 0 | I38: 1.009046224 | J38: 0.1340041117 | K38: 1.000000518 | L38: 0.001017875667 | M38: 1 | N38: 2.2125e-05 | O38: 1.000000002 | P38: 5.556849074e-05 | Q38: 1 | R38: 1.106942048e-05 | S38: 0.9999999999 | T38: 2.261444219e-05 | U38: 59.42859864 | V38: -7.724019395 | W38: 172.2759806 | Y38: 1000000000 | Z38: 100 | AB38: 64.75731857 | AC38: -7.620817736 | AE38: 22.26855896 | AF38: -0.1025401785 | AH38: 0 | AI38: 0
A39: 10.965 | B39: 0.010965 | C39: 1.00000189 | D39: 0.001944458642 | E39: 1 | F39: 6.889512681e-06 | G39: 1 | H39: 0 | I39: 1.01086654 | J39: 0.1467585939 | K39: 1.000000623 | L39: 0.001116100591 | M39: 1 | N39: 2.42600625e-05 | O39: 1.000000002 | P39: 6.093085008e-05 | Q39: 1 | R39: 1.213761955e-05 | S39: 0.9999999998 | T39: 2.479673586e-05 | U39: 59.41294159 | V39: -8.459250792 | W39: 171.5407492 | Y39: 1000000000 | Z39: 120.231225 | AB39: 64.74166428 | AC39: -8.346090196 | AE39: 22.2685562 | AF39: -0.1124352821 | AH39: 0 | AI39: 0
A40: 12.023 | B40: 0.012023 | C40: 1.000002273 | D40: 0.002132076634 | E40: 1 | F40: 7.554273686e-06 | G40: 1 | H40: 0 | I40: 1.013050534 | J40: 0.1606870638 | K40: 1.000000749 | L40: 0.001223791726 | M40: 1 | N40: 2.660088749e-05 | O40: 1.000000002 | P40: 6.680999638e-05 | Q40: 1 | R40: 1.330876424e-05 | S40: 0.9999999998 | T40: 2.718934384e-05 | U40: 59.3941936 | V40: -9.262175902 | W40: 170.7378241 | Y40: 1000000000 | Z40: 144.552529 | AB40: 64.72291961 | AC40: -9.138096604 | AE40: 22.26855288 | AF40: -0.1232839995 | AH40: 0 | AI40: 0
A41: 13.183 | B41: 0.013183 | C41: 1.000002733 | D41: 0.002337782388 | E41: 1 | F41: 8.283123181e-06 | G41: 1 | H41: 0 | I41: 1.015669904 | J41: 0.1758862258 | K41: 1.0000009 | L41: 0.00134186515 | M41: 1 | N41: 2.916738749e-05 | O41: 1.000000003 | P41: 7.325594128e-05 | Q41: 1 | R41: 1.459281701e-05 | S41: 0.9999999997 | T41: 2.981261914e-05 | U41: 59.37176144 | V41: -10.13837703 | W41: 169.861623 | Y41: 1000000000 | Z41: 173.791489 | AB41: 64.70049144 | AC41: -10.00232638 | AE41: 22.26854888 | AF41: -0.1351786137 | AH41: 0 | AI41: 0
A42: 14.454 | B42: 0.014454 | C42: 1.000003285 | D42: 0.002563171827 | E42: 1 | F42: 9.081716032e-06 | G42: 1 | H42: 0 | I42: 1.018807817 | J42: 0.1924458004 | K42: 1.000001082 | L42: 0.001471236936 | M42: 1.000000001 | N42: 3.197947499e-05 | O42: 1.000000003 | P42: 8.031869642e-05 | Q42: 1 | R42: 1.599974036e-05 | S42: 0.9999999997 | T42: 3.268691475e-05 | U42: 59.34496454 | V42: -11.09303629 | W42: 168.9069637 | Y42: 1000000000 | Z42: 208.918116 | AB42: 64.67369933 | AC42: -10.94386878 | AE42: 22.26854409 | AF42: -0.1482114063 | AH42: 0 | AI42: 0
A43: 15.849 | B43: 0.015849 | C43: 1.00000395 | D43: 0.002810550179 | E43: 1 | F43: 9.958220382e-06 | G43: 1 | H43: 0 | I43: 1.02257133 | J43: 0.2104984331 | K43: 1.000001301 | L43: 0.001613230302 | M43: 1.000000001 | N43: 3.506591249e-05 | O43: 1.000000004 | P43: 8.807050083e-05 | Q43: 1 | R43: 1.754392451e-05 | S43: 0.9999999996 | T43: 3.584162944e-05 | U43: 59.3129338 | V43: -12.13381372 | W43: 167.8661863 | Y43: 1000000000 | Z43: 251.190801 | AB43: 64.64167436 | AC43: -11.97024966 | AE43: 22.26853831 | AF43: -0.1625156737 | AH43: 0 | AI43: 0
A44: 17.378 | B44: 0.017378 | C44: 1.000004748 | D44: 0.003081690643 | E44: 1 | F44: 1.091891941e-05 | G44: 1 | H44: 0 | I44: 1.027076142 | J44: 0.2301260578 | K44: 1.000001564 | L44: 0.0017688631 | M44: 1.000000001 | N44: 3.844882498e-05 | O44: 1.000000005 | P44: 9.6566923e-05 | Q44: 1 | R44: 1.92364389e-05 | S44: 0.9999999996 | T44: 3.929937765e-05 | U44: 59.27474858 | V44: -13.26544992 | W44: 166.7345501 | Y44: 1000000000 | Z44: 301.994884 | AB44: 64.60349606 | AC44: -13.08610645 | AE44: 22.26853138 | AF44: -0.1781939483 | AH44: 0 | AI44: 0
A45: 19.055 | B45: 0.019055 | C45: 1.000005709 | D45: 0.003379075705 | E45: 1 | F45: 1.197260959e-05 | G45: 1 | H45: 0 | I45: 1.032467699 | J45: 0.2514474462 | K45: 1.000001881 | L45: 0.001939560321 | M45: 1.000000001 | N45: 4.215918748e-05 | O45: 1.000000006 | P45: 0.0001058857588 | Q45: 1 | R45: 2.109278072e-05 | S45: 0.9999999995 | T45: 4.309181961e-05 | U45: 59.22926634 | V45: -14.49481461 | W45: 165.5051854 | Y45: 1000000000 | Z45: 363.093025 | AB45: 64.55802216 | AC45: -14.29816438 | AE45: 22.26852303 | AF45: -0.1953897762 | AH45: 0 | AI45: =IF(AH45>0,W43,0) -> 0
A46: 20.893 | B46: 0.020893 | C46: 1.000006864 | D46: 0.003705010462 | E46: 1 | F46: 1.312745905e-05 | G46: 1 | H46: 0 | I46: 1.038909963 | J46: 0.2745499146 | K46: 1.000002261 | L46: 0.00212664516 | M46: 1.000000001 | N46: 4.622576247e-05 | O46: 1.000000007 | P46: 0.0001160992473 | Q46: 1 | R46: 2.31273402e-05 | S46: 0.9999999994 | T46: 4.72483541e-05 | U46: 59.17523087 | V46: -15.82697062 | W46: 164.1730294 | Y46: 1000000000 | Z46: 436.517449 | AB46: 64.50399671 | AC46: -15.61135214 | AE46: 22.26851301 | AF46: -0.2142364461 | AH46: 0 | AI46: 0
A47: 22.909 | B47: 0.022909 | C47: 1.000008252 | D47: 0.004062509267 | E47: 1 | F47: 1.43941492e-05 | G47: 1 | H47: 0 | I47: 1.046605312 | J47: 0.2995478155 | K47: 1.000002719 | L47: 0.002331847945 | M47: 1.000000001 | N47: 5.068616246e-05 | O47: 1.000000008 | P47: 0.0001273018549 | Q47: 1 | R47: 2.535893536e-05 | S47: 0.9999999992 | T47: 5.180742566e-05 | U47: 59.11112232 | V47: -17.26854831 | W47: 162.7314517 | Y47: 1000000000 | Z47: 524.822281 | AB47: 64.43990021 | AC47: -17.03212467 | AE47: 22.26850095 | AF47: -0.2349082583 | AH47: 0 | AI47: 0
A48: 25.119 | B48: 0.025119 | C48: 1.000009921 | D48: 0.004454409042 | E48: 1 | F48: 1.578273315e-05 | G48: 1 | H48: 0 | I48: 1.055780851 | J48: 0.3265138336 | K48: 1.000003269 | L48: 0.0025567972 | M48: 1.000000002 | N48: 5.557578744e-05 | O48: 1.00000001 | P48: 0.0001395824911 | Q48: 1 | R48: 2.780527729e-05 | S48: 0.9999999991 | T48: 5.68052174e-05 | U48: 59.0352957 | V48: -18.82378604 | W48: 161.176214 | Y48: 1000000000 | Z48: 630.964161 | AB48: 64.36408806 | AC48: -18.56455521 | AE48: 22.26848645 | AF48: -0.2575692538 | AH48: 0 | AI48: 0
A49: 27.542 | B49: 0.027542 | C49: 1.000011927 | D49: 0.004884078576 | E49: 1 | F49: 1.730514895e-05 | G49: 1 | H49: 0 | I49: 1.066706685 | J49: 0.355522259 | K49: 1.00000393 | L49: 0.002803426786 | M49: 1.000000002 | N49: 6.093667492e-05 | O49: 1.000000012 | P49: 0.0001530467361 | Q49: 1 | R49: 3.048739787e-05 | S49: 0.9999999989 | T49: 6.228469677e-05 | U49: 58.9458593 | V49: -20.49702796 | W49: 159.502972 | Y49: 1000000000 | Z49: 758.561764 | AB49: 64.27466908 | AC49: -20.21279188 | AE49: 22.26846903 | AF49: -0.2824142278 | AH49: 0 | AI49: 0
A50: 30.2 | B50: 0.0302 | C50: 1.00001434 | D50: 0.005355418477 | E50: 1 | F50: 1.89752196e-05 | G50: 1 | H50: 0 | I50: 1.079702144 | J50: 0.3866397602 | K50: 1.000004725 | L50: 0.003073975894 | M50: 1.000000002 | N50: 6.68174999e-05 | O50: 1.000000014 | P50: 0.0001678168406 | Q50: 1.000000001 | R50: 3.342964983e-05 | S50: 0.9999999987 | T50: 6.829561553e-05 | U50: 58.84066633 | V50: -22.29219539 | W50: 157.7078046 | Y50: 1000000000 | Z50: 912.04 | AB50: 64.16949704 | AC50: -21.98052899 | AE50: 22.26844807 | AF50: -0.3096687272 | AH50: 0 | AI50: 0
A51: 33.113 | B51: 0.033113 | C51: 1.00001724 | D51: 0.005871974477 | E51: 1 | F51: 2.080551148e-05 | G51: 1 | H51: 0 | I51: 1.095114463 | J51: 0.4198586804 | K51: 1.00000568 | L51: 0.003370480097 | M51: 1.000000003 | N51: 7.326251237e-05 | O51: 1.000000017 | P51: 0.0001840039415 | Q51: 1.000000001 | R51: 3.665417201e-05 | S51: 0.9999999984 | T51: 7.488320259e-05 | U51: 58.71753845 | V51: -24.20894189 | W51: 155.7910581 | Y51: 1000000000 | Z51: 1096.470769 | AB51: 64.04639432 | AC51: -23.86721375 | AE51: 22.26842289 | AF51: -0.3395377788 | AH51: 0 | AI51: 0
A52: 36.308 | B52: 0.036308 | C52: 1.000020728 | D52: 0.006438533315 | E52: 1 | F52: 2.281298918e-05 | G52: 1 | H52: 0 | I52: 1.113367083 | J52: 0.4551926126 | K52: 1.000006829 | L52: 0.003695687423 | M52: 1.000000003 | N52: 8.033144983e-05 | O52: 1.00000002 | P52: 0.0002017580736 | Q52: 1.000000001 | R52: 4.019085185e-05 | S52: 0.9999999981 | T52: 8.210851692e-05 | U52: 58.57394091 | V52: -26.24817083 | W52: 153.7518292 | Y52: 1000000000 | Z52: 1318.270864 | AB52: 63.90282705 | AC52: -25.87347096 | AE52: 22.2683926 | AF52: -0.3722981691 | AH52: 0 | AI52: 0
A53: 39.811 | B53: 0.039811 | C53: 1.00002492 | D53: 0.007059704015 | E53: 1 | F53: 2.501398899e-05 | G53: 1 | H53: 0 | I53: 1.134921605 | J53: 0.4925748834 | K53: 1.00000821 | L53: 0.004052244037 | M53: 1.000000004 | N53: 8.808183727e-05 | O53: 1.000000024 | P53: 0.0002212237151 | Q53: 1.000000001 | R53: 4.406846983e-05 | S53: 0.9999999977 | T53: 9.00303561e-05 | U53: 58.4073668 | V53: -28.40618201 | W53: 151.593818 | Y53: 1000000000 | Z53: 1584.915721 | AB53: 63.73628931 | AC53: -27.99533218 | AE53: 22.26835619 | AF53: -0.4082164086 | AH53: 0 | AI53: 0
A54: 43.652 | B54: 0.043652 | C54: 1.000029961 | D54: 0.007740804404 | E54: 1 | F54: 2.742736046e-05 | G54: 1 | H54: 0 | I54: 1.160306172 | J54: 0.5319069216 | K54: 1.000009871 | L54: 0.004443203157 | M54: 1.000000005 | N54: 9.65800497e-05 | O54: 1.000000029 | P54: 0.0002425675713 | Q54: 1.000000001 | R54: 4.832023423e-05 | S54: 0.9999999973 | T54: 9.871656345e-05 | U54: 58.21520271 | V54: -30.67746606 | W54: 149.3225339 | Y54: 1000000000 | Z54: 1905.497104 | AB54: 63.54416895 | AC54: -30.22697857 | AE54: 22.26831241 | AF54: -0.4475999933 | AH54: 0 | AI54: 0
A55: 47.863 | B55: 0.047863 | C55: 1.00003602 | D55: 0.008487506291 | E55: 1 | F55: 3.007320979e-05 | G55: 1 | H55: 0 | I55: 1.190104441 | J55: 0.5730293355 | K55: 1.000011867 | L55: 0.004871821444 | M55: 1.000000006 | N55: 0.0001058968871 | O55: 1.000000035 | P55: 0.0002659674612 | Q55: 1.000000001 | R55: 5.298156718e-05 | S55: 0.9999999967 | T55: 0.0001082395052 | U55: 57.99491799 | V55: -33.05303807 | W55: 146.9469619 | Y55: 1000000000 | Z55: 2290.866769 | AB55: 63.32393681 | AC55: -32.55909514 | AE55: 22.26825979 | AF55: -0.4907768884 | AH55: 0 | AI55: 0
A56: 52.481 | B56: 0.052481 | C56: 1.000043306 | D56: 0.009306367218 | E56: 1.000000001 | F56: 3.297478476e-05 | G56: 1 | H56: 0 | I56: 1.224975971 | J56: 0.6157464589 | K56: 1.000014268 | L56: 0.005341864322 | M56: 1.000000007 | N56: 0.000116114212 | O56: 1.000000043 | P56: 0.0002916289883 | Q56: 1.000000002 | R56: 5.809342554e-05 | S56: 0.999999996 | T56: 0.0001186828548 | U56: 57.74402574 | V56: -35.52185776 | W56: 144.4781422 | Y56: 1000000000 | Z56: 2754.255361 | AB56: 63.07310777 | AC56: -34.98025996 | AE56: 22.26819651 | AF56: -0.5381262755 | AH56: 0 | AI56: 0
A57: 57.544 | B57: 0.057544 | C57: 1.000052064 | D57: 0.01020412089 | E57: 1.000000001 | F57: 3.615596147e-05 | G57: 1 | H57: 0 | I57: 1.265625206 | J57: 0.6597861501 | K57: 1.000017154 | L57: 0.00585719878 | M57: 1.000000008 | N57: 0.0001273160993 | O57: 1.000000051 | P57: 0.0003197633125 | Q57: 1.000000002 | R57: 6.369787311e-05 | S57: 0.9999999952 | T57: 0.0001301325471 | U57: 57.46042389 | V57: -38.06850768 | W57: 141.9314923 | Y57: 1000000000 | Z57: 3311.311936 | AB57: 62.78958191 | AC57: -37.47466373 | AE57: 22.26812045 | AF57: -0.590037523 | AH57: 0 | AI57: 0
A58: 63.096 | B58: 0.063096 | C58: 1.000062595 | D58: 0.01118856339 | E58: 1.000000001 | F58: 3.964438595e-05 | G58: 1 | H58: 0 | I58: 1.312835587 | J58: 0.7048480624 | K58: 1.000020623 | L58: 0.006422302227 | M58: 1.00000001 | N58: 0.0001395998991 | O58: 1.000000061 | P58: 0.0003506149351 | Q58: 1.000000002 | R58: 6.984361533e-05 | S58: 0.9999999943 | T58: 0.0001426880857 | U58: 57.14225814 | V58: -40.675982 | W58: 139.324018 | Y58: 1000000000 | Z58: 3981.105216 | AB58: 62.47150753 | AC58: -40.02484689 | AE58: 22.268029 | AF58: -0.6469614308 | AH58: 0 | AI58: 0
A59: 69.183 | B59: 0.069183 | C59: 1.000075255 | D59: 0.01226784342 | E59: 1.000000001 | F59: 4.346896083e-05 | G59: 1 | H59: 0 | I59: 1.367433133 | J59: 0.750574445 | K59: 1.000024794 | L59: 0.007041855261 | M59: 1.000000012 | N59: 0.0001530673863 | O59: 1.000000074 | P59: 0.0003844394709 | Q59: 1.000000003 | R59: 7.658157153e-05 | S59: 0.9999999931 | T59: 0.0001564534971 | U59: 56.78826935 | V59: -43.323995 | W59: 136.676005 | Y59: 1000000000 | Z59: 4786.287489 | AB59: 62.11762858 | AC59: -42.61004948 | AE59: 22.26791906 | AF59: -0.7093691896 | AH59: 0 | AI59: 0
A60: 75.858 | B60: 0.075858 | C60: 1.000090476 | D60: 0.01345134821 | E60: 1.000000001 | F60: 4.766298701e-05 | G60: 1 | H60: 0 | I60: 1.430324244 | J60: 0.7965993221 | K60: 1.00002981 | L60: 0.007721250457 | M60: 1.000000014 | N60: 0.0001678358234 | O60: 1.000000089 | P60: 0.0004215314325 | Q60: 1.000000004 | R60: 8.397040966e-05 | S60: 0.9999999917 | T60: 0.0001715486378 | U60: 56.39761281 | V60: -45.99182186 | W60: 134.0081781 | Y60: 1000000000 | Z60: 5754.436164 | AB60: 61.7271041 | AC60: -45.20900039 | AE60: 22.26778687 | AF60: -0.7778036071 | AH60: 0 | AI60: 0
A61: 83.176 | B61: 0.083176 | C61: 1.000108774 | D61: 0.0147488161 | E61: 1.000000001 | F61: 5.2261022e-05 | G61: 1 | H61: 0 | I61: 1.50244524 | J61: 0.8425234109 | K61: 1.000035838 | L61: 0.008466083299 | M61: 1.000000017 | N61: 0.0001840268979 | O61: 1.000000107 | P61: 0.0004621964461 | Q61: 1.000000004 | R61: 9.20710115e-05 | S61: 0.99999999 | T61: 0.0001880978873 | U61: 55.97022335 | V61: -48.65683849 | W61: 131.3431615 | Y61: 1000000000 | Z61: 6918.246976 | AB61: 61.29987339 | AC61: -47.79850876 | AE61: 22.26762797 | AF61: -0.8528277957 | AH61: 0 | AI61: 0
A62: 91.201 | B62: 0.091201 | C62: 1.000130774 | D62: 0.01617157655 | E62: 1.000000002 | F62: 5.730327819e-05 | G62: 1 | H62: 0 | I62: 1.584824322 | J62: 0.8879744093 | K62: 1.000043087 | L62: 0.009282864428 | M62: 1.00000002 | N62: 0.0002017822098 | O62: 1.000000128 | P62: 0.0005067901495 | Q62: 1.000000005 | R62: 0.0001009542213 | S62: 0.999999988 | T62: 0.0002062459781 | U62: 55.5064459 | V62: -51.29800799 | W62: 128.701992 | Y62: 1000000000 | Z62: 8317.622401 | AB62: 60.83628681 | AC62: -50.35687834 | AE62: 22.26743692 | AF62: -0.9350968733 | AH62: 0 | AI62: 0
A63: 100 | B63: 0.1 | C63: 1.000157223 | D63: 0.01773148477 | E63: 1.000000002 | F63: 6.283185292e-05 | G63: 1 | H63: 0 | I63: 1.678519638 | J63: 0.9325809376 | K63: 1.000051802 | L63: 0.01017840868 | M63: 1.000000024 | N63: 0.0002212499964 | O63: 1.000000154 | P63: 0.0005556848507 | Q63: 1.000000006 | R63: 0.0001106942043 | S63: 0.9999999856 | T63: 0.000226144427 | U63: 55.00738612 | V63: -53.89435984 | W63: 126.1056402 | Y63: 1000000000 | Z63: 10000 | AB63: 60.33745649 | AC63: -52.86244867 | AE63: 22.26720724 | AF63: -1.025296364 | AH63: 0 | AI63: 0
A64: 109.65 | B64: 0.10965 | C64: 1.000189029 | D64: 0.01944216086 | E64: 1.000000002 | F64: 6.889512671e-05 | G64: 1 | H64: 0 | I64: 1.784689373 | J64: 0.9760223045 | K64: 1.000062282 | L64: 0.01116054714 | M64: 1.000000029 | N64: 0.0002426006202 | O64: 1.000000186 | P64: 0.0006093084261 | Q64: 1.000000007 | R64: 0.0001213761949 | S64: 0.9999999827 | T64: 0.0002479673654 | U64: 54.47447696 | V64: -56.42787355 | W64: 123.5721264 | Y64: 1000000000 | Z64: 12023.1225 | AB64: 59.80482325 | AC64: -55.29640657 | AE64: 22.26693106 | AF64: -1.124213847 | AH64: 0 | AI64: 0
A65: 120.23 | B65: 0.12023 | C65: 1.000227262 | D65: 0.02131756889 | E65: 1.000000003 | F65: 7.554273672e-05 | G65: 1 | H65: 0 | I65: 1.904504763 | J65: 1.017997926 | K65: 1.000074881 | L65: 0.01223731248 | M65: 1.000000035 | N65: 0.0002660088687 | O65: 1.000000223 | P65: 0.0006680998654 | Q65: 1.000000009 | R65: 0.0001330876416 | S65: 0.9999999791 | T65: 0.0002718934474 | U65: 53.90986614 | V65: -58.8816894 | W65: 121.1183106 | Y65: 1000000000 | Z65: 14455.2529 | AB65: 59.24054411 | AC65: -57.64107962 | AE65: 22.26659907 | AF65: -1.232656795 | AH65: 0 | AI65: 0
A66: 131.83 | B66: 0.13183 | C66: 1.000273225 | D66: 0.02337360901 | E66: 1.000000003 | F66: 8.283123162e-05 | G66: 1 | H66: 0 | I66: 2.039248756 | J66: 1.058274431 | K66: 1.000090026 | L66: 0.01341785425 | M66: 1.000000043 | N66: 0.0002916738667 | O66: 1.000000268 | P66: 0.0007325592831 | Q66: 1.000000011 | R66: 0.0001459281691 | S66: 0.9999999749 | T66: 0.0002981262032 | U66: 53.31583605 | V66: -61.24284873 | W66: 118.7571513 | Y66: 1000000000 | Z66: 17379.1489 | AB66: 58.64691273 | AC66: -59.88258378 | AE66: 22.26619999 | AF66: -1.351544643 | AH66: 0 | AI66: 0
A67: 144.54 | B67: 0.14454 | C67: 1.00032844 | D67: 0.02562616336 | E67: 1.000000004 | F67: 9.081716008e-05 | G67: 1 | H67: 0 | I67: 2.19019102 | J67: 1.096647679 | K67: 1.000108221 | L67: 0.01471131859 | M67: 1.000000051 | N67: 0.0003197947391 | O67: 1.000000323 | P67: 0.0008031867932 | Q67: 1.000000013 | R67: 0.0001599974022 | S67: 0.9999999699 | T67: 0.000326869163 | U67: 52.6952793 | V67: -63.50006698 | W67: 116.499933 | Y67: 1000000000 | Z67: 20891.8116 | AB67: 58.02683492 | AC67: -62.00871014 | AE67: 22.26572059 | AF67: -1.481795791 | AH67: 0 | AI67: 0
A68: 158.49 | B68: 0.15849 | C68: 1.000394884 | D68: 0.02809817888 | E68: 1.000000005 | F68: 9.958220349e-05 | G68: 1 | H68: 0 | I68: 2.359070239 | J68: 1.133053926 | K68: 1.000130117 | L68: 0.01613091775 | M68: 1.000000061 | N68: 0.0003506591106 | O68: 1.000000388 | P68: 0.0008807047829 | Q68: 1.000000015 | R68: 0.0001754392433 | S68: 0.9999999638 | T68: 0.0003584163148 | U68: 52.04971551 | V68: -65.65028678 | W68: 114.3497132 | Y68: 1000000000 | Z68: 25119.0801 | AB68: 57.38184744 | AC68: -64.0150658 | AE68: 22.26514374 | AF68: -1.624737166 | AH68: 0 | AI68: 0
A69: 173.78 | B69: 0.17378 | C69: 1.000474731 | D69: 0.03080725403 | E69: 1.000000006 | F69: 0.0001091891937 | G69: 1 | H69: 0 | I69: 2.547261296 | J69: 1.167362839 | K69: 1.000156432 | L69: 0.01768680494 | M69: 1.000000074 | N69: 0.0003844882311 | O69: 1.000000466 | P69: 0.0009656689328 | Q69: 1.000000019 | R69: 0.0001923643867 | S69: 0.9999999564 | T69: 0.0003929938035 | U69: 51.38259891 | V69: -67.68649583 | W69: 112.3135042 | Y69: 1000000000 | Z69: 30199.4884 | AB69: 56.71542336 | AC69: -65.89361417 | AE69: 22.26445056 | AF69: -1.781386443 | AH69: 0 | AI69: 0
A70: 190.55 | B70: 0.19055 | C70: 1.000570749 | D70: 0.03377803338 | E70: 1.000000007 | F70: 0.0001197260953 | G70: 1 | H70: 0 | I70: 2.756620203 | J70: 1.199565096 | K70: 1.000188077 | L70: 0.01939319593 | M70: 1.000000089 | N70: 0.00042159185 | O70: 1.000000561 | P70: 0.001058857196 | Q70: 1.000000022 | R70: 0.0002109278041 | S70: 0.9999999476 | T70: 0.0004309182317 | U70: 50.69597216 | V70: -69.60879779 | W70: 110.3912022 | Y70: 1000000000 | Z70: 36309.3025 | AB70: 56.0296293 | AC70: -67.64302451 | AE70: 22.26361708 | AF70: -1.953168751 | AH70: 0 | AI70: 0
A71: 208.93 | B71: 0.20893 | C71: 1.000686126 | D71: 0.03703333485 | E71: 1.000000009 | F71: 0.0001312745897 | G71: 1 | H71: 0 | I71: 2.988877902 | J71: 1.229643481 | K71: 1.000226106 | L71: 0.02126327851 | M71: 1.000000107 | N71: 0.0004622575921 | O71: 1.000000674 | P71: 0.001160991957 | Q71: 1.000000027 | R71: 0.0002312733979 | S71: 0.999999937 | T71: 0.0004724835879 | U71: 49.99267699 | V71: -71.41679512 | W71: 108.5832049 | Y71: 1000000000 | Z71: 43651.7449 | AB71: 55.3273346 | AC71: -69.26157116 | AE71: 22.26261567 | AF71: -2.141403626 | AH71: 0 | AI71: 0
A72: 229.09 | B72: 0.22909 | C72: 1.000824868 | D72: 0.04060298871 | E72: 1.00000001 | F72: 0.000143941491 | G72: 1 | H72: 0 | I72: 3.246269861 | J72: 1.257658 | K72: 1.00027184 | L72: 0.02331429658 | M72: 1.000000128 | N72: 0.0005068615816 | O72: 1.00000081 | P72: 0.001273017868 | Q72: 1.000000032 | R72: 0.0002535893483 | S72: 0.9999999243 | T72: 0.0005180743184 | U72: 49.2743421 | V72: -73.11469581 | W72: 106.8853042 | Y72: 1000000000 | Z72: 52482.2281 | AB72: 54.61020264 | AC72: -70.75172581 | AE72: 22.26141161 | AF72: -2.347816123 | AH72: 0 | AI72: 0
A73: 251.19 | B73: 0.25119 | C73: 1.000991609 | D73: 0.04451495837 | E73: 1.000000012 | F73: 0.0001578273302 | G73: 1 | H73: 0 | I73: 3.530909294 | J73: 1.283653528 | K73: 1.000326809 | L73: 0.02556245842 | M73: 1.000000154 | N73: 0.0005557578178 | O73: 1.000000974 | P73: 0.001395824014 | Q73: 1.000000039 | R73: 0.0002780527658 | S73: 0.999999909 | T73: 0.0005680522554 | U73: 48.54333489 | V73: -74.70579034 | W73: 105.2942097 | Y73: 1000000000 | Z73: 63096.4161 | AB73: 53.8806409 | AC73: -72.11515119 | AE73: 22.25996477 | AF73: -2.5740234 | AH73: 0 | AI73: 0
A74: 275.42 | B74: 0.27542 | C74: 1.00119202 | D74: 0.04880239338 | E74: 1.000000015 | F74: 0.0001730514878 | G74: 1 | H74: 0 | I74: 3.845297808 | J74: 1.307714181 | K74: 1.000392885 | L74: 0.02802700048 | M74: 1.000000186 | N74: 0.0006093666746 | O74: 1.000001171 | P74: 0.001530466178 | Q74: 1.000000046 | R74: 0.0003048739693 | S74: 0.9999998905 | T74: 0.000622847075 | U74: 47.80130294 | V74: -76.19574983 | W74: 103.8042502 | Y74: 1000000000 | Z74: 75856.1764 | AB74: 53.14034596 | AC74: -73.35558875 | AE74: 22.25822611 | AF74: -2.821942563 | AH74: 0 | AI74: 0
A75: 302 | B75: 0.302 | C75: 1.001433026 | D75: 0.05350358452 | E75: 1.000000018 | F75: 0.0001897521938 | G75: 1 | H75: 0 | I75: 4.192334903 | J75: 1.329943872 | K75: 1.000472358 | L75: 0.03073017882 | M75: 1.000000223 | N75: 0.0006681749006 | O75: 1.000001408 | P75: 0.001678166847 | Q75: 1.000000056 | R75: 0.0003342964859 | S75: 0.9999998684 | T75: 0.0006829562969 | U75: 47.04938443 | V75: -77.59150981 | W75: 102.4084902 | Y75: 1000000000 | Z75: 91204 | AB75: 52.39051586 | AC75: -74.47774498 | AE75: 22.25613572 | AF75: -3.093788099 | AH75: 0 | AI75: 0
A76: 331.13 | B76: 0.33113 | C76: 1.00172256 | D76: 0.0586530679 | E76: 1.000000022 | F76: 0.0002080551118 | G76: 1 | H76: 0 | I76: 4.574665966 | J76: 1.35042171 | K76: 1.00056785 | L76: 0.03369217411 | M76: 1.000000268 | N76: 0.0007326249939 | O76: 1.000001693 | P76: 0.001840037359 | Q76: 1.000000067 | R76: 0.0003665417038 | S76: 0.9999998418 | T76: 0.0007488322124 | U76: 46.28963639 | V76: -78.89848271 | W76: 101.1015173 | Y76: 1000000000 | Z76: 109647.0769 | AB76: 51.63327609 | AC76: -75.48502158 | AE76: 22.25362508 | AF76: -3.391557496 | AH76: 0 | AI76: 0
A77: 363.08 | B77: 0.36308 | C77: =SQRT(1+(A77/pole1)^2) -> 1.002070649 | D77: =ATAN(A77/pole1) -> 0.06429747064 | E77: =SQRT(1+(A77/Zero1)^2) -> 1.000000026 | F77: =ATAN(A77/Zero1) -> 0.0002281298879 | G77: =IF(VIN_nom>Vout, 1, SQRT(1+(A77/z_RHP)^2)) -> 1 | H77: =IF(VIN_nom>Vout, 0, -ATAN(A77/z_RHP)) -> 0 | I77: =SQRT(1+(A77/Pole2)^2) -> 4.995860899 | J77: =ATAN(A77/Pole2) -> 1.369269285 | K77: =SQRT(1+(A77/Zero2)^2) -> 1.000682678 | L77: =ATAN(A77/Zero2) -> 0.03694023067 | M77: =SQRT(1+(A77/pole4)^2) -> 1.000000323 | N77: =ATAN(A77/pole4) -> 0.0008033143272 | O77: =SQRT(1+(A77/Zero3)^2) -> 1.000002035 | P77: =ATAN(A77/Zero3) -> 0.002017578026 | Q77: =SQRT(1+(A77/pole5)^2) -> 1.000000081 | R77: =ATAN(A77/pole5) -> 0.000401908497 | S77: =SQRT((1-(Z77/pterm2))^2+(A77/pterm1)^2) -> 0.9999998098 | T77: =IF((ATAN((A77/pterm1)/(1-A77^2/pterm2))>0),ATAN((A77/pterm1)/(1-A77^2/pterm2)),PI()+ATAN((A77/pterm1)/(1-A77^2/pterm2))) -> 0.0008210854152 | U77: =20*LOG10(((E77*K77*G77*O77)/(C77*I77*S77*M77*Q77))*Adc) -> 45.52259913 | V77: =((F77+L77+H77+R77)-(D77+J77+T77+N77+T77))*radconv -> -80.12482297 | W77: =IF(V77>0,V77,V77+180) -> 99.87517703 | Y77: =IF(U77<0,A77,1000000000) -> 1000000000 | Z77: =A77^2 -> 131827.0864 | AB77: =20*LOG10((K77/(I77*M77))*AEA) -> 50.86925339 | AC77: =(L77-(J77+N77))*radconv -> -76.38285834 | AE77: =20*LOG10((E77*G77/(C77*S77))*Acs*Am) -> 22.25060766 | AF77: =(F77+H77-(D77+T77))*radconv -> -3.717947554 | AH77: =SUM((U78<0)*(U77>0))*A77 -> 0 | AI77: =IF(AH77>0,W75,0) -> 0
A78: 398.11 | B78: =A78/1000 -> 0.39811 | C78: 1.002488956 | D78: 0.07048127282 | E78: 1.000000031 | F78: 0.0002501398848 | G78: 1 | H78: 0 | I78: 5.459368542 | J78: 1.386584892 | K78: 1.000820706 | L78: 0.04050050344 | M78: 1.000000388 | N78: 0.0008808181472 | O78: 1.000002447 | P78: 0.002212233578 | Q78: 1.000000097 | R78: 0.0004406846701 | S78: 0.9999997713 | T78: 0.0009003038852 | U78: 44.74953376 | V78: -81.27728694 | W78: 98.72271306 | Y78: 1000000000 | Z78: 158491.5721 | AB78: 50.09980931 | AC78: -77.17542158 | AE78: 22.24698293 | AF78: -4.075531125 | AH78: 0 | AI78: 0
A79: 436.52 | B79: 0.43652 | C79: 1.002991647 | D79: 0.07725552464 | E79: 1.000000038 | F79: 0.0002742735978 | G79: 1 | H79: 0 | I79: 5.969174253 | J79: 1.402475281 | K79: 1.000986629 | L79: 0.04440311865 | M79: 1.000000466 | N79: 0.0009658001997 | O79: 1.000002942 | P79: 0.002425671003 | Q79: 1.000000117 | R79: 0.000483202305 | S79: 0.999999725 | T79: 0.0009871660619 | U79: 43.97118628 | V79: -82.3632758 | W79: 97.6367242 | Y79: 1000000000 | Z79: 190549.7104 | AB79: 49.32581163 | AC79: -77.86713956 | AE79: 22.242629 | AF79: -4.467261241 | AH79: 0 | AI79: 0
A80: 478.63 | B80: 0.47863 | C80: 1.003595597 | D80: 0.08467415587 | E80: 1.000000045 | F80: 0.0003007320889 | G80: 1 | H80: 0 | I80: 6.52953736 | J80: 1.417041022 | K80: 1.001186048 | L80: 0.04868011011 | M80: 1.000000561 | N80: 0.001058968479 | O80: 1.000003537 | P80: 0.002659668403 | Q80: 1.00000014 | R80: 0.0005298156227 | S80: 0.9999996694 | T80: 0.001082395615 | U80: 43.18832952 | V80: -83.38989788 | W80: 96.61010212 | Y80: 1000000000 | Z80: 229086.6769 | AB80: 48.54817798 | AC80: -78.46197959 | AE80: 22.23740093 | AF80: -4.896257792 | AH80: 0 | AI80: 0
A81: 524.81 | B81: 0.52481 | C81: 1.004321337 | D81: 0.09279905339 | E81: 1.000000054 | F81: 0.0003297478358 | G81: 1 | H81: 0 | I81: 7.14539103 | J81: 1.430385052 | K81: 1.001425786 | L81: 0.05336842576 | M81: 1.000000674 | N81: 0.001161141603 | O81: 1.000004252 | P81: 0.002916281698 | Q81: 1.000000169 | R81: 0.0005809341907 | S81: 0.9999996026 | T81: 0.00118682929 | U81: 42.40126416 | V81: -84.36458611 | W81: 95.63541389 | Y81: 1000000000 | Z81: 275425.5361 | AB81: 47.76738484 | AC81: -78.96376962 | AE81: 22.23112275 | AF81: -5.366101258 | AH81: 0 | AI81: 0
A82: 575.44 | B82: 0.57544 | C82: 1.005193082 | D82: 0.1016927456 | E82: 1.000000065 | F82: 0.0003615595991 | G82: 1 | H82: 0 | I82: 7.821810284 | J82: 1.442597819 | K82: 1.001713909 | L82: 0.05850581232 | M82: 1.00000081 | N82: 0.001273160312 | O82: 1.000005112 | P82: 0.003197622336 | Q82: 1.000000203 | R82: 0.0006369786458 | S82: 0.9999995222 | T82: 0.00130132645 | U82: 41.61060804 | V82: -85.2940514 | W82: 94.7059486 | Y82: 1000000000 | Z82: 331131.1936 | AB82: 46.98425678 | AC82: -79.37557726 | AE82: 22.22358752 | AF82: -5.880409809 | AH82: 0 | AI82: 0
A83: 630.96 | B83: 0.63096 | C83: 1.00624025 | D83: 0.1114268446 | E83: 1.000000079 | F83: 0.0003964438389 | G83: 1 | H83: 0 | I83: 8.56467909 | J83: 1.453770792 | K83: 1.002060233 | L83: 0.0641358215 | M83: 1.000000974 | N83: 0.001395998093 | O83: 1.000006147 | P83: 0.003506135128 | Q83: 1.000000244 | R83: 0.0006984360408 | S83: 0.9999994256 | T83: 0.001426882148 | U83: 40.81649844 | V83: -86.18526837 | W83: 93.81473163 | Y83: 1000000000 | Z83: 398110.5216 | AB83: 46.19918148 | AC83: -79.70020378 | AE83: 22.21454459 | AF83: -6.443327696 | AH83: 0 | AI83: 0
A84: 691.83 | B84: 0.69183 | C84: 1.007497647 | D84: 0.1220745593 | E84: 1.000000094 | F84: 0.0004346895812 | G84: 1 | H84: 0 | I84: 9.380156577 | J84: 1.46398532 | K84: 1.002476402 | L84: 0.07030365941 | M84: 1.000001171 | N84: 0.00153067268 | O84: 1.00000739 | P84: 0.003844375959 | Q84: 1.000000293 | R84: 0.0007658155671 | S84: 0.9999993094 | T84: 0.001564536672 | U84: 40.0192879 | V84: -87.04463419 | W84: 92.95536581 | Y84: 1000000000 | Z84: 478628.7489 | AB84: 45.41280653 | AC84: -79.93977833 | AE84: 22.20369863 | AF84: -7.059092511 | AH84: 0 | AI84: 0
A85: 758.58 | B85: 0.75858 | C85: 1.009007463 | D85: 0.1337188566 | E85: 1.000000114 | F85: 0.0004766298344 | G85: 1 | H85: 0 | I85: 10.27534643 | J85: 1.473321724 | K85: 1.002976574 | L85: 0.07706113538 | M85: 1.000001408 | N85: 0.001678356674 | O85: 1.000008884 | P85: 0.004215289608 | Q85: 1.000000353 | R85: 0.0008397039012 | S85: 0.9999991697 | T85: 0.001715488621 | U85: 39.21889785 | V85: -87.87868799 | W85: 92.12131201 | Y85: 1000000000 | Z85: 575443.6164 | AB85: 44.6254094 | AC85: -80.0960017 | AE85: 22.19069325 | AF85: -7.732507516 | AH85: 0 | AI85: 0
A86: 831.76 | B86: 0.83176 | C86: 1.010819426 | D86: 0.1464429483 | E86: 1.000000137 | F86: 0.0005226101729 | G86: 1 | H86: 0 | I86: 11.25762718 | J86: 1.481850427 | K86: 1.0035775 | L86: 0.08446143913 | M86: 1.000001693 | N86: 0.001840266923 | O86: 1.000010681 | P86: 0.004621931878 | Q86: 1.000000424 | R86: 0.0009207098574 | S86: 0.9999990017 | T86: 0.00188098183 | U86: 38.41552274 | V86: -88.69334234 | W86: 91.30665766 | Y86: 1000000000 | Z86: 691824.6976 | AB86: 43.83760167 | AC86: -80.16993096 | AE86: 22.17511088 | AF86: -8.468391848 | AH86: 0 | AI86: 0
A87: 912.01 | B87: 0.91201 | C87: 1.012993854 | D87: 0.1603414906 | E87: 1.000000164 | F87: 0.0005730327198 | G87: 1 | H87: 0 | I87: 12.33559131 | J87: 1.489641033 | K87: 1.004299583 | L87: 0.09256601849 | M87: 1.000002036 | N87: 0.002017819386 | O87: 1.000012842 | P87: 0.005067858542 | Q87: 1.00000051 | R87: 0.001009541874 | S87: 0.9999987998 | T87: 0.002062463679 | U87: 37.60886028 | V87: -89.49467139 | W87: 90.50532861 | Y87: 1000000000 | Z87: 831762.2401 | AB87: 43.04958381 | AC87: -80.1621146 | AE87: 22.15644826 | AF87: -9.272228811 | AH87: 0 | AI87: 0
A88: 1000 | B88: 1 | C88: 1.015601864 | D88: 0.175508861 | E88: 1.000000197 | F88: 0.0006283184473 | G88: 1 | H88: 0 | I88: 13.51824018 | J88: 1.496754568 | K88: 1.005167009 | L88: 0.1014382403 | M88: 1.000002448 | N88: 0.00221249639 | O88: 1.000015439 | P88: 0.005556791885 | Q88: 1.000000613 | R88: 0.001106941596 | S88: 0.9999985571 | T88: 0.002261449409 | U88: 36.79884235 | V88: -90.2881404 | W88: 89.7118596 | Y88: 1000000000 | Z88: 1000000 | AB88: 42.26187539 | AC88: -80.07250345 | AE88: 22.13411708 | AF88: -10.14948852 | AH88: 0 | AI88: 0
A89: 1096.5 | B89: 1.0965 | C89: 1.018729252 | D89: 0.1920496214 | E89: 1.000000237 | F89: 0.0006889511591 | G89: 1 | H89: 0 | I89: 14.8159244 | J89: 1.50325003 | K89: 1.006209131 | L89: 0.1111501032 | M89: 1.000002943 | N89: 0.002426001491 | O89: 1.000018563 | P89: 0.006093009614 | Q89: 1.000000737 | R89: 0.001213761359 | S89: 0.9999982652 | T89: 0.002479680428 | U89: 35.9849899 | V89: -91.07921605 | W89: 88.92078395 | Y89: 1000000000 | Z89: 1202312.25 | AB89: 41.47469975 | AC89: -79.90045023 | AE89: 22.10741421 | AF89: -11.10623401 | AH89: 0 | AI89: 0
A90: 1202.3 | B90: 1.2023 | C90: 1.022476232 | D90: 0.2100626931 | E90: 1.000000285 | F90: 0.0007554272249 | G90: 1 | H90: 0 | I90: 16.23926843 | J90: 1.509178214 | K90: 1.007460509 | L90: 0.1217737209 | M90: 1.000003538 | N90: 0.002660082476 | O90: 1.000022318 | P90: 0.006680900247 | Q90: 1.000000886 | R90: 0.001330875638 | S90: 0.9999979142 | T90: 0.002718943405 | U90: 35.16717202 | V90: -91.87257088 | W90: 88.12742912 | Y90: 1000000000 | Z90: 1445525.29 | AB90: 40.68873598 | AC90: -79.64483351 | AE90: 22.07552878 | AF90: -12.14820695 | AH90: 0 | AI90: =IF(AH90>0,W90,0) -> 0
A91: 1318.3 | B91: 1.3183 | C91: 1.026962737 | D91: 0.2296542291 | E91: 1.000000343 | F91: 0.0008283121287 | G91: 1 | H91: 0 | I91: 17.80038058 | J91: 1.51458816 | K91: 1.008962855 | L91: 0.1333897965 | M91: 1.000004254 | N91: 0.002916730479 | O91: 1.000026832 | P91: 0.007325463104 | Q91: 1.000001065 | R91: 0.001459280666 | S91: 0.9999974923 | T91: 0.002981273805 | U91: 34.34486472 | V91: -92.67273085 | W91: 87.32726915 | Y91: 1000000000 | Z91: 1737914.89 | AB91: 39.90441615 | AC91: -79.30395336 | AE91: 22.03750366 | AF91: -13.28157371 | AH91: 0 | AI91: 0
A92: 1445.4 | B92: 1.4454 | C92: 1.032326879 | D92: 0.2509158795 | E92: 1.000000412 | F92: 0.0009081713536 | G92: 1 | H92: 0 | I92: 19.51137285 | J92: 1.519521702 | K92: 1.010764766 | L92: 0.1460758579 | M92: 1.000005113 | N92: 0.003197936598 | O92: 1.000032255 | P92: 0.008031696951 | Q92: 1.00000128 | R92: 0.00159997267 | S92: 0.9999969855 | T92: 0.003268707147 | U92: 33.51798403 | V92: -93.48315974 | W92: 86.51684026 | Y92: 1000000000 | Z92: 2089181.16 | AB92: 39.12273621 | AC92: -78.87587864 | AE92: 21.99225767 | AF92: -14.51166966 | AH92: 0 | AI92: 0
A93: 1584.9 | B93: 1.5849 | C93: 1.03874556 | D93: 0.2739874385 | E93: 1.000000496 | F93: 0.000995821709 | G93: 1 | H93: 0 | I93: 21.38974613 | J93: 1.524027906 | K93: 1.012929003 | L93: 0.1599451378 | M93: 1.000006148 | N93: 0.003506576878 | O93: 1.000038781 | P93: 0.008806822413 | Q93: 1.000001539 | R93: 0.001754390651 | S93: 0.9999963755 | T93: 0.003584183606 | U93: 32.6844188 | V93: -94.3085632 | W93: 85.6914368 | Y93: 1000000000 | Z93: 2511908.01 | AB93: 38.34294943 | AC93: -78.35709769 | AE93: 21.93842479 | AF93: -15.8466261 | AH93: 0 | AI93: 0
A94: 1737.8 | B94: 1.7378 | C94: 1.046407556 | D94: 0.2989352878 | E94: 1.000000596 | F94: 0.001091891508 | G94: 1 | H94: 0 | I94: 23.4489661 | J94: 1.528137586 | K94: 1.01552392 | L94: 0.1750755156 | M94: 1.000007392 | N94: 0.003844863554 | O94: 1.000046625 | P94: 0.009656392179 | Q94: 1.00000185 | R94: 0.001923641518 | S94: 0.9999956425 | T94: 0.003929965003 | U94: 31.84450857 | V94: -95.15033447 | W94: 84.84966553 | Y94: 1000000000 | Z94: 3019948.84 | AB94: 37.56680027 | AC94: -77.74504061 | AE94: 21.8745983 | AF94: -17.29033999 | AH94: 0 | AI94: 0
A95: 1905.5 | B95: 1.9055 | C95: 1.055548386 | D95: 0.3258628573 | E95: 1.000000717 | F95: 0.001197260387 | G95: 1 | H95: 0 | I95: 25.70788778 | J95: 1.531887943 | K95: 1.018635871 | L95: 0.1915775897 | M95: 1.000008887 | N95: 0.004215893772 | O95: 1.000056057 | P95: 0.01058818022 | Q95: 1.000002225 | R95: 0.002109274944 | S95: 0.9999947609 | T95: 0.004309217871 | U95: 30.99675961 | V95: -96.01059543 | W95: 83.98940457 | Y95: 1000000000 | Z95: 3630930.25 | AB95: 36.79450951 | AC95: -77.03567951 | AE95: 21.79906143 | AF95: -18.84886848 | AH95: 0 | AI95: 0
A96: 2089.3 | B96: 2.0893 | C96: 1.066429689 | D96: 0.3548220506 | E96: 1.000000862 | F96: 0.001312745151 | G96: 1 | H96: 0 | I96: 28.18402227 | J96: 1.535307782 | K96: 1.022363112 | L96: 0.2095431024 | M96: 1.000010684 | N96: 0.004622543325 | O96: 1.000067393 | P96: 0.01160940319 | Q96: 1.000002674 | R96: 0.002312729897 | S96: 0.9999937015 | T96: 0.004724882745 | U96: 30.14075994 | V96: -96.88908634 | W96: 83.11091366 | Y96: 1000000000 | Z96: 4365174.49 | AB96: 36.02748646 | AC96: -76.22557308 | AE96: 21.70999027 | AF96: -20.52530708 | AH96: 0 | AI96: 0
A97: 2290.9 | B97: 2.2909 | C97: 1.079370942 | D97: 0.3858853832 | E97: 1.000001036 | F97: 0.001439413926 | G97: 1 | H97: 0 | I97: 30.90027186 | J97: 1.5384285 | K97: 1.026827807 | L97: 0.2290914602 | M97: 1.000012845 | N97: 0.005068572845 | O97: 1.000081026 | P97: 0.01272949795 | Q97: 1.000003215 | R97: 0.002535888101 | S97: 0.9999924273 | T97: 0.005180804968 | U97: 29.27476001 | V97: -97.78540663 | W97: 82.21459337 | Y97: 1000000000 | Z97: 5248222.81 | AB97: 35.26613014 | AC97: -75.30989429 | AE97: 21.60523294 | AF97: -22.32396977 | AH97: 0 | AI97: 0
A98: 2511.9 | B98: 2.5119 | C98: 1.094723812 | D98: 0.4190585754 | E98: 1.000001245 | F98: 0.001578272005 | G98: 1 | H98: 0 | I98: 33.87819423 | J98: 1.541274527 | K98: 1.032168787 | L98: 0.2503176198 | M98: 1.000015443 | N98: 0.005557521533 | O98: 1.000097412 | P98: 0.0139573428 | Q98: 1.000003866 | R98: 0.002780520564 | S98: 0.9999908959 | T98: 0.005680604 | U98: 28.39811533 | V98: -98.69630154 | W98: 81.30369846 | Y98: 1000000000 | Z98: 6309641.61 | AB98: 34.51201052 | AC98: -74.28480492 | AE98: 21.48257122 | AF98: -24.24533408 | AH98: 0 | AI98: 0
A99: 2754.2 | B99: 2.7542 | C99: 1.112899829 | D99: 0.454334099 | E99: 1.000001497 | F99: 0.001730513168 | G99: 1 | H99: 0 | I99: 37.14339138 | J99: 1.543870384 | K99: 1.038553046 | L99: 0.2733271215 | M99: 1.000018566 | N99: 0.006093592077 | O99: 1.00011711 | P99: 0.01530347895 | Q99: 1.000004647 | R99: 0.003048730342 | S99: 0.9999890548 | T99: 0.006228578111 | U99: 27.50957368 | V99: -99.61724219 | W99: 80.38275781 | Y99: 1000000000 | Z99: 7585617.64 | AB99: 33.76631662 | AC99: -73.1459038 | AE99: 21.33955918 | AF99: -26.28914653 | AH99: 0 | AI99: 0
A100: 3020 | B100: 3.02 | C100: 1.134376725 | D100: 0.4916791596 | E100: 1.0000018 | F100: 0.001897519683 | G100: 1 | H100: 0 | I100: 40.72551035 | J100: 1.546239225 | K100: 1.046180612 | L100: 0.2982305648 | M100: 1.000022323 | N100: 0.006681650565 | O100: 1.000140803 | P100: 0.01678010911 | Q100: 1.000005588 | R100: 0.003342952531 | S100: 0.9999868404 | T100: 0.006829704509 | U100: 26.60759594 | V100: -100.5419698 | W100: 79.45803023 | Y100: 1000000000 | Z100: 9120400 | AB100: 33.03014405 | AC100: -71.88845947 | AE100: 21.17355641 | AF100: -28.45373413 | AH100: 0 | AI100: 0
A101: 3311.3 | B101: 3.3113 | C101: 1.159658902 | D101: 0.5309576882 | E101: 1.000002164 | F101: 0.002080548146 | G101: 1 | H101: 0 | I101: 44.65150468 | J101: 1.548398792 | K101: 1.055273529 | L101: 0.3250911753 | M101: 1.000026837 | N101: 0.007326120178 | O101: 1.000169273 | P101: 0.01839831814 | Q101: 1.000006718 | R101: 0.003665400787 | S101: 0.9999841795 | T101: 0.007488508701 | U101: 25.69213754 | V101: -101.4606553 | W101: 78.53934471 | Y101: 1000000000 | Z101: 10964707.69 | AB101: 32.30588112 | AC101: -70.51011935 | AE101: 20.98212351 | AF101: -30.73148799 | AH101: 0 | AI101: 0
A102: 3630.8 | B102: 3.6308 | C102: 1.189352164 | D102: 0.5720483345 | E102: 1.000002602 | F102: 0.002281294961 | G102: 1 | H102: 0 | I102: 48.95776355 | J102: 1.550369137 | K102: 1.066106139 | L102: 0.3540020185 | M102: 1.000032265 | N102: 0.00803297221 | O102: 1.000203511 | P102: 0.0201730707 | Q102: 1.000008076 | R102: 0.004019063547 | S102: 0.9999809794 | T102: 0.008211100114 | U102: 24.76180206 | V102: -102.3629362 | W102: 77.63706381 | Y102: 1000000000 | Z102: 13182708.64 | AB102: 31.59483252 | AC102: -69.0070421 | AE102: 20.76255109 | AF102: -33.11570809 | AH102: 0 | AI102: 0
A103: 3981.1 | B103: 3.9811 | C103: 1.224095898 | D103: 0.6147295437 | E103: 1.000003128 | F103: 0.002501393683 | G103: 1 | H103: 0 | I103: 53.67933017 | J103: 1.552166105 | K103: 1.078984993 | L103: 0.3850039493 | M103: 1.000038791 | N103: 0.008807955969 | O103: 1.00024467 | P103: 0.02211876404 | Q103: 1.00000971 | R103: 0.004406818459 | S103: 0.9999771324 | T103: 0.009003363095 | U103: 23.81661593 | V103: -103.2354307 | W103: 76.76456926 | Y103: 1000000000 | Z103: 15849157.21 | AB103: 30.8993647 | AC103: -67.37812429 | AE103: 20.51248956 | AF103: -35.59394384 | AH103: 0 | AI103: 0
A104: 4365.2 | B104: 4.3652 | C104: 1.26460447 | D104: 0.6587449802 | E104: 1.000003761 | F104: 0.00274272917 | G104: 1 | H104: 0 | I104: 58.85664046 | J104: 1.553805073 | K104: 1.094268313 | L104: 0.4181231128 | M104: 1.000046637 | N104: 0.009657704727 | O104: 1.000294152 | P104: 0.0242520018 | Q104: 1.000011674 | R104: 0.00483198582 | S104: 0.9999725074 | T104: 0.009872088058 | U104: 22.85662144 | V104: -104.0636949 | W104: 75.93630507 | Y104: 1000000000 | Z104: 19054971.04 | AB104: 30.22169731 | AC104: -65.62312898 | AE104: 20.22974984 | AF104: -38.15178936 | AH104: 0 | AI104: 0
A105: 4786.3 | B105: 4.7863 | C105: 1.311644856 | D105: 0.7037801396 | E105: 1.000004522 | F105: 0.003007311914 | G105: 1 | H105: 0 | I105: 64.53282741 | J105: 1.555299717 | K105: 1.11236244 | L105: 0.4533439584 | M105: 1.000056069 | N105: 0.01058929293 | O105: 1.000353631 | P105: 0.02659047801 | Q105: 1.000014035 | R105: 0.00529810715 | S105: 0.9999669479 | T105: 0.01082451961 | U105: 21.88260478 | V105: -104.8323009 | W105: 75.16769907 | Y105: 1000000000 | Z105: 22908667.69 | AB105: 29.56436075 | AC105: -63.74413606 | AE105: 19.91257378 | AF105: -40.77152476 | AH105: 0 | AI105: 0
A106: 5248.1 | B106: 5.2481 | C106: 1.366065415 | D106: 0.7495003381 | E106: 1.000005437 | F106: 0.003297466526 | G106: 1 | H106: 0 | I106: 70.75776492 | J106: 1.556663132 | K106: 1.133737436 | L106: 0.4906252214 | M106: 1.00006741 | N106: 0.01161089946 | O106: 1.000425147 | P106: 0.02915463643 | Q106: 1.000016874 | R106: 0.00580927721 | S106: 0.9999602632 | T106: 0.0118690357 | U106: 20.89551902 | V106: -105.5262482 | W106: 74.47375184 | Y106: 1000000000 | Z106: 27542553.61 | AB106: 28.92971742 | AC106: -61.74472867 | AE106: 19.55953507 | AF106: -43.43432091 | AH106: 0 | AI106: 0
A107: 5370.3 | B107: 5.3703 | C107: 1.380919818 | D107: 0.7609879941 | E107: 1.000005693 | F107: 0.003374246196 | G107: 1 | H107: 0 | I107: 72.40500707 | J107: 1.556984688 | K107: 1.13965096 | L107: 0.5002521654 | M107: 1.000070586 | N107: 0.01188122965 | O107: 1.000445172 | P107: 0.02983309284 | Q107: 1.000017669 | R107: 0.005944540856 | S107: 0.9999583914 | T107: 0.01214543782 | U107: 20.64703514 | V107: -105.6862959 | W107: 74.31370413 | Y107: 1000000000 | Z107: 28840122.09 | AB107: 28.77498743 | AC107: -61.22705801 | AE107: 19.46561423 | AF107: -44.10395263 | AH107: 0 | AI107: 0
A108: 5432.85 | B108: 5.43285 | C108: 1.388592649 | D108: 0.7667726434 | E108: 1.000005826 | F108: 0.003413547067 | G108: 1 | H108: 0 | I108: 73.24817678 | J108: 1.557143686 | K108: 1.142718439 | L108: 0.5051410843 | M108: 1.00007224 | N108: 0.01201960176 | O108: 1.0004556 | P108: 0.03018036088 | Q108: 1.000018083 | R108: 0.006013777606 | S108: 0.9999574166 | T108: 0.01228691958 | U108: 20.52177247 | V108: -105.7646493 | W108: 74.23535066 | Y108: 1000000000 | Z108: 29515859.12 | AB108: 28.69775618 | AC108: -60.96398162 | AE108: 19.41749587 | AF108: -44.44124316 | AH108: 0 | AI108: 0
A109: 5495.4 | B109: 5.4954 | C109: 1.396311434 | D109: 0.7724935275 | E109: 1.000005961 | F109: 0.003452847928 | G109: 1 | H109: 0 | I109: 74.09134829 | J109: 1.557299064 | K109: 1.145813084 | L109: 0.5100037106 | M109: 1.000073913 | N109: 0.01215797342 | O109: 1.000466149 | P109: 0.03052762163 | Q109: 1.000018502 | R109: 0.006083014298 | S109: 0.9999564305 | T109: 0.012428402 | U109: 20.39778423 | V109: -105.8406485 | W109: 74.15935151 | Y109: 1000000000 | Z109: 30199421.16 | AB109: 28.62181891 | AC109: -60.70220431 | AE109: 19.36935696 | AF109: -44.77488024 | AH109: 0 | AI109: 0
A110: 5559.4 | B110: 5.5594 | C110: 1.404255925 | D110: 0.7782817399 | E110: 1.000006101 | F110: 0.003493059829 | G110: 1 | H110: 0 | I110: 74.95406756 | J110: 1.557454427 | K110: 1.149007356 | L110: 0.5149518286 | M110: 1.000075644 | N110: 0.01229955224 | O110: 1.000477067 | P110: 0.03088292478 | Q110: 1.000018935 | R110: 0.006153855937 | S110: 0.99995541 | T110: 0.01257316488 | U110: 20.27221737 | V110: -105.9160215 | W110: 74.08397846 | Y110: 1000000000 | Z110: 30906928.36 | AB110: 28.54543035 | AC110: -60.43571152 | AE110: 19.32008762 | AF110: -45.11251072 | AH110: 0 | AI110: 0
A111: 5623.4 | B111: 5.6234 | C111: 1.412246933 | D111: 0.7840046386 | E111: 1.000006242 | F111: 0.003533271718 | G111: 1 | H111: 0 | I111: 75.81678859 | J111: 1.557606254 | K111: 1.152229604 | L111: 0.5198723913 | M111: 1.000077396 | N111: 0.01244113057 | O111: 1.000488112 | P111: 0.03123822012 | Q111: 1.000019374 | R111: 0.006224697514 | S111: 0.9999543776 | T111: 0.01271792847 | U111: 20.14793774 | V111: -105.9890287 | W111: 74.01097133 | Y111: 1000000000 | Z111: 31622627.56 | AB111: 28.47033596 | AC111: -60.17059491 | AE111: 19.27081031 | AF111: -45.44639903 | AH111: 0 | AI111: 0
A112: 5688.9 | B112: 5.6889 | C112: 1.420472577 | D112: 0.7897948025 | E112: 1.000006388 | F112: 0.003574426062 | G112: 1 | H112: 0 | I112: 76.69973142 | J112: 1.557758102 | K112: 1.155556096 | L112: 0.5248797411 | M112: 1.000079209 | N112: 0.01258602663 | O112: 1.000499546 | P112: 0.03160183453 | Q112: 1.000019828 | R112: 0.006297199376 | S112: 0.9999533087 | T112: 0.01286608569 | U112: 20.02205451 | V112: -106.0613484 | W112: 73.93865163 | Y112: 1000000000 | Z112: 32363583.21 | AB112: 28.39479112 | AC112: -59.90069711 | AE112: 19.22037659 | AF112: -45.7842818 | AH112: 0 | AI112: 0
A113: 5754.4 | B113: 5.7544 | C113: 1.428745294 | D113: 0.795518104 | E113: 1.000006536 | F113: 0.003615580394 | G113: 1 | H113: 0 | I113: 77.58267598 | J113: 1.557906494 | K113: 1.158911395 | L113: 0.5298582205 | M113: 1.000081044 | N113: 0.01273092216 | O113: 1.000511112 | P113: 0.03196544057 | Q113: 1.000020287 | R113: 0.006369701172 | S113: 0.9999522276 | T113: 0.01301424368 | U113: 19.89747226 | V113: -106.1312933 | W113: 73.86870667 | Y113: 1000000000 | Z113: 33113119.36 | AB113: 28.32054095 | AC113: -59.63225541 | AE113: 19.16994809 | AF113: -46.11833368 | AH113: 0 | AI113: 0
A114: 5821.4 | B114: 5.8214 | C114: 1.437255318 | D114: 0.8013041131 | E114: 1.000006689 | F114: 0.003657677179 | G114: 1 | H114: 0 | I114: 78.48584237 | J114: 1.558054831 | K114: 1.162373078 | L114: 0.5349208455 | M114: 1.000082942 | N114: 0.01287913536 | O114: 1.00052308 | P114: 0.03233736473 | Q114: 1.000020762 | R114: 0.006443863245 | S114: 0.9999511088 | T114: 0.0131657954 | U114: 19.77135919 | V114: -106.2004366 | W114: 73.79956338 | Y114: 1000000000 | Z114: 33888697.96 | AB114: 28.24589928 | AC114: -59.35917939 | AE114: 19.11837691 | AF114: -46.45611888 | AH114: 0 | AI114: 0
A115: 5888.4 | B115: 5.8884 | C115: 1.44581289 | D115: 0.8070218185 | E115: 1.000006844 | F115: 0.003699773951 | G115: 1 | H115: 0 | I115: 79.38901044 | J115: 1.558199792 | K115: 1.165864374 | L115: 0.5399532779 | M115: 1.000084862 | N115: 0.01302734799 | O115: 1.000535187 | P115: 0.03270927994 | Q115: 1.000021243 | R115: 0.006518025247 | S115: 0.9999499771 | T115: 0.01331734793 | U115: 19.64655973 | V115: -106.267203 | W115: 73.732797 | Y115: 1000000000 | Z115: 34673254.56 | AB115: 28.17255109 | AC115: -59.08763988 | AE115: 19.06682472 | AF115: -46.78999063 | AH115: 0 | AI115: 0
A116: 5957 | B116: 5.957 | C116: 1.454623213 | D116: 0.8128061683 | E116: 1.000007005 | F116: 0.003742876005 | G116: 1 | H116: 0 | I116: 80.3137484 | J116: 1.558344837 | K116: 1.169469452 | L116: 0.5450746223 | M116: 1.000086851 | N116: 0.01317909943 | O116: 1.000547726 | P116: 0.03309006732 | Q116: 1.000021741 | R116: 0.006593958207 | S116: 0.999948805 | T116: 0.01347252047 | U116: 19.520117 | V116: -106.3331569 | W116: 73.66684315 | Y116: 1000000000 | Z116: 35485849 | AB116: 28.09876068 | AC116: -58.81121364 | AE116: 19.01406787 | AF116: -47.12783063 | AH116: 0 | AI116: 0
A117: 6025.6 | B117: 6.0256 | C117: 1.463481618 | D117: 0.8185206825 | E117: 1.000007167 | F117: 0.003785978045 | G117: 1 | H117: 0 | I117: 81.23848801 | J117: 1.55848658 | K117: 1.173105014 | L117: 0.5501643564 | M117: 1.000088862 | N117: 0.01333085026 | O117: 1.00056041 | P117: 0.03347084511 | Q117: 1.000022244 | R117: 0.006669891092 | S117: 0.9999476193 | T117: 0.01362769389 | U117: 19.39500328 | V117: -106.3967314 | W117: 73.60326858 | Y117: 1000000000 | Z117: 36307855.36 | AB117: 28.02626467 | AC117: -58.5364093 | AE117: 18.96134442 | AF117: -47.46166939 | AH117: 0 | AI117: 0
A118: 6095.8 | B118: 6.0958 | C118: 1.472595505 | D118: 0.8242971111 | E118: 1.000007335 | F118: 0.003830085367 | G118: 1 | H118: 0 | I118: 82.18479754 | J118: 1.558628326 | K118: 1.176856634 | L118: 0.5553401087 | M118: 1.000090945 | N118: 0.01348613984 | O118: 1.000573541 | P118: 0.03386049396 | Q118: 1.000022765 | R118: 0.006747594926 | S118: 0.9999463919 | T118: 0.01378648743 | U118: 19.26832301 | V118: -106.4593837 | W118: 73.54061631 | Y118: 1000000000 | Z118: 37158777.64 | AB118: 27.9533868 | AC118: -58.25687945 | AE118: 18.90743256 | AF118: -47.7992054 | AH118: 0 | AI118: 0
A119: 6166 | B119: 6.166 | C119: 1.481757924 | D119: 0.8300022912 | E119: 1.000007505 | F119: 0.003874192673 | G119: 1 | H119: 0 | I119: 83.13110869 | J119: 1.558766845 | K119: 1.18063958 | L119: 0.5604828303 | M119: 1.000093052 | N119: 0.01364142877 | O119: 1.000586823 | P119: 0.03425013252 | Q119: 1.000023293 | R119: 0.006825298679 | S119: 0.9999451503 | T119: 0.01394528191 | U119: 19.14298585 | V119: -106.5196614 | W119: 73.48033859 | Y119: 1000000000 | Z119: 38019556 | AB119: 27.88180242 | AC119: -57.97905719 | AE119: 18.85356906 | AF119: -48.13265924 | AH119: 0 | AI119: 0
A120: 6237.8 | B120: 6.2378 | C120: 1.491178443 | D120: 0.8357647867 | E120: 1.000007681 | F120: 0.003919305258 | G120: 1 | H120: 0 | I120: 84.09898979 | J120: 1.558905297 | K120: 1.184540838 | L120: 0.565708644 | M120: 1.000095231 | N120: 0.01380025636 | O120: 1.000600565 | P120: 0.03464864097 | Q120: 1.000023838 | R120: 0.006904773372 | S120: 0.9999438657 | T120: 0.01410769661 | U120: 19.01615685 | V120: -106.5789169 | W120: 73.4210831 | Y120: 1000000000 | Z120: 38910148.84 | AB120: 27.80989335 | AC120: -57.69667297 | AE120: 18.79853458 | AF120: -48.46954682 | AH120: 0 | AI120: 0
A121: 6309.6 | B121: 6.3096 | C121: 1.500647856 | D121: 0.8414547439 | E121: 1.000007858 | F121: 0.003964417828 | G121: 1 | H121: 0 | I121: 85.06687247 | J121: 1.559040599 | K121: 1.188474232 | L121: 0.5709000079 | M121: 1.000097436 | N121: 0.01395908326 | O121: 1.000614465 | P121: 0.03504713841 | Q121: 1.00002439 | R121: 0.006984247979 | S121: 0.9999425663 | T121: 0.01427011231 | U121: 18.8906838 | V121: -106.6358096 | W121: 73.36419036 | Y121: 1000000000 | Z121: 39811052.16 | AB121: 27.7392751 | AC121: -57.41608204 | AE121: 18.74356391 | AF121: -48.80227833 | AH121: 0 | AI121: 0
A122: 6383.05 | B122: 6.38305 | C122: 1.510384514 | D122: 0.8472014435 | E122: 1.000008042 | F122: 0.00401056709 | G122: 1 | H122: 0 | I122: 86.05699915 | J122: 1.55917586 | K122: 1.192530938 | L122: 0.5761750906 | M122: 1.000099718 | N122: 0.01412155935 | O122: 1.00062885 | P122: 0.035454782 | Q122: 1.000024962 | R122: 0.00706554886 | S122: 0.9999412216 | T122: 0.01443626146 | U122: 18.76370559 | V122: -106.6916273 | W122: 73.30837267 | Y122: 1000000000 | Z122: 40743327.3 | AB122: 27.66833835 | AC122: -57.13090116 | AE122: 18.68740255 | AF122: -49.13841545 | AH122: 0 | AI122: 0
A123: 6456.5 | B123: 6.4565 | C123: 1.520170412 | D123: 0.8528743412 | E123: 1.000008229 | F123: 0.004056716335 | G123: 1 | H123: 0 | I123: 87.04712737 | J123: 1.559308044 | K123: 1.196620603 | L123: 0.5814142611 | M123: 1.000102025 | N123: 0.0142840347 | O123: 1.000643401 | P123: 0.0358624138 | Q123: 1.000025539 | R123: 0.007146849647 | S123: 0.9999398613 | T123: 0.01460241167 | U123: 18.63809675 | V123: -106.7450979 | W123: 73.25490212 | Y123: 1000000000 | Z123: 41686392.25 | AB123: 27.59868981 | AC123: -56.84760155 | AE123: 18.63132095 | AF123: -49.4703241 | AH123: 0 | AI123: 0
A124: 6531.7 | B124: 6.5317 | C124: 1.530239494 | D124: 0.8586070404 | E124: 1.000008421 | F124: 0.004103965102 | G124: 1 | H124: 0 | I124: 88.06084766 | J124: 1.559440298 | K124: 1.2008415 | L124: 0.5867411374 | M124: 1.000104416 | N124: 0.01445038035 | O124: 1.000658471 | P124: 0.03627974537 | Q124: 1.000026138 | R124: 0.007230087388 | S124: 0.9999384526 | T124: 0.01477252167 | U124: 18.51088878 | V124: -106.7974752 | W124: 73.20252482 | Y124: 1000000000 | Z124: 42663104.89 | AB124: 27.52868494 | AC124: -56.55950253 | AE124: 18.57399225 | AF124: -49.805823 | AH124: 0 | AI124: 0
A125: 6606.9 | B125: 6.6069 | C125: 1.540358206 | D125: 0.8642646066 | E125: 1.000008616 | F125: 0.00415121385 | G125: 1 | H125: 0 | I125: 89.07456945 | J125: 1.559569542 | K125: 1.205096233 | L125: 0.5920305486 | M125: 1.000106834 | N125: 0.01461672521 | O125: 1.000673715 | P125: 0.0366970643 | Q125: 1.000026743 | R125: 0.007313325028 | S125: 0.9999370275 | T125: 0.01494263281 | U125: 18.38506592 | V125: -106.8475219 | W125: 73.15247813 | Y125: 1000000000 | Z125: 43651127.61 | AB125: 27.45996734 | AC125: -56.27337757 | AE125: 18.51675991 | AF125: -50.13701716 | AH125: 0 | AI125: 0
A126: 6683.85 | B126: 6.68385 | C126: 1.550762757 | D126: 0.8699772159 | E126: 1.000008818 | F126: 0.004199562118 | G126: 1 | H126: 0 | I126: 90.11188335 | J126: 1.559698784 | K126: 1.209484632 | L126: 0.5974043736 | M126: 1.000109337 | N126: 0.01478694029 | O126: 1.000689495 | P126: 0.03712408154 | Q126: 1.00002737 | R126: 0.00739849961 | S126: 0.9999355524 | T126: 0.01511670386 | U126: 18.25772337 | V126: -106.8963871 | W126: 73.10361285 | Y126: 1000000000 | Z126: 44673850.82 | AB126: 27.39095142 | AC126: -55.98263767 | AE126: 18.45830176 | AF126: -50.47152895 | AH126: 0 | AI126: 0
A127: 6760.8 | B127: 6.7608 | C127: 1.561217241 | D127: 0.8756134996 | E127: 1.000009022 | F127: 0.004247910367 | G127: 1 | H127: 0 | I127: 91.14919873 | J127: 1.559825083 | K127: 1.213907706 | L127: 0.6027391908 | M127: 1.000111869 | N127: 0.01495715451 | O127: 1.000705456 | P127: 0.03755108523 | Q127: 1.000028003 | R127: 0.007483674084 | S127: 0.9999340603 | T127: 0.01529077614 | U127: 18.13178014 | V127: -106.9429458 | W127: 73.05705417 | Y127: 1000000000 | Z127: 45708416.64 | AB127: 27.32321994 | AC127: -55.69396416 | AE127: 18.39995698 | AF127: -50.80166767 | AH127: 0 | AI127: 0
A128: 6839.55 | B128: 6.83955 | C128: 1.571966931 | D128: 0.8813038208 | E128: 1.000009234 | F128: 0.004297389548 | G128: 1 | H128: 0 | I128: 92.21078025 | J128: 1.559951395 | K128: 1.21846975 | L128: 0.6081585402 | M128: 1.00011449 | N128: 0.01513134946 | O128: 1.000721981 | P128: 0.03798806313 | Q128: 1.000028659 | R128: 0.007570840831 | S128: 0.9999325155 | T128: 0.01546892159 | U128: 18.00431384 | V128: -106.9882739 | W128: 73.01172612 | Y128: 1000000000 | Z128: 46779444.2 | AB128: 27.25520201 | AC128: -55.40067609 | AE128: 18.34037089 | AF128: -51.1350711 | AH128: 0 | AI128: 0
A129: 6918.3 | B129: 6.9183 | C129: 1.582766829 | D129: 0.8869166667 | E129: 1.000009448 | F129: 0.004346868707 | G129: 1 | H129: 0 | I129: 93.27236322 | J129: 1.560074832 | K129: 1.223067312 | L129: 0.6135373034 | M129: 1.000117141 | N129: 0.01530554348 | O129: 1.000738696 | P129: 0.03842502651 | Q129: 1.000029323 | R129: 0.007658007463 | S129: 0.9999309529 | T129: 0.01564706835 | U129: 17.87826135 | V129: -107.0313237 | W129: 72.96867629 | Y129: 1000000000 | Z129: 47862874.89 | AB129: 27.18846545 | AC129: -55.10954865 | AE129: 18.28091563 | AF129: -51.46403559 | AH129: 0 | AI129: 0
A130: 6998.9 | B130: 6.9989 | C130: 1.593871365 | D130: 0.8925824215 | E130: 1.000009669 | F130: 0.004397510213 | G130: 1 | H130: 0 | I130: 94.3588864 | J130: 1.560198292 | K130: 1.227809243 | L130: 0.6190005503 | M130: 1.000119886 | N130: 0.01548382872 | O130: 1.000756001 | P130: 0.03887223987 | Q130: 1.00003001 | R130: 0.007747221699 | S130: 0.9999293351 | T130: 0.01582940153 | U130: 17.75068541 | V130: -107.073096 | W130: 72.92690399 | Y130: 1000000000 | Z130: 48984601.21 | AB130: 27.12145587 | AC130: -54.81381641 | AE130: 18.22020504 | AF130: -51.79620481 | AH130: 0 | AI130: 0
A131: 7079.5 | B131: 7.0795 | C131: 1.605026356 | D131: 0.8981695993 | E131: 1.000009893 | F131: 0.004448151696 | G131: 1 | H131: 0 | I131: 95.44541099 | J131: 1.560318942 | K131: 1.232587538 | L131: 0.6244215999 | M131: 1.000122663 | N131: 0.01566211298 | O131: 1.000773507 | P131: 0.03931943766 | Q131: 1.000030706 | R131: 0.007836435811 | S131: 0.9999276986 | T131: 0.01601173613 | U131: 17.62453793 | V131: -107.112623 | W131: 72.88737703 | Y131: 1000000000 | Z131: 50119320.25 | AB131: 27.05572432 | AC131: -54.5203408 | AE131: 18.1596432 | AF131: -52.12387197 | AH131: 0 | AI131: 0
A132: 7161.95 | B132: 7.16195 | C132: 1.616488503 | D132: 0.9038050518 | E132: 1.000010125 | F132: 0.004499955522 | G132: 1 | H132: 0 | I132: 96.55687582 | J132: 1.560439551 | K132: 1.237512694 | L132: 0.6299235962 | M132: 1.000125537 | N132: 0.01584448833 | O132: 1.000791622 | P132: 0.03977688364 | Q132: 1.000031425 | R132: 0.007927697513 | S132: 0.9999260051 | T132: 0.01619825731 | U132: 17.49694638 | V132: -107.1508059 | W132: 72.84919411 | Y132: 1000000000 | Z132: 51293527.8 | AB132: 26.98977411 | AC132: -54.22245937 | AE132: 18.09785089 | AF132: -52.45447835 | AH132: 0 | AI132: 0
A133: 7244.4 | B133: 7.2444 | C133: 1.628001263 | D133: 0.909360974 | E133: 1.000010359 | F133: 0.004551759323 | G133: 1 | H133: 0 | I133: 97.66834202 | J133: 1.560557416 | K133: 1.242475015 | L133: 0.6353818079 | M133: 1.000128444 | N133: 0.01602686264 | O133: 1.000809946 | P133: 0.04023431297 | Q133: 1.000032153 | R133: 0.008018959083 | S133: 0.999924292 | T133: 0.01638478 | U133: 17.37079625 | V133: -107.1867836 | W133: 72.81321642 | Y133: 1000000000 | Z133: 52481331.36 | AB133: 26.9250967 | AC133: -53.92692928 | AE133: 18.03622546 | AF133: -52.78052807 | AH133: 0 | AI133: 0
A134: 7328.75 | B134: 7.32875 | C134: 1.639830591 | D134: 0.9149640209 | E134: 1.000010602 | F134: 0.00460475688 | G134: 1 | H134: 0 | I134: 98.80542252 | J134: 1.560675252 | K134: 1.247589686 | L134: 0.640920698 | M134: 1.000131452 | N134: 0.01621343852 | O134: 1.000828909 | P134: 0.04070226598 | Q134: 1.000032906 | R134: 0.00811232357 | S134: 0.9999225192 | T134: 0.01657560256 | U134: 17.24320368 | V134: -107.2213818 | W134: 72.77861824 | Y134: 1000000000 | Z134: 53710576.56 | AB134: 26.86021351 | AC134: -53.62701579 | AE134: 17.97335804 | AF134: -53.1094558 | AH134: 0 | AI134: 0
A135: 7413.1 | B135: 7.4131 | C135: 1.651710662 | D135: 0.9204866383 | E135: 1.000010847 | F135: 0.004657754412 | G135: 1 | H135: 0 | I135: 99.94250436 | J135: 1.560790407 | K135: 1.252742318 | L135: 0.6464141917 | M135: 1.000134495 | N135: 0.01640001327 | O135: 1.000848092 | P135: 0.04117020116 | Q135: 1.000033668 | R135: 0.008205687917 | S135: 0.9999207259 | T135: 0.01676642675 | U135: 17.11706554 | V135: -107.2538192 | W135: 72.74618081 | Y135: 1000000000 | Z135: 54954051.61 | AB135: 26.79659758 | AC135: -53.32954963 | AE135: 17.91067599 | AF135: -53.43377536 | AH135: 0 | AI135: 0
A136: 7499.45 | B136: 7.49945 | C136: 1.663923844 | D136: 0.9260583392 | E136: 1.000011102 | F136: 0.004712008526 | G136: 1 | H136: 0 | I136: 101.1065486 | J136: 1.560905609 | K136: 1.258055959 | L136: 0.6519911548 | M136: 1.000137647 | N136: 0.01659101067 | O136: 1.000867956 | P136: 0.04164921274 | Q136: 1.000034456 | R136: 0.008301265851 | S136: 0.9999188688 | T136: 0.01696177722 | U136: 16.98941566 | V136: -107.2848624 | W136: 72.71513759 | Y136: 1000000000 | Z136: 56241750.3 | AB136: 26.73275327 | AC136: -53.02755714 | AE136: 17.84670486 | AF136: -53.76109453 | AH136: 0 | AI136: 0
A137: 7585.8 | B137: 7.5858 | C137: 1.676187928 | D137: 0.9315486761 | E137: 1.000011359 | F137: 0.004766262612 | G137: 1 | H137: 0 | I137: 102.2705941 | J137: 1.561018189 | K137: 1.263408399 | L137: 0.6575210349 | M137: 1.000140834 | N137: 0.01678200685 | O137: 1.00088805 | P137: 0.0421282052 | Q137: 1.000035255 | R137: 0.008396843634 | S137: 0.9999169903 | T137: 0.01715712943 | U137: 16.86323485 | V137: -107.3137914 | W137: 72.68620864 | Y137: 1000000000 | Z137: 57544361.64 | AB137: 26.67017173 | AC137: -52.72811197 | AE137: 17.78293815 | AF137: -54.08375199 | AH137: 0 | AI137: 0
A138: 7674.15 | B138: 7.67415 | C138: 1.688787593 | D138: 0.9370834726 | E138: 1.000011625 | F138: 0.004821773279 | G138: 1 | H138: 0 | I138: 103.4616021 | J138: 1.561130755 | K138: 1.268924454 | L138: 0.6631305354 | M138: 1.000144134 | N138: 0.01697742554 | O138: 1.000908846 | P138: 0.04261827184 | Q138: 1.00003608 | R138: 0.008494634988 | S138: 0.999915046 | T138: 0.01735700812 | U138: 16.73562402 | V138: -107.3412782 | W138: 72.65872182 | Y138: 1000000000 | Z138: 58892578.22 | AB138: 26.60741482 | AC138: -52.42435746 | AE138: 17.71791093 | AF138: -54.40914414 | AH138: 0 | AI138: 0
A139: 7762.5 | B139: 7.7625 | C139: 1.701438225 | D139: 0.9425361287 | E139: 1.000011894 | F139: 0.004877283915 | G139: 1 | H139: 0 | I139: 104.6526113 | J139: 1.561240758 | K139: 1.274480092 | L139: 0.6686913043 | M139: 1.000147471 | N139: 0.01717284292 | O139: 1.000929884 | P139: 0.043108318 | Q139: 1.000036916 | R139: 0.00859242618 | S139: 0.9999130792 | T139: 0.01755688868 | U139: 16.60949501 | V139: -107.3667042 | W139: 72.63329583 | Y139: 1000000000 | Z139: 60256406.25 | AB139: 26.54591421 | AC139: -52.12324819 | AE139: 17.65310723 | AF139: -54.72983012 | AH139: 0 | AI139: 0
A140: 7852.9 | B140: 7.8529 | C140: 1.714433969 | D140: 0.9480318448 | E140: 1.000012173 | F140: 0.004934082543 | G140: 1 | H140: 0 | I140: 105.871257 | J140: 1.561350752 | K140: 1.280205072 | L140: 0.6743309655 | M140: 1.000150926 | N140: 0.01737279326 | O140: 1.000951658 | P140: 0.04360971333 | Q140: 1.000037781 | R140: 0.008692486267 | S140: 0.9999110435 | T140: 0.01776140905 | U140: 16.48194474 | V140: -107.3906642 | W140: 72.60933581 | Y140: 1000000000 | Z140: 61668038.41 | AB140: 26.48425395 | AC140: -51.8178779 | AE140: 17.58703578 | AF140: -55.05317529 | AH140: 0 | AI140: 0
A141: 7943.3 | B141: 7.9433 | C141: =SQRT(1+(A141/pole1)^2) -> 1.727480715 | D141: =ATAN(A141/pole1) -> 0.9534447099 | E141: =SQRT(1+(A141/Zero1)^2) -> 1.000012455 | F141: =ATAN(A141/Zero1) -> 0.00499088114 | G141: =IF(VIN_nom>Vout, 1, SQRT(1+(A141/z_RHP)^2)) -> 1 | H141: =IF(VIN_nom>Vout, 0, -ATAN(A141/z_RHP)) -> 0 | I141: =SQRT(1+(A141/Pole2)^2) -> 107.0899039 | J141: =ATAN(A141/Pole2) -> 1.561458243 | K141: =SQRT(1+(A141/Zero2)^2) -> 1.285970406 | L141: =ATAN(A141/Zero2) -> 0.6799202351 | M141: =SQRT(1+(A141/pole4)^2) -> 1.000154421 | N141: =ATAN(A141/pole4) -> 0.0175727422 | O141: =SQRT(1+(A141/Zero3)^2) -> 1.000973683 | P141: =ATAN(A141/Zero3) -> 0.04411108673 | Q141: =SQRT(1+(A141/pole5)^2) -> 1.000038656 | R141: =ATAN(A141/pole5) -> 0.00879254618 | S141: =SQRT((1-(Z141/pterm2))^2+(A141/pterm1)^2) -> 0.9999089843 | T141: =IF((ATAN((A141/pterm1)/(1-A141^2/pterm2))>0),ATAN((A141/pterm1)/(1-A141^2/pterm2)),PI()+ATAN((A141/pterm1)/(1-A141^2/pterm2))) -> 0.01796593143 | U141: =20*LOG10(((E141*K141*G141*O141)/(C141*I141*S141*M141*Q141))*Adc) -> 16.35588879 | V141: =((F141+L141+H141+R141)-(D141+J141+T141+N141+T141))*radconv -> -107.4126212 | W141: =IF(V141>0,V141,V141+180) -> 72.58737885 | Y141: =IF(U141<0,A141,1000000000) -> 1000000000 | Z141: =A141^2 -> 63096014.89 | AB141: =20*LOG10((K141/(I141*M141))*AEA) -> 26.42384303 | AC141: =(L141-(J141+N141))*radconv -> -51.51525133 | AE141: =20*LOG10((E141*G141/(C141*S141))*Acs*Am) -> 17.52120723 | AF141: =(F141+H141-(D141+T141))*radconv -> -55.37177356 | AH141: =SUM((U142<0)*(U141>0))*A141 -> 0 | AI141: 0
A142: 8035.8 | B142: =A142/1000 -> 8.0358 | C142: 1.740882133 | D142: 0.958899172 | E142: 1.000012746 | F142: 0.005048999139 | G142: 1 | H142: 0 | I142: 108.3368614 | J142: 1.561565727 | K142: 1.291910877 | L142: 0.6855875248 | M142: 1.000158038 | N142: 0.01777733452 | O142: 1.000996481 | P142: 0.04462408411 | Q142: 1.000039561 | R142: 0.008894930311 | S142: 0.9999068528 | T142: 0.01817520697 | U142: 16.22842238 | V142: -107.4330928 | W142: 72.56690717 | Y142: 1000000000 | Z142: 64574081.64 | AB142: 26.36328881 | AC142: -51.20842024 | AE142: 17.45410507 | AF142: -55.69295191 | AH142: 0 | AI142: 0
A143: 8128.3 | B143: 8.1283 | C143: 1.754334553 | D143: 0.9642701412 | E143: 1.000013041 | F143: 0.005107117105 | G143: 1 | H143: 0 | I143: 109.5838201 | J143: 1.561670765 | K143: 1.297892461 | L143: 0.6912027559 | M143: 1.000161697 | N143: 0.01798192535 | O143: 1.001019542 | P143: 0.04513705798 | Q143: 1.000040477 | R143: 0.008997314256 | S143: 0.9999046967 | T143: 0.01838448465 | U143: 16.10246244 | V143: -107.4516235 | W143: 72.54837653 | Y143: 1000000000 | Z143: 66069260.89 | AB143: 26.30397641 | AC143: -50.90443164 | AE143: 17.38726538 | AF143: -56.00934659 | AH143: 0 | AI143: 0
A144: 8222.95 | B144: 8.22295 | C144: 1.768151229 | D144: 0.969681191 | E144: 1.000013347 | F144: 0.005166585884 | G144: 1 | H144: 0 | I144: 110.8597634 | J144: 1.561775799 | K144: 1.304055045 | L144: 0.696894996 | M144: 1.000165484 | N144: 0.01819126998 | O144: 1.001043412 | P144: 0.04566193042 | Q144: 1.000041425 | R144: 0.00910207774 | S144: 0.999902465 | T144: 0.01859862887 | U144: 15.97510472 | V144: -107.4686543 | W144: 72.53134569 | Y144: 1000000000 | Z144: 67616906.7 | AB144: 26.24453757 | AC144: -50.59630285 | AE144: 17.31914762 | AF144: -56.32823916 | AH144: 0 | AI144: 0
A145: 8270.275 | B145: 8.270275 | C145: 1.775078754 | D145: 0.9723550884 | E145: 1.000013501 | F145: 0.00519632026 | G145: 1 | H145: 0 | I145: 111.4977355 | J145: 1.561827415 | K145: 1.307152069 | L145: 0.6997209432 | M145: 1.000167394 | N145: 0.01829594169 | O145: 1.001055451 | P145: 0.04592435722 | Q145: 1.000041904 | R145: 0.009154459408 | S145: 0.9999013395 | T145: 0.01870570183 | U145: 15.911997 | V145: -107.4764618 | W145: 72.52353816 | Y145: 1000000000 | Z145: 68397448.58 | AB145: 26.21528281 | AC145: -50.4433426 | AE145: 17.28519436 | AF145: -56.48587336 | AH145: 0 | AI145: 0
A146: 8317.6 | B146: 8.3176 | C146: 1.782018872 | D146: 0.9750081774 | E146: 1.000013656 | F146: 0.005226054627 | G146: 1 | H146: 0 | I146: 112.1357079 | J146: 1.561878443 | K146: 1.310259483 | L146: 0.7025335087 | M146: 1.000169315 | N146: 0.01840061301 | O146: 1.001067558 | P146: 0.04618677769 | Q146: 1.000042384 | R146: 0.009206841025 | S146: 0.9999002075 | T146: 0.01881277538 | U146: 15.84926521 | V146: -107.4838103 | W146: 72.51618974 | Y146: 1000000000 | Z146: 69182469.76 | AB146: 26.18633243 | AC146: -50.29111538 | AE146: 17.25131208 | AF146: -56.64231538 | AH146: 0 | AI146: 0
A147: 8366.05 | B147: 8.36605 | C147: 1.789136861 | D147: 0.9777029931 | E147: 1.000013816 | F147: 0.005256495824 | G147: 1 | H147: 0 | I147: 112.7888463 | J147: 1.561930086 | K147: 1.313451452 | L147: 0.7053991243 | M147: 1.000171293 | N147: 0.01850777213 | O147: 1.001080025 | P147: 0.04645542977 | Q147: 1.00004288 | R147: 0.009260467794 | S147: 0.9998990419 | T147: 0.01892239485 | U147: 15.78542788 | V147: -107.4908676 | W147: 72.50913243 | Y147: 1000000000 | Z147: 69990792.6 | AB147: 26.157005 | AC147: -50.1360264 | AE147: 17.2166983 | AF147: -56.80125353 | AH147: 0 | AI147: 0
A148: 8414.5 | B148: 8.4145 | C148: 1.796267739 | D148: 0.9803764322 | E148: 1.000013976 | F148: 0.005286937011 | G148: 1 | H148: 0 | I148: 113.441985 | J148: 1.561981134 | K148: =SQRT(1+(A148/Zero2)^2) -> 1.316654154 | L148: =ATAN(A148/Zero2) -> 0.7082508221 | M148: 1.000173283 | N148: 0.01861493083 | O148: 1.001092563 | P148: 0.04672407514 | Q148: 1.000043378 | R148: 0.009314094511 | S148: 0.9998978696 | T148: 0.01903201494 | U148: 15.72197703 | V148: -107.4974635 | W148: 72.50253651 | Y148: 1000000000 | Z148: 70803810.25 | AB148: 26.12798824 | AC148: -49.98170075 | AE148: 17.18215975 | AF148: -56.95896692 | AH148: 0 | AI148: 0
A149: 8462.95 | B149: 8.46295 | C149: 1.803411355 | D149: 0.9830287102 | E149: 1.000014137 | F149: 0.005317378187 | G149: 1 | H149: 0 | I149: 114.0951241 | J149: 1.562031598 | K149: 1.319867512 | L149: 0.7110886575 | M149: 1.000175284 | N149: 0.0187220891 | O149: 1.001105174 | P149: 0.04699271376 | Q149: 1.000043879 | R149: 0.009367721174 | S149: 0.9998966905 | T149: 0.01914163564 | U149: 15.65890892 | V149: -107.5036078 | W149: 72.4963922 | Y149: 1000000000 | Z149: 71621522.7 | AB149: 26.09927801 | AC149: -49.82813585 | AE149: 17.1476968 | AF149: -57.1154679 | AH149: 0 | AI149: 0
A150: 8511.4 | B150: 8.5114 | C150: 1.810567556 | D150: 0.9856600405 | E150: 1.0000143 | F150: 0.005347819355 | G150: 1 | H150: 0 | I150: 114.7482634 | J150: 1.562081488 | K150: 1.323091447 | L150: 0.7139126858 | M150: 1.000177296 | N150: 0.01882924694 | O150: 1.001117858 | P150: 0.04726134559 | Q150: 1.000044383 | R150: 0.009421347783 | S150: 0.9998955046 | T150: 0.01925125696 | U150: 15.59621986 | V150: -107.5093101 | W150: 72.49068987 | Y150: 1000000000 | Z150: 72443929.96 | AB150: 26.07087026 | AC150: -49.6753291 | AE150: 17.11330983 | AF150: -57.27076872 | AH150: 0 | AI150: 0
A151: 8560.95 | B151: 8.56095 | C151: 1.817899094 | D151: 0.9883296657 | E151: 1.000014467 | F151: 0.005378951642 | G151: 1 | H151: 0 | I151: 115.4162317 | J151: 1.562131926 | K151: 1.326399438 | L151: 0.7167866076 | M151: 1.000179367 | N151: 0.01893883723 | O151: 1.001130904 | P151: 0.04753606933 | Q151: 1.000044901 | R151: 0.009476191864 | S151: 0.9998942849 | T151: 0.01936336775 | U151: 15.53249579 | V151: -107.5146946 | W151: 72.48530539 | Y151: 1000000000 | Z151: 73289864.9 | AB151: 26.04212625 | AC151: -49.51983446 | AE151: 17.07822109 | AF151: -57.4283667 | AH151: 0 | AI151: 0
A152: 8610.5 | B152: 8.6105 | C152: 1.825243483 | D152: 0.9909778256 | E152: 1.000014635 | F152: 0.005410083919 | G152: 1 | H152: 0 | I152: 116.0842004 | J152: 1.562181784 | K152: 1.329718329 | L152: 0.7196462067 | M152: 1.000181449 | N152: 0.01904842706 | O152: 1.001144025 | P152: 0.04781078589 | Q152: 1.000045422 | R152: 0.009531035889 | S152: 0.999893058 | T152: 0.01947547919 | U152: 15.46916053 | V152: -107.5196367 | W152: 72.48036334 | Y152: 1000000000 | Z152: 74140710.25 | AB152: 26.01369022 | AC152: -49.36512718 | AE152: 17.04321254 | AF152: -57.58473485 | AH152: 0 | AI152: 0
A153: 8660.05 | B153: 8.66005 | C153: 1.83260057 | D153: 0.9936047414 | E153: 1.000014804 | F153: 0.005441216186 | G153: 1 | H153: 0 | I153: 116.7521693 | J153: 1.562231071 | K153: 1.33304804 | L153: 0.7224915434 | M153: 1.000183543 | N153: 0.01915801643 | O153: 1.001157222 | P153: 0.04808549523 | Q153: 1.000045946 | R153: 0.009585879857 | S153: 0.9998918241 | T153: 0.01958759129 | U153: 15.40621027 | V153: -107.524146 | W153: 72.47585396 | Y153: 1000000000 | Z153: 74996466 | AB153: 25.98555805 | AC153: -49.21120435 | AE153: 17.00828451 | AF153: -57.73988584 | AH153: 0 | AI153: 0
A154: 8709.6 | B154: 8.7096 | C154: 1.839970202 | D154: 0.9962106319 | E154: 1.000014973 | F154: 0.005472348442 | G154: 1 | H154: 0 | I154: 117.4201385 | J154: 1.562279797 | K154: 1.336388489 | L154: 0.7253226785 | M154: 1.000185649 | N154: 0.01926760534 | O154: 1.001170495 | P154: 0.0483601973 | Q154: 1.000046474 | R154: 0.009640723766 | S154: 0.9998905831 | T154: 0.01969970405 | U154: 15.34364128 | V154: -107.5282324 | W154: 72.47176762 | Y154: 1000000000 | Z154: 75857132.16 | AB154: 25.95772568 | AC154: -49.05806306 | AE154: 16.97343731 | AF154: -57.89383221 | AH154: 0 | AI154: =IF(AH154>0,W154,0) -> 0
A155: 8760.325 | B155: 8.760325 | C155: 1.847527431 | D155: 0.9988567639 | E155: 1.000015148 | F155: 0.00550421894 | G155: 1 | H155: 0 | I155: 118.1039479 | J155: 1.562329108 | K155: 1.339819192 | L155: 0.7282063024 | M155: 1.000187818 | N155: 0.0193797925 | O155: 1.001184161 | P155: 0.04864140594 | Q155: 1.000047016 | R155: 0.009696868153 | S155: 0.9998893054 | T155: 0.01981447608 | U155: 15.27997963 | V155: -107.5319873 | W155: 72.46801272 | Y155: 1000000000 | Z155: 76743294.11 | AB155: 25.92953968 | AC155: -48.90209674 | AE155: 16.93784782 | AF155: -58.05019431 | AH155: 0 | AI155: 0
A156: 8811.05 | B156: 8.81105 | C156: 1.855097491 | D156: 1.001481318 | E156: 1.000015324 | F156: 0.005536089426 | G156: 1 | H156: 0 | I156: 118.7877575 | J156: 1.562377851 | K156: 1.343260978 | L156: 0.7310751729 | M156: 1.000189999 | N156: 0.01949197917 | O156: 1.001197905 | P156: 0.04892260687 | Q156: 1.000047563 | R156: 0.009753012478 | S156: 0.9998880203 | T156: 0.01992924881 | U156: 15.21670974 | V156: -107.5353187 | W156: 72.46468129 | Y156: 1000000000 | Z156: 77634602.1 | AB156: 25.90165945 | AC156: -48.74694317 | AE156: 16.90234366 | AF156: -58.20532014 | AH156: 0 | AI156: 0
A157: 8861.775 | B157: 8.861775 | C157: 1.862680226 | D157: 1.004084522 | E157: 1.000015501 | F157: 0.005567959901 | G157: 1 | H157: 0 | I157: 119.4715674 | J157: 1.562426037 | K157: 1.346713764 | L157: 0.733929356 | M157: 1.000192192 | N157: 0.01960416536 | O157: 1.001211729 | P157: 0.04920380006 | Q157: 1.000048112 | R157: 0.009809156742 | S157: 0.9998867277 | T157: 0.02004402225 | U157: 15.15382774 | V157: -107.5382364 | W157: 72.46176356 | Y157: 1000000000 | Z157: 78531056.15 | AB157: 25.87408084 | AC157: -48.59259914 | AE157: 16.8669251 | AF157: -58.3592227 | AH157: 0 | AI157: 0
A158: 8912.5 | B158: 8.9125 | C158: 1.870275481 | D158: 1.006666599 | E158: 1.000015679 | F158: 0.005599830365 | G158: 1 | H158: 0 | I158: 120.1553776 | J158: 1.562473674 | K158: =SQRT(1+(A158/Zero2)^2) -> 1.350177464 | L158: =ATAN(A158/Zero2) -> 0.7367689181 | M158: 1.000194399 | N158: 0.01971635104 | O158: 1.001225632 | P158: 0.04948498547 | Q158: 1.000048664 | R158: 0.009865300943 | S158: 0.9998854278 | T158: 0.0201587964 | U158: 15.09132981 | V158: -107.5407501 | W158: 72.4592499 | Y158: 1000000000 | Z158: 79432656.25 | AB158: 25.84679978 | AC158: -48.43906137 | AE158: 16.83159242 | AF158: -58.51191488 | AH158: 0 | AI158: 0
A159: 8964.4 | B159: 8.9644 | C159: 1.878059474 | D159: 1.009286854 | E159: 1.000015862 | F159: 0.005632439068 | G159: 1 | H159: 0 | I159: 120.8550279 | J159: 1.562521856 | K159: 1.353732607 | L159: 0.7396591926 | M159: 1.000196669 | N159: 0.0198311349 | O159: 1.00123994 | P159: 0.04977267618 | Q159: 1.000049232 | R159: 0.009922745612 | S159: 0.99988409 | T159: 0.02027622992 | U159: 15.02777776 | V159: -107.5429136 | W159: 72.4570864 | Y159: 1000000000 | Z159: 80360467.36 | AB159: 25.81919056 | AC159: -48.28279811 | AE159: 16.79553041 | AF159: -58.66690454 | AH159: 0 | AI159: 0
A160: 9016.3 | B160: 9.0163 | C160: 1.885856254 | D160: 1.011885461 | E160: 1.000016047 | F160: 0.005665047759 | G160: 1 | H160: 0 | I160: 121.5546785 | J160: 1.562569484 | K160: 1.357299 | L160: 0.7425343023 | M160: 1.000198953 | N160: 0.01994591824 | O160: 1.001254329 | P160: 0.05006035865 | Q160: 1.000049804 | R160: 0.009980190215 | S160: 0.9998827445 | T160: 0.0203936642 | U160: 14.96461984 | V160: -107.5446739 | W160: 72.45532609 | Y160: 1000000000 | Z160: 81293665.69 | AB160: 25.79188439 | AC160: -48.12737193 | AE160: 16.7595588 | AF160: -58.82065388 | AH160: 0 | AI160: 0
A161: 9068.2 | B161: 9.0682 | C161: 1.893665664 | D161: 1.014462651 | E161: 1.000016232 | F161: 0.005697656438 | G161: 1 | H161: 0 | I161: 122.2543293 | J161: 1.562616566 | K161: 1.360876553 | L161: 0.745394319 | M161: 1.00020125 | N161: 0.02006070105 | O161: 1.001268802 | P161: 0.05034803282 | Q161: 1.000050379 | R161: 0.01003763475 | S161: 0.9998813913 | T161: 0.02051109924 | U161: 14.90185213 | V161: -107.5460408 | W161: 72.45395922 | Y161: 1000000000 | Z161: 82232251.24 | AB161: 25.76487712 | AC161: -47.97277924 | AE161: 16.72367779 | AF161: -58.97317622 | AH161: 0 | AI161: 0
A162: 9120.1 | B162: 9.1201 | C162: 1.901487549 | D162: 1.017018656 | E162: 1.000016418 | F162: 0.005730265105 | G162: 1 | H162: 0 | I162: 122.9539805 | J162: 1.562663113 | K162: 1.364465179 | L162: 0.7482393149 | M162: 1.00020356 | N162: 0.02017548333 | O162: 1.001283358 | P162: 0.05063569865 | Q162: 1.000050957 | R162: 0.01009507922 | S162: 0.9998800303 | T162: 0.02062853504 | U162: 14.83947074 | V162: -107.5470238 | W162: 72.45297623 | Y162: 1000000000 | Z162: 83176224.01 | AB162: 25.73816467 | AC162: -47.81901646 | AE162: 16.68788761 | AF162: -59.12448475 | AH162: 0 | AI162: 0
A163: 9173.2 | B163: 9.1732 | C163: 1.909503036 | D163: 1.01961207 | E163: 1.00001661 | F163: 0.005763627717 | G163: 1 | H163: 0 | I163: 123.6698088 | J163: 1.562710191 | K163: 1.368148149 | L163: 0.7511346206 | M163: 1.000205937 | N163: 0.02029291898 | O163: 1.001298336 | P163: 0.05093000704 | Q163: 1.000051553 | R163: 0.01015385182 | S163: 0.9998786298 | T163: 0.02074868691 | U163: 14.77604282 | V163: -107.547642 | W163: 72.45235801 | Y163: 1000000000 | Z163: 84147598.24 | AB163: 25.7111355 | AC163: -47.66255359 | AE163: 16.65136409 | AF163: -59.27804906 | AH163: 0 | AI163: 0
A164: 9226.3 | B164: 9.2263 | C164: 1.917531259 | D164: 1.022183785 | E164: 1.000016803 | F164: 0.005796990316 | G164: 1 | H164: 0 | I164: 124.3856373 | J164: 1.562756727 | K164: 1.371842526 | L164: 0.7540143562 | M164: 1.000208327 | N164: 0.02041035408 | O164: 1.001313401 | P164: 0.0512243066 | Q164: 1.000052151 | R164: 0.01021262435 | S164: 0.9998772211 | T164: 0.02086883958 | U164: 14.71301122 | V164: -107.5478781 | W164: 72.45212192 | Y164: 1000000000 | Z164: 85124611.69 | AB164: 25.6844065 | AC164: -47.50695175 | AE164: 16.61493602 | AF164: -59.43037017 | AH164: 0 | AI164: 0
A165: 9279.4 | B165: 9.2794 | C165: 1.925572059 | D165: 1.024734038 | E165: 1.000016997 | F165: 0.005830352903 | G165: 1 | H165: 0 | I165: 125.1014662 | J165: 1.56280273 | K165: 1.375548219 | L165: 0.7568785996 | M165: 1.000210732 | N165: 0.02052778861 | O165: 1.001328552 | P165: 0.05151859727 | Q165: 1.000052753 | R165: 0.01027139681 | S165: 0.9998758044 | T165: 0.02098899307 | U165: 14.65037194 | V165: -107.5477417 | W165: 72.45225827 | Y165: 1000000000 | Z165: 86107264.36 | AB165: 25.65797348 | AC165: -47.352207 | AE165: 16.57860355 | AF165: -59.5814617 | AH165: 0 | AI165: 0
A166: 9332.5 | B166: 9.3325 | C166: 1.933625277 | D166: 1.027263066 | E166: 1.000017192 | F166: 0.005863715476 | G166: 1 | H166: 0 | I166: 125.8172953 | J166: 1.56284821 | K166: 1.379265135 | L166: 0.7597274288 | M166: 1.00021315 | N166: 0.02064522258 | O166: 1.00134379 | P166: 0.05181287901 | Q166: 1.000053359 | R166: 0.01033016919 | S166: 0.9998743796 | T166: 0.02110914737 | U166: 14.58812103 | V166: -107.5472424 | W166: 72.45275756 | Y166: 1000000000 | Z166: 87095556.25 | AB166: 25.63183237 | AC166: -47.19831539 | AE166: 16.54236684 | AF166: -59.73133709 | AH166: 0 | AI166: 0
A167: 9386.85 | B167: 9.38685 | C167: 1.941880773 | D167: 1.029829888 | E167: 1.000017393 | F167: 0.005897863407 | G167: 1 | H167: 0 | I167: 126.5499756 | J167: 1.562894228 | K167: 1.383081079 | L167: 0.7626274398 | M167: 1.00021564 | N167: 0.02076542041 | O167: 1.001359477 | P167: 0.05211407899 | Q167: 1.000053982 | R167: 0.01039032503 | S167: 0.9998729128 | T167: 0.02123213101 | U167: 14.52480283 | V167: -107.5463653 | W167: 72.45363474 | Y167: 1000000000 | Z167: 88112952.92 | AB167: 25.60537396 | AC167: -47.04168046 | AE167: 16.50537639 | AF167: -59.88349507 | AH167: 0 | AI167: 0
A168: 9441.2 | B168: 9.4412 | C168: 1.950148954 | D168: 1.032374961 | E168: 1.000017595 | F168: 0.005932011324 | G168: 1 | H168: 0 | I168: 127.2826562 | J168: 1.562939716 | K168: 1.386908591 | L168: 0.7655114683 | M168: 1.000218144 | N168: 0.02088561764 | O168: 1.001375254 | P168: 0.05241526951 | Q168: 1.000054609 | R168: 0.0104504808 | S168: 0.9998714375 | T168: 0.02135511551 | U168: 14.46188329 | V168: -107.5451274 | W168: 72.4548726 | Y168: 1000000000 | Z168: 89136257.44 | AB168: 25.5792129 | AC168: -46.88593086 | AE168: 16.4684865 | AF168: -60.03440699 | AH168: 0 | AI168: 0
A169: 9495.55 | B169: 9.49555 | C169: 1.95842966 | D169: 1.034898528 | E169: 1.000017798 | F169: 0.005966159228 | G169: 1 | H169: 0 | I169: 128.0153371 | J169: 1.562984683 | K169: 1.390747574 | L169: 0.7683795986 | M169: 1.000220663 | N169: 0.02100581426 | O169: 1.001391123 | P169: 0.0527164505 | Q169: 1.000055239 | R169: 0.01051063649 | S169: 0.9998699537 | T169: 0.02147810088 | U169: 14.39935834 | V169: -107.5435385 | W169: 72.45646153 | Y169: 1000000000 | Z169: 90165469.8 | AB169: 25.553345 | AC169: -46.73106229 | AE169: 16.43169729 | AF169: -60.18408675 | AH169: 0 | AI169: 0
A170: 9549.9 | B170: 9.5499 | C170: 1.966722734 | D170: 1.037400829 | E170: 1.000018002 | F170: 0.006000307118 | G170: 1 | H170: 0 | I170: 128.7480182 | J170: 1.563029139 | K170: 1.394597936 | L170: 0.7712319149 | M170: 1.000223196 | N170: 0.02112601028 | O170: 1.001407082 | P170: 0.05301762192 | Q170: 1.000055873 | R170: 0.01057079211 | S170: 0.9998684614 | T170: 0.02160108713 | U170: 14.33722397 | V170: -107.5416079 | W170: 72.45839212 | Y170: 1000000000 | Z170: 91200590.01 | AB170: 25.52776617 | AC170: -46.57707044 | AE170: 16.39500883 | AF170: -60.33254809 | AH170: 0 | AI170: 0
A171: 9605.525 | B171: 9.605525 | C171: 1.975222998 | D171: 1.039940058 | E171: 1.000018212 | F171: 0.00603525607 | G171: 1 | H171: 0 | I171: 129.4978876 | J171: 1.563074116 | K171: 1.398550306 | L171: 0.7741348572 | M171: 1.000225803 | N171: 0.02124902536 | O171: 1.00142351 | P171: 0.05332584858 | Q171: 1.000056526 | R171: 0.01063235884 | S171: 0.9998669252 | T171: 0.02172695942 | U171: 14.27403226 | V171: -107.5392879 | W171: 72.46071214 | Y171: 1000000000 | Z171: 92266110.53 | AB171: 25.50188239 | AC171: -46.42036936 | AE171: 16.35756409 | AF171: -60.48324471 | AH171: 0 | AI171: 0
A172: 9661.15 | B172: 9.66115 | C172: 1.983735888 | D172: 1.042457509 | E172: 1.000018424 | F172: 0.006070205008 | G172: 1 | H172: 0 | I172: 130.2477573 | J172: 1.563118576 | K172: 1.402514395 | L172: 0.7770214139 | M172: 1.000228426 | N172: 0.02137203979 | O172: 1.001440032 | P172: 0.05363406509 | Q172: 1.000057183 | R172: 0.01069392549 | S172: 0.9998653802 | T172: 0.02185283265 | U172: 14.21124132 | V172: -107.5366293 | W172: 72.46337067 | Y172: 1000000000 | Z172: 93337819.32 | AB172: 25.47629292 | AC172: -46.2645774 | AE172: 16.32022501 | AF172: -60.63269364 | AH172: 0 | AI172: 0
A173: 9716.775 | B173: 9.716775 | C173: 1.992261243 | D173: 1.044953431 | E173: 1.000018637 | F173: 0.006105153931 | G173: 1 | H173: 0 | I173: 130.9976272 | J173: 1.563162527 | K173: 1.406490104 | L173: 0.7798916756 | M173: 1.000231063 | N173: 0.02149505357 | O173: 1.00145665 | P173: 0.0539422714 | Q173: 1.000057843 | R173: 0.01075549206 | S173: 0.9998638263 | T173: 0.0219787068 | U173: 14.148847 | V173: -107.5336418 | W173: 72.46635823 | Y173: 1000000000 | Z173: 94415716.4 | AB173: 25.45099358 | AC173: -46.10968988 | AE173: 16.28299163 | AF173: -60.78090905 | AH173: 0 | AI173: 0
A174: 9772.4 | B174: 9.7724 | C174: 2.000798904 | D174: 1.047428067 | E174: 1.000018851 | F174: 0.006140102839 | G174: 1 | H174: 0 | I174: 131.7474973 | J174: 1.563205977 | K174: 1.410477335 | L174: 0.782745733 | M174: 1.000233716 | N174: 0.0216180667 | O174: 1.001473363 | P174: 0.05425046746 | Q174: 1.000058507 | R174: 0.01081705855 | S174: 0.9998622635 | T174: 0.02210458189 | U174: 14.08684523 | V174: -107.5303345 | W174: 72.46966552 | Y174: 1000000000 | Z174: 95499801.76 | AB174: 25.42598026 | AC174: -45.95570209 | AE174: 16.24586398 | AF174: -60.92790495 | AH174: 0 | AI174: 0
A175: 9829.3 | B175: 9.8293 | C175: 2.009544827 | D175: 1.049937654 | E175: 1.000019071 | F175: 0.006175852808 | G175: 1 | H175: 0 | I175: 132.5145558 | J175: 1.563249914 | K175: 1.414567779 | L175: 0.7856485382 | M175: 1.000236445 | N175: 0.02174389878 | O175: 1.001490558 | P175: 0.05456571711 | Q175: 1.000059191 | R175: 0.01088003614 | S175: 0.9998606556 | T175: 0.02223334318 | U175: 14.02382422 | V175: -107.5266301 | W175: 72.47336991 | Y175: 1000000000 | Z175: 96615138.49 | AB175: 25.40068533 | AC175: -45.79911068 | AE175: 16.20799471 | AF175: -61.07702283 | AH175: 0 | AI175: 0
A176: 9886.2 | B176: 9.8862 | C176: 2.018303296 | D176: 1.052425476 | E176: 1.000019292 | F176: 0.006211602761 | G176: 1 | H176: 0 | I176: 133.2816145 | J176: 1.563293346 | K176: 1.418670073 | L176: 0.7885345797 | M176: 1.00023919 | N176: 0.02186973018 | O176: 1.001507852 | P176: 0.0548809559 | Q176: 1.000059878 | R176: 0.01094301364 | S176: 0.9998590384 | T176: 0.02236210547 | U176: 13.96120547 | V176: -107.5226102 | W176: 72.47738978 | Y176: 1000000000 | Z176: 97736950.44 | AB176: 25.37568122 | AC176: -45.64345074 | AE176: 16.17023606 | AF176: -61.22489371 | AH176: 0 | AI176: 0
A177: 9943.1 | B177: 9.9431 | C177: 2.027074149 | D177: 1.054891783 | E177: 1.000019515 | F177: 0.006247352698 | G177: 1 | H177: 0 | I177: 134.0486734 | J177: 1.563336281 | K177: 1.422784115 | L177: 0.7914039549 | M177: 1.000241951 | N177: 0.02199556088 | O177: 1.001525245 | P177: 0.05519618378 | Q177: 1.000060569 | R177: 0.01100599106 | S177: 0.9998574119 | T177: 0.02249086875 | U177: 13.89898479 | V177: -107.5182842 | W177: 72.48171577 | Y177: 1000000000 | Z177: 98865237.61 | AB177: 25.35096374 | AC177: -45.4887172 | AE177: 16.13258801 | AF177: -61.37153201 | AH177: 0 | AI177: 0
A178: 10000 | B178: 10 | C178: 2.035857226 | D178: 1.057336826 | E178: 1.000019739 | F178: 0.006283102619 | G178: 1 | H178: 0 | I178: 134.8157326 | J178: 1.563378727 | K178: 1.426909804 | L178: 0.7942567607 | M178: 1.000244728 | N178: 0.02212139088 | O178: 1.001542739 | P178: 0.05551140067 | Q178: 1.000061264 | R178: 0.01106896839 | S178: 0.9998557761 | T178: 0.02261963303 | U178: 13.83715802 | V178: -107.5136613 | W178: 72.48633875 | Y178: 1000000000 | Z178: 100000000 | AB178: 25.3265288 | AC178: -45.33490498 | AE178: 16.09505051 | AF178: -61.51695194 | AH178: 0 | AI178: 0
A179: 10058.25 | B179: 10.05825 | C179: 2.044861187 | D179: 1.059818106 | E179: 1.00001997 | F179: 0.00631970072 | G179: 1 | H179: 0 | I179: 135.6009912 | J179: 1.563421683 | K179: 1.431145338 | L179: 0.7971601893 | M179: 1.000247587 | N179: 0.02225020558 | O179: 1.00156075 | P179: 0.05583408491 | Q179: 1.00006198 | R179: 0.01113343982 | S179: 0.9998540918 | T179: 0.02275145339 | U179: 13.77426814 | V179: -107.5086303 | W179: 72.49136969 | Y179: 1000000000 | Z179: 101168393.1 | AB179: 25.30180257 | AC179: -45.17839249 | AE179: 16.05673687 | AF179: -61.66457467 | AH179: 0 | AI179: 0
A180: 10116.5 | B180: 10.1165 | C180: 2.053877627 | D180: 1.062277616 | E180: 1.000020202 | F180: 0.006356298804 | G180: 1 | H180: 0 | I180: 136.38625 | J180: 1.563464144 | K180: 1.435392865 | L180: 0.8000464589 | M180: 1.000250463 | N180: 0.02237901954 | O180: 1.001578865 | P180: 0.05615675752 | Q180: 1.0000627 | R180: 0.01119791115 | S180: 0.9998523978 | T180: 0.02288327483 | U180: 13.71178247 | V180: -107.5033069 | W180: 72.49669311 | Y180: 1000000000 | Z180: 102343572.2 | AB180: 25.27736397 | AC180: -45.02283476 | AE180: 16.01853895 | AF180: -61.81095011 | AH180: 0 | AI180: 0
A181: 10174.75 | B181: 10.17475 | C181: 2.062906382 | D181: 1.064715611 | E181: 1.000020435 | F181: 0.006392896871 | G181: 1 | H181: 0 | I181: 137.171509 | J181: 1.563506119 | K181: 1.439652278 | L181: 0.8029156734 | M181: 1.000253355 | N181: 0.02250783276 | O181: 1.001597085 | P181: 0.05647941841 | Q181: 1.000063424 | R181: 0.0112623824 | S181: 0.999850694 | T181: 0.02301509732 | U181: 13.64969675 | V181: -107.4977002 | W181: 72.50229979 | Y181: 1000000000 | Z181: 103525537.6 | AB181: 25.25320882 | AC181: -44.86822632 | AE181: 15.98045667 | AF181: -61.95609292 | AH181: 0 | AI181: 0
A182: 10233 | B182: 10.233 | C182: 2.071947292 | D182: 1.067132345 | E182: 1.00002067 | F182: 0.006429494921 | G182: 1 | H182: 0 | I182: 137.9567683 | J182: 1.563547616 | K182: 1.443923474 | L182: 0.8057679367 | M182: 1.000256264 | N182: 0.02263664523 | O182: 1.001615409 | P182: 0.05680206754 | Q182: 1.000064152 | R182: 0.01132685355 | S182: 0.9998489804 | T182: 0.0231469209 | U182: 13.58800676 | V182: -107.4918192 | W182: 72.50818077 | Y182: 1000000000 | Z182: 104714289 | AB182: 25.229333 | AC182: -44.71456169 | AE182: 15.94248992 | AF182: -62.10001757 | AH182: 0 | AI182: 0
A183: 10292.5 | B183: 10.2925 | C183: 2.081194597 | D183: 1.069579247 | E183: 1.000020911 | F183: 0.006466878319 | G183: 1 | H183: 0 | I183: 138.7588789 | J183: 1.563589518 | K183: 1.448298381 | L183: 0.8086640146 | M183: 1.000259252 | N183: 0.02276822115 | O183: 1.001634234 | P183: 0.05713162824 | Q183: 1.0000649 | R183: 0.0113927081 | S183: 0.99984722 | T183: 0.02328157442 | U183: 13.52539718 | V183: -107.485538 | W183: 72.51446198 | Y183: 1000000000 | Z183: 105935556.2 | AB183: 25.20522902 | AC183: -44.55856824 | AE183: 15.90382758 | AF183: -62.24578791 | AH183: 0 | AI183: 0
A184: 10352 | B184: 10.352 | C184: 2.090454253 | D184: 1.072004487 | E184: 1.000021153 | F184: 0.006504261699 | G184: 1 | H184: 0 | I184: 139.5609897 | J184: 1.563630939 | K184: 1.452685363 | L184: 0.8115426247 | M184: 1.000262258 | N184: 0.02289979627 | O184: 1.001653168 | P184: 0.05746117652 | Q184: 1.000065653 | R184: 0.01145856255 | S184: 0.9998454494 | T184: 0.02341622908 | U184: 13.4631918 | V184: -107.4789889 | W184: 72.52101105 | Y184: 1000000000 | Z184: 107163904 | AB184: 25.18140805 | AC184: -44.40354798 | AE184: 15.8652855 | AF184: -62.39031714 | AH184: 0 | AI184: 0
A185: 10411.5 | B185: 10.4115 | C185: 2.099726096 | D185: 1.074408322 | E185: 1.000021397 | F185: 0.006541645061 | G185: 1 | H185: 0 | I185: 140.3631008 | J185: 1.563671887 | K185: 1.457084309 | L185: 0.8144038772 | M185: 1.000265281 | N185: 0.0230313706 | O185: 1.00167221 | P185: 0.0577907123 | Q185: 1.00006641 | R185: 0.01152441691 | S185: 0.9998436686 | T185: 0.02355088488 | U185: 13.40138629 | V185: -107.472181 | W185: 72.52781903 | Y185: 1000000000 | Z185: 108399332.2 | AB185: 25.15786596 | AC185: -44.24949507 | AE185: 15.82686353 | AF185: -62.53362005 | AH185: 0 | AI185: 0
A186: 10471 | B186: 10.471 | C186: 2.109009965 | D186: 1.076791007 | E186: 1.000021642 | F186: 0.006579028405 | G186: 1 | H186: 0 | I186: 141.1652121 | J186: 1.563712369 | K186: 1.461495113 | L186: 0.8172478824 | M186: 1.000268321 | N186: 0.02316294413 | O186: 1.001691361 | P186: 0.05812023552 | Q186: 1.000067171 | R186: 0.01159027116 | S186: 0.9998418776 | T186: 0.02368554183 | U186: 13.3399764 | V186: -107.4651228 | W186: 72.53487716 | Y186: 1000000000 | Z186: 109641841 | AB186: 25.13459865 | AC186: -44.09640364 | AE186: 15.7885615 | AF186: -62.67571124 | AH186: 0 | AI186: 0
A187: 10532 | B187: 10.532 | C187: 2.118540201 | D187: 1.079212067 | E187: 1.000021895 | F187: 0.006617354166 | G187: 1 | H187: 0 | I187: 141.9875449 | J187: 1.563753397 | K187: 1.46602931 | L187: 0.8201457952 | M187: 1.000271456 | N187: 0.02329783381 | O187: 1.001711108 | P187: 0.05845805293 | Q187: 1.000067956 | R187: 0.0116577855 | S187: 0.9998400309 | T187: 0.02382359469 | U187: 13.27742469 | V187: -107.457636 | W187: 72.54236397 | Y187: 1000000000 | Z187: 110923024 | AB187: 25.11102584 | AC187: -43.94044482 | AE187: 15.74941819 | AF187: -62.8201417 | AH187: 0 | AI187: 0
A188: 10593 | B188: 10.593 | C188: 2.128082743 | D188: 1.081611429 | E188: 1.000022149 | F188: 0.006655679909 | G188: 1 | H188: 0 | I188: 142.809878 | J188: 1.563793953 | K188: 1.470575743 | L188: 0.8230258136 | M188: 1.000274609 | N188: 0.02343272265 | O188: 1.00173097 | P188: 0.05879585698 | Q188: 1.000068745 | R188: 0.01172529974 | S188: 0.9998381735 | T188: 0.02396164877 | U188: 13.21527994 | V188: -107.4499043 | W188: 72.55009572 | Y188: 1000000000 | Z188: 112211649 | AB188: 25.0877334 | AC188: -43.78548414 | AE188: 15.71040052 | AF188: -62.96332899 | AH188: 0 | AI188: 0
A189: 10654 | B189: 10.654 | C189: 2.137637427 | D189: 1.083989355 | E189: 1.000022405 | F189: 0.006694005631 | G189: 1 | H189: 0 | I189: 143.6322113 | J189: 1.563834044 | K189: 1.475134298 | L189: 0.8258880556 | M189: 1.00027778 | N189: 0.02356761063 | O189: 1.001750945 | P189: 0.0591336476 | Q189: 1.000069539 | R189: 0.01179281387 | S189: 0.9998363054 | T189: 0.02409970408 | U189: 13.15353775 | V189: -107.4419364 | W189: 72.55806363 | Y189: 1000000000 | Z189: 113507716 | AB189: 25.06471714 | AC189: -43.63151531 | AE189: 15.67150828 | AF189: -63.10528819 | AH189: 0 | AI189: 0
A190: 10715 | B190: 10.715 | C190: 2.147204091 | D190: 1.086346104 | E190: 1.000022663 | F190: 0.006732331334 | G190: 1 | H190: 0 | I190: 144.4545448 | J190: 1.563873679 | K190: 1.479704864 | L190: 0.8287326388 | M190: 1.00028097 | N190: 0.02370249775 | O190: 1.001771035 | P190: 0.05947142471 | Q190: 1.000070338 | R190: 0.01186032789 | S190: 0.9998344266 | T190: 0.02423776062 | U190: 13.09219379 | V190: -107.4337409 | W190: 72.56625912 | Y190: 1000000000 | Z190: 114811225 | AB190: 25.04197299 | AC190: -43.47853206 | AE190: 15.63274121 | AF190: -63.24603416 | AH190: 0 | AI190: 0
A191: 10777.5 | B191: 10.7775 | C191: 2.157018259 | D191: 1.088739111 | E191: 1.000022928 | F191: 0.006771599452 | G191: 1 | H191: 0 | I191: 145.2970999 | J191: 1.563913823 | K191: 1.484400161 | L191: 0.831628978 | M191: 1.000284257 | N191: 0.02384070087 | O191: 1.001791737 | P191: 0.05981749372 | Q191: 1.000071161 | R191: 0.01192950198 | S191: 0.9998324905 | T191: 0.02437921328 | U191: 13.02974992 | V191: -107.4251166 | W191: 72.5748834 | Y191: 1000000000 | Z191: 116154506.2 | AB191: 25.01894756 | AC191: -43.32280259 | AE191: 15.59315043 | AF191: -63.38899809 | AH191: 0 | AI191: 0
A192: 10840 | B192: 10.84 | C192: 2.166844667 | D192: 1.091110427 | E192: 1.000023194 | F192: 0.006810867549 | G192: 1 | H192: 0 | I192: 146.1396552 | J192: 1.563953504 | K192: 1.489107833 | L192: 0.8345070281 | M192: 1.000287563 | N192: 0.02397890308 | O192: 1.00181256 | P192: 0.06016354838 | Q192: 1.000071988 | R192: 0.01199867595 | S192: 0.9998305432 | T192: 0.02452066726 | U192: 12.96771509 | V192: -107.416271 | W192: 72.58372901 | Y192: 1000000000 | Z192: 117505600 | AB192: 24.99619931 | AC192: -43.16809443 | AE192: 15.5536905 | AF192: -63.53071931 | AH192: 0 | AI192: 0
A193: 10902.5 | B193: 10.9025 | C193: 2.17668315 | D193: 1.09346032 | E193: 1.000023463 | F193: 0.006850135625 | G193: 1 | H193: 0 | I193: 146.9822108 | J193: 1.56399273 | K193: 1.493827761 | L193: 0.8373669147 | M193: 1.000290888 | N193: 0.02411710438 | O193: 1.001833502 | P193: 0.06050958862 | Q193: 1.000072821 | R193: 0.01206784981 | S193: 0.9998285846 | T193: 0.02466212255 | U193: 12.90608481 | V193: -107.4072127 | W193: 72.59278734 | Y193: 1000000000 | Z193: 118864506.2 | AB193: 24.97372406 | AC193: -43.01440084 | AE193: 15.51436112 | AF193: -63.67121315 | AH193: 0 | AI193: 0
A194: 10965 | B194: 10.965 | C194: 2.186533545 | D194: 1.095789053 | E194: 1.000023732 | F194: 0.00688940368 | G194: 1 | H194: 0 | I194: 147.8247665 | J194: 1.564031509 | K194: 1.49855983 | L194: 0.8402087629 | M194: 1.000294232 | N194: 0.02425530475 | O194: 1.001854565 | P194: 0.06085561436 | Q194: 1.000073658 | R194: 0.01213702356 | S194: 0.9998266148 | T194: 0.02480357917 | U194: 12.84485467 | V194: -107.39795 | W194: 72.60205004 | Y194: 1000000000 | Z194: 120231225 | AB194: 24.95151771 | AC194: -42.8617151 | AE194: 15.475162 | AF194: -63.81049468 | AH194: 0 | AI194: 0
A195: 11028.75 | B195: 11.02875 | C195: 2.196593052 | D195: 1.098142831 | E195: 1.000024009 | F195: 0.006929457074 | G195: 1 | H195: 0 | I195: 148.6841736 | J195: 1.564070611 | K195: 1.503398929 | L195: 0.8430889941 | M195: 1.000297663 | N195: 0.02439626818 | O195: 1.001876172 | P195: 0.06120854557 | Q195: 1.000074517 | R195: 0.01220758066 | S195: 0.999824594 | T195: 0.0249478663 | U195: 12.78280764 | V195: -107.3883 | W195: 72.61170004 | Y195: 1000000000 | Z195: 121633326.6 | AB195: 24.92914008 | AC195: -42.70700699 | AE195: 15.43531274 | AF195: -63.95132837 | AH195: 0 | AI195: 0
A196: 11092.5 | B196: 11.0925 | C196: 2.206664617 | D196: 1.100475135 | E196: 1.000024288 | F196: 0.006969510446 | G196: 1 | H196: 0 | I196: 149.5435809 | J196: 1.564109263 | K196: 1.50825042 | L196: 0.8459507196 | M196: 1.000301113 | N196: 0.02453723064 | O196: 1.001897904 | P196: 0.06156146152 | Q196: 1.000075381 | R196: 0.01227813764 | S196: 0.9998225615 | T196: 0.02509215483 | U196: 12.72116786 | V196: -107.3784543 | W196: 72.62154571 | Y196: 1000000000 | Z196: 123043556.2 | AB196: 24.90703383 | AC196: -42.55333337 | AE196: 15.39559829 | AF196: -64.09093181 | AH196: 0 | AI196: 0
A197: 11156.25 | B197: 11.15625 | C197: 2.216748078 | D197: 1.102786234 | E197: 1.000024567 | F197: 0.007009563795 | G197: 1 | H197: 0 | I197: 150.4029885 | J197: 1.564147474 | K197: 1.513114183 | L197: 0.8487940708 | M197: 1.000304584 | N197: 0.02467819212 | O197: 1.00191976 | P197: 0.06191436211 | Q197: 1.00007625 | R197: 0.0123486945 | S197: 0.9998205174 | T197: 0.02523644475 | U197: 12.65993082 | V197: -107.3684212 | W197: 72.6315788 | Y197: 1000000000 | Z197: 124461914.1 | AB197: 24.88519485 | AC197: -42.40068715 | AE197: 15.3560183 | AF197: -64.22932034 | AH197: 0 | AI197: 0
A198: 11220 | B198: 11.22 | C198: 2.226843271 | D198: 1.105076391 | E198: 1.000024849 | F198: 0.007049617122 | G198: 1 | H198: 0 | I198: 151.2623963 | J198: 1.56418525 | K198: 1.517990101 | L198: 0.8516191785 | M198: 1.000308074 | N198: 0.02481915262 | O198: 1.001941742 | P198: 0.06226724727 | Q198: 1.000077124 | R198: 0.01241925123 | S198: 0.9998184615 | T198: 0.02538073609 | U198: 12.5990921 | V198: -107.3582087 | W198: 72.64179129 | Y198: 1000000000 | Z198: 125888400 | AB198: 24.86361908 | AC198: -42.24906128 | AE198: 15.31657238 | AF198: -64.36650905 | AH198: 0 | AI198: 0
A199: 11285.5 | B199: 11.2855 | C199: 2.23722764 | D199: 1.107407875 | E199: 1.00002514 | F199: 0.007090769929 | G199: 1 | H199: 0 | I199: 152.1453958 | J199: 1.564223619 | K199: 1.523012404 | L199: 0.8545029736 | M199: 1.000311681 | N199: 0.0249639816 | O199: 1.001964457 | P199: 0.06262980329 | Q199: 1.000078027 | R199: 0.01249174469 | S199: 0.9998163371 | T199: 0.02552898985 | U199: 12.5369936 | V199: -107.3475373 | W199: 72.65246272 | Y199: 1000000000 | Z199: 127362510.2 | AB199: 24.84172102 | AC199: -42.09432846 | AE199: 15.27618288 | AF199: -64.50622969 | AH199: 0 | AI199: 0
A200: 11351 | B200: 11.351 | C200: 2.247624058 | D200: 1.109717803 | E200: 1.000025433 | F200: 0.007131922711 | G200: 1 | H200: 0 | I200: 153.0283956 | J200: 1.564261545 | K200: 1.52804729 | L200: 0.8573677883 | M200: 1.000315309 | N200: 0.02510880953 | O200: 1.001987303 | P200: 0.06299234283 | Q200: 1.000078935 | R200: 0.01256423801 | S200: 0.9998142003 | T200: 0.02567724512 | U200: 12.47530633 | V200: -107.336693 | W200: 72.66330698 | Y200: 1000000000 | Z200: 128845201 | AB200: 24.82009239 | AC200: -41.94065771 | AE200: 15.23593406 | AF200: -64.64471535 | AH200: 0 | AI200: 0
A201: 11416.5 | B201: 11.4165 | C201: 2.258032358 | D201: 1.112006448 | E201: 1.000025727 | F201: 0.00717307547 | G201: 1 | H201: 0 | I201: 153.9113956 | J201: 1.564299036 | K201: 1.533094635 | L201: 0.8602137629 | M201: 1.000318958 | N201: 0.02525363641 | O201: 1.002010281 | P201: 0.06335486579 | Q201: 1.000079849 | R201: 0.0126367312 | S201: 0.9998120512 | T201: 0.0258255019 | U201: 12.41402569 | V201: -107.325684 | W201: 72.67431602 | Y201: 1000000000 | Z201: 130336472.2 | AB201: 24.79872906 | AC201: -41.78804142 | AE201: 15.19582551 | AF201: -64.78198166 | AH201: 0 | AI201: 0
A202: 11482 | B202: 11.482 | C202: 2.268452378 | D202: 1.11427408 | E202: 1.000026023 | F202: 0.007214228204 | G202: 1 | H202: 0 | I202: 154.7943958 | J202: 1.5643361 | K202: 1.538154315 | L202: 0.8630410368 | M202: 1.000322628 | N202: 0.02539846223 | O202: 1.002033391 | P202: 0.06371737207 | Q202: 1.000080768 | R202: 0.01270922426 | S202: 0.9998098897 | T202: 0.02597376021 | U202: 12.35314716 | V202: -107.314518 | W202: 72.68548197 | Y202: 1000000000 | Z202: 131836324 | AB202: 24.77762694 | AC202: -41.63647204 | AE202: 15.15585675 | AF202: -64.91804407 | AH202: 0 | AI202: 0
... 433 more rows

Sheet Bode Plot Management (hidden)
J1: Single or dual output (MODE) | N1: 3.3V or 5V fixed (FB1/2)
A2: =CHOOSE(BODE_PLOT_TYPE, "BODE_PLOT_Ch1", "BODE_PLOT_Ch2") -> BODE_PLOT_Ch1 | J2: With/without dither (DITH) | N2: With/without VOUT connected to VCCX
J3: FPWM or DEM (DEMB)
J4: Shunt or inductor DCR current sensing
F6: =INDIRECT(A2) -> 0

Sheet Efficiency Calculations (hidden)
A1: BUCK CONTROLLER POWER DESIGN TOOL | AO1: =Ext_VCC -> 1
H2: =AV19 -> 0.6852193517 | I2: 10% load
H3: =AV59 -> 0.8546798689 | I3: 50% load | AN3: =IF(MODE=1, (Qg_Q1+Qg_Q2)*Fsw*Vin, (Qg_Q1+Qg_Q2+Qg_Q3+Qg_Q4)*Fsw*Vin) -> 0.216
H4: =AV109 -> 0.8004025479 | I4: 100% load | U4: 3 | AG4: 1 | AK4: 2 | AM4: I_VCC | AN4: =(Qg_Q1+Qg_Q2)*Fsw*1000 -> 9 | AO4: mA | AP4: =AN4*5/1000 -> 0.045
AP5: =VCC -> 3.3
A6: Enter the values of your design and MOSFET datasheet specifications below. Note that thermal resistance (θJA) will change when components are placed on the PCB
G7: Operating Point Condtions | R7: Filter Inductor | V7: Cout | Y7: Cin | AB7: High-side BUCK "Control" MOSFET Losses | AH7: Low-side BUCK "Sync" MOSFET Losses | AL7: Diode/FET | AM7: "Controller" Losses | AT7: RESULTS | AZ7: Consolidated Buck/Boost Efficiency & Losses
A8: Input Parameters | G8: Step | H8: Vin | I8: Mode | J8: Iout | K8: Iout/ phase | L8: Iin | M8: Duty Cycle BUCK Leg | N8: Ripple Current pk-pk | O8: Peak Inductor Current | P8: Valley Inductor Current | Q8: SW node voltage at Q1 turn-on | R8: Irms Lf | S8: DCR Loss | T8: Core Loss | U8: Total Inductor Loss | V8: Irms Cout | W8: Cout ESR Loss | X8: Total Cout Loss | Y8: Irms Cin | Z8: Cin ESR Loss | AA8: Total Cin Loss | AB8: Irms | AC8: RDS(on) Loss | AD8: Transition Loss (not including capacitive loss) | AE8: MOSFET Output Capacitance Loss | AF8: Dead Time Loss | AG8: Total Control MOSFET Loss | AH8: Irms | AI8: RDS(on) Loss | AJ8: Deadtime Loss | AK8: Total Sync MOSFET Loss | AL8: Reverse Recovery Loss | AM8: IQ Loss | AN8: Switching Current Loss | AO8: Switching Current Diss from VCC | AP8: LDO Loss Saved from Gate Drive Current (ext VCC = Vout) | AQ8: Total "Control" Loss | AR8: Total Loss (not considering total loss) | AS8: Total Loss (considering total loss) | AT8: Total Loss | AU8: Pout | AV8: EFF, h | AW8: =IF(Vin>Vout, "Buck ''CONTROL'' MOSFET Temp Rise", "Boost ''CONTROL'' MOSFET Temp Rise") -> Buck ''CONTROL'' MOSFET Temp Rise | AX8: =IF(Vin>Vout, "Buck ''SYNC'' MOSFET Temp Rise", "Boost ''SYNC'' MOSFET Temp Rise") -> Buck ''SYNC'' MOSFET Temp Rise | AZ8: h | BA8: Inductor Cu & Core Loss | BB8: Total MOSFET Loss | BC8: Control MOSFET Loss | BD8: SYNC MOSFET Loss | BE8: Power Loss
A9: Design | B9: Input Value | C9: Units | D9: Description | G9: 0 | H9: =Vin -> 24 | I9: =MODE -> 1 | J9: 0 | K9: =Iout*G9/100/Number_of_Phases -> 0 | L9: =Vout*K9/(Vin*Efficiency) -> 0 | M9: =(Vout+(Rdson2+Rs+Rdcr)*K9)/(Vin+(Rs+Rdson2-Rdson1)*K9) -> 0.2083333333 | N9: =(Vin-(Rdson1+Rdcr)*K9-Vout)*M9/(Fsw*Lf) -> 6.286062146 | O9: =K9+N9/2 -> 3.143031073 | P9: =K9-N9/2 -> -3.143031073 | Q9: =IF(MIN(Vin, -P9/(Coss_Q1+Coss_Q2)*0.00000002)<0, 0, MIN(Vin, -P9/(Coss_Q1+Coss_Q2)*0.00000002)) -> 24 | R9: =SQRT(K9^2+(N9^2)/12) -> 1.814629836 | S9: =R9^2*Rdcr -> 0.2239159381 | T9: =Core_Loss -> 0.8804822791 | U9: =(T9+S9*(1+Ltc*(Ta-25)))/(1-S9*Ltc*ThetaCa) -> 1.126201216 | V9: =N9/SQRT(12) -> 1.814629836 | W9: =RCoutEsr*V9^2 -> 0.006585762884 | X9: =W9 -> 0.006585762884 | Y9: =SQRT(M9*(1-M9))*SQRT(K9^2+(N9^2)/12) -> 0.7369509927 | Z9: =RCinEsr*Y9^2 -> 0.0005430967656 | AA9: =Z9 -> 0.0005430967656 | AB9: =SQRT(M9)*SQRT(K9^2+(N9^2)/12) -> 0.8282614123 | AC9: =Rdson1*AB9^2 -> 0.02812669565 | AD9: =(Vin*K9/2)*Fsw*(Tr_buck+Tf_buck) -> 0 | AE9: =(0.5*Coss_Q1*(Vin-Q9)^2-0.5*Coss_Q2*(Vin-Q9)^2+(Qoss_Q2*(Vin-Q9)/Vin)*Vin)*Fsw -> 0 | AF9: =IF(K9>N9/2,0,ABS(K9-N9/2)*Vsd_Q1*Deadtime*Fsw) -> 0.01760097401 | AG9: =(AF9+AE9+AD9+AC9*(1+RdsonTC*(Ta-25))/(1-AC9*RdsonTC*ThetaJA_Q1)) -> 0.04579746017 | AH9: =SQRT((1-M9))*SQRT(K9^2+(N9^2)/12) -> 1.61457873 | AI9: =Rdson2*AH9^2 -> 0.05474415397 | AJ9: =IF(K9<N9/2,Deadtime*Fsw*Vsd_Q2*(K9+N9/2),2*Deadtime*Fsw*Vsd_Q2*K9) -> 0.01760097401 | AK9: =(AJ9+AI9*(1+RdsonTC*(Ta-25)))/(1-AI9*RdsonTC*ThetaJA_Q2) -> 0.07269533672 | AL9: =Qrr_Q2*K9/Iout*Fsw*Vin -> 0 | AM9: =Iq*Vin -> 0.00084 | AN9: =IF(Ext_VCC=1, (Qg_Q1+Qg_Q2)*Fsw*Vout, (Qg_Q1+Qg_Q2)*Fsw*Vin) -> 0.045 | AO9: =(Vin-VCC)*Fsw*(Qg_Q1+Qg_Q2) -> 0.1863 | AP9: =(Qg_Q1+Qg_Q2)*Fsw*(Vin-Vout) -> 0.171 | AQ9: =SUM(AM9:AN9) -> 0.04584 | AR9: =SUM(S9,T9,AC9,AD9,AE9,AF9,AI9,AJ9,AQ9, AL9) -> 1.268311015 | AS9: =((T9+S9*(1+Ltc*(Ta-25))) + (AF9+AE9+AD9+AC9*(1+RdsonTC*(Ta-25))) + (AJ9+AI9*(1+RdsonTC*(Ta-25))) + AQ9 + AL9) / (1-S9*Ltc*ThetaCa-AC9*RdsonTC*ThetaJA_Q1 -AI9*RdsonTC*ThetaJA_Q2) -> 1.303040171 | AT9: =AS9 -> 1.303040171 | AU9: =Vout*K9 -> 0 | AV9: =AU9/(AU9+AT9) -> 0 | AW9: =ThetaJA_Q1*BC9 -> 1.007544124 | AX9: =ThetaJA_Q2*BD9 -> 1.599297408 | AZ9: =AV9*100 -> 0 | BA9: =U9 -> 1.126201216 | BB9: =AG9+AK9+AL9 -> 0.1184927969 | BC9: =AG9+AL9*0.66 -> 0.04579746017 | BD9: =AK9+AL9*0.33 -> 0.07269533672 | BE9: =BA9+BB9 -> 1.244694013
G10: 1 | H10: 24 | I10: 1 | J10: =Iout*G10/100 -> 0.06 | K10: 0.06 | L10: 0.01388888889 | M10: 0.2086473793 | N10: 6.293370897 | O10: =K10+N10/2 -> 3.206685448 | P10: =K10-N10/2 -> -3.086685448 | Q10: 24 | R10: =SQRT(K10^2+(N10^2)/12) -> 1.817730207 | S10: 0.2246817311 | T10: 0.8804822791 | U10: 1.127058223 | V10: =N10/SQRT(12) -> 1.816739691 | W10: 0.006601086207 | X10: =W10 -> 0.006601086207 | Y10: =SQRT(M10*(1-M10))*SQRT(K10^2+(N10^2)/12) -> 0.7386197462 | Z10: 0.0005455591294 | AA10: =Z10 -> 0.0005455591294 | AB10: =SQRT(M10)*SQRT(K10^2+(N10^2)/12) -> 0.8303016317 | AC10: 0.02826543278 | AD10: 0.001969496021 | AE10: 0 | AF10: 0.01728543851 | AG10: =(AF10+AE10+AD10+AC10*(1+RdsonTopTc*Ta-RdsonTopTc*25))/(1-AC10*RdsonTopTc*ThetaJA_Q1) -> 0.04763886222 | AH10: 1.617016482 | AI10: 0.05490958839 | AJ10: 0.01795743851 | AK10: =(AJ10+AI10*(1+RdsonBotTc*Ta-RdsonBotTc*25))/(1-AI10*RdsonBotTc*ThetaJA_Q2) -> 0.07322083317 | AL10: 0.00072 | AM10: 0.00084 | AN10: 0.045 | AO10: 0.1863 | AP10: 0.171 | AQ10: 0.04584 | AR10: =SUM(S10,T10,AC10,AD10,AE10,AF10,AI10,AJ10,AQ10, AL10) -> 1.272111404 | AS10: 1.30706948 | AT10: =AS10 -> 1.30706948 | AU10: 0.3 | AV10: =AU10/(AU10+AT10) -> 0.1866751897 | AW10: 1.058509369 | AX10: 1.61608553 | AZ10: =AV10*100 -> 18.66751897 | BA10: 1.127058223 | BB10: 0.1215796954 | BC10: 0.04811406222 | BD10: 0.07345843317 | BE10: =BA10+BB10 -> 1.248637919
A11: Vin | B11: =Vin -> 24 | C11: V | D11: Vin | G11: 2 | H11: 24 | I11: 1 | J11: 0.12 | K11: 0.12 | L11: 0.02777777778 | M11: 0.2089613924 | N11: 6.30067213 | O11: 3.270336065 | P11: -3.030336065 | Q11: 24 | R11: 1.822801628 | S11: 0.2259371927 | T11: 0.8804822791 | U11: 1.128463475 | V11: 1.818847375 | W11: 0.006616411549 | X11: 0.006616411549 | Y11: 0.7410905487 | Z11: 0.0005492152013 | AA11: 0.0005492152013 | AB11: 0.8332444593 | AC11: 0.02846614949 | AD11: 0.003938992042 | AE11: 0 | AF11: 0.01696988196 | AG11: 0.04949901958 | AH11: 1.62120617 | AI11: 0.05519449835 | AJ11: 0.01831388196 | AK11: 0.07386716168 | AL11: 0.00144 | AM11: 0.00084 | AN11: 0.045 | AO11: 0.1863 | AP11: 0.171 | AQ11: 0.04584 | AR11: 1.276582876 | AS11: 1.311867745 | AT11: 1.311867745 | AU11: 0.6 | AV11: 0.3138292393 | AW11: 1.109887231 | AX11: 1.635531957 | AZ11: 31.38292393 | BA11: 1.128463475 | BB11: 0.1248061813 | BC11: 0.05044941958 | BD11: 0.07434236168 | BE11: 1.253269656
A12: Vout | B12: =Vout -> 5 | C12: V | D12: Vout | G12: 3 | H12: 24 | I12: 1 | J12: 0.18 | K12: 0.18 | L12: 0.04166666667 | M12: 0.2092753725 | N12: 6.307965847 | O12: 3.333982924 | P12: -2.973982924 | Q12: 24 | R12: 1.829827704 | S12: 0.2276823211 | T12: 0.8804822791 | U12: 1.130417333 | V12: 1.82095289 | W12: 0.006631738855 | X12: 0.006631738855 | Y12: 0.7443580563 | Z12: 0.0005540689159 | AA12: 0.0005540689159 | AB12: 0.8370844232 | AC12: 0.02872912359 | AD12: 0.005908488064 | AE12: 0 | AF12: 0.01665430437 | AG12: 0.05142191902 | AH12: 1.627132169 | AI12: 0.05559874101 | AJ12: 0.01867030437 | AK12: 0.07463420737 | AL12: 0.00216 | AM12: 0.00084 | AN12: 0.045 | AO12: 0.1863 | AP12: 0.171 | AQ12: 0.04584 | AR12: 1.281725562 | AS12: 1.317436341 | AT12: 1.317436341 | AU12: 0.9 | AV12: 0.4058741094 | AW12: 1.162645418 | AX12: 1.657634162 | AZ12: 40.58741094 | BA12: 1.130417333 | BB12: 0.1282161264 | BC12: 0.05284751902 | BD12: 0.07534700737 | BE12: 1.258633459
A13: Fsw | B13: =Fsw/1000 -> 1000 | C13: kHz | D13: Switching Frequency | G13: 4 | H13: 24 | I13: 1 | J13: 0.24 | K13: 0.24 | L13: 0.05555555556 | M13: 0.2095893196 | N13: 6.315252049 | O13: 3.397626025 | P13: -2.917626025 | Q13: 24 | R13: 1.838786023 | S13: 0.2299171145 | T13: 0.8804822791 | U13: 1.132920301 | V13: 1.823056235 | W13: 0.006647068074 | X13: 0.006647068074 | Y13: 0.7484144563 | Z13: 0.0005601241985 | AA13: 0.0005601241985 | AB13: 0.8418132704 | AC13: 0.02905463287 | AD13: 0.007877984085 | AE13: 0 | AF13: 0.01633870574 | AG13: 0.05340787636 | AH13: 1.634773518 | AI13: 0.05612217355 | AJ13: 0.01902670574 | AK13: 0.07552186299 | AL13: 0.00288 | AM13: 0.00084 | AN13: 0.045 | AO13: 0.1863 | AP13: 0.171 | AQ13: 0.04584 | AR13: 1.287539596 | AS13: 1.32377692 | AT13: 1.32377692 | AU13: 1.2 | AV13: 0.4754778406 | AW13: 1.21679088 | AX13: 1.682389786 | AZ13: 47.54778406 | BA13: 1.132920301 | BB13: 0.1318097393 | BC13: 0.05530867636 | BD13: 0.07647226299 | BE13: 1.264730041
A14: Iout | B14: =Iout -> 6 | C14: A | D14: Max Output Current | G14: 5 | H14: 24 | I14: 1 | J14: 0.3 | K14: 0.3 | L14: 0.06944444444 | M14: 0.2099032337 | N14: 6.322530737 | O14: 3.461265369 | P14: -2.861265369 | Q14: 24 | R14: 1.849648501 | S14: 0.2326415712 | T14: 0.8804822791 | U14: 1.135973028 | V14: 1.825157412 | W14: 0.006662399154 | X14: 0.006662399154 | Y14: 0.7532496033 | Z14: 0.0005673849649 | AA14: 0.0005673849649 | AB14: 0.8474201168 | AC14: 0.02944295503 | AD14: 0.009847480106 | AE14: 0 | AF14: 0.01602308606 | AG14: 0.05545720973 | AH14: 1.644104231 | AI14: 0.05676465317 | AJ14: 0.01938308606 | AK14: 0.07653002888 | AL14: 0.0036 | AM14: 0.00084 | AN14: 0.045 | AO14: 0.1863 | AP14: 0.171 | AQ14: 0.04584 | AR14: 1.294025111 | AS14: 1.330891415 | AT14: 1.330891415 | AU14: 1.5 | AV14: 0.5298684337 | AW14: 1.272330614 | AX14: 1.709796635 | AZ14: 52.98684337 | BA14: 1.135973028 | BB14: 0.1355872386 | BC14: 0.05783320973 | BD14: 0.07771802888 | BE14: 1.271560267
A15: Ta | B15: =Ta -> 25 | C15: °C | D15: Ambient Temperature | G15: 6 | H15: 24 | I15: 1 | J15: 0.36 | K15: 0.36 | L15: 0.08333333333 | M15: 0.2102171149 | N15: 6.329801913 | O15: 3.524900956 | P15: -2.804900956 | Q15: 24 | R15: 1.862381814 | S15: 0.2358556894 | T15: 0.8804822791 | U15: 1.139576303 | V15: 1.827256419 | W15: 0.006677732042 | X15: 0.006677732042 | Y15: 0.7588511855 | Z15: 0.0005758551217 | AA15: 0.0005758551217 | AB15: 0.8538916326 | AC15: 0.02989436773 | AD15: 0.01181697613 | AE15: 0 | AF15: 0.01570744536 | AG15: 0.05757023949 | AH15: 1.655093683 | AI15: 0.05752603712 | AJ15: 0.01973944536 | AK15: 0.07765861299 | AL15: 0.00432 | AM15: 0.00084 | AN15: 0.045 | AO15: 0.1863 | AP15: 0.171 | AQ15: 0.04584 | AR15: 1.30118224 | AS15: 1.338782039 | AT15: 1.338782039 | AU15: 1.8 | AV15: 0.5734708488 | AW15: 1.329271669 | AX15: 1.739852686 | AZ15: 57.34708488 | BA15: 1.139576303 | BB15: 0.1395488525 | BC15: 0.06042143949 | BD15: 0.07908421299 | BE15: 1.279125155
A16: Vcc | B16: =VCC -> 3.3 | C16: V | D16: Subregulated VCC Voltage | G16: 7 | H16: 24 | I16: 1 | J16: 0.42 | K16: 0.42 | L16: 0.09722222222 | M16: 0.2105309632 | N16: 6.337065576 | O16: 3.588532788 | P16: -2.748532788 | Q16: 24 | R16: 1.87694788 | S16: 0.2395594673 | T16: 0.8804822791 | U16: 1.14373106 | V16: 1.829353258 | W16: 0.006693066686 | X16: 0.006693066686 | Y16: 0.7652049178 | Z16: 0.0005855385663 | AA16: 0.0005855385663 | AB16: 0.8612122561 | AC16: 0.03040914855 | AD16: 0.01378647215 | AE16: 0 | AF16: 0.01539178361 | AG16: 0.05974728836 | AH16: 1.667707047 | AI16: 0.05840618266 | AJ16: 0.02009578361 | AK16: 0.07890753078 | AL16: 0.00504 | AM16: 0.00084 | AN16: 0.045 | AO16: 0.1863 | AP16: 0.171 | AQ16: 0.04584 | AR16: 1.309011117 | AS16: 1.347451289 | AT16: 1.347451289 | AU16: 2.1 | AV16: 0.6091456627 | AW16: 1.387621144 | AX16: 1.772556077 | AZ16: 60.91456627 | BA16: 1.14373106 | BB16: 0.1436948191 | BC16: 0.06307368836 | BD16: 0.08057073078 | BE16: 1.28742588
A17: Components | B17: Input Value | C17: Units | D17: Description | G17: 8 | H17: 24 | I17: 1 | J17: 0.48 | K17: 0.48 | L17: 0.1111111111 | M17: 0.2108447785 | N17: 6.34432173 | O17: 3.652160865 | P17: -2.692160865 | Q17: 24 | R17: 1.893304391 | S17: 0.2437529032 | T17: 0.8804822791 | U17: 1.148438379 | V17: 1.831447929 | W17: 0.006708403035 | X17: 0.006708403035 | Y17: 0.7722947535 | Z17: 0.0005964391863 | AA17: 0.0005964391863 | AB17: 0.8693644305 | AC17: 0.03098757504 | AD17: 0.01575596817 | AE17: 0 | AF17: 0.01507610084 | AG17: 0.06198868139 | AH17: 1.681905766 | AI17: 0.05940494709 | AJ17: 0.02045210084 | AK17: 0.08027670528 | AL17: 0.00576 | AM17: 0.00084 | AN17: 0.045 | AO17: 0.1863 | AP17: 0.171 | AQ17: 0.04584 | AR17: 1.317511874 | AS17: 1.356901948 | AT17: 1.356901948 | AU17: 2.4 | AV17: 0.6388242316 | AW17: 1.447386191 | AX17: 1.807905116 | AZ17: 63.88242316 | BA17: 1.148438379 | BB17: 0.1480253867 | BC17: 0.06579028139 | BD17: 0.08217750528 | BE17: 1.296463765
A18: L | B18: =Lf*1000000 -> 0.6297 | C18: uH | D18: Filter Inductance | G18: 9 | H18: 24 | I18: 1 | J18: 0.54 | K18: 0.54 | L18: 0.125 | M18: 0.2111585609 | N18: 6.351570374 | O18: 3.715785187 | P18: -2.635785187 | Q18: 24 | R18: 1.911405378 | S18: 0.2484359952 | T18: 0.8804822791 | U18: 1.153699481 | V18: 1.833540433 | W18: 0.006723741036 | X18: 0.006723741036 | Y18: 0.7801031089 | Z18: 0.0006085608605 | AA18: 0.0006085608605 | AB18: 0.8783288546 | AC18: 0.03162992465 | AD18: 0.01772546419 | AE18: 0 | AF18: 0.01476039705 | AG18: 0.06429474603 | AH18: 1.697648062 | AI18: 0.06052218776 | AJ18: 0.02080839705 | AK18: 0.081766067 | AL18: 0.00648 | AM18: 0.00084 | AN18: 0.045 | AO18: 0.1863 | AP18: 0.171 | AQ18: 0.04584 | AR18: 1.326684645 | AS18: 1.367137086 | AT18: 1.367137086 | AU18: 2.7 | AV18: 0.6638576333 | AW18: 1.508574013 | AX18: 1.845898274 | AZ18: 66.38576333 | BA18: 1.153699481 | BB18: 0.152540813 | BC18: 0.06857154603 | BD18: 0.083904467 | BE18: 1.306240294
A19: Rdcr | B19: =Rdcr*1000 -> 68 | C19: mW | D19: Inductor DCR at 25°C | G19: 10 | H19: 24 | I19: 1 | J19: 0.6 | K19: 0.6 | L19: 0.1388888889 | M19: 0.2114723104 | N19: 6.35881151 | O19: 3.779405755 | P19: -2.579405755 | Q19: 24 | R19: 1.931201781 | S19: 0.2536087417 | T19: 0.8804822791 | U19: 1.159515736 | V19: 1.835630769 | W19: 0.006739080637 | X19: 0.006739080637 | Y19: 0.7886110943 | Z19: 0.000621907458 | AA19: 0.000621907458 | AB19: 0.8880847413 | AC19: 0.03233647482 | AD19: 0.01969496021 | AE19: 0 | AF19: 0.01444467223 | AG19: 0.06666581215 | AH19: 1.714889446 | AI19: 0.06175776202 | AJ19: 0.02116467223 | AK19: 0.08337555396 | AL19: 0.0072 | AM19: 0.00084 | AN19: 0.045 | AO19: 0.1863 | AP19: 0.171 | AQ19: 0.04584 | AR19: 1.336529562 | AS19: 1.378160063 | AT19: 1.378160063 | AU19: 3 | AV19: 0.6852193517 | AW19: 1.571191867 | AX19: 1.886534187 | AZ19: 68.52193517 | BA19: 1.159515736 | BB19: 0.1572413661 | BC19: 0.07141781215 | BD19: 0.08575155396 | BE19: 1.316757102
A20: LTc | B20: 3930 | C20: ppm | D20: Inductor Series Resistance Temp Co | G20: 11 | H20: 24 | I20: 1 | J20: 0.66 | K20: 0.66 | L20: 0.1527777778 | M20: 0.2117860269 | N20: 6.36604514 | O20: 3.84302257 | P20: -2.52302257 | Q20: 24 | R20: 1.952642029 | S20: 0.2592711407 | T20: 0.8804822791 | U20: 1.16588866 | V20: 1.837718937 | W20: 0.006754421786 | X20: 0.006754421786 | Y20: 0.7977987458 | Z20: 0.0006364828388 | AA20: 0.0006364828388 | AB20: 0.898610077 | AC20: 0.03310750289 | AD20: 0.02166445623 | AE20: 0 | AF20: 0.01412892639 | AG20: 0.06910221206 | AH20: 1.733583232 | AI20: 0.06311152728 | AJ20: 0.02152092639 | AK20: 0.08510511166 | AL20: 0.00792 | AM20: 0.00084 | AN20: 0.045 | AO20: 0.1863 | AP20: 0.171 | AQ20: 0.04584 | AR20: 1.347046759 | AS20: 1.389974534 | AT20: 1.389974534 | AU20: 3.3 | AV20: 0.703628554 | AW20: 1.635247065 | AX20: 1.929811657 | AZ20: 70.3628554 | BA20: 1.16588866 | BB20: 0.1621273237 | BC20: 0.07432941206 | BD20: 0.08771871166 | BE20: 1.328015983
A21: ThetaCa | B21: =ThetaCa -> 22 | C21: °C/W | D21: Core to Ambient Thermal Resistance | G21: 12 | H21: 24 | I21: 1 | J21: 0.72 | K21: 0.72 | L21: 0.1666666667 | M21: 0.2120997105 | N21: 6.373271263 | O21: 3.906635632 | P21: -2.466635632 | Q21: 24 | R21: 1.975672598 | S21: 0.2654231907 | T21: 0.8804822791 | U21: 1.172819915 | V21: 1.83980494 | W21: 0.006769764433 | X21: 0.006769764433 | Y21: 0.8076452522 | Z21: 0.0006522908533 | AA21: 0.0006522908533 | AB21: 0.9098818759 | AC21: 0.03394328615 | AD21: 0.02363395225 | AE21: 0 | AF21: 0.01381315954 | AG21: 0.07160428059 | AH21: 1.753681039 | AI21: 0.06458334095 | AJ21: 0.02187715954 | AK21: 0.08695469305 | AL21: 0.00864 | AM21: 0.00084 | AN21: 0.045 | AO21: 0.1863 | AP21: 0.171 | AQ21: 0.04584 | AR21: 1.358236368 | AS21: 1.402584451 | AT21: 1.402584451 | AU21: 3.6 | AV21: 0.7196280314 | AW21: 1.700746973 | AX21: 1.975729647 | AZ21: 71.96280314 | BA21: 1.172819915 | BB21: 0.1671989736 | BC21: 0.07730668059 | BD21: 0.08980589305 | BE21: 1.340018888
A22: Cin | B22: =Cin*1000000 -> 20 | C22: μF | D22: Input Capacitance | G22: 13 | H22: 24 | I22: 1 | J22: 0.78 | K22: 0.78 | L22: 0.1805555556 | M22: 0.2124133612 | N22: 6.380489883 | O22: 3.970244941 | P22: -2.410244941 | Q22: 24 | R22: 2.000238551 | S22: 0.2720648898 | T22: 0.8804822791 | U22: 1.180311314 | V22: 1.841888776 | W22: 0.006785108524 | X22: 0.006785108524 | Y22: 0.8181291726 | Z22: 0.000669335343 | AA22: 0.000669335343 | AB22: 0.9218764249 | AC22: 0.03484410186 | AD22: 0.02560344828 | AE22: 0 | AF22: 0.01349737167 | AG22: 0.07417235508 | AH22: 1.775133268 | AI22: 0.0661730605 | AJ22: 0.02223337167 | AK22: 0.08892425852 | AL22: 0.00936 | AM22: 0.00084 | AN22: 0.045 | AO22: 0.1863 | AP22: 0.171 | AQ22: 0.04584 | AR22: 1.370098523 | AS22: 1.415994063 | AT22: 1.415994063 | AU22: 3.9 | AV22: 0.7336351308 | AW22: 1.767699012 | AX22: 2.024287287 | AZ22: 73.36351308 | BA22: 1.180311314 | BB22: 0.1724566136 | BC22: 0.08034995508 | BD22: 0.09201305852 | BE22: 1.352767927
A23: RCinEsr | B23: =RCinEsr*1000 -> 1 | C23: mW | D23: Input Capacitor ESR | G23: 14 | H23: 24 | I23: 1 | J23: 0.84 | K23: 0.84 | L23: 0.1944444444 | M23: 0.212726979 | N23: 6.387700999 | O23: 4.033850499 | P23: -2.353850499 | Q23: 24 | R23: 2.026284038 | S23: 0.2791962363 | T23: 0.8804822791 | U23: 1.188364818 | V23: 1.843970446 | W23: 0.006800454008 | X23: 0.006800454008 | Y23: 0.8292286414 | Z23: 0.0006876201397 | AA23: 0.0006876201397 | AB23: 0.9345695131 | AC23: 0.03581022717 | AD23: 0.0275729443 | AE23: 0 | AF23: 0.0131815628 | AG23: 0.07680677545 | AH23: 1.797889549 | AI23: 0.06788054341 | AJ23: 0.0225895628 | AK23: 0.09101377589 | AL23: 0.01008 | AM23: 0.00084 | AN23: 0.045 | AO23: 0.1863 | AP23: 0.171 | AQ23: 0.04584 | AR23: 1.382633356 | AS23: 1.430207927 | AT23: 1.430207927 | AU23: 4.2 | AV23: 0.745976002 | AW23: 1.83611066 | AX23: 2.07548387 | AZ23: 74.5976002 | BA23: 1.188364818 | BB23: 0.1779005513 | BC23: 0.08345957545 | BD23: 0.09434017589 | BE23: 1.366265369
A24: Cout | B24: =Cout*1000000 -> 50 | C24: μF | D24: Output Capcitance | G24: 15 | H24: 24 | I24: 1 | J24: 0.9 | K24: 0.9 | L24: 0.2083333333 | M24: 0.2130405639 | N24: 6.394904613 | O24: 4.097452306 | P24: -2.297452306 | Q24: 24 | R24: 2.053752764 | S24: 0.2868172284 | T24: 0.8804822791 | U24: 1.196982541 | V24: 1.84604995 | W24: 0.006815800834 | X24: 0.006815800834 | Y24: 0.8409215576 | Z24: 0.0007071490661 | AA24: 0.0007071490661 | AB24: 0.9479366452 | AC24: 0.03684193921 | AD24: 0.02954244032 | AE24: 0 | AF24: 0.01286573292 | AG24: 0.07950788422 | AH24: 1.821899156 | AI24: 0.06970564721 | AJ24: 0.02294573292 | AK24: 0.0932232204 | AL24: 0.0108 | AM24: 0.00084 | AN24: 0.045 | AO24: 0.1863 | AP24: 0.171 | AQ24: 0.04584 | AR24: 1.395841 | AS24: 1.445230907 | AT24: 1.445230907 | AU24: 4.5 | AV24: 0.7569092052 | AW24: 1.905989453 | AX24: 2.129318849 | AZ24: 75.69092052 | BA24: 1.196982541 | BB24: 0.1835311046 | BC24: 0.08663588422 | BD24: 0.0967872204 | BE24: 1.380513646
A25: RCoutEsr | B25: =Cout_ESR*1000 -> 2 | C25: mW | D25: Output Capacitor ESR | G25: 16 | H25: 24 | I25: 1 | J25: 0.96 | K25: 0.96 | L25: 0.2222222222 | M25: 0.2133541159 | N25: 6.402100726 | O25: 4.161050363 | P25: -2.241050363 | Q25: 24 | R25: 2.082588408 | S25: 0.2949278643 | T25: 0.8804822791 | U25: 1.206166748 | V25: 1.848127289 | W25: 0.00683114895 | X25: 0.00683114895 | Y25: 0.8531857568 | Z25: 0.0007279259356 | AA25: 0.0007279259356 | AB25: 0.9619532346 | AC25: 0.03793951505 | AD25: 0.03151193634 | AE25: 0 | AF25: 0.01254988203 | AG25: 0.08227602652 | AH25: 1.84711138 | AI25: 0.07164822944 | AJ25: 0.02330188203 | AK25: 0.09555257468 | AL25: 0.01152 | AM25: 0.00084 | AN25: 0.045 | AO25: 0.1863 | AP25: 0.171 | AQ25: 0.04584 | AR25: 1.409721588 | AS25: 1.461068177 | AT25: 1.461068177 | AU25: 4.8 | AV25: 0.7666423467 | AW25: 1.977342984 | AX25: 2.185791843 | AZ25: 76.66423467 | BA25: 1.206166748 | BB25: 0.1893486012 | BC25: 0.08987922652 | BD25: 0.09935417468 | BE25: 1.395515349
A26: Top Driver | B26: Input Value | C26: Units | D26: Description | G26: 17 | H26: 24 | I26: 1 | J26: 1.02 | K26: 1.02 | L26: 0.2361111111 | M26: 0.213667635 | N26: 6.409289339 | O26: 4.224644669 | P26: -2.184644669 | Q26: 24 | R26: 2.112734993 | S26: 0.3035281424 | T26: 0.8804822791 | U26: 1.215919859 | V26: 1.850202463 | W26: 0.006846498305 | X26: 0.006846498305 | Y26: 0.8659991641 | Z26: 0.0007499545521 | AA26: 0.0007499545521 | AB26: 0.9765947766 | AC26: 0.03910323167 | AD26: 0.03348143236 | AE26: 0 | AF26: 0.01223401015 | AG26: 0.0851115502 | AH26: 1.873475859 | AI26: 0.07370814769 | AJ26: 0.02365801015 | AK26: 0.09800182877 | AL26: 0.01224 | AM26: 0.00084 | AN26: 0.045 | AO26: 0.1863 | AP26: 0.171 | AQ26: 0.04584 | AR26: 1.424275253 | AS26: 1.477725232 | AT26: 1.477725232 | AU26: 5.1 | AV26: 0.7753440316 | AW26: 2.050178905 | AX26: 2.244902633 | AZ26: 77.53440316 | BA26: 1.215919859 | BB26: 0.195353379 | BC26: 0.0931899502 | BD26: 0.1020410288 | BE26: 1.411273238
A27: RdsonDRT | B27: 1 | C27: W | D27: Drain to Source Resistance of pullup Top FET Driver | G27: 18 | H27: 24 | I27: 1 | J27: 1.08 | K27: 1.08 | L27: 0.25 | M27: 0.2139811212 | N27: 6.416470454 | O27: 4.288235227 | P27: -2.128235227 | Q27: 24 | R27: 2.144137221 | S27: 0.3126180608 | T27: 0.8804822791 | U27: 1.226244449 | V27: 1.852275472 | W27: 0.006861848847 | X27: 0.006861848847 | Y27: 0.8793399289 | Z27: 0.0007732387106 | AA27: 0.0007732387106 | AB27: 0.991837 | AC27: 0.04033336602 | AD27: 0.03545092838 | AE27: 0 | AF27: 0.01191811727 | AG27: 0.08801480581 | AH27: 1.900942868 | AI27: 0.07588525957 | AJ27: 0.02401411727 | AK27: 0.1005709801 | AL27: 0.01296 | AM27: 0.00084 | AN27: 0.045 | AO27: 0.1863 | AP27: 0.171 | AQ27: 0.04584 | AR27: 1.439502128 | AS27: 1.495207887 | AT27: 1.495207887 | AU27: 5.4 | AV27: 0.7831526022 | AW27: 2.124504928 | AX27: 2.306651162 | AZ27: 78.31526022 | BA27: 1.226244449 | BB27: 0.2015457859 | BC27: 0.09656840581 | BD27: 0.1048477801 | BE27: 1.427790235
A28: RdsonDRT2 | B28: 1 | C28: W | D28: Drain to Source Resistance of pulldown Top FET Driver | G28: 19 | H28: 24 | I28: 1 | J28: 1.14 | K28: 1.14 | L28: 0.2638888889 | M28: 0.2142945745 | N28: 6.423644071 | O28: 4.351822036 | P28: -2.071822036 | Q28: 24 | R28: 2.176740743 | S28: 0.3221976179 | T28: 0.8804822791 | U28: 1.237143251 | V28: 1.854346317 | W28: 0.006877200525 | X28: 0.006877200525 | Y28: 0.8931865407 | Z28: 0.0007977821965 | AA28: 0.0007977821965 | AB28: 1.007655997 | AC28: 0.04163019498 | AD28: 0.0374204244 | AE28: 0 | AF28: 0.0116022034 | AG28: 0.09098614663 | AH28: 1.929463566 | AI28: 0.07817942272 | AJ28: 0.0243702034 | AK28: 0.1032600334 | AL28: 0.01368 | AM28: 0.00084 | AN28: 0.045 | AO28: 0.1863 | AP28: 0.171 | AQ28: 0.04584 | AR28: 1.455402346 | AS28: 1.513522286 | AT28: 1.513522286 | AU28: 5.7 | AV28: 0.7901826284 | AW28: 2.200328826 | AX28: 2.371037534 | AZ28: 79.01826284 | BA28: 1.237143251 | BB28: 0.20792618 | BC28: 0.1000149466 | BD28: 0.1077744334 | BE28: 1.445069431
A29: Bottom Driver | B29: Input Value | C29: Units | D29: Description | G29: 20 | H29: 24 | I29: 1 | J29: 1.2 | K29: 1.2 | L29: 0.2777777778 | M29: 0.2146079949 | N29: 6.430810192 | O29: 4.415405096 | P29: -2.015405096 | Q29: 24 | R29: 2.210492399 | S29: 0.3322668118 | T29: 0.8804822791 | U29: 1.248619158 | V29: 1.856414998 | W29: 0.006892553288 | X29: 0.006892553288 | Y29: 0.907517926 | Z29: 0.000823588786 | AA29: 0.000823588786 | AB29: 1.024028336 | AC29: 0.04299399537 | AD29: 0.03938992042 | AE29: 0 | AF29: 0.01128626854 | AG29: 0.09402592876 | AH29: 1.958990202 | AI29: 0.08059049483 | AJ29: 0.02472626854 | AK29: 0.1060690009 | AL29: 0.0144 | AM29: 0.00084 | AN29: 0.045 | AO29: 0.1863 | AP29: 0.171 | AQ29: 0.04584 | AR29: 1.471976039 | AS29: 1.532674906 | AT29: 1.532674906 | AU29: 6 | AV29: 0.7965297952 | AW29: 2.277658433 | AX29: 2.438062019 | AZ29: 79.65297952 | BA29: 1.248619158 | BB29: 0.2144949296 | BC29: 0.1035299288 | BD29: 0.1108210009 | BE29: 1.463114088
A30: RdsonDRB | B30: 1 | C30: W | D30: Drain to Source Resistance of pullup Bottom FET Driver | G30: 21 | H30: 24 | I30: 1 | J30: 1.26 | K30: 1.26 | L30: 0.2916666667 | M30: 0.2149213825 | N30: 6.437968818 | O30: 4.478984409 | P30: -1.958984409 | Q30: 24 | R30: 2.245340407 | S30: 0.3428256409 | T30: 0.8804822791 | U30: 1.260675222 | V30: 1.858481515 | W30: 0.006907907085 | X30: 0.006907907085 | Y30: 0.9223135291 | Z30: 0.000850662246 | AA30: 0.000850662246 | AB30: 1.040931149 | AC30: 0.04442504395 | AD30: 0.04135941645 | AE30: 0 | AF30: 0.01097031269 | AG30: 0.09713451112 | AH30: 1.989476284 | AI30: 0.08311833359 | AJ30: 0.02508231269 | AK30: 0.108997902 | AL30: 0.01512 | AM30: 0.00084 | AN30: 0.045 | AO30: 0.1863 | AP30: 0.171 | AQ30: 0.04584 | AR30: 1.489223339 | AS30: 1.552672562 | AT30: 1.552672562 | AU30: 6.3 | AV30: 0.8022746333 | AW30: 2.356501645 | AX30: 2.507725044 | AZ30: 80.22746333 | BA30: 1.260675222 | BB30: 0.2212524131 | BC30: 0.1071137111 | BD30: 0.113987502 | BE30: 1.481927635
A31: RdsonDRB2 | B31: 1 | C31: W | D31: Drain to Source Resistance of pulldown Bottom FET Driver | G31: 22 | H31: 24 | I31: 1 | J31: 1.32 | K31: 1.32 | L31: 0.3055555556 | M31: 0.2152347372 | N31: 6.445119951 | O31: 4.542559975 | P31: -1.902559975 | Q31: 24 | R31: 2.281234519 | S31: 0.3538741034 | T31: 0.8804822791 | U31: 1.27331466 | V31: 1.860545869 | W31: 0.006923261863 | X31: 0.006923261863 | Y31: 0.9375533767 | Z31: 0.0008790063342 | AA31: 0.0008790063342 | AB31: 1.058342208 | AC31: 0.04592361743 | AD31: 0.04332891247 | AE31: 0 | AF31: 0.01065433586 | AG31: 0.1003122555 | AH31: 2.020876716 | AI31: 0.08576279674 | AJ31: 0.02543833586 | AK31: 0.1120467637 | AL31: 0.01584 | AM31: 0.00084 | AN31: 0.045 | AO31: 0.1863 | AP31: 0.171 | AQ31: 0.04584 | AR31: 1.507144381 | AS31: 1.573522416 | AT31: 1.573522416 | AU31: 6.6 | AV31: 0.8074853979 | AW31: 2.436866421 | AX31: 2.5800272 | AZ31: 80.74853979 | BA31: 1.27331466 | BB31: 0.2281990192 | BC31: 0.1107666555 | BD31: 0.1172739637 | BE31: 1.50151368
A32: Deadtime | B32: Input Value | C32: Units | D32: Description | G32: 23 | H32: 24 | I32: 1 | J32: 1.38 | K32: 1.38 | L32: 0.3194444444 | M32: 0.2155480591 | N32: 6.452263591 | O32: 4.606131795 | P32: -1.846131795 | Q32: 24 | R32: 2.318126137 | S32: 0.3654121975 | T32: 0.8804822791 | U32: 1.286540855 | V32: 1.86260806 | W32: 0.006938617574 | X32: 0.006938617574 | Y32: 0.9532181277 | Z32: 0.0009086247989 | AA32: 0.0009086247989 | AB32: 1.076239982 | AC32: 0.04748999246 | AD32: 0.04529840849 | AE32: 0 | AF32: 0.01033833805 | AG32: 0.1035595266 | AH32: 2.053147897 | AI32: 0.08852374205 | AJ32: 0.02579433805 | AK32: 0.1152156201 | AL32: 0.01656 | AM32: 0.00084 | AN32: 0.045 | AO32: 0.1863 | AP32: 0.171 | AQ32: 0.04584 | AR32: 1.525739296 | AS32: 1.595231983 | AT32: 1.595231983 | AU32: 6.9 | AV32: 0.8122203153 | AW32: 2.518760786 | AX32: 2.654969241 | AZ32: 81.22203153 | BA32: 1.286540855 | BB32: 0.2353351467 | BC32: 0.1144891266 | BD32: 0.1206804201 | BE32: 1.521876001
A33: Deadtime | B33: 15 | C33: ns | D33: Total Deadtime | G33: 24 | H33: 24 | I33: 1 | J33: 1.44 | K33: 1.44 | L33: 0.3333333333 | M33: 0.215861348 | N33: 6.459399739 | O33: 4.669699869 | P33: -1.789699869 | Q33: 24 | R33: 2.355968396 | S33: 0.3774399216 | T33: 0.8804822791 | U33: 1.300357355 | V33: 1.864668089 | W33: 0.006953974164 | X33: 0.006953974164 | Y33: 0.9692891103 | Z33: 0.0009395213794 | AA33: 0.0009395213794 | AB33: 1.094603677 | AC33: 0.04912444561 | AD33: 0.04726790451 | AE33: 0 | AF33: 0.01002231927 | AG33: 0.1068766921 | AH33: 2.086247797 | AI33: 0.09140102731 | AJ33: 0.02615031927 | AK33: 0.1185045128 | AL33: 0.01728 | AM33: 0.00084 | AN33: 0.045 | AO33: 0.1863 | AP33: 0.171 | AQ33: 0.04584 | AR33: 1.545008217 | AS33: 1.617809138 | AT33: 1.617809138 | AU33: 7.2 | AV33: 0.8165293541 | AW33: 2.602192826 | AX33: 2.732552081 | AZ33: 81.65293541 | BA33: 1.300357355 | BB33: 0.2426612049 | BC33: 0.1182814921 | BD33: 0.1242069128 | BE33: 1.54301856
A34: IQ | B34: Input Value | C34: Units | D34: Description | G34: 25 | H34: 24 | I34: 1 | J34: 1.5 | K34: 1.5 | L34: 0.3472222222 | M34: 0.2161746042 | N34: 6.466528397 | O34: 4.733264198 | P34: -1.733264198 | Q34: 24 | R34: 2.394716224 | S34: 0.3899572739 | T34: 0.8804822791 | U34: 1.31476788 | V34: 1.866725955 | W34: 0.006969331584 | X34: 0.006969331584 | Y34: 0.985748348 | Z34: 0.0009716998055 | AA34: 0.0009716998055 | AB34: 1.113413269 | AC34: 0.05082725341 | AD34: 0.04923740053 | AE34: 0 | AF34: 0.009706279511 | AG34: 0.1102641226 | AH34: 2.120136006 | AI34: 0.09439451037 | AJ34: 0.02650627951 | AK34: 0.1219134907 | AL34: 0.018 | AM34: 0.00084 | AN34: 0.045 | AO34: 0.1863 | AP34: 0.171 | AQ34: 0.04584 | AR34: 1.564951276 | AS34: 1.641262122 | AT34: 1.641262122 | AU34: 7.5 | AV34: 0.820455633 | AW34: 2.687170698 | AX34: 2.812776796 | AZ34: 82.0455633 | BA34: 1.31476788 | BB34: 0.2501776134 | BC34: 0.1221441226 | BD34: 0.1278534907 | BE34: 1.564945493
A35: IQ | B35: =Iq*1000 -> 0.035 | C35: mA | D35: Quiescent Current Of Controller (Not Switching!) | G35: 26 | H35: 24 | I35: 1 | J35: 1.56 | K35: 1.56 | L35: 0.3611111111 | M35: 0.2164878274 | N35: 6.473649565 | O35: 4.796824783 | P35: -1.676824783 | Q35: 24 | R35: 2.434326373 | S35: 0.4029642526 | T35: 0.8804822791 | U35: 1.329776323 | V35: 1.86878166 | W35: 0.006984689783 | X35: 0.006984689783 | Y35: 1.002578574 | Z35: 0.001005163798 | AA35: 0.001005163798 | AB35: 1.13264952 | AC35: 0.05259869234 | AD35: 0.05120689655 | AE35: 0 | AF35: 0.009390218783 | AG35: 0.1137221919 | AH35: 2.15477376 | AI35: 0.09750404908 | AJ35: 0.02686221878 | AK35: 0.1254426102 | AL35: 0.01872 | AM35: 0.00084 | AN35: 0.045 | AO35: 0.1863 | AP35: 0.171 | AQ35: 0.04584 | AR35: 1.585568607 | AS35: 1.665599551 | AT35: 1.665599551 | AU35: 7.8 | AV35: 0.8240365503 | AW35: 2.773702621 | AX35: 2.895644623 | AZ35: 82.40365503 | BA35: 1.329776323 | BB35: 0.257884802 | BC35: 0.1260773919 | BD35: 0.1316202102 | BE35: 1.587661125
A36: High-side FET | B36: Input Value | C36: Units | D36: Description | G36: 27 | H36: 24 | I36: 1 | J36: 1.62 | K36: 1.62 | L36: 0.375 | M36: 0.2168010179 | N36: 6.480763246 | O36: 4.860381623 | P36: -1.620381623 | Q36: 24 | R36: 2.474757433 | S36: 0.4164608561 | T36: 0.8804822791 | U36: 1.345386753 | V36: 1.870835202 | W36: 0.007000048709 | X36: 0.007000048709 | Y36: 1.019763241 | Z36: 0.001039917068 | AA36: 0.001039917068 | AB36: 1.152293988 | AC36: 0.0544390388 | AD36: 0.05317639257 | AE36: 0 | AF36: 0.00907413709 | AG36: 0.1172512766 | AH36: 2.190123951 | AI36: 0.1007295013 | AJ36: 0.02721813709 | AK36: 0.1290919346 | AL36: 0.01944 | AM36: 0.00084 | AN36: 0.045 | AO36: 0.1863 | AP36: 0.171 | AQ36: 0.04584 | AR36: 1.606860342 | AS36: 1.690830425 | AT36: 1.690830425 | AU36: 8.1 | AV36: 0.8273046972 | AW36: 2.861796885 | AX36: 2.981156962 | AZ36: 82.73046972 | BA36: 1.345386753 | BB36: 0.2657832112 | BC36: 0.1300816766 | BD36: 0.1355071346 | BE36: 1.611169964
A37: RdsonTop | B37: =Rdson1*1000 -> 41 | C37: mW | D37: Drain-Source Resistance of Top FET | G37: 28 | H37: 24 | I37: 1 | J37: 1.68 | K37: 1.68 | L37: 0.3888888889 | M37: 0.2171141755 | N37: 6.48786944 | O37: 4.92393472 | P37: -1.56393472 | Q37: 24 | R37: 2.515969824 | S37: 0.4304470826 | T37: 0.8804822791 | U37: 1.361603414 | V37: 1.872886584 | W37: 0.007015408313 | X37: 0.007015408313 | Y37: 1.037286516 | Z37: 0.001075963317 | AA37: 0.001075963317 | AB37: 1.172329026 | AC37: 0.05634856913 | AD37: 0.05514588859 | AE37: 0 | AF37: 0.008758034433 | AG37: 0.1208517566 | AH37: 2.226151121 | AI37: 0.104070725 | AJ37: 0.02757403443 | AK37: 0.1328615351 | AL37: 0.02016 | AM37: 0.00084 | AN37: 0.045 | AO37: 0.1863 | AP37: 0.171 | AQ37: 0.04584 | AR37: 1.628826613 | AS37: 1.716964139 | AT37: 1.716964139 | AU37: 8.4 | AV37: 0.8302886009 | AW37: 2.951461846 | AX37: 3.069315373 | AZ37: 83.02886009 | BA37: 1.361603414 | BB37: 0.2738732918 | BC37: 0.1341573566 | BD37: 0.1395143351 | BE37: 1.635476705
A38: RdsonTopTc | B38: =RdsonTopTc*1000000 -> 4000 | C38: ppm | D38: Drain to Source Resistance Temp Co | G38: 29 | H38: 24 | I38: 1 | J38: 1.74 | K38: 1.74 | L38: 0.4027777778 | M38: 0.2174273003 | N38: 6.494968149 | O38: 4.987484074 | P38: -1.507484074 | Q38: 24 | R38: 2.557925775 | S38: 0.4449229304 | T38: 0.8804822791 | U38: 1.378430733 | V38: 1.874935805 | W38: 0.007030768542 | X38: 0.007030768542 | Y38: 1.05513328 | Z38: 0.001113306239 | AA38: 0.001113306239 | AB38: 1.192737777 | AC38: 0.05832755964 | AD38: 0.05711538462 | AE38: 0 | AF38: 0.008441910817 | AG38: 0.1245240151 | AH38: 2.262821439 | AI38: 0.1075275782 | AJ38: 0.02792991082 | AK38: 0.13675149 | AL38: 0.02088 | AM38: 0.00084 | AN38: 0.045 | AO38: 0.1863 | AP38: 0.171 | AQ38: 0.04584 | AR38: 1.651467554 | AS38: 1.744010485 | AT38: 1.744010485 | AU38: 8.7 | AV38: 0.8330133345 | AW38: 3.042705932 | AX38: 3.160121579 | AZ38: 83.30133345 | BA38: 1.378430733 | BB38: 0.282155505 | BC38: 0.1383048151 | BD38: 0.14364189 | BE38: 1.660586238
A39: QgTop | B39: =Qg_Q1*1000000000 -> 3 | C39: nC | D39: Gate Charge Of Top FET | G39: 30 | H39: 24 | I39: 1 | J39: 1.8 | K39: 1.8 | L39: 0.4166666667 | M39: 0.2177403922 | N39: 6.502059373 | O39: 5.051029686 | P39: -1.451029686 | Q39: 24 | R39: 2.600589294 | S39: 0.4598883978 | T39: 0.8804822791 | U39: 1.395873323 | V39: 1.876982865 | W39: 0.007046129348 | X39: 0.007046129348 | Y39: 1.073289112 | Z39: 0.001151949518 | AA39: 0.001151949518 | AB39: 1.213504163 | AC39: 0.06037628654 | AD39: 0.05908488064 | AE39: 0 | AF39: 0.008125766244 | AG39: 0.1282684382 | AH39: 2.300102676 | AI39: 0.1110999187 | AJ39: 0.02828576624 | AK39: 0.1407618847 | AL39: 0.0216 | AM39: 0.00084 | AN39: 0.045 | AO39: 0.1863 | AP39: 0.171 | AQ39: 0.04584 | AR39: 1.674783295 | AS39: 1.771979671 | AT39: 1.771979671 | AU39: 9 | AV39: 0.8355010198 | AW39: 3.135537639 | AX39: 3.253577464 | AZ39: 83.55010198 | BA39: 1.395873323 | BB39: 0.2906303229 | BC39: 0.1425244382 | BD39: 0.1478898847 | BE39: 1.686503646
A40: QgdTop | B40: =Qgd_Q1*1000000000 -> 1 | C40: nC | D40: Gate to Drain Charge | G40: 31 | H40: 24 | I40: 1 | J40: 1.86 | K40: 1.86 | L40: 0.4305555556 | M40: 0.2180534513 | N40: 6.509143114 | O40: 5.114571557 | P40: -1.394571557 | Q40: 24 | R40: 2.643926122 | S40: 0.4753434831 | T40: 0.8804822791 | U40: 1.413935983 | V40: 1.879027764 | W40: 0.007061490679 | X40: 0.007061490679 | Y40: 1.091740275 | Z40: 0.001191896827 | AA40: 0.001191896827 | AB40: 1.234612865 | AC40: 0.06249502602 | AD40: 0.06105437666 | AE40: 0 | AF40: 0.007809600719 | AG40: 0.1320854154 | AH40: 2.33796416 | AI40: 0.1147876047 | AJ40: 0.02864160072 | AK40: 0.1448928125 | AL40: 0.02232 | AM40: 0.00084 | AN40: 0.045 | AO40: 0.1863 | AP40: 0.171 | AQ40: 0.04584 | AR40: 1.698773971 | AS40: 1.800882322 | AT40: 1.800882322 | AU40: 9.3 | AV40: 0.8377712447 | AW40: 3.229965538 | AX40: 3.349685075 | AZ40: 83.77712447 | BA40: 1.413935983 | BB40: 0.2992982278 | BC40: 0.1468166154 | BD40: 0.1522584125 | BE40: 1.71323421
A41: QgsTop | B41: =Qgs_Q1*1000000000 -> 1 | C41: nC | G41: 32 | H41: =Vin -> 24 | I41: =MODE -> 1 | J41: 1.92 | K41: =Iout*G41/100/Number_of_Phases -> 1.92 | L41: =Vout*K41/(Vin*Efficiency) -> 0.4444444444 | M41: =(Vout+(Rdson2+Rs+Rdcr)*K41)/(Vin+(Rs+Rdson2-Rdson1)*K41) -> 0.2183664777 | N41: =(Vin-(Rdson1+Rdcr)*K41-Vout)*M41/(Fsw*Lf) -> 6.516219373 | O41: 5.178109686 | P41: -1.338109686 | Q41: =IF(MIN(Vin, -P41/(Coss_Q1+Coss_Q2)*0.00000002)<0, 0, MIN(Vin, -P41/(Coss_Q1+Coss_Q2)*0.00000002)) -> 24 | R41: 2.687903689 | S41: =R41^2*Rdcr -> 0.4912881845 | T41: =Core_Loss -> 0.8804822791 | U41: =(T41+S41*(1+Ltc*(Ta-25)))/(1-S41*Ltc*ThetaCa) -> 1.4326237 | V41: 1.881070504 | W41: 0.007076852485 | X41: 0.007076852485 | Y41: 1.110473697 | Z41: 0.001233151832 | AA41: 0.001233151832 | AB41: 1.256049306 | AC41: =Rdson1*AB41^2 -> 0.06468405419 | AD41: =(Vin*K41/2)*Fsw*(Tr_buck+Tf_buck) -> 0.06302387268 | AE41: =(0.5*Coss_Q1*(Vin-Q41)^2-0.5*Coss_Q2*(Vin-Q41)^2+(Qoss_Q2*(Vin-Q41)/Vin)*Vin)*Fsw -> 0 | AF41: =IF(K41>N41/2,0,ABS(K41-N41/2)*Vsd_Q1*Deadtime*Fsw) -> 0.007493414243 | AG41: =(AF41+AE41+AD41+AC41*(1+RdsonTopTc*Ta-RdsonTopTc*25))/(1-AC41*RdsonTopTc*ThetaJA_Q1) -> 0.1359753395 | AH41: =SQRT((1-M41))*SQRT(K41^2+(N41^2)/12) -> 2.376376735 | AI41: =Rdson2*AH41^2 -> 0.1185904941 | AJ41: =IF(K41<N41/2,Deadtime*Fsw*Vsd_Q2*(K41+N41/2),2*Deadtime*Fsw*Vsd_Q2*K41) -> 0.02899741424 | AK41: =(AJ41+AI41*(1+RdsonBotTc*Ta-RdsonBotTc*25))/(1-AI41*RdsonBotTc*ThetaJA_Q2) -> 0.1491443736 | AL41: =Qrr_Q2*K41/Iout*Fsw*Vin -> 0.02304 | AM41: =Iq*Vin -> 0.00084 | AN41: =IF(Ext_VCC=1, (Qg_Q1+Qg_Q2)*Fsw*Vout, (Qg_Q1+Qg_Q2)*Fsw*Vin) -> 0.045 | AO41: =(Vin-VCC)*Fsw*(Qg_Q1+Qg_Q2) -> 0.1863 | AP41: =(Qg_Q1+Qg_Q2)*Fsw*(Vin-Vout) -> 0.171 | AQ41: =SUM(AM41:AN41) -> 0.04584 | AR41: 1.723439713 | AS41: =((T41+S41*(1+Ltc*(Ta-25))) + (AF41+AE41+AD41+AC41*(1+RdsonTC*(Ta-25))) + (AJ41+AI41*(1+RdsonTC*(Ta-25))) + AQ41 + AL41) / (1-S41*Ltc*ThetaCa-AC41*RdsonTC*ThetaJA_Q1 -AI41*RdsonTC*ThetaJA_Q2) -> 1.830729499 | AT41: 1.830729499 | AU41: =Vout*K41 -> 9.6 | AV41: 0.8398414117 | AW41: =ThetaJA_Q1*BC41 -> 3.325998269 | AX41: =ThetaJA_Q2*BD41 -> 3.448446618 | AZ41: 83.98414117 | BA41: =U41 -> 1.4326237 | BB41: =AG41+AK41+AL41 -> 0.308159713 | BC41: =AG41+AL41*0.66 -> 0.1511817395 | BD41: =AK41+AL41*0.33 -> 0.1567475736 | BE41: 1.740783413
A42: RGateTop | B42: =Rgate1 -> 1 | C42: W | D42: Gate Resistance | G42: 33 | H42: 24 | I42: 1 | J42: =Iout*G42/100 -> 1.98 | K42: 1.98 | L42: 0.4583333333 | M42: 0.2186794711 | N42: 6.523288151 | O42: 5.241644075 | P42: -1.281644075 | Q42: 24 | R42: 2.732491054 | S42: 0.5077225003 | T42: 0.8804822791 | U42: 1.451941661 | V42: 1.883111085 | W42: 0.007092214716 | X42: 0.007092214716 | Y42: 1.129476954 | Z42: 0.001275718189 | AA42: 0.001275718189 | AB42: 1.277799624 | AC42: 0.06694364709 | AD42: 0.0649933687 | AE42: 0 | AF42: 0.007177206821 | AG42: 0.1399386067 | AH42: 2.415312708 | AI42: 0.122508445 | AJ42: 0.02935320682 | AK42: 0.1535166757 | AL42: 0.02376 | AM42: 0.00084 | AN42: 0.045 | AO42: 0.1863 | AP42: 0.171 | AQ42: 0.04584 | AR42: 1.748780654 | AS42: 1.861532706 | AT42: 1.861532706 | AU42: 9.9 | AV42: 0.8417270306 | AW42: 3.423644547 | AX42: 3.549864465 | AZ42: 84.17270306 | BA42: 1.451941661 | BB42: 0.3172152824 | BC42: 0.1556202067 | BD42: 0.1613574757 | BE42: 1.769156943
A43: GfsTop | B43: =Gfs_Q1 -> 100 | C43: S | D43: Transconductance of Top FET | G43: 34 | H43: 24 | I43: 1 | J43: 2.04 | K43: 2.04 | L43: 0.4722222222 | M43: 0.2189924318 | N43: 6.530349449 | O43: 5.305174724 | P43: -1.225174724 | Q43: 24 | R43: 2.777658845 | S43: 0.5246464289 | T43: 0.8804822791 | U43: 1.471895246 | V43: 1.885149506 | W43: 0.00710757732 | X43: 0.00710757732 | Y43: 1.14873824 | Z43: 0.001319599545 | AA43: 0.001319599545 | AB43: 1.299850655 | AC43: 0.06927408074 | AD43: 0.06696286472 | AE43: 0 | AF43: 0.006860978456 | AG43: 0.1439756164 | AH43: 2.454745798 | AI43: 0.1265413156 | AJ43: 0.02970897846 | AK43: 0.1580098341 | AL43: 0.02448 | AM43: 0.00084 | AN43: 0.045 | AO43: 0.1863 | AP43: 0.171 | AQ43: 0.04584 | AR43: 1.774796926 | AS43: 1.893303901 | AT43: 1.893303901 | AU43: 10.2 | AV43: 0.8434419645 | AW43: 3.522913161 | AX43: 3.653941149 | AZ43: 84.34419645 | BA43: 1.471895246 | BB43: 0.3264654505 | BC43: 0.1601324164 | BD43: 0.1660882341 | BE43: 1.798360696
A44: VthTop | B44: =Vth_Q1 -> 1.5 | C44: V | D44: Threshold Voltage of Top FET | G44: 35 | H44: 24 | I44: 1 | J44: 2.1 | K44: 2.1 | L44: 0.4861111111 | M44: 0.2193053597 | N44: 6.537403268 | O44: 5.368701634 | P44: -1.168701634 | Q44: 24 | R44: 2.823379203 | S44: 0.5420599685 | T44: 0.8804822791 | U44: 1.492490039 | V44: 1.887185768 | W44: 0.007122940249 | X44: 0.007122940249 | Y44: 1.168246351 | Z44: 0.001364799537 | AA44: 0.001364799537 | AB44: 1.322189897 | AC44: 0.07167563105 | AD44: 0.06893236074 | AE44: 0 | AF44: 0.006544729152 | AG44: 0.1480867717 | AH44: 2.494651078 | AI44: 0.130688964 | AJ44: 0.03006472915 | AK44: 0.1626239711 | AL44: 0.0252 | AM44: 0.00084 | AN44: 0.045 | AO44: 0.1863 | AP44: 0.171 | AQ44: 0.04584 | AR44: 1.801488662 | AS44: 1.926055511 | AT44: 1.926055511 | AU44: 10.5 | AV44: 0.8449986394 | AW44: 3.623812977 | AX44: 3.760679364 | AZ44: 84.49986394 | BA44: 1.492490039 | BB44: 0.3359107428 | BC44: 0.1647187717 | BD44: 0.1709399711 | BE44: 1.828400782
A45: VspTop | B45: =Vsp_Q1 -> 1.56 | C45: V | G45: 36 | H45: 24 | I45: 1 | J45: 2.16 | K45: 2.16 | L45: 0.5 | M45: 0.2196182548 | N45: 6.544449611 | O45: 5.432224805 | P45: -1.112224805 | Q45: 24 | R45: 2.869625712 | S45: 0.5599631173 | T45: 0.8804822791 | U45: 1.513731832 | V45: 1.889219872 | W45: 0.007138303451 | X45: 0.007138303451 | Y45: 1.187990654 | Z45: 0.001411321793 | AA45: 0.001411321793 | AB45: 1.344805489 | AC45: 0.07414857392 | AD45: 0.07090185676 | AE45: 0 | AF45: 0.00622845891 | AG45: 0.1522724789 | AH45: 2.535004916 | AI45: 0.1349512484 | AJ45: 0.03042045891 | AK45: 0.1673592168 | AL45: 0.02592 | AM45: 0.00084 | AN45: 0.045 | AO45: 0.1863 | AP45: 0.171 | AQ45: 0.04584 | AR45: 1.828855993 | AS45: 1.959800443 | AT45: 1.959800443 | AU45: 10.8 | AV45: 0.8464082215 | AW45: 3.726352935 | AX45: 3.870081969 | AZ45: 84.64082215 | BA45: 1.513731832 | BB45: 0.3455516957 | BC45: 0.1693796789 | BD45: 0.1759128168 | BE45: 1.859283527
A46: VsdTop | B46: =Vsd_Q1 -> 0.7 | C46: V | G46: 37 | H46: 24 | I46: 1 | J46: 2.22 | K46: 2.22 | L46: 0.5138888889 | M46: 0.2199311171 | N46: 6.551488477 | O46: 5.495744238 | P46: -1.055744238 | Q46: 24 | R46: 2.916373337 | S46: 0.5783558738 | T46: 0.8804822791 | U46: 1.535626623 | V46: 1.891251818 | W46: 0.007153666877 | X46: 0.007153666877 | Y46: 1.207961065 | Z46: 0.001459169933 | AA46: 0.001459169933 | AB46: 1.367686182 | AC46: 0.07669318516 | AD46: 0.07287135279 | AE46: 0 | AF46: 0.005912167735 | AG46: 0.1565331479 | AH46: 2.575784919 | AI46: 0.1393280269 | AJ46: 0.03077616774 | AK46: 0.1722157084 | AL46: 0.02664 | AM46: 0.00084 | AN46: 0.045 | AO46: 0.1863 | AP46: 0.171 | AQ46: 0.04584 | AR46: 1.856899053 | AS46: 1.9945521 | AT46: 1.9945521 | AU46: 11.1 | AV46: 0.8476807695 | AW46: 3.830542055 | AX46: 3.982151985 | AZ46: 84.76807695 | BA46: 1.535626623 | BB46: 0.3553888563 | BC46: 0.1741155479 | BD46: 0.1810069084 | BE46: 1.891015479
A47: θJATop | B47: =ThetaJA_Q1 -> 22 | C47: °C/W | D47: Junction to Ambient Resistance | G47: 38 | H47: 24 | I47: 1 | J47: 2.28 | K47: 2.28 | L47: 0.5277777778 | M47: 0.2202439467 | N47: 6.558519868 | O47: 5.559259934 | P47: -0.999259934 | Q47: 24 | R47: 2.96359836 | S47: 0.5972382362 | T47: 0.8804822791 | U47: 1.558180628 | V47: 1.893281606 | W47: 0.007169030477 | X47: 0.007169030477 | Y47: 1.228148023 | Z47: 0.001508347567 | AA47: 0.001508347567 | AB47: 1.39082131 | AC47: 0.07930974053 | AD47: 0.07484084881 | AE47: 0 | AF47: 0.005595855631 | AG47: 0.1608691924 | AH47: 2.616969874 | AI47: 0.1438191578 | AJ47: 0.03113185563 | AK47: 0.1771935907 | AL47: 0.02736 | AM47: 0.00084 | AN47: 0.045 | AO47: 0.1863 | AP47: 0.171 | AQ47: 0.04584 | AR47: 1.885617974 | AS47: 2.030324393 | AT47: 2.030324393 | AU47: 11.4 | AV47: 0.8488253647 | AW47: 3.936389433 | AX47: 4.096892596 | AZ47: 84.88253647 | BA47: 1.558180628 | BB47: 0.3654227831 | BC47: 0.1789267924 | BD47: 0.1862223907 | BE47: 1.923603411
A48: Low-side FET | B48: Input Value | C48: Units | D48: Description | G48: 39 | H48: 24 | I48: 1 | J48: 2.34 | K48: 2.34 | L48: 0.5416666667 | M48: 0.2205567434 | N48: 6.565543785 | O48: 5.622771893 | P48: -0.9427718927 | Q48: 24 | R48: 3.011278317 | S48: 0.6166102028 | T48: 0.8804822791 | U48: 1.58140028 | V48: 1.895309236 | W48: 0.0071843942 | X48: 0.0071843942 | Y48: 1.248542469 | Z48: 0.001558858296 | AA48: 0.001558858296 | AB48: 1.414200763 | AC48: 0.08199851572 | AD48: 0.07681034483 | AE48: 0 | AF48: 0.005279522599 | AG48: 0.1652810295 | AH48: 2.658539693 | AI48: 0.1484244993 | AJ48: 0.0314875226 | AK48: 0.1822930159 | AL48: 0.02808 | AM48: 0.00084 | AN48: 0.045 | AO48: 0.1863 | AP48: 0.171 | AQ48: 0.04584 | AR48: 1.915012887 | AS48: 2.067131756 | AT48: 2.067131756 | AU48: 11.7 | AV48: 0.8498502235 | AW48: 4.043904248 | AX48: 4.21430715 | AZ48: 84.98502235 | BA48: 1.58140028 | BB48: 0.3756540454 | BC48: 0.1838138295 | BD48: 0.1915594159 | BE48: 1.957054326
A49: RdsonBot | B49: =Rdson2*1000 -> 21 | C49: mW | D49: Drain-Source Resistance of Low-side FET | G49: 40 | H49: 24 | I49: 1 | J49: 2.4 | K49: 2.4 | L49: 0.5555555556 | M49: 0.2208695074 | N49: 6.57256023 | O49: 5.686280115 | P49: -0.886280115 | Q49: 24 | R49: 3.059391933 | S49: 0.6364717719 | T49: 0.8804822791 | U49: 1.605292238 | V49: 1.897334709 | W49: 0.007199757996 | X49: 0.007199757996 | Y49: 1.269135812 | Z49: 0.001610705711 | AA49: 0.001610705711 | AB49: 1.437814961 | AC49: 0.0847597864 | AD49: 0.07877984085 | AE49: 0 | AF49: 0.004963168644 | AG49: 0.1697690799 | AH49: 2.700475353 | AI49: 0.1531439098 | AJ49: 0.03184316864 | AK49: 0.1875141436 | AL49: 0.0288 | AM49: 0.00084 | AN49: 0.045 | AO49: 0.1863 | AP49: 0.171 | AQ49: 0.04584 | AR49: 1.945083925 | AS49: 2.104989163 | AT49: 2.104989163 | AU49: 12 | AV49: 0.8507627947 | AW49: 4.153095758 | AX49: 4.334399159 | AZ49: 85.07627947 | BA49: 1.605292238 | BB49: 0.3860832235 | BC49: 0.1887770799 | BD49: 0.1970181436 | BE49: 1.991375462
A50: RdsonBotTc | B50: =RdsonBotTc*1000000 -> 4000 | C50: ppm | D50: Drain To Source Resitance Temp Co | G50: 41 | H50: 24 | I50: 1 | J50: 2.46 | K50: 2.46 | L50: 0.5694444444 | M50: 0.2211822386 | N50: 6.579569203 | O50: 5.749784602 | P50: -0.8297846016 | Q50: 24 | R50: 3.107919064 | S50: 0.6568229418 | T50: 0.8804822791 | U50: 1.629863389 | V50: 1.899358025 | W50: 0.007215121817 | X50: 0.007215121817 | Y50: 1.289919918 | Z50: 0.001663893394 | AA50: 0.001663893394 | AB50: 1.461654827 | AC50: 0.08759382813 | AD50: 0.08074933687 | AE50: 0 | AF50: 0.004646793769 | AG50: 0.1743337682 | AH50: 2.742758844 | AI50: 0.1579772476 | AJ50: 0.03219879377 | AK50: 0.1928571409 | AL50: 0.02952 | AM50: 0.00084 | AN50: 0.045 | AO50: 0.1863 | AP50: 0.171 | AQ50: 0.04584 | AR50: 1.975831221 | AS50: 2.143912146 | AT50: 2.143912146 | AU50: 12.3 | AV50: 0.8515698431 | AW50: 4.263973301 | AX50: 4.4571723 | AZ50: 85.15698431 | BA50: 1.629863389 | BB50: 0.3967109091 | BC50: 0.1938169682 | BD50: 0.2025987409 | BE50: 2.026574298
A51: QgBot | B51: =Qg_Q2*1000000000 -> 6 | C51: nC | D51: Gate Charge Of Top FET | G51: 42 | H51: 24 | I51: 1 | J51: 2.52 | K51: 2.52 | L51: 0.5833333333 | M51: 0.221494937 | N51: 6.586570706 | O51: 5.813285353 | P51: -0.7732853531 | Q51: 24 | R51: 3.156840637 | S51: 0.6776637108 | T51: 0.8804822791 | U51: 1.655120852 | V51: 1.901379185 | W51: 0.007230485611 | X51: 0.007230485611 | Y51: 1.310887073 | Z51: 0.001718424918 | AA51: 0.001718424918 | AB51: 1.485711757 | AC51: 0.09050091644 | AD51: 0.08271883289 | AE51: 0 | AF51: 0.004330397977 | AG51: 0.1789755228 | AH51: 2.785373113 | AI51: 0.162924371 | AJ51: 0.03255439798 | AK51: 0.1983221824 | AL51: 0.03024 | AM51: 0.00084 | AN51: 0.045 | AO51: 0.1863 | AP51: 0.171 | AQ51: 0.04584 | AR51: 2.007254906 | AS51: 2.183916806 | AT51: 2.183916806 | AU51: 12.6 | AV51: 0.8522775233 | AW51: 4.376546302 | AX51: 4.582630414 | AZ51: 85.22775233 | BA51: 1.655120852 | BB51: 0.4075377052 | BC51: 0.1989339228 | BD51: 0.2083013824 | BE51: 2.062658557
A52: RGateBot | B52: =Rgate2 -> 1 | C52: W | D52: Gate Resistance | G52: 43 | H52: 24 | I52: 1 | J52: 2.58 | K52: 2.58 | L52: 0.5972222222 | M52: 0.2218076027 | N52: 6.59356474 | O52: 5.87678237 | P52: -0.7167823699 | Q52: 24 | R52: 3.206138591 | S52: 0.6989940772 | T52: 0.8804822791 | U52: 1.681071989 | V52: 1.903398189 | W52: 0.00724584933 | X52: 0.00724584933 | Y52: 1.332029973 | Z52: 0.001774303849 | AA52: 0.001774303849 | AB52: 1.509977603 | AC52: 0.0934813268 | AD52: 0.08468832891 | AE52: 0 | AF52: 0.004013981272 | AG52: 0.1836947757 | AH52: 2.828302018 | AI52: 0.1679851384 | AJ52: 0.03290998127 | AK52: 0.2039094503 | AL52: 0.03096 | AM52: 0.00084 | AN52: 0.045 | AO52: 0.1863 | AP52: 0.171 | AQ52: 0.04584 | AR52: 2.039355113 | AS52: 2.225019839 | AT52: 2.225019839 | AU52: 12.9 | AV52: 0.8528914432 | AW52: 4.490824266 | AX52: 4.710777506 | AZ52: 85.28914432 | BA52: 1.681071989 | BB52: 0.418564226 | BC52: 0.2041283757 | BD52: 0.2141262503 | BE52: 2.099636215
A53: VsdBot | B53: =Vsd_Q2 -> 0.7 | C53: V | D53: Diode Forward Voltage of Bottom FET Body Diode | G53: 44 | H53: 24 | I53: 1 | J53: 2.64 | K53: 2.64 | L53: 0.6111111111 | M53: 0.2221202356 | N53: 6.600551306 | O53: 5.940275653 | P53: -0.6602756529 | Q53: 24 | R53: 3.255795826 | S53: 0.7208140394 | T53: 0.8804822791 | U53: 1.707724405 | V53: 1.905415037 | W53: 0.007261212923 | X53: 0.007261212923 | Y53: 1.353341694 | Z53: 0.00183153374 | AA53: 0.00183153374 | AB53: 1.534444641 | AC53: 0.09653533462 | AD53: 0.08665782493 | AE53: 0 | AF53: 0.003697543656 | AG53: 0.1884919631 | AH53: 2.871530272 | AI53: 0.1731594082 | AJ53: 0.03326554366 | AK53: 0.2096191341 | AL53: 0.03168 | AM53: 0.00084 | AN53: 0.045 | AO53: 0.1863 | AP53: 0.171 | AQ53: 0.04584 | AR53: 2.072131974 | AS53: 2.26723855 | AT53: 2.26723855 | AU53: 13.2 | AV53: 0.8534167206 | AW53: 4.606816787 | AX53: 4.84161775 | AZ53: 85.34167206 | BA53: 1.707724405 | BB53: 0.4297910971 | BC53: 0.2094007631 | BD53: 0.2200735341 | BE53: 2.137515502
A54: QrrBot | B54: =Qrr_Q2*1000000000 -> 3 | C54: nC | D54: Reverse Recovery Charge of Body Diode | G54: 45 | H54: 24 | I54: 1 | J54: 2.7 | K54: 2.7 | L54: 0.625 | M54: 0.2224328358 | N54: 6.607530405 | O54: 6.003765202 | P54: -0.6037652024 | Q54: 24 | R54: 3.305796148 | S54: 0.7431235956 | T54: 0.8804822791 | U54: 1.735085956 | V54: 1.907429729 | W54: 0.007276576342 | X54: 0.007276576342 | Y54: 1.374815674 | Z54: 0.001890118138 | AA54: 0.001890118138 | AB54: 1.559105554 | AC54: 0.09966321524 | AD54: 0.08862732095 | AE54: 0 | AF54: 0.003381085133 | AG54: 0.1933675247 | AH54: 2.915043403 | AI54: 0.1784470389 | AJ54: 0.03362108513 | AK54: 0.215451431 | AL54: 0.0324 | AM54: 0.00084 | AN54: 0.045 | AO54: 0.1863 | AP54: 0.171 | AQ54: 0.04584 | AR54: 2.10558562 | AS54: 2.310590874 | AT54: 2.310590874 | AU54: 13.5 | AV54: 0.8538580315 | AW54: 4.724533543 | AX54: 4.975155482 | AZ54: 85.38580315 | BA54: 1.735085956 | BB54: 0.4412189557 | BC54: 0.2147515247 | BD54: 0.226143431 | BE54: 2.176304912
A55: TrrBot | B55: =Trr_Q2*1000000000 -> 40 | C55: ns | D55: Reverse Recovery Time of Body Diode | G55: 46 | H55: 24 | I55: 1 | J55: 2.76 | K55: 2.76 | L55: 0.6388888889 | M55: 0.2227454032 | N55: 6.614502038 | O55: 6.067251019 | P55: -0.5472510191 | Q55: 24 | R55: 3.356124218 | S55: 0.7659227442 | T55: 0.8804822791 | U55: 1.763164756 | V55: 1.909442266 | W55: 0.007291939535 | X55: 0.007291939535 | Y55: 1.396445695 | Z55: 0.001950060578 | AA55: 0.001950060578 | AB55: 1.583953405 | AC55: 0.102865244 | AD55: 0.09059681698 | AE55: 0 | AF55: 0.003064605707 | AG55: 0.1983219046 | AH55: 2.958827703 | AI55: 0.1838478889 | AJ55: 0.03397660571 | AK55: 0.2214065457 | AL55: 0.03312 | AM55: 0.00084 | AN55: 0.045 | AO55: 0.1863 | AP55: 0.171 | AQ55: 0.04584 | AR55: 2.139716185 | AS55: 2.355095396 | AT55: 2.355095396 | AU55: 13.8 | AV55: 0.854219654 | AW55: 4.843984301 | AX55: 5.111395206 | AZ55: 85.4219654 | BA55: 1.763164756 | BB55: 0.4528484503 | BC55: 0.2201811046 | BD55: 0.2323361457 | BE55: 2.216013207
A56: θJABot | B56: =ThetaJA_Q2 -> 22 | C56: °C/W | D56: Junction to Ambient Resistance | G56: 47 | H56: 24 | I56: 1 | J56: 2.82 | K56: 2.82 | L56: 0.6527777778 | M56: 0.2230579379 | N56: 6.621466207 | O56: 6.130733104 | P56: -0.4907331036 | Q56: 24 | R56: 3.406765508 | S56: 0.7892114835 | T56: 0.8804822791 | U56: 1.791969183 | V56: 1.911452649 | W56: 0.007307302455 | X56: 0.007307302455 | Y56: 1.41822586 | Z56: 0.002011364589 | AA56: 0.002011364589 | AB56: 1.60898162 | AC56: 0.106141696 | AD56: 0.092566313 | AE56: 0 | AF56: 0.00274810538 | AG56: 0.2033555506 | AH56: 3.002870189 | AI56: 0.1893618169 | AJ56: 0.03433210538 | AK56: 0.2274846907 | AL56: 0.03384 | AM56: 0.00084 | AN56: 0.045 | AO56: 0.1863 | AP56: 0.171 | AQ56: 0.04584 | AR56: 2.174523799 | AS56: 2.400771375 | AT56: 2.400771375 | AU56: 14.1 | AV56: 0.8545055064 | AW56: 4.965178914 | AX56: 5.250341595 | AZ56: 85.45055064 | BA56: 1.791969183 | BB56: 0.4646802413 | BC56: 0.2256899506 | BD56: 0.2386518907 | BE56: 2.256649424
G57: 48 | H57: 24 | I57: 1 | J57: 2.88 | K57: 2.88 | L57: 0.6666666667 | M57: 0.2233704398 | N57: 6.628422913 | O57: 6.194211456 | P57: -0.4342114564 | Q57: 24 | R57: 3.457706252 | S57: 0.8129898118 | T57: 0.8804822791 | U57: 1.821507882 | V57: 1.913460877 | W57: 0.007322665052 | X57: 0.007322665052 | Y57: 1.440150579 | Z57: 0.002074033689 | AA57: 0.002074033689 | AB57: 1.634183965 | AC57: 0.1094928465 | AD57: 0.09453580902 | AE57: 0 | AF57: 0.002431584156 | AG57: 0.2084689149 | AH57: 3.047158561 | AI57: 0.1949886812 | AJ57: 0.03468758416 | AK57: 0.2336860858 | AL57: 0.03456 | AM57: 0.00084 | AN57: 0.045 | AO57: 0.1863 | AP57: 0.171 | AQ57: 0.04584 | AR57: 2.210008596 | AS57: 2.447638764 | AT57: 2.447638764 | AU57: 14.4 | AV57: 0.8547191806 | AW57: 5.088127329 | AX57: 5.391999487 | AZ57: 85.47191806 | BA57: 1.821507882 | BB57: 0.4767150007 | BC57: 0.2312785149 | BD57: 0.2450908858 | BE57: 2.298222883
G58: 49 | H58: 24 | I58: 1 | J58: 2.94 | K58: 2.94 | L58: 0.6805555556 | M58: 0.223682909 | N58: 6.635372156 | O58: 6.257686078 | P58: -0.3776860782 | Q58: 24 | R58: 3.508933405 | S58: 0.8372577274 | T58: 0.8804822791 | U58: 1.851789778 | V58: 1.91546695 | W58: 0.007338027276 | X58: 0.007338027276 | Y58: 1.462214549 | Z58: 0.002138071386 | AA58: 0.002138071386 | AB58: 1.65955453 | AC58: 0.1129189707 | AD58: 0.09650530504 | AE58: 0 | AF58: 0.002115042038 | AG58: 0.2136624537 | AH58: 3.091681161 | AI58: 0.2007283404 | AJ58: 0.03504304204 | AK58: 0.2400109586 | AL58: 0.03528 | AM58: 0.00084 | AN58: 0.045 | AO58: 0.1863 | AP58: 0.171 | AQ58: 0.04584 | AR58: 2.246170707 | AS58: 2.495718238 | AT58: 2.495718238 | AU58: 14.7 | AV58: 0.8548639723 | AW58: 5.212839581 | AX58: 5.536373889 | AZ58: 85.48639723 | BA58: 1.851789778 | BB58: 0.4889534123 | BC58: 0.2369472537 | BD58: 0.2516533586 | BE58: 2.34074319
G59: 50 | H59: 24 | I59: 1 | J59: 3 | K59: 3 | L59: 0.6944444444 | M59: 0.2239953456 | N59: 6.642313939 | O59: 6.32115697 | P59: -0.3211569696 | Q59: 21.41046464 | R59: 3.5604346 | S59: 0.8620152286 | T59: 0.8804822791 | U59: 1.882824079 | V59: 1.91747087 | W59: 0.007353389078 | X59: 0.007353389078 | Y59: 1.48441274 | Z59: 0.002203481182 | AA59: 0.002203481182 | AB59: 1.685087705 | AC59: 0.1164203435 | AD59: 0.09847480106 | AE59: 0.004843786054 | AF59: 0.00179847903 | AG59: 0.2238305515 | AH59: 3.136426942 | AI59: 0.2065806533 | AJ59: 0.03539847903 | AK59: 0.2464595444 | AL59: 0.036 | AM59: 0.00084 | AN59: 0.045 | AO59: 0.1863 | AP59: 0.171 | AQ59: 0.04584 | AR59: 2.28785405 | AS59: 2.550430922 | AT59: 2.550430922 | AU59: 15 | AV59: 0.8546798689 | AW59: 5.446992133 | AX59: 5.683469976 | AZ59: 85.46798689 | BA59: 1.882824079 | BB59: 0.5062900959 | BC59: 0.2475905515 | BD59: 0.2583395444 | BE59: 2.389114175
G60: 51 | H60: 24 | I60: 1 | J60: 3.06 | K60: 3.06 | L60: 0.7083333333 | M60: 0.2243077493 | N60: 6.649248262 | O60: 6.384624131 | P60: -0.264624131 | Q60: 17.64160874 | R60: 3.612198113 | S60: 0.8872623139 | T60: 0.8804822791 | U60: 1.914620284 | V60: 1.919472637 | W60: 0.007368750408 | X60: 0.007368750408 | Y60: 1.506740378 | Z60: 0.002270266565 | AA60: 0.002270266565 | AB60: 1.710778171 | AC60: 0.11999724 | AD60: 0.1004442971 | AE60: 0.01069532555 | AF60: 0.001481895134 | AG60: 0.2351013712 | AH60: 3.18138543 | AI60: 0.2125454783 | AJ60: 0.03575389513 | AK60: 0.2530320861 | AL60: 0.03672 | AM60: 0.00084 | AN60: 0.045 | AO60: 0.1863 | AP60: 0.171 | AQ60: 0.04584 | AR60: 2.331222724 | AS60: 2.607563019 | AT60: 2.607563019 | AU60: 15.3 | AV60: 0.8543876117 | AW60: 5.705404565 | AX60: 5.833293094 | AZ60: 85.43876117 | BA60: 1.914620284 | BB60: 0.5248534573 | BC60: 0.2593365712 | BD60: 0.2651496861 | BE60: 2.439473741
A61: Controller | B61: Input Value | C61: Units | D61: Std Units | G61: 52 | H61: 24 | I61: 1 | J61: 3.12 | K61: 3.12 | L61: 0.7222222222 | M61: 0.2246201204 | N61: 6.656175126 | O61: 6.448087563 | P61: -0.2080875632 | Q61: 13.87250422 | R61: 3.664212823 | S61: 0.9129989814 | T61: 0.8804822791 | U61: 1.947188192 | V61: 1.921472251 | W61: 0.007384111219 | X61: 0.007384111219 | Y61: 1.529192931 | Z61: 0.002338431019 | AA61: 0.002338431019 | AB61: 1.736620878 | AC61: 0.1236499351 | AD61: 0.1024137931 | AE61: 0.01512668303 | AF61: 0.001165290354 | AG61: 0.2450218317 | AH61: 3.226546689 | AI61: 0.2186226742 | AJ61: 0.03610929035 | AK61: 0.2597288345 | AL61: 0.03744 | AM61: 0.00084 | AN61: 0.045 | AO61: 0.1863 | AP61: 0.171 | AQ61: 0.04584 | AR61: 2.373848927 | AS61: 2.664425531 | AT61: 2.664425531 | AU61: 15.6 | AV61: 0.8541193904 | AW61: 5.934109098 | AX61: 5.985848758 | AZ61: 85.41193904 | BA61: 1.947188192 | BB61: 0.5421906662 | BC61: 0.2697322317 | BD61: 0.2720840345 | BE61: 2.489378858
A62: θJA | B62: 20 | C62: °C/W | D62: Junction to Ambient Resistance | G62: 53 | H62: 24 | I62: 1 | J62: 3.18 | K62: 3.18 | L62: 0.7361111111 | M62: 0.2249324588 | N62: 6.663094533 | O62: 6.511547267 | P62: -0.1515472667 | Q62: 10.10315111 | R62: 3.71646818 | S62: 0.9392252296 | T62: 0.8804822791 | U62: 1.980537908 | V62: 1.923469711 | W62: 0.00739947146 | X62: 0.00739947146 | Y62: 1.551766096 | Z62: 0.002407978016 | AA62: 0.002407978016 | AB62: 1.762611032 | AC62: 0.1273787037 | AD62: 0.1043832891 | AE62: 0.01813757732 | AF62: 0.0008486646937 | AG62: 0.2535908169 | AH62: 3.271901294 | AI62: 0.2248120997 | AJ62: 0.03646466469 | AK62: 0.2665500478 | AL62: 0.03816 | AM62: 0.00084 | AN62: 0.045 | AO62: 0.1863 | AP62: 0.171 | AQ62: 0.04584 | AR62: 2.415732508 | AS62: 2.721026832 | AT62: 2.721026832 | AU62: 15.9 | AV62: 0.8538734273 | AW62: 6.133081173 | AX62: 6.141142653 | AZ62: 85.38734273 | BA62: 1.980537908 | BB62: 0.5583008648 | BC62: 0.2787764169 | BD62: 0.2791428478 | BE62: 2.538838773
A63: Theta Ja | B63: 2 | C63: °C/W | D63: Junction to Ambient Resistance | G63: 54 | H63: 24 | I63: 1 | J63: 3.24 | K63: 3.24 | L63: 0.75 | M63: 0.2252447644 | N63: 6.670006484 | O63: 6.575003242 | P63: -0.09500324209 | Q63: 6.333549473 | R63: 3.768954171 | S63: 0.9659410568 | T63: 0.8804822791 | U63: 2.014679855 | V63: 1.92546502 | W63: 0.007414831083 | X63: 0.007414831083 | Y63: 1.574455785 | Z63: 0.002478911019 | AA63: 0.002478911019 | AB63: 1.788744079 | AC63: 0.1311838206 | AD63: 0.1063527851 | AE63: 0.01972772734 | AF63: 0.0005320181557 | AG63: 0.260807155 | AH63: 3.317440303 | AI63: 0.2311136134 | AJ63: 0.03682001816 | AK63: 0.2734959925 | AL63: 0.03888 | AM63: 0.00084 | AN63: 0.045 | AO63: 0.1863 | AP63: 0.171 | AQ63: 0.04584 | AR63: 2.456873319 | AS63: 2.777375314 | AT63: 2.777375314 | AU63: 16.2 | AV63: 0.85364808 | AW63: 6.302295009 | AX63: 6.299180635 | AZ63: 85.364808 | BA63: 2.014679855 | BB63: 0.5731831475 | BC63: 0.286467955 | BD63: 0.2863263925 | BE63: 2.587863003
G64: 55 | H64: 24 | I64: 1 | J64: 3.3 | K64: 3.3 | L64: 0.7638888889 | M64: 0.2255570374 | N64: 6.67691098 | O64: 6.63845549 | P64: -0.03845548993 | Q64: 2.563699329 | R64: 3.821661291 | S64: 0.9931464613 | T64: 0.8804822791 | U64: 2.049624779 | V64: 1.927458176 | W64: 0.007430190039 | X64: 0.007430190039 | Y64: 1.597258114 | Z64: 0.002551233483 | AA64: 0.002551233483 | AB64: 1.815015692 | AC64: 0.1350655605 | AD64: 0.1083222812 | AE64: 0.01989685202 | AF64: 0.0002153507436 | AG64: 0.266669618 | AH64: 3.363155223 | AI64: 0.2375270742 | AJ64: 0.03717535074 | AK64: 0.2805669425 | AL64: 0.0396 | AM64: 0.00084 | AN64: 0.045 | AO64: 0.1863 | AP64: 0.171 | AQ64: 0.04584 | AR64: 2.49727121 | AS64: 2.833479393 | AT64: 2.833479393 | AU64: 16.5 | AV64: 0.8534418283 | AW64: 6.441723596 | AX64: 6.459968735 | AZ64: 85.34418283 | BA64: 2.049624779 | BB64: 0.5868365605 | BC64: 0.292805618 | BD64: 0.2936349425 | BE64: 2.63646134
G65: 56 | H65: 24 | I65: 1 | J65: 3.36 | K65: 3.36 | L65: 0.7777777778 | M65: 0.2258692777 | N65: 6.683808022 | O65: 6.701904011 | P65: 0.01809598917 | Q65: 0 | R65: 3.874580511 | S65: 1.020841441 | T65: 0.8804822791 | U65: 2.08538376 | V65: 1.92944918 | W65: 0.007445548278 | X65: 0.007445548278 | Y65: 1.62016939 | Z65: 0.002624948853 | AA65: 0.002624948853 | AB65: 1.841421761 | AC65: 0.1390241982 | AD65: 0.1102917772 | AE65: 0.0192 | AF65: 0 | AG65: 0.2718417222 | AH65: 3.409037993 | AI65: 0.2440523408 | AJ65: 0.037632 | AK65: 0.2878667413 | AL65: 0.04032 | AM65: 0.00084 | AN65: 0.045 | AO65: 0.1863 | AP65: 0.171 | AQ65: 0.04584 | AR65: 2.537684037 | AS65: 2.890210814 | AT65: 2.890210814 | AU65: 16.8 | AV65: 0.8532158522 | AW65: 6.565964289 | AX65: 6.62579151 | AZ65: 85.32158522 | BA65: 2.08538376 | BB65: 0.6000284636 | BC65: 0.2984529222 | BD65: 0.3011723413 | BE65: 2.685412223
A66: Outputs | G66: 57 | H66: 24 | I66: 1 | J66: 3.42 | K66: 3.42 | L66: 0.7916666667 | M66: 0.2261814852 | N66: 6.690697611 | O66: 6.765348805 | P66: 0.07465119464 | Q66: 0 | R66: 3.927703257 | S66: 1.049025996 | T66: 0.8804822791 | U66: 2.121968219 | V66: 1.931438033 | W66: 0.007460905753 | X66: 0.007460905753 | Y66: 1.643186102 | Z66: 0.002700060565 | AA66: 0.002700060565 | AB66: 1.867958376 | AC66: 0.1430600083 | AD66: 0.1122612732 | AE66: 0.0192 | AF66: 0 | AG66: 0.2780213706 | AH66: 3.455080951 | AI66: 0.250689272 | AJ66: 0.038304 | AK66: 0.2955124709 | AL66: 0.04104 | AM66: 0.00084 | AN66: 0.045 | AO66: 0.1863 | AP66: 0.171 | AQ66: 0.04584 | AR66: 2.579902828 | AS66: 2.949635929 | AT66: 2.949635929 | AU66: 17.1 | AV66: 0.8528833172 | AW66: 6.712370954 | AX66: 6.799224761 | AZ66: 85.28833172 | BA66: 2.121968219 | BB66: 0.6145738416 | BC66: 0.3051077706 | BD66: 0.3090556709 | BE66: 2.736542061
A67: Design | B67: Value | C67: Units | G67: 58 | H67: 24 | I67: 1 | J67: 3.48 | K67: 3.48 | L67: 0.8055555556 | M67: 0.2264936601 | N67: 6.697579748 | O67: 6.828789874 | P67: 0.1312101259 | Q67: 0 | R67: 3.981021377 | S67: 1.077700122 | T67: 0.8804822791 | U67: 2.159389934 | V67: 1.933424735 | W67: 0.007476262414 | X67: 0.007476262414 | Y67: 1.666304908 | Z67: 0.002776572046 | AA67: 0.002776572046 | AB67: 1.89462182 | AC67: 0.1471732655 | AD67: 0.1142307692 | AE67: 0.0192 | AF67: 0 | AG67: 0.2842858916 | AH67: 3.501276819 | AI67: 0.2574377267 | AJ67: 0.038976 | AK67: 0.3032844912 | AL67: 0.04176 | AM67: 0.00084 | AN67: 0.045 | AO67: 0.1863 | AP67: 0.171 | AQ67: 0.04584 | AR67: 2.622800163 | AS67: 3.010504076 | AT67: 3.010504076 | AU67: 17.4 | AV67: 0.8525022182 | AW67: 6.860644815 | AX67: 6.975436407 | AZ67: 85.25022182 | BA67: 2.159389934 | BB67: 0.6293303829 | BC67: 0.3118474916 | BD67: 0.3170652912 | BE67: 2.788720317
A68: Dmax | B68: =D1_Vinmin -> 0.4166666667 | C68: index | G68: 59 | H68: 24 | I68: 1 | J68: 3.54 | K68: 3.54 | L68: 0.8194444444 | M68: 0.2268058024 | N68: 6.704454435 | O68: 6.892227218 | P68: 0.1877727823 | Q68: 0 | R68: 4.034527123 | S68: 1.106863819 | T68: 0.8804822791 | U68: 2.197661042 | V68: 1.935409287 | W68: 0.007491618213 | X68: 0.007491618213 | Y68: 1.689522629 | Z68: 0.002854486715 | AA68: 0.002854486715 | AB68: 1.921408554 | AC68: 0.1513642441 | AD68: 0.1162002653 | AE68: 0.0192 | AF68: 0 | AG68: 0.2906357937 | AH68: 3.547618676 | AI68: 0.2642975637 | AJ68: 0.039648 | AK68: 0.3111831185 | AL68: 0.04248 | AM68: 0.00084 | AN68: 0.045 | AO68: 0.1863 | AP68: 0.171 | AQ68: 0.04584 | AR68: 2.666376171 | AS68: 3.072844993 | AT68: 3.072844993 | AU68: 17.7 | AV68: 0.8520739459 | AW68: 7.010797062 | AX68: 7.154433406 | AZ68: 85.20739459 | BA68: 2.197661042 | BB68: 0.6442989122 | BC68: 0.3186725937 | BD68: 0.3252015185 | BE68: 2.841959954
A69: Dprime | B69: =1-B68 -> 0.5833333333 | C69: index | G69: 60 | H69: 24 | I69: 1 | J69: 3.6 | K69: 3.6 | L69: 0.8333333333 | M69: 0.2271179119 | N69: 6.711321673 | O69: 6.955660837 | P69: 0.2443391634 | Q69: 0 | R69: 4.088213124 | S69: 1.136517085 | T69: 0.8804822791 | U69: 2.236794057 | V69: 1.937391687 | W69: 0.0075069731 | X69: 0.0075069731 | Y69: 1.712836238 | Z69: 0.002933807979 | AA69: 0.002933807979 | AB69: 1.948315212 | AC69: 0.1556332188 | AD69: 0.1181697613 | AE69: 0.0192 | AF69: 0 | AG69: 0.2970715904 | AH69: 3.594099941 | AI69: 0.2712686421 | AJ69: 0.04032 | AK69: 0.3192086768 | AL69: 0.0432 | AM69: 0.00084 | AN69: 0.045 | AO69: 0.1863 | AP69: 0.171 | AQ69: 0.04584 | AR69: 2.710630987 | AS69: 3.136689501 | AT69: 3.136689501 | AU69: 18 | AV69: 0.8515997739 | AW69: 7.162838988 | AX69: 7.336222891 | AZ69: 85.15997739 | BA69: 2.236794057 | BB69: 0.6594802672 | BC69: 0.3255835904 | BD69: 0.3334646768 | BE69: 2.896274324
A70: Ipp | B70: =Iripple_Vinnom -> 6.751690537 | C70: A | G70: 61 | H70: 24 | I70: 1 | J70: 3.66 | K70: 3.66 | L70: 0.8472222222 | M70: 0.2274299888 | N70: 6.718181463 | O70: 7.019090732 | P70: 0.3009092684 | Q70: 0 | R70: 4.14207237 | S70: 1.166659919 | T70: 0.8804822791 | U70: 2.276801875 | V70: 1.939371938 | W70: 0.007522327029 | X70: 0.007522327029 | Y70: 1.736242851 | Z70: 0.003014539238 | AA70: 0.003014539238 | AB70: 1.975338587 | AC70: 0.1599804639 | AD70: 0.1201392573 | AE70: 0.0192 | AF70: 0 | AG70: 0.3035938 | AH70: 3.64071435 | AI70: 0.2783508206 | AJ70: 0.040992 | AK70: 0.3273614987 | AL70: 0.04392 | AM70: 0.00084 | AN70: 0.045 | AO70: 0.1863 | AP70: 0.171 | AQ70: 0.04584 | AR70: 2.75556474 | AS70: 3.202069545 | AT70: 3.202069545 | AU70: 18.3 | AV70: 0.8510808674 | AW70: 7.316781999 | AX70: 7.520812171 | AZ70: 85.10808674 | BA70: 2.276801875 | BB70: 0.6748752986 | BC70: 0.332581 | BD70: 0.3418550987 | BE70: 2.951677173
A71: Top FET | B71: Value | C71: Units | G71: 62 | H71: 24 | I71: 1 | J71: 3.72 | K71: 3.72 | L71: 0.8611111111 | M71: 0.227742033 | N71: 6.725033806 | O71: 7.082516903 | P71: 0.3574830969 | Q71: 0 | R71: 4.196098185 | S71: 1.197292318 | T71: 0.8804822791 | U71: 2.317697791 | V71: 1.941350039 | W71: 0.007537679949 | X71: 0.007537679949 | Y71: 1.759739721 | Z71: 0.003096683885 | AA71: 0.003096683885 | AB71: 2.002475625 | AC71: 0.1644062537 | AD71: 0.1221087533 | AE71: 0.0192 | AF71: 0 | AG71: 0.3102029458 | AH71: 3.687455945 | AI71: 0.2855439583 | AJ71: 0.041664 | AK71: 0.3356419244 | AL71: 0.04464 | AM71: 0.00084 | AN71: 0.045 | AO71: 0.1863 | AP71: 0.171 | AQ71: 0.04584 | AR71: 2.801177563 | AS71: 3.269018246 | AT71: 3.269018246 | AU71: 18.6 | AV71: 0.8505182899 | AW71: 7.472637608 | AX71: 7.708208736 | AZ71: 85.05182899 | BA71: 2.317697791 | BB71: 0.6904848702 | BC71: 0.3396653458 | BD71: 0.3503731244 | BE71: 3.008182661
A72: Tr | B72: =(Qgd_Q1+Qgs_Q1/2)*(RdsonDRT+Rgate1)/(VCC-Vsp_Q1)*1000000000 -> 1.293103448 | C72: ns | D72: Turn on of MOSFET -> Rise time of current | G72: 63 | H72: 24 | I72: 1 | J72: 3.78 | K72: 3.78 | L72: 0.875 | M72: 0.2280540446 | N72: 6.731878703 | O72: 7.145939352 | P72: 0.4140606483 | Q72: 0 | R72: 4.250284215 | S72: 1.228414282 | T72: 0.8804822791 | U72: 2.359495508 | V72: 1.943325991 | W72: 0.007553031813 | X72: 0.007553031813 | Y72: 1.783324227 | Z72: 0.003180245299 | AA72: 0.003180245299 | AB72: 2.029723414 | AC72: 0.1689108626 | AD72: 0.1240782493 | AE72: 0.0192 | AF72: 0 | AG72: 0.3168995564 | AH72: 3.73431905 | AI72: 0.2928479141 | AJ72: 0.042336 | AK72: 0.3440503025 | AL72: 0.04536 | AM72: 0.00084 | AN72: 0.045 | AO72: 0.1863 | AP72: 0.171 | AQ72: 0.04584 | AR72: 2.847469587 | AS72: 3.337569942 | AT72: 3.337569942 | AU72: 18.9 | AV72: 0.8499130098 | AW72: 7.630417441 | AX72: 7.898420256 | AZ72: 84.99130098 | BA72: 2.359495508 | BB72: 0.7063098589 | BC72: 0.3468371564 | BD72: 0.3590191025 | BE72: 3.065805367
A73: Tf | B73: =(Qgd_Q1+Qgs_Q1/2)*(RdsonDRT2+Rgate1)/(Vsp_Q1)*1000000000 -> 1.442307692 | C73: ns | D73: Turn off of MOSFET -> Fall time of current | G73: 64 | H73: =Vin -> 24 | I73: =MODE -> 1 | J73: 3.84 | K73: =Iout*G73/100/Number_of_Phases -> 3.84 | L73: =Vout*K73/(Vin*Efficiency) -> 0.8888888889 | M73: =(Vout+(Rdson2+Rs+Rdcr)*K73)/(Vin+(Rs+Rdson2-Rdson1)*K73) -> 0.2283660235 | N73: =(Vin-(Rdson1+Rdcr)*K73-Vout)*M73/(Fsw*Lf) -> 6.738716156 | O73: 7.209358078 | P73: 0.4706419219 | Q73: =IF(MIN(Vin, -P73/(Coss_Q1+Coss_Q2)*0.00000002)<0, 0, MIN(Vin, -P73/(Coss_Q1+Coss_Q2)*0.00000002)) -> 0 | R73: 4.304624407 | S73: =R73^2*Rdcr -> 1.260025807 | T73: =Core_Loss -> 0.8804822791 | U73: =(T73+S73*(1+Ltc*(Ta-25)))/(1-S73*Ltc*ThetaCa) -> 2.402209151 | V73: 1.945299793 | W73: 0.007568382572 | X73: 0.007568382572 | Y73: 1.806993872 | Z73: 0.003265226853 | AA73: 0.003265226853 | AB73: 2.05707918 | AC73: =Rdson1*AB73^2 -> 0.1734945648 | AD73: =(Vin*K73/2)*Fsw*(Tr_buck+Tf_buck) -> 0.1260477454 | AE73: =(0.5*Coss_Q1*(Vin-Q73)^2-0.5*Coss_Q2*(Vin-Q73)^2+(Qoss_Q2*(Vin-Q73)/Vin)*Vin)*Fsw -> 0.0192 | AF73: =IF(K73>N73/2,0,ABS(K73-N73/2)*Vsd_Q1*Deadtime*Fsw) -> 0 | AG73: =(AF73+AE73+AD73+AC73*(1+RdsonTopTc*Ta-RdsonTopTc*25))/(1-AC73*RdsonTopTc*ThetaJA_Q1) -> 0.3236841652 | AH73: =SQRT((1-M73))*SQRT(K73^2+(N73^2)/12) -> 3.78129826 | AI73: =Rdson2*AH73^2 -> 0.3002625472 | AJ73: =IF(K73<N73/2,Deadtime*Fsw*Vsd_Q2*(K73+N73/2),2*Deadtime*Fsw*Vsd_Q2*K73) -> 0.043008 | AK73: =(AJ73+AI73*(1+RdsonBotTc*Ta-RdsonBotTc*25))/(1-AI73*RdsonBotTc*ThetaJA_Q2) -> 0.35258699 | AL73: =Qrr_Q2*K73/Iout*Fsw*Vin -> 0.04608 | AM73: =Iq*Vin -> 0.00084 | AN73: =IF(Ext_VCC=1, (Qg_Q1+Qg_Q2)*Fsw*Vout, (Qg_Q1+Qg_Q2)*Fsw*Vin) -> 0.045 | AO73: =(Vin-VCC)*Fsw*(Qg_Q1+Qg_Q2) -> 0.1863 | AP73: =(Qg_Q1+Qg_Q2)*Fsw*(Vin-Vout) -> 0.171 | AQ73: 0.04584 | AR73: 2.894440944 | AS73: =((T73+S73*(1+Ltc*(Ta-25))) + (AF73+AE73+AD73+AC73*(1+RdsonTC*(Ta-25))) + (AJ73+AI73*(1+RdsonTC*(Ta-25))) + AQ73 + AL73) / (1-S73*Ltc*ThetaCa-AC73*RdsonTC*ThetaJA_Q1 -AI73*RdsonTC*ThetaJA_Q2) -> 3.407760243 | AT73: 3.407760243 | AU73: =Vout*K73 -> 19.2 | AV73: 0.8492659067 | AW73: =ThetaJA_Q1*BC73 -> 7.790133235 | AX73: =ThetaJA_Q2*BD73 -> 8.091454579 | AZ73: 84.92659067 | BA73: =U73 -> 2.402209151 | BB73: =AG73+AK73+AL73 -> 0.7223511552 | BC73: =AG73+AL73*0.66 -> 0.3540969652 | BD73: =AK73+AL73*0.33 -> 0.36779339 | BE73: 3.124560306
A74: Part Power | B74: Value | C74: Units | G74: 65 | H74: 24 | I74: 1 | J74: =Iout*G74/100 -> 3.9 | K74: 3.9 | L74: 0.9027777778 | M74: 0.2286779698 | N74: 6.745546166 | O74: =K74+N74/2 -> 7.272773083 | P74: =K74-N74/2 -> 0.5272269172 | Q74: 0 | R74: =SQRT(K74^2+(N74^2)/12) -> 4.359112993 | S74: 1.292126894 | T74: 0.8804822791 | U74: 2.445853276 | V74: =N74/SQRT(12) -> 1.947271447 | W74: =RCoutEsr*V74^2 -> 0.007583732179 | X74: =W74 -> 0.007583732179 | Y74: =SQRT(M74*(1-M74))*SQRT(K74^2+(N74^2)/12) -> 1.830746272 | Z74: =RCinEsr*Y74^2 -> 0.003351631911 | AA74: =Z74 -> 0.003351631911 | AB74: =SQRT(M74)*SQRT(K74^2+(N74^2)/12) -> 2.084540275 | AC74: 0.1781576345 | AD74: 0.1280172414 | AE74: 0.0192 | AF74: 0 | AG74: 0.3305573111 | AH74: 3.828388425 | AI74: 0.3077877165 | AJ74: 0.04368 | AK74: 0.3612523517 | AL74: 0.0468 | AM74: 0.00084 | AN74: 0.045 | AO74: 0.1863 | AP74: 0.171 | AQ74: 0.04584 | AR74: =SUM(S74,T74,AC74,AD74,AE74,AF74,AI74,AJ74,AQ74, AL74) -> 2.942091766 | AS74: 3.47962608 | AT74: =AS74 -> 3.47962608 | AU74: 19.5 | AV74: =AU74/(AU74+AT74) -> 0.8485777763 | AW74: 7.951796843 | AX74: 8.287319738 | AZ74: =AV74*100 -> 84.85777763 | BA74: 2.445853276 | BB74: 0.7386096628 | BC74: 0.3614453111 | BD74: 0.3766963517 | BE74: =BA74+BB74 -> 3.184462939
A75: Power Dis | B75: =AQ9 -> 0.04584 | C75: W | G75: 66 | H75: 24 | I75: 1 | J75: 3.96 | K75: 3.96 | L75: 0.9166666667 | M75: 0.2289898834 | N75: 6.752368733 | O75: 7.336184366 | P75: 0.5838156336 | Q75: 0 | R75: 4.413744475 | S75: 1.32471754 | T75: 0.8804822791 | U75: 2.490442891 | V75: 1.949240953 | W75: 0.007599080584 | X75: 0.007599080584 | Y75: 1.854579151 | Z75: 0.003439463828 | AA75: 0.003439463828 | AB75: 2.112104174 | AC75: 0.1829003458 | AD75: 0.1299867374 | AE75: 0.0192 | AF75: 0 | AG75: 0.3375195379 | AH75: 3.875584633 | AI75: 0.3154232812 | AJ75: 0.044352 | AK75: 0.3700467612 | AL75: 0.04752 | AM75: 0.00084 | AN75: 0.045 | AO75: 0.1863 | AP75: 0.171 | AQ75: =SUM(AM75:AN75) -> 0.04584 | AR75: 2.990422183 | AS75: 3.553205767 | AT75: 3.553205767 | AU75: 19.8 | AV75: 0.8478493359 | AW75: 8.115420234 | AX75: 8.486023947 | AZ75: 84.78493359 | BA75: 2.490442891 | BB75: 0.7550862991 | BC75: 0.3688827379 | BD75: 0.3857283612 | BE75: 3.24552919
A76: Temp rise | B76: =B75*B62 -> 0.9168 | C76: °C | G76: 67 | H76: 24 | I76: 1 | J76: 4.02 | K76: 4.02 | L76: 0.9305555556 | M76: 0.2293017644 | N76: 6.759183859 | O76: 7.39959193 | P76: 0.6404080705 | Q76: 0 | R76: 4.468513609 | S76: 1.357797743 | T76: 0.8804822791 | U76: 2.535993464 | V76: 1.95120831 | W76: 0.00761442774 | X76: 0.00761442774 | Y76: 1.878490337 | Z76: 0.003528725948 | AA76: 0.003528725948 | AB76: 2.139768467 | AC76: 0.1877229727 | AD76: 0.1319562334 | AE76: 0.0192 | AF76: 0 | AG76: 0.3445713952 | AH76: 3.922882203 | AI76: 0.3231691004 | AJ76: 0.045024 | AK76: 0.3789706001 | AL76: 0.04824 | AM76: 0.00084 | AN76: 0.045 | AO76: 0.1863 | AP76: 0.171 | AQ76: 0.04584 | AR76: 3.039432329 | AS76: 3.628539052 | AT76: 3.628539052 | AU76: 20.1 | AV76: 0.847081228 | AW76: 8.281015495 | AX76: 8.687575602 | AZ76: 84.7081228 | BA76: 2.535993464 | BB76: 0.7717819953 | BC76: 0.3764097952 | BD76: 0.3948898001 | BE76: 3.307775459
A77: Current (switching) | B77: =(Qg_Q1+Qg_Q2)*Fsw+Iq -> 0.009035 | C77: A | G77: 68 | H77: 24 | I77: 1 | J77: 4.08 | K77: 4.08 | L77: 0.9444444444 | M77: 0.2296136127 | N77: 6.765991545 | O77: 7.462995773 | P77: 0.6970042273 | Q77: 0 | R77: 4.523415391 | S77: 1.391367502 | T77: 0.8804822791 | U77: 2.582520941 | V77: 1.95317352 | W77: 0.007629773599 | X77: 0.007629773599 | Y77: 1.902477755 | Z77: 0.003619421608 | AA77: 0.003619421608 | AB77: 2.167530849 | AC77: 0.1926257893 | AD77: 0.1339257294 | AE77: 0.0192 | AF77: 0 | AG77: 0.3517134377 | AH77: 3.970276667 | AI77: 0.3310250331 | AJ77: 0.045696 | AK77: 0.3880242585 | AL77: 0.04896 | AM77: 0.00084 | AN77: 0.045 | AO77: 0.1863 | AP77: 0.171 | AQ77: 0.04584 | AR77: 3.089122333 | AS77: 3.705667188 | AT77: 3.705667188 | AU77: 20.4 | AV77: 0.8462740251 | AW77: 8.448594829 | AX77: 8.891983288 | AZ77: 84.62740251 | BA77: 2.582520941 | BB77: 0.7886976962 | BC77: 0.3840270377 | BD77: 0.4041810585 | BE77: 3.371218637
A78: Qrr Current | B78: =Qrr_Q2*Fsw -> 0.003 | C78: A | G78: 69 | H78: 24 | I78: 1 | J78: 4.14 | K78: 4.14 | L78: 0.9583333333 | M78: 0.2299254285 | N78: 6.772791793 | O78: 7.526395897 | P78: 0.7536041035 | Q78: 0 | R78: 4.578445048 | S78: 1.425426816 | T78: 0.8804822791 | U78: 2.63004176 | V78: 1.955136582 | W78: 0.007645118112 | X78: 0.007645118112 | Y78: 1.926539419 | Z78: 0.003711554135 | AA78: 0.003711554135 | AB78: 2.195389123 | AC78: 0.1976090695 | AD78: 0.1358952255 | AE78: 0.0192 | AF78: 0 | AG78: 0.3589462256 | AH78: 4.017763763 | AI78: 0.3389909387 | AJ78: 0.046368 | AK78: 0.3972081351 | AL78: 0.04968 | AM78: 0.00084 | AN78: 0.045 | AO78: 0.1863 | AP78: 0.171 | AQ78: 0.04584 | AR78: 3.139492329 | AS78: 3.784632991 | AT78: 3.784632991 | AU78: 20.7 | AV78: 0.8454282328 | AW78: 8.618170563 | AX78: 9.099255772 | AZ78: 84.54282328 | BA78: 2.63004176 | BB78: 0.8058343607 | BC78: 0.3917350256 | BD78: 0.4136025351 | BE78: 3.435876121
A79: Diode Current | B79: =Deadtime*Fsw*(Iripple_Vinnom/2)*(Vsd_Q2)/Vin -> 0.0007876972293 | G79: 70 | H79: 24 | I79: 1 | J79: 4.2 | K79: 4.2 | L79: 0.9722222222 | M79: 0.2302372116 | N79: 6.779584603 | O79: 7.589792302 | P79: 0.8102076984 | Q79: 0 | R79: 4.633598021 | S79: 1.459975682 | T79: 0.8804822791 | U79: 2.678572868 | V79: 1.957097498 | W79: 0.007660461232 | X79: 0.007660461232 | Y79: 1.950673434 | Z79: 0.003805126847 | AA79: 0.003805126847 | AB79: 2.223341186 | AC79: 0.2026730872 | AD79: 0.1378647215 | AE79: 0.0192 | AF79: 0 | AG79: 0.3662703248 | AH79: 4.065339418 | AI79: 0.3470666763 | AJ79: 0.04704 | AK79: 0.4065226368 | AL79: 0.0504 | AM79: 0.00084 | AN79: 0.045 | AO79: 0.1863 | AP79: 0.171 | AQ79: 0.04584 | AR79: 3.190542446 | AS79: 3.865480912 | AT79: 3.865480912 | AU79: 21 | AV79: 0.8445442931 | AW79: 8.789755145 | AX79: 9.309402011 | AZ79: 84.45442931 | BA79: 2.678572868 | BB79: 0.8231929616 | BC79: 0.3995343248 | BD79: 0.4231546368 | BE79: 3.50176583
A80: Total | B80: =SUM(B77:B79) -> 0.01282269723 | C80: A | G80: 71 | H80: 24 | I80: 1 | J80: 4.26 | K80: 4.26 | L80: 0.9861111111 | M80: 0.2305489621 | N80: 6.786369977 | O80: 7.653184988 | P80: 0.8668150116 | Q80: 0 | R80: 4.688869955 | S80: 1.495014099 | T80: 0.8804822791 | U80: 2.728131737 | V80: 1.959056266 | W80: 0.00767580291 | X80: 0.00767580291 | Y80: 1.974877985 | Z80: 0.003900143054 | AA80: 0.003900143054 | AB80: 2.251385027 | AC80: 0.2078181162 | AD80: 0.1398342175 | AE80: 0.0192 | AF80: 0 | AG80: 0.3736863067 | AH80: 4.112999746 | AI80: 0.3552521052 | AJ80: 0.047712 | AK80: 0.4159681795 | AL80: 0.05112 | AM80: 0.00084 | AN80: 0.045 | AO80: 0.1863 | AP80: 0.171 | AQ80: 0.04584 | AR80: 3.242272817 | AS80: 3.948257112 | AT80: 3.948257112 | AU80: 21.3 | AV80: 0.8436225877 | AW80: 8.963361148 | AX80: 9.522431149 | AZ80: 84.36225877 | BA80: 2.728131737 | BB80: 0.8407744862 | BC80: 0.4074255067 | BD80: 0.4328377795 | BE80: 3.568906223
G81: 72 | H81: 24 | I81: 1 | J81: 4.32 | K81: 4.32 | L81: 1 | M81: 0.23086068 | N81: 6.793147915 | O81: 7.716573958 | P81: 0.9234260423 | Q81: 0 | R81: 4.744256691 | S81: 1.530542065 | T81: 0.8804822791 | U81: 2.778736383 | V81: 1.961012889 | W81: 0.0076911431 | X81: 0.0076911431 | Y81: 1.999151334 | Z81: 0.003996606055 | AA81: 0.003996606055 | AB81: 2.279518725 | AC81: 0.2130444303 | AD81: 0.1418037135 | AE81: 0.0192 | AF81: 0 | AG81: 0.3811947486 | AH81: 4.160741032 | AI81: 0.3635470846 | AJ81: 0.048384 | AK81: 0.4255451873 | AL81: 0.05184 | AM81: 0.00084 | AN81: 0.045 | AO81: 0.1863 | AP81: 0.171 | AQ81: 0.04584 | AR81: 3.294683573 | AS81: 4.033009533 | AT81: 4.033009533 | AU81: 21.6 | AV81: 0.8426634404 | AW81: 9.139001269 | AX81: 9.73835252 | AZ81: 84.26634404 | BA81: 2.778736383 | BB81: 0.8585799359 | BC81: 0.4154091486 | BD81: 0.4426523873 | BE81: 3.637316319
G82: 73 | H82: 24 | I82: 1 | J82: 4.38 | K82: 4.38 | L82: 1.013888889 | M82: 0.2311723652 | N82: 6.79991842 | O82: 7.77995921 | P82: 0.98004079 | Q82: 0 | R82: 4.799754252 | S82: 1.56655958 | T82: 0.8804822791 | U82: 2.830405383 | V82: 1.962967365 | W82: 0.007706481753 | X82: 0.007706481753 | Y82: 2.023491819 | Z82: 0.004094519141 | AA82: 0.004094519141 | AB82: 2.307740438 | AC82: 0.2183523032 | AD82: 0.1437732095 | AE82: 0.0192 | AF82: 0 | AG82: 0.3887962334 | AH82: 4.208559723 | AI82: 0.3719514739 | AJ82: 0.049056 | AK82: 0.4352540932 | AL82: 0.05256 | AM82: 0.00084 | AN82: 0.045 | AO82: 0.1863 | AP82: 0.171 | AQ82: 0.04584 | AR82: 3.347774845 | AS82: 4.119787987 | AT82: 4.119787987 | AU82: 21.9 | AV82: 0.8416671193 | AW82: 9.316688335 | AX82: 9.95717565 | AZ82: 84.16671193 | BA82: 2.830405383 | BB82: 0.8766103266 | BC82: 0.4234858334 | BD82: 0.4525988932 | BE82: 3.70701571
G83: 74 | H83: 24 | I83: 1 | J83: 4.44 | K83: 4.44 | L83: 1.027777778 | M83: 0.2314840179 | N83: 6.806681492 | O83: 7.843340746 | P83: 1.036659254 | Q83: 0 | R83: 4.855358834 | S83: 1.60306664 | T83: 0.8804822791 | U83: 2.883157895 | V83: 1.964919696 | W83: 0.007721818821 | X83: 0.007721818821 | Y83: 2.047897848 | Z83: 0.004193885595 | AA83: 0.004193885595 | AB83: 2.336048407 | AC83: 0.2237420085 | AD83: 0.1457427056 | AE83: 0.0192 | AF83: 0 | AG83: 0.3964913499 | AH83: 4.256452426 | AI83: 0.3804651323 | AJ83: 0.049728 | AK83: 0.4450953389 | AL83: 0.05328 | AM83: 0.00084 | AN83: 0.045 | AO83: 0.1863 | AP83: 0.171 | AQ83: 0.04584 | AR83: 3.401546765 | AS83: 4.208644237 | AT83: 4.208644237 | AU83: 22.2 | AV83: 0.8406338395 | AW83: 9.496435299 | AX83: 10.17891026 | AZ83: 84.06338395 | BA83: 2.883157895 | BB83: 0.8948666888 | BC83: 0.4316561499 | BD83: 0.4626777389 | BE83: 3.778024584
G84: 75 | H84: 24 | I84: 1 | J84: 4.5 | K84: 4.5 | L84: 1.041666667 | M84: 0.231795638 | N84: 6.813437132 | O84: 7.906718566 | P84: 1.093281434 | Q84: 0 | R84: 4.911066801 | S84: 1.640063245 | T84: 0.8804822791 | U84: 2.937013676 | V84: 1.966869881 | W84: 0.007737154258 | X84: 0.007737154258 | Y84: 2.072367894 | Z84: 0.00429470869 | AA84: 0.00429470869 | AB84: 2.364440943 | AC84: 0.2292138199 | AD84: 0.1477122016 | AE84: 0.0192 | AF84: 0 | AG84: 0.404280693 | AH84: 4.30441589 | AI84: 0.3890879193 | AJ84: 0.0504 | AK84: 0.4550693749 | AL84: 0.054 | AM84: 0.00084 | AN84: 0.045 | AO84: 0.1863 | AP84: 0.171 | AQ84: 0.04584 | AR84: 3.455999465 | AS84: 4.299632087 | AT84: 4.299632087 | AU84: 22.5 | AV84: 0.8395637644 | AW84: 9.678255247 | AX84: 10.40356625 | AZ84: 83.95637644 | BA84: 2.937013676 | BB84: 0.913350068 | BC84: 0.439920693 | BD84: 0.4728893749 | BE84: 3.850363744
G85: 76 | H85: 24 | I85: 1 | J85: 4.56 | K85: 4.56 | L85: 1.055555556 | M85: 0.2321072255 | N85: 6.820185341 | O85: 7.97009267 | P85: 1.14990733 | Q85: 0 | R85: 4.966874672 | S85: 1.677549392 | T85: 0.8804822791 | U85: 2.991993106 | V85: 1.968817921 | W85: 0.007752488014 | X85: 0.007752488014 | Y85: 2.096900496 | Z85: 0.004396991689 | AA85: 0.004396991689 | AB85: 2.392916431 | AC85: 0.2347680109 | AD85: 0.1496816976 | AE85: 0.0192 | AF85: 0 | AG85: 0.4121648635 | AH85: 4.352447008 | AI85: 0.3978196942 | AJ85: 0.051072 | AK85: 0.4651766606 | AL85: 0.05472 | AM85: 0.00084 | AN85: 0.045 | AO85: 0.1863 | AP85: 0.171 | AQ85: 0.04584 | AR85: 3.511133074 | AS85: 4.392807484 | AT85: 4.392807484 | AU85: 22.8 | AV85: 0.8384570079 | AW85: 9.862161397 | AX85: 10.63115373 | AZ85: 83.84570079 | BA85: 2.991993106 | BB85: 0.9320615241 | BC85: 0.4482800635 | BD85: 0.4832342606 | BE85: 3.92405463
G86: 77 | H86: 24 | I86: 1 | J86: 4.62 | K86: 4.62 | L86: 1.069444444 | M86: 0.2324187804 | N86: 6.826926121 | O86: 8.033463061 | P86: 1.206536939 | Q86: 0 | R86: 5.022779113 | S86: 1.715525081 | T86: 0.8804822791 | U86: 3.048117207 | V86: 1.970763817 | W86: 0.007767820044 | X86: 0.007767820044 | Y86: 2.121494249 | Z86: 0.004500737847 | AA86: 0.004500737847 | AB86: 2.421473322 | AC86: 0.2404048549 | AD86: 0.1516511936 | AE86: 0.0192 | AF86: 0 | AG86: 0.4201444683 | AH86: 4.400542805 | AI86: 0.4066603165 | AJ86: 0.051744 | AK86: 0.4754176643 | AL86: 0.05544 | AM86: 0.00084 | AN86: 0.045 | AO86: 0.1863 | AP86: 0.171 | AQ86: 0.04584 | AR86: 3.566947726 | AS86: 4.48822861 | AT86: 4.48822861 | AU86: 23.1 | AV86: 0.8373136357 | AW86: 10.0481671 | AX86: 10.86168301 | AZ86: 83.73136357 | BA86: 3.048117207 | BB86: 0.9510021326 | BC86: 0.4567348683 | BD86: 0.4937128643 | BE86: 3.99911934
G87: 78 | H87: 24 | I87: 1 | J87: 4.68 | K87: 4.68 | L87: 1.083333333 | M87: 0.2327303027 | N87: 6.833659473 | O87: 8.096829736 | P87: 1.263170264 | Q87: 0 | R87: 5.078776934 | S87: 1.75399031 | T87: 0.8804822791 | U87: 3.105407669 | V87: 1.972707568 | W87: 0.007783150299 | X87: 0.007783150299 | Y87: 2.146147807 | Z87: 0.004605950411 | AA87: 0.004605950411 | AB87: 2.450110129 | AC87: 0.2461246255 | AD87: 0.1536206897 | AE87: 0.0192 | AF87: 0 | AG87: 0.4282201206 | AH87: 4.448700429 | AI87: 0.4156096456 | AJ87: 0.052416 | AK87: 0.4857928632 | AL87: 0.05616 | AM87: 0.00084 | AN87: 0.045 | AO87: 0.1863 | AP87: 0.171 | AQ87: 0.04584 | AR87: 3.62344355 | AS87: 4.585956002 | AT87: 4.585956002 | AU87: 23.4 | AV87: 0.8361336664 | AW87: 10.23628585 | AX87: 11.09516459 | AZ87: 83.61336664 | BA87: 3.105407669 | BB87: 0.9701729838 | BC87: 0.4652857206 | BD87: 0.5043256632 | BE87: 4.075580653
G88: 79 | H88: 24 | I88: 1 | J88: 4.74 | K88: 4.74 | L88: 1.097222222 | M88: 0.2330417925 | N88: 6.840385398 | O88: 8.160192699 | P88: 1.319807301 | Q88: 0 | R88: 5.134865078 | S88: 1.792945077 | T88: 0.8804822791 | U88: 3.16388687 | V88: 1.974649175 | W88: 0.007798478732 | X88: 0.007798478732 | Y88: 2.17085988 | Z88: 0.004712632618 | AA88: 0.004712632618 | AB88: 2.478825429 | AC88: 0.2519275958 | AD88: 0.1555901857 | AE88: 0.0192 | AF88: 0 | AG88: 0.4363924398 | AH88: 4.49691715 | AI88: 0.424667541 | AJ88: 0.053088 | AK88: 0.4963027436 | AL88: 0.05688 | AM88: 0.00084 | AN88: 0.045 | AO88: 0.1863 | AP88: 0.171 | AQ88: 0.04584 | AR88: 3.680620678 | AS88: 4.686052654 | AT88: 4.686052654 | AU88: 23.7 | AV88: 0.8349170731 | AW88: 10.42653127 | AX88: 11.33160916 | AZ88: 83.49170731 | BA88: 3.16388687 | BB88: 0.9895751833 | BC88: 0.4739332398 | BD88: 0.5150731436 | BE88: 4.153462053
G89: 80 | H89: 24 | I89: 1 | J89: 4.8 | K89: 4.8 | L89: 1.111111111 | M89: 0.2333532497 | N89: 6.847103897 | O89: 8.223551948 | P89: 1.376448052 | Q89: 0 | R89: 5.191040613 | S89: 1.83238938 | T89: 0.8804822791 | U89: 3.223577903 | V89: 1.976588639 | W89: 0.007813805295 | X89: 0.007813805295 | Y89: 2.195629225 | Z89: 0.004820787694 | AA89: 0.004820787694 | AB89: 2.507617854 | AC89: 0.2578140394 | AD89: 0.1575596817 | AE89: 0.0192 | AF89: 0 | AG89: 0.4446620516 | AH89: 4.545190353 | AI89: 0.4338338623 | AJ89: 0.05376 | AK89: 0.506947801 | AL89: 0.0576 | AM89: 0.00084 | AN89: 0.045 | AO89: 0.1863 | AP89: 0.171 | AQ89: 0.04584 | AR89: 3.738479242 | AS89: 4.788584147 | AT89: 4.788584147 | AU89: 24 | AV89: 0.8336637842 | AW89: 10.61891714 | AX89: 11.57102762 | AZ89: 83.36637842 | BA89: 3.223577903 | BB89: 1.009209853 | BC89: 0.4826780516 | BD89: 0.525955801 | BE89: 4.232787755
G90: 81 | H90: 24 | I90: 1 | J90: 4.86 | K90: 4.86 | L90: 1.125 | M90: 0.2336646743 | N90: 6.853814971 | O90: 8.286907486 | P90: 1.433092514 | Q90: 0 | R90: 5.247300732 | S90: 1.872323218 | T90: 0.8804822791 | U90: 3.284504601 | V90: 1.978525959 | W90: 0.007829129943 | X90: 0.007829129943 | Y90: 2.220454652 | Z90: 0.00493041886 | AA90: 0.00493041886 | AB90: 2.536486091 | AC90: 0.2637842293 | AD90: 0.1595291777 | AE90: 0.0192 | AF90: 0 | AG90: 0.4530295884 | AH90: 4.593517528 | AI90: 0.4431084689 | AJ90: 0.054432 | AK90: 0.5177285402 | AL90: 0.05832 | AM90: 0.00084 | AN90: 0.045 | AO90: 0.1863 | AP90: 0.171 | AQ90: 0.04584 | AR90: 3.797019373 | AS90: 4.893618771 | AT90: 4.893618771 | AU90: 24.3 | AV90: 0.8323736838 | AW90: 10.81345734 | AX90: 11.81343108 | AZ90: 83.23736838 | BA90: 3.284504601 | BB90: 1.029078129 | BC90: 0.4915207884 | BD90: 0.5369741402 | BE90: 4.31358273
G91: 82 | H91: 24 | I91: 1 | J91: 4.92 | K91: 4.92 | L91: 1.138888889 | M91: 0.2339760664 | N91: 6.860518622 | O91: 8.350259311 | P91: 1.489740689 | Q91: 0 | R91: 5.30364274 | S91: 1.912746589 | T91: 0.8804822791 | U91: 3.346691568 | V91: 1.980461137 | W91: 0.007844452627 | X91: 0.007844452627 | Y91: 2.245335014 | Z91: 0.005041529326 | AA91: 0.005041529326 | AB91: 2.56542888 | AC91: 0.2698384388 | AD91: 0.1614986737 | AE91: 0.0192 | AF91: 0 | AG91: 0.4614956889 | AH91: 4.641896269 | AI91: 0.4524912205 | AJ91: 0.055104 | AK91: 0.5286454749 | AL91: 0.05904 | AM91: 0.00084 | AN91: 0.045 | AO91: 0.1863 | AP91: 0.171 | AQ91: 0.04584 | AR91: 3.856241201 | AS91: 5.001227665 | AT91: 5.001227665 | AU91: 24.6 | AV91: 0.8310466133 | AW91: 11.01016596 | AX91: 12.05883085 | AZ91: 83.10466133 | BA91: 3.346691568 | BB91: 1.049181164 | BC91: 0.5004620889 | BD91: 0.5481286749 | BE91: 4.395872731
G92: 83 | H92: 24 | I92: 1 | J92: 4.98 | K92: 4.98 | L92: 1.152777778 | M92: 0.2342874259 | N92: 6.86721485 | O92: 8.413607425 | P92: 1.546392575 | Q92: 0 | R92: 5.360064053 | S92: 1.953659492 | T92: 0.8804822791 | U92: 3.4101642 | V92: 1.982394171 | W92: 0.0078597733 | X92: 0.0078597733 | Y92: 2.270269211 | Z92: 0.005154122291 | AA92: 0.005154122291 | AB92: 2.594445009 | AC92: 0.2759769411 | AD92: 0.1634681698 | AE92: 0.0192 | AF92: 0 | AG92: 0.4700609985 | AH92: 4.690324269 | AI92: 0.4619819767 | AJ92: 0.055776 | AK92: 0.5396991284 | AL92: 0.05976 | AM92: 0.00084 | AN92: 0.045 | AO92: 0.1863 | AP92: 0.171 | AQ92: 0.04584 | AR92: 3.916144859 | AS92: 5.111484961 | AT92: 5.111484961 | AU92: 24.9 | AV92: 0.829682371 | AW92: 11.20905717 | AX92: 12.30723843 | AZ92: 82.9682371 | BA92: 3.4101642 | BB92: 1.069520127 | BC92: 0.5095025985 | BD92: 0.5594199284 | BE92: 4.479684327
G93: 84 | H93: 24 | I93: 1 | J93: 5.04 | K93: 5.04 | L93: 1.166666667 | M93: 0.2345987528 | N93: 6.873903657 | O93: 8.476951829 | P93: 1.603048171 | Q93: 0 | R93: 5.41656219 | S93: 1.995061925 | T93: 0.8804822791 | U93: 3.474948722 | V93: 1.984325063 | W93: 0.007875091915 | X93: 0.007875091915 | Y93: 2.295256184 | Z93: 0.005268200949 | AA93: 0.005268200949 | AB93: 2.623533314 | AC93: 0.2822000091 | AD93: 0.1654376658 | AE93: 0.0192 | AF93: 0 | AG93: 0.4787261695 | AH93: 4.738799311 | AI93: 0.471580597 | AJ93: 0.056448 | AK93: 0.5508900335 | AL93: 0.06048 | AM93: 0.00084 | AN93: 0.045 | AO93: 0.1863 | AP93: 0.171 | AQ93: 0.04584 | AR93: 3.976730476 | AS93: 5.224467935 | AT93: 5.224467935 | AU93: 25.2 | AV93: 0.8282807132 | AW93: 11.41014533 | AX93: 12.55866554 | AZ93: 82.82807132 | BA93: 3.474948722 | BB93: 1.090096203 | BC93: 0.5186429695 | BD93: 0.5708484335 | BE93: 4.565044925
G94: 85 | H94: 24 | I94: 1 | J94: 5.1 | K94: 5.1 | L94: 1.180555556 | M94: 0.2349100472 | N94: 6.880585044 | O94: 8.540292522 | P94: 1.659707478 | Q94: 0 | R94: 5.47313477 | S94: 2.036953886 | T94: 0.8804822791 | U94: 3.541072216 | V94: 1.986253814 | W94: 0.007890408425 | X94: 0.007890408425 | Y94: 2.320294913 | Z94: 0.005383768482 | AA94: 0.005383768482 | AB94: 2.652692677 | AC94: 0.2885079159 | AD94: 0.1674071618 | AE94: 0.0192 | AF94: 0 | AG94: 0.4874918607 | AH94: 4.787319268 | AI94: 0.4812869413 | AJ94: 0.05712 | AK94: 0.5622187323 | AL94: 0.0612 | AM94: 0.00084 | AN94: 0.045 | AO94: 0.1863 | AP94: 0.171 | AQ94: 0.04584 | AR94: 4.037998185 | AS94: 5.340257174 | AT94: 5.340257174 | AU94: 25.5 | AV94: 0.826841354 | AW94: 11.61344493 | AX94: 12.81312411 | AZ94: 82.6841354 | BA94: 3.541072216 | BB94: 1.110910593 | BC94: 0.5278838607 | BD94: 0.5824147323 | BE94: 4.651982809
G95: 86 | H95: 24 | I95: 1 | J95: 5.16 | K95: 5.16 | L95: 1.194444444 | M95: 0.2352213091 | N95: 6.887259013 | O95: 8.603629506 | P95: 1.716370494 | Q95: 0 | R95: 5.529779507 | S95: 2.079335375 | T95: 0.8804822791 | U95: 3.608562653 | V95: 1.988180422 | W95: 0.007905722784 | X95: 0.007905722784 | Y95: 2.345384417 | Z95: 0.005500828064 | AA95: 0.005500828064 | AB95: 2.68192202 | AC95: 0.2949009345 | AD95: 0.1693766578 | AE95: 0.0192 | AF95: 0 | AG95: 0.496358738 | AH95: 4.835882099 | AI95: 0.4911008691 | AJ95: 0.057792 | AK95: 0.5736857765 | AL95: 0.06192 | AM95: 0.00084 | AN95: 0.045 | AO95: 0.1863 | AP95: 0.171 | AQ95: 0.04584 | AR95: 4.099948115 | AS95: 5.458936744 | AT95: 5.458936744 | AU95: 25.8 | AV95: 0.8253639659 | AW95: 11.81897064 | AX95: 13.07062628 | AZ95: 82.53639659 | BA95: 3.608562653 | BB95: 1.131964514 | BC95: 0.537225938 | BD95: 0.5941193765 | BE95: 4.740527168
G96: 87 | H96: 24 | I96: 1 | J96: 5.22 | K96: 5.22 | L96: 1.208333333 | M96: 0.2355325385 | N96: 6.893925563 | O96: 8.666962782 | P96: 1.773037218 | Q96: 0 | R96: 5.586494202 | S96: 2.122206388 | T96: 0.8804822791 | U96: 3.67744893 | V96: 1.99010489 | W96: 0.007921034945 | X96: 0.007921034945 | Y96: 2.370523752 | Z96: 0.005619382861 | AA96: 0.005619382861 | AB96: 2.711220307 | AC96: 0.3013793378 | AD96: 0.1713461538 | AE96: 0.0192 | AF96: 0 | AG96: 0.5053274744 | AH96: 4.88448584 | AI96: 0.5010222403 | AJ96: 0.058464 | AK96: 0.5852917274 | AL96: 0.06264 | AM96: 0.00084 | AN96: 0.045 | AO96: 0.1863 | AP96: 0.171 | AQ96: 0.04584 | AR96: 4.162580399 | AS96: 5.580594382 | AT96: 5.580594382 | AU96: 26.1 | AV96: 0.8238481793 | AW96: 12.02673724 | AX96: 13.3311844 | AZ96: 82.38481793 | BA96: 3.67744893 | BB96: 1.153259202 | BC96: 0.5466698744 | BD96: 0.6059629274 | BE96: 4.830708132
G97: 88 | H97: 24 | I97: 1 | J97: 5.28 | K97: 5.28 | L97: 1.222222222 | M97: 0.2358437353 | N97: 6.900584697 | O97: 8.730292349 | P97: 1.829707651 | Q97: 0 | R97: 5.643276746 | S97: 2.165566925 | T97: 0.8804822791 | U97: 3.747760904 | V97: 1.992027216 | W97: 0.00793634486 | X97: 0.00793634486 | Y97: 2.395712009 | Z97: 0.005739436028 | AA97: 0.005739436028 | AB97: 2.740586543 | AC97: 0.3079433985 | AD97: 0.1733156499 | AE97: 0.0192 | AF97: 0 | AG97: 0.5143987499 | AH97: 4.933128605 | AI97: 0.5110509145 | AJ97: 0.059136 | AK97: 0.5970371563 | AL97: 0.06336 | AM97: 0.00084 | AN97: 0.045 | AO97: 0.1863 | AP97: 0.171 | AQ97: 0.04584 | AR97: 4.225895167 | AS97: 5.705321685 | AT97: 5.705321685 | AU97: 26.4 | AV97: 0.822293583 | AW97: 12.2367597 | AX97: 13.59481104 | AZ97: 82.2293583 | BA97: 3.747760904 | BB97: 1.174795906 | BC97: 0.5562163499 | BD97: 0.6179459563 | BE97: 4.92255681
G98: 89 | H98: 24 | I98: 1 | J98: 5.34 | K98: 5.34 | L98: 1.236111111 | M98: 0.2361548996 | N98: 6.907236416 | O98: 8.793618208 | P98: 1.886381792 | Q98: 0 | R98: 5.700125108 | S98: 2.209416984 | T98: 0.8804822791 | U98: 3.819529427 | V98: 1.993947402 | W98: 0.007951652483 | X98: 0.007951652483 | Y98: 2.420948309 | Z98: 0.005860990713 | AA98: 0.005860990713 | AB98: 2.770019765 | AC98: 0.3145933895 | AD98: 0.1752851459 | AE98: 0.0192 | AF98: 0 | AG98: 0.5235732516 | AH98: 4.981808581 | AI98: 0.5211867516 | AJ98: 0.059808 | AK98: 0.6089226441 | AL98: 0.06408 | AM98: 0.00084 | AN98: 0.045 | AO98: 0.1863 | AP98: 0.171 | AQ98: 0.04584 | AR98: 4.28989255 | AS98: 5.833214326 | AT98: 5.833214326 | AU98: 26.7 | AV98: 0.8206997234 | AW98: 12.44905314 | AX98: 13.86151897 | AZ98: 82.06997234 | BA98: 3.819529427 | BB98: 1.196575896 | BC98: 0.5658660516 | BD98: 0.6300690441 | BE98: 5.016105323
G99: 90 | H99: 24 | I99: 1 | J99: 5.4 | K99: 5.4 | L99: 1.25 | M99: 0.2364660313 | N99: 6.91388072 | O99: 8.85694036 | P99: 1.94305964 | Q99: 0 | R99: 5.757037336 | S99: 2.253756564 | T99: 0.8804822791 | U99: 3.892786392 | V99: 1.995865447 | W99: 0.007966957768 | X99: 0.007966957768 | Y99: 2.446231807 | Z99: 0.005984050053 | AA99: 0.005984050053 | AB99: 2.799519051 | AC99: 0.3213295836 | AD99: 0.1772546419 | AE99: 0.0192 | AF99: 0 | AG99: 0.5328516741 | AH99: 5.030524025 | AI99: 0.5314296113 | AJ99: 0.06048 | AK99: 0.6209487814 | AL99: 0.0648 | AM99: 0.00084 | AN99: 0.045 | AO99: 0.1863 | AP99: 0.171 | AQ99: 0.04584 | AR99: 4.35457268 | AS99: 5.964372274 | AT99: 5.964372274 | AU99: 27 | AV99: 0.8190661049 | AW99: 12.66363283 | AX99: 14.13132119 | AZ99: 81.90661049 | BA99: 3.892786392 | BB99: 1.218600456 | BC99: 0.5756196741 | BD99: 0.6423327814 | BE99: 5.111386847
G100: 91 | H100: 24 | I100: 1 | J100: 5.46 | K100: 5.46 | L100: 1.263888889 | M100: 0.2367771306 | N100: 6.920517611 | O100: 8.920258806 | P100: 1.999741194 | Q100: 0 | R100: 5.814011553 | S100: 2.298585663 | T100: 0.8804822791 | U100: 3.967564768 | V100: 1.997781353 | W100: 0.007982260668 | X100: 0.007982260668 | Y100: 2.471561688 | Z100: 0.006108617179 | AA100: 0.006108617179 | AB100: 2.829083508 | AC100: 0.3281522533 | AD100: 0.1792241379 | AE100: 0.0192 | AF100: 0 | AG100: 0.5422347192 | AH100: 5.079273259 | AI100: 0.5417793536 | AJ100: 0.061152 | AK100: 0.6331161693 | AL100: 0.06552 | AM100: 0.00084 | AN100: 0.045 | AO100: 0.1863 | AP100: 0.171 | AQ100: 0.04584 | AR100: 4.419935687 | AS100: 6.098900034 | AT100: 6.098900034 | AU100: 27.3 | AV100: 0.8173921887 | AW100: 12.88051422 | AX100: 14.40423092 | AZ100: 81.73921887 | BA100: 3.967564768 | BB100: 1.240870888 | BC100: 0.5854779192 | BD100: 0.6547377693 | BE100: 5.208435657
G101: 92 | H101: 24 | I101: 1 | J101: 5.52 | K101: 5.52 | L101: 1.277777778 | M101: 0.2370881973 | N101: 6.92714709 | O101: 8.983573545 | P101: 2.056426455 | Q101: 0 | R101: 5.871045952 | S101: 2.343904279 | T101: 0.8804822791 | U101: 4.043898649 | V101: 1.999695119 | W101: 0.007997561136 | X101: 0.007997561136 | Y101: 2.496937166 | Z101: 0.00623469521 | AA101: 0.00623469521 | AB101: 2.858712277 | AC101: 0.3350616713 | AD101: 0.181193634 | AE101: 0.0192 | AF101: 0 | AG101: 0.5517230963 | AH101: 5.128054669 | AI101: 0.5522358383 | AJ101: 0.061824 | AK101: 0.6454254185 | AL101: 0.06624 | AM101: 0.00084 | AN101: 0.045 | AO101: 0.1863 | AP101: 0.171 | AQ101: 0.04584 | AR101: 4.485981701 | AS101: 6.2369069 | AT101: 6.2369069 | AU101: 27.6 | AV101: 0.8156773928 | AW101: 13.09971292 | AX101: 14.68026161 | AZ101: 81.56773928 | BA101: 4.043898649 | BB101: 1.263388515 | BC101: 0.5954414963 | BD101: 0.6672846185 | BE101: 5.307287163
G102: 93 | H102: 24 | I102: 1 | J102: 5.58 | K102: 5.58 | L102: 1.291666667 | M102: 0.2373992316 | N102: 6.933769159 | O102: 9.04688458 | P102: 2.11311542 | Q102: 0 | R102: 5.928138794 | S102: 2.38971241 | T102: 0.8804822791 | U102: 4.121823292 | V102: 2.001606745 | W102: 0.008012859125 | X102: 0.008012859125 | Y102: 2.52235748 | Z102: 0.006362287258 | AA102: 0.006362287258 | AB102: 2.888404531 | AC102: 0.3420581101 | AD102: 0.18316313 | AE102: 0.0192 | AF102: 0 | AG102: 0.5613175226 | AH102: 5.1768667 | AI102: 0.5627989254 | AJ102: 0.062496 | AK102: 0.6578771501 | AL102: 0.06696 | AM102: 0.00084 | AN102: 0.045 | AO102: 0.1863 | AP102: 0.171 | AQ102: 0.04584 | AR102: 4.552710855 | AS102: 6.378507228 | AT102: 6.378507228 | AU102: 27.9 | AV102: 0.813921091 | AW102: 13.3212447 | AX102: 14.9594269 | AZ102: 81.3921091 | BA102: 4.121823292 | BB102: 1.286154673 | BC102: 0.6055111226 | BD102: 0.6799739501 | BE102: 5.407977965
G103: 94 | H103: 24 | I103: 1 | J103: 5.64 | K103: 5.64 | L103: 1.305555556 | M103: 0.2377102333 | N103: 6.940383818 | O103: 9.110191909 | P103: 2.169808091 | Q103: 0 | R103: 5.985288405 | S103: 2.436010056 | T103: 0.8804822791 | U103: 4.201375175 | V103: 2.003516233 | W103: 0.00802815459 | X103: 0.00802815459 | Y103: 2.547821898 | Z103: 0.006491396426 | AA103: 0.006491396426 | AB103: 2.918159469 | AC103: 0.3491418422 | AD103: 0.185132626 | AE103: 0.0192 | AF103: 0 | AG103: 0.5710187228 | AH103: 5.225707857 | AI103: 0.5734684747 | AJ103: 0.063168 | AK103: 0.6704719954 | AL103: 0.06768 | AM103: 0.00084 | AN103: 0.045 | AO103: 0.1863 | AP103: 0.171 | AQ103: 0.04584 | AR103: 4.620123278 | AS103: 6.52382073 | AT103: 6.52382073 | AU103: 28.2 | AV103: 0.8121226123 | AW103: 13.5451255 | AX103: 15.2417407 | AZ103: 81.21226123 | BA103: 4.201375175 | BB103: 1.309170718 | BC103: 0.6156875228 | BD103: 0.6928063954 | BE103: 5.510545893
G104: 95 | H104: 24 | I104: 1 | J104: 5.7 | K104: 5.7 | L104: 1.319444444 | M104: 0.2380212026 | N104: 6.946991069 | O104: 9.173495534 | P104: 2.226504466 | Q104: 0 | R104: 6.042493173 | S104: 2.482797214 | T104: 0.8804822791 | U104: 4.282592037 | V104: 2.005423582 | W104: 0.008043447485 | X104: 0.008043447485 | Y104: 2.573329712 | Z104: 0.006622025806 | AA104: 0.006622025806 | AB104: 2.947976322 | AC104: 0.3563131401 | AD104: 0.187102122 | AE104: 0.0192 | AF104: 0 | AG104: 0.5808274293 | AH104: 5.274576699 | AI104: 0.5842443463 | AJ104: 0.06384 | AK104: 0.683210596 | AL104: 0.0684 | AM104: 0.00084 | AN104: 0.045 | AO104: 0.1863 | AP104: 0.171 | AQ104: 0.04584 | AR104: 4.688219102 | AS104: 6.67297278 | AT104: 6.67297278 | AU104: 28.5 | AV104: 0.81028124 | AW104: 13.77137145 | AX104: 15.52721711 | AZ104: 81.028124 | BA104: 4.282592037 | BB104: 1.332438025 | BC104: 0.6259714293 | BD104: 0.705782596 | BE104: 5.615030062
G105: 96 | H105: 24 | I105: 1 | J105: 5.76 | K105: 5.76 | L105: =Vout*K105/(Vin*Efficiency) -> 1.333333333 | M105: 0.2383321394 | N105: =(Vin-(Rdson1+Rdcr)*K105-Vout)*M105/(Fsw*Lf) -> 6.953590912 | O105: 9.236795456 | P105: 2.283204544 | Q105: =IF(MIN(Vin, -P105/(Coss_Q1+Coss_Q2)*0.00000002)<0, 0, MIN(Vin, -P105/(Coss_Q1+Coss_Q2)*0.00000002)) -> 0 | R105: 6.099751543 | S105: =R105^2*Rdcr -> 2.530073884 | T105: 0.8804822791 | U105: =(T105+S105*(1+Ltc*(Ta-25)))/(1-S105*Ltc*ThetaCa) -> 4.365512939 | V105: 2.007328792 | W105: 0.008058737762 | X105: 0.008058737762 | Y105: 2.598880236 | Z105: 0.006754178483 | AA105: 0.006754178483 | AB105: 2.977854344 | AC105: =Rdson1*AB105^2 -> 0.3635722762 | AD105: 0.189071618 | AE105: 0.0192 | AF105: 0 | AG105: =(AF105+AE105+AD105+AC105*(1+RdsonTopTc*Ta-RdsonTopTc*25))/(1-AC105*RdsonTopTc*ThetaJA_Q1) -> 0.5907443828 | AH105: 5.323471836 | AI105: =Rdson2*AH105^2 -> 0.5951264002 | AJ105: 0.064512 | AK105: =(AJ105+AI105*(1+RdsonBotTc*Ta-RdsonBotTc*25))/(1-AI105*RdsonBotTc*ThetaJA_Q2) -> 0.6960936041 | AL105: 0.06912 | AM105: 0.00084 | AN105: 0.045 | AO105: 0.1863 | AP105: 0.171 | AQ105: 0.04584 | AR105: 4.756998457 | AS105: 6.826094752 | AT105: 6.826094752 | AU105: 28.8 | AV105: 0.8083962107 | AW105: 13.99999882 | AX105: 15.81587049 | AZ105: 80.83962107 | BA105: 4.365512939 | BB105: 1.355957987 | BC105: 0.6363635828 | BD105: 0.7189032041 | BE105: 5.721470926
G106: 97 | H106: 24 | I106: 1 | J106: 5.82 | K106: 5.82 | L106: =Vout*K106/(Vin*Efficiency) -> 1.347222222 | M106: 0.2386430436 | N106: =(Vin-(Rdson1+Rdcr)*K106-Vout)*M106/(Fsw*Lf) -> 6.960183349 | O106: 9.300091675 | P106: 2.339908325 | Q106: =IF(MIN(Vin, -P106/(Coss_Q1+Coss_Q2)*0.00000002)<0, 0, MIN(Vin, -P106/(Coss_Q1+Coss_Q2)*0.00000002)) -> 0 | R106: 6.157062018 | S106: =R106^2*Rdcr -> 2.577840063 | T106: 0.8804822791 | U106: =(T106+S106*(1+Ltc*(Ta-25)))/(1-S106*Ltc*ThetaCa) -> 4.450178315 | V106: 2.009231865 | W106: 0.008074025376 | X106: 0.008074025376 | Y106: 2.62447281 | Z106: 0.006887857533 | AA106: 0.006887857533 | AB106: 3.007792816 | AC106: =Rdson1*AB106^2 -> 0.3709195227 | AD106: 0.1910411141 | AE106: 0.0192 | AF106: 0 | AG106: =(AF106+AE106+AD106+AC106*(1+RdsonTopTc*Ta-RdsonTopTc*25))/(1-AC106*RdsonTopTc*ThetaJA_Q1) -> 0.6007703319 | AH106: 5.372391931 | AI106: =Rdson2*AH106^2 -> 0.6061144963 | AJ106: 0.065184 | AK106: =(AJ106+AI106*(1+RdsonBotTc*Ta-RdsonBotTc*25))/(1-AI106*RdsonBotTc*ThetaJA_Q2) -> 0.7091216822 | AL106: 0.06984 | AM106: 0.00084 | AN106: 0.045 | AO106: 0.1863 | AP106: 0.171 | AQ106: 0.04584 | AR106: 4.826461475 | AS106: 6.983324376 | AT106: 6.983324376 | AU106: 29.1 | AV106: 0.8064667129 | AW106: 14.2310241 | AX106: 16.10771541 | AZ106: 80.64667129 | BA106: 4.450178315 | BB106: 1.379732014 | BC106: 0.6468647319 | BD106: 0.7321688822 | BE106: 5.82991033
G107: 98 | H107: 24 | I107: 1 | J107: 5.88 | K107: 5.88 | L107: =Vout*K107/(Vin*Efficiency) -> 1.361111111 | M107: 0.2389539154 | N107: =(Vin-(Rdson1+Rdcr)*K107-Vout)*M107/(Fsw*Lf) -> 6.966768382 | O107: 9.363384191 | P107: 2.396615809 | Q107: =IF(MIN(Vin, -P107/(Coss_Q1+Coss_Q2)*0.00000002)<0, 0, MIN(Vin, -P107/(Coss_Q1+Coss_Q2)*0.00000002)) -> 0 | R107: 6.214423154 | S107: =R107^2*Rdcr -> 2.62609575 | T107: 0.8804822791 | U107: =(T107+S107*(1+Ltc*(Ta-25)))/(1-S107*Ltc*ThetaCa) -> 4.536630033 | V107: 2.0111328 | W107: 0.00808931028 | X107: 0.00808931028 | Y107: 2.650106795 | Z107: 0.007023066022 | AA107: 0.007023066022 | AB107: 3.037791046 | AC107: =Rdson1*AB107^2 -> 0.3783551519 | AD107: 0.1930106101 | AE107: 0.0192 | AF107: 0 | AG107: =(AF107+AE107+AD107+AC107*(1+RdsonTopTc*Ta-RdsonTopTc*25))/(1-AC107*RdsonTopTc*ThetaJA_Q1) -> 0.6109060331 | AH107: 5.421335694 | AI107: =Rdson2*AH107^2 -> 0.6172084948 | AJ107: 0.065856 | AK107: =(AJ107+AI107*(1+RdsonBotTc*Ta-RdsonBotTc*25))/(1-AI107*RdsonBotTc*ThetaJA_Q2) -> 0.7222955038 | AL107: 0.07056 | AM107: 0.00084 | AN107: 0.045 | AO107: 0.1863 | AP107: 0.171 | AQ107: 0.04584 | AR107: 4.896608285 | AS107: 7.144806122 | AT107: 7.144806122 | AU107: 29.4 | AV107: 0.804491886 | AW107: 14.46446393 | AX107: 16.40276668 | AZ107: 80.4491886 | BA107: 4.536630033 | BB107: 1.403761537 | BC107: 0.6574756331 | BD107: 0.7455803038 | BE107: 5.94039157
G108: 99 | H108: 24 | I108: 1 | J108: 5.94 | K108: 5.94 | L108: =Vout*K108/(Vin*Efficiency) -> 1.375 | M108: 0.2392647548 | N108: =(Vin-(Rdson1+Rdcr)*K108-Vout)*M108/(Fsw*Lf) -> 6.97334601 | O108: 9.426673005 | P108: 2.453326995 | Q108: =IF(MIN(Vin, -P108/(Coss_Q1+Coss_Q2)*0.00000002)<0, 0, MIN(Vin, -P108/(Coss_Q1+Coss_Q2)*0.00000002)) -> 0 | R108: 6.271833561 | S108: =R108^2*Rdcr -> 2.674840943 | T108: 0.8804822791 | U108: =(T108+S108*(1+Ltc*(Ta-25)))/(1-S108*Ltc*ThetaCa) -> 4.624911453 | V108: 2.013031598 | W108: 0.008104592429 | X108: 0.008104592429 | Y108: 2.67578157 | Z108: 0.00715980701 | AA108: 0.00715980701 | AB108: 3.06784836 | AC108: =Rdson1*AB108^2 -> 0.385879436 | AD108: 0.1949801061 | AE108: 0.0192 | AF108: 0 | AG108: =(AF108+AE108+AD108+AC108*(1+RdsonTopTc*Ta-RdsonTopTc*25))/(1-AC108*RdsonTopTc*ThetaJA_Q1) -> 0.6211522516 | AH108: 5.47030188 | AI108: =Rdson2*AH108^2 -> 0.6284082557 | AJ108: 0.066528 | AK108: =(AJ108+AI108*(1+RdsonBotTc*Ta-RdsonBotTc*25))/(1-AI108*RdsonBotTc*ThetaJA_Q2) -> 0.7356157528 | AL108: 0.07128 | AM108: 0.00084 | AN108: 0.045 | AO108: 0.1863 | AP108: 0.171 | AQ108: 0.04584 | AR108: 4.96743902 | AS108: 7.310691611 | AT108: 7.310691611 | AU108: 29.7 | AV108: 0.8024708188 | AW108: 14.70033514 | AX108: 16.70103936 | AZ108: 80.24708188 | BA108: 4.624911453 | BB108: 1.428048004 | BC108: 0.6681970516 | BD108: 0.7591381528 | BE108: 6.052959457
G109: 100 | H109: 24 | I109: 1 | J109: 6 | K109: 6 | L109: =Vout*K109/(Vin*Efficiency) -> 1.388888889 | M109: 0.2395755616 | N109: =(Vin-(Rdson1+Rdcr)*K109-Vout)*M109/(Fsw*Lf) -> 6.979916236 | O109: 9.489958118 | P109: 2.510041882 | Q109: =IF(MIN(Vin, -P109/(Coss_Q1+Coss_Q2)*0.00000002)<0, 0, MIN(Vin, -P109/(Coss_Q1+Coss_Q2)*0.00000002)) -> 0 | R109: 6.329291895 | S109: =R109^2*Rdcr -> 2.72407564 | T109: 0.8804822791 | U109: =(T109+S109*(1+Ltc*(Ta-25)))/(1-S109*Ltc*ThetaCa) -> 4.715067495 | V109: 2.014928259 | W109: 0.008119871777 | X109: 0.008119871777 | Y109: 2.701496538 | Z109: 0.007298083543 | AA109: 0.007298083543 | AB109: 3.097964112 | AC109: =Rdson1*AB109^2 -> 0.3934926472 | AD109: 0.1969496021 | AE109: 0.0192 | AF109: 0 | AG109: =(AF109+AE109+AD109+AC109*(1+RdsonTopTc*Ta-RdsonTopTc*25))/(1-AC109*RdsonTopTc*ThetaJA_Q1) -> 0.6315097607 | AH109: 5.519289288 | AI109: =Rdson2*AH109^2 -> 0.6397136392 | AJ109: 0.0672 | AK109: =(AJ109+AI109*(1+RdsonBotTc*Ta-RdsonBotTc*25))/(1-AI109*RdsonBotTc*ThetaJA_Q2) -> 0.7490831241 | AL109: 0.072 | AM109: 0.00084 | AN109: 0.045 | AO109: 0.1863 | AP109: 0.171 | AQ109: 0.04584 | AR109: 5.038953808 | AS109: 7.481140059 | AT109: 7.481140059 | AU109: 30 | AV109: 0.8004025479 | AW109: 14.93865474 | AX109: 17.00254873 | AZ109: 80.04025479 | BA109: 4.715067495 | BB109: 1.452592885 | BC109: 0.6790297607 | BD109: 0.7728431241 | BE109: 6.16766038

Sheet Efficiency Plot Management (hidden)
A2: ="EFF_Ch1" -> EFF_Ch1
A3: ="EFF_Ch2" -> EFF_Ch2

Sheet Standard Value Calculator (hidden)
A2: Capacitors | B2: Css | C2: Cc1ea | D2: Cc2ea | E2: Cout | F2: Cin | G2: Cres | H2: Cdither | I2: Cc3ea | J2: Cc4ea
A3: Inputs | B3: =Css ->  | C3: =Cc1ea -> 1.119969621e-11 | D3: =Cc2ea -> -2.120607629e-13 | E3: =Cout -> 5e-05 | F3: =Cin -> 2e-05 | G3: =Cres ->  | H3: =Cdither_init ->  | I3: =Cc3ea ->  | J3: =Cc4ea ->  | M3: Resistors | N3: inputs | O3: Standard Result
A4: Standard Result | B4: =SUM(B6:B158)/1000000000000 ->  | C4: =IF(C3="OPEN","OPEN",SUM(C6:C158)/1000000000000) -> 1.2e-11 | D4: =SUM(D6:D158)/1000000000000 -> 0 | E4: =SUM(E6:E158)/1000000000000 -> 4.7e-05 | F4: =SUM(F6:F158)/1000000000000 -> 2.2e-05 | G4: =SUM(G6:G158)/1000000000000 ->  | H4: =IF(H3="OPEN","OPEN",SUM(H6:H158)/1000000000000) ->  | I4: =IF(I3="OPEN","OPEN",SUM(I6:I158)/1000000000000) ->  | J4: =IF(J3="OPEN","OPEN",SUM(J6:J158)/1000000000000) ->  | M4: Rt | N4: =Rfadj -> 13 | O4: =IF(N4>(INT(0.5+100*POWER(10,IF(96*(LOG(N4)-INT(LOG(N4)))-ROUND(96*(LOG(N4)-INT(LOG(N4))),0)<0,ROUND(96*(LOG(N4)-INT(LOG(N4))),0)-1,ROUND(96*(LOG(N4)-INT(LOG(N4))),0))/96))*POWER(10,INT(LOG(N4))-2)+INT(0.5+100*POWER(10,(IF(96*(LOG(N4)-INT(LOG(N4)))-ROUND(96*(LOG(N4)-INT(LOG(N4))),0)<0,ROUND(96*(LOG(N4)-INT(LOG(N4))),0)-1,ROUND(96*(LOG(N4)-INT(LOG(N4))),0))+1)/96))*POWER(10,INT(LOG(N4))-2))/2,INT(0.5+100*POWER(10,(IF(96*(LOG(N4)-INT(LOG(N4)))-ROUND(96*(LOG(N4)-INT(LOG(N4))),0)<0,ROUND(96*(LOG(N4)-INT(LOG(N4))),0)-1,ROUND(96*(LOG(N4)-INT(LOG(N4))),0))+1)/96))*POWER(10,INT(LOG(N4))-2),INT(0.5+100*POWER(10,IF(96*(LOG(N4)-INT(LOG(N4)))-ROUND(96*(LOG(N4)-INT(LOG(N4))),0)<0,ROUND(96*(LOG(N4)-INT(LOG(N4))),0)-1,ROUND(96*(LOG(N4)-INT(LOG(N4))),0))/96))*POWER(10,INT(LOG(N4))-2)) -> 13 | P4: Ω
A5: (pF)
A6: 0.47 | B6: =IF(IF((B$3*10^12-$A7)*(B$3*10^12-$A6)*-1<0,0,1)*IF(ABS(B$3*10^12-$A7)>(B$3*10^12-$A6),$A6,$A7)=B7,0,IF((B$3*10^12-$A7)*(B$3*10^12-$A6)*-1<0,0,1)*IF(ABS(B$3*10^12-$A7)>(B$3*10^12-$A6),$A6,$A7)) ->  | C6: 0 | D6: 0 | E6: 0 | F6: 0
A7: 0.56 | B7: =IF(IF((B$3*10^12-$A8)*(B$3*10^12-$A7)*-1<0,0,1)*IF(ABS(B$3*10^12-$A8)>(B$3*10^12-$A7),$A7,$A8)=B8,0,IF((B$3*10^12-$A8)*(B$3*10^12-$A7)*-1<0,0,1)*IF(ABS(B$3*10^12-$A8)>(B$3*10^12-$A7),$A7,$A8)) ->  | C7: =IF(IF((C$3*10^12-$A8)*(C$3*10^12-$A7)*-1<0,0,1)*IF(ABS(C$3*10^12-$A8)>(C$3*10^12-$A7),$A7,$A8)=C8,0,IF((C$3*10^12-$A8)*(C$3*10^12-$A7)*-1<0,0,1)*IF(ABS(C$3*10^12-$A8)>(C$3*10^12-$A7),$A7,$A8)) -> 0 | D7: =IF(IF((D$3*10^12-$A8)*(D$3*10^12-$A7)*-1<0,0,1)*IF(ABS(D$3*10^12-$A8)>(D$3*10^12-$A7),$A7,$A8)=D8,0,IF((D$3*10^12-$A8)*(D$3*10^12-$A7)*-1<0,0,1)*IF(ABS(D$3*10^12-$A8)>(D$3*10^12-$A7),$A7,$A8)) -> 0 | E7: =IF(IF((E$3*10^12-$A8)*(E$3*10^12-$A7)*-1<0,0,1)*IF(ABS(E$3*10^12-$A8)>(E$3*10^12-$A7),$A7,$A8)=E8,0,IF((E$3*10^12-$A8)*(E$3*10^12-$A7)*-1<0,0,1)*IF(ABS(E$3*10^12-$A8)>(E$3*10^12-$A7),$A7,$A8)) -> 0 | F7: =IF(IF((F$3*10^12-$A8)*(F$3*10^12-$A7)*-1<0,0,1)*IF(ABS(F$3*10^12-$A8)>(F$3*10^12-$A7),$A7,$A8)=F8,0,IF((F$3*10^12-$A8)*(F$3*10^12-$A7)*-1<0,0,1)*IF(ABS(F$3*10^12-$A8)>(F$3*10^12-$A7),$A7,$A8)) -> 0 | G7: =IF(IF((G$3*10^12-$A8)*(G$3*10^12-$A7)*-1<0,0,1)*IF(ABS(G$3*10^12-$A8)>(G$3*10^12-$A7),$A7,$A8)=G8,0,IF((G$3*10^12-$A8)*(G$3*10^12-$A7)*-1<0,0,1)*IF(ABS(G$3*10^12-$A8)>(G$3*10^12-$A7),$A7,$A8)) ->  | M7: Renb | N7: =Renb -> 99888.96163 | O7: =IF(N7>(INT(0.5+100*POWER(10,IF(96*(LOG(N7)-INT(LOG(N7)))-ROUND(96*(LOG(N7)-INT(LOG(N7))),0)<0,ROUND(96*(LOG(N7)-INT(LOG(N7))),0)-1,ROUND(96*(LOG(N7)-INT(LOG(N7))),0))/96))*POWER(10,INT(LOG(N7))-2)+INT(0.5+100*POWER(10,(IF(96*(LOG(N7)-INT(LOG(N7)))-ROUND(96*(LOG(N7)-INT(LOG(N7))),0)<0,ROUND(96*(LOG(N7)-INT(LOG(N7))),0)-1,ROUND(96*(LOG(N7)-INT(LOG(N7))),0))+1)/96))*POWER(10,INT(LOG(N7))-2))/2,INT(0.5+100*POWER(10,(IF(96*(LOG(N7)-INT(LOG(N7)))-ROUND(96*(LOG(N7)-INT(LOG(N7))),0)<0,ROUND(96*(LOG(N7)-INT(LOG(N7))),0)-1,ROUND(96*(LOG(N7)-INT(LOG(N7))),0))+1)/96))*POWER(10,INT(LOG(N7))-2),INT(0.5+100*POWER(10,IF(96*(LOG(N7)-INT(LOG(N7)))-ROUND(96*(LOG(N7)-INT(LOG(N7))),0)<0,ROUND(96*(LOG(N7)-INT(LOG(N7))),0)-1,ROUND(96*(LOG(N7)-INT(LOG(N7))),0))/96))*POWER(10,INT(LOG(N7))-2)) -> 100000 | P7: Ω
A8: 0.68 | C8: 0 | D8: 0 | E8: 0 | F8: 0 | M8: Rc1ea | N8: =Rcea2 -> 0 | O8: =IF(N8>(INT(0.5+100*POWER(10,IF(96*(LOG(N8)-INT(LOG(N8)))-ROUND(96*(LOG(N8)-INT(LOG(N8))),0)<0,ROUND(96*(LOG(N8)-INT(LOG(N8))),0)-1,ROUND(96*(LOG(N8)-INT(LOG(N8))),0))/96))*POWER(10,INT(LOG(N8))-2)+INT(0.5+100*POWER(10,(IF(96*(LOG(N8)-INT(LOG(N8)))-ROUND(96*(LOG(N8)-INT(LOG(N8))),0)<0,ROUND(96*(LOG(N8)-INT(LOG(N8))),0)-1,ROUND(96*(LOG(N8)-INT(LOG(N8))),0))+1)/96))*POWER(10,INT(LOG(N8))-2))/2,INT(0.5+100*POWER(10,(IF(96*(LOG(N8)-INT(LOG(N8)))-ROUND(96*(LOG(N8)-INT(LOG(N8))),0)<0,ROUND(96*(LOG(N8)-INT(LOG(N8))),0)-1,ROUND(96*(LOG(N8)-INT(LOG(N8))),0))+1)/96))*POWER(10,INT(LOG(N8))-2),INT(0.5+100*POWER(10,IF(96*(LOG(N8)-INT(LOG(N8)))-ROUND(96*(LOG(N8)-INT(LOG(N8))),0)<0,ROUND(96*(LOG(N8)-INT(LOG(N8))),0)-1,ROUND(96*(LOG(N8)-INT(LOG(N8))),0))/96))*POWER(10,INT(LOG(N8))-2)) ->  | P8: Ω
A9: 0.82 | C9: 0 | D9: 0 | E9: 0 | F9: 0
A10: 1 | C10: 0 | D10: 0 | E10: 0 | F10: 0 | M10: Rfb1 | N10: =Rfb1_ -> 10000 | O10: =IF(N10>(INT(0.5+100*POWER(10,IF(96*(LOG(N10)-INT(LOG(N10)))-ROUND(96*(LOG(N10)-INT(LOG(N10))),0)<0,ROUND(96*(LOG(N10)-INT(LOG(N10))),0)-1,ROUND(96*(LOG(N10)-INT(LOG(N10))),0))/96))*POWER(10,INT(LOG(N10))-2)+INT(0.5+100*POWER(10,(IF(96*(LOG(N10)-INT(LOG(N10)))-ROUND(96*(LOG(N10)-INT(LOG(N10))),0)<0,ROUND(96*(LOG(N10)-INT(LOG(N10))),0)-1,ROUND(96*(LOG(N10)-INT(LOG(N10))),0))+1)/96))*POWER(10,INT(LOG(N10))-2))/2,INT(0.5+100*POWER(10,(IF(96*(LOG(N10)-INT(LOG(N10)))-ROUND(96*(LOG(N10)-INT(LOG(N10))),0)<0,ROUND(96*(LOG(N10)-INT(LOG(N10))),0)-1,ROUND(96*(LOG(N10)-INT(LOG(N10))),0))+1)/96))*POWER(10,INT(LOG(N10))-2),INT(0.5+100*POWER(10,IF(96*(LOG(N10)-INT(LOG(N10)))-ROUND(96*(LOG(N10)-INT(LOG(N10))),0)<0,ROUND(96*(LOG(N10)-INT(LOG(N10))),0)-1,ROUND(96*(LOG(N10)-INT(LOG(N10))),0))/96))*POWER(10,INT(LOG(N10))-2)) -> 10000 | P10: Ω
A11: 1.2 | C11: 0 | D11: 0 | E11: 0 | F11: 0 | M11: Rfb2 | N11: =Rfb2_ -> 40000 | O11: =IF(N11="OPEN","OPEN",IF(N11>(INT(0.5+100*POWER(10,IF(96*(LOG(N11)-INT(LOG(N11)))-ROUND(96*(LOG(N11)-INT(LOG(N11))),0)<0,ROUND(96*(LOG(N11)-INT(LOG(N11))),0)-1,ROUND(96*(LOG(N11)-INT(LOG(N11))),0))/96))*POWER(10,INT(LOG(N11))-2)+INT(0.5+100*POWER(10,(IF(96*(LOG(N11)-INT(LOG(N11)))-ROUND(96*(LOG(N11)-INT(LOG(N11))),0)<0,ROUND(96*(LOG(N11)-INT(LOG(N11))),0)-1,ROUND(96*(LOG(N11)-INT(LOG(N11))),0))+1)/96))*POWER(10,INT(LOG(N11))-2))/2,INT(0.5+100*POWER(10,(IF(96*(LOG(N11)-INT(LOG(N11)))-ROUND(96*(LOG(N11)-INT(LOG(N11))),0)<0,ROUND(96*(LOG(N11)-INT(LOG(N11))),0)-1,ROUND(96*(LOG(N11)-INT(LOG(N11))),0))+1)/96))*POWER(10,INT(LOG(N11))-2),INT(0.5+100*POWER(10,IF(96*(LOG(N11)-INT(LOG(N11)))-ROUND(96*(LOG(N11)-INT(LOG(N11))),0)<0,ROUND(96*(LOG(N11)-INT(LOG(N11))),0)-1,ROUND(96*(LOG(N11)-INT(LOG(N11))),0))/96))*POWER(10,INT(LOG(N11))-2))) -> 40200 | P11: Ω
A12: 1.5 | C12: 0 | D12: 0 | E12: 0 | F12: 0 | M12: Rt1 | N12: ='Variable Management'!B25*1000 -> 13020 | O12: =IF(N12>(INT(0.5+100*POWER(10,IF(96*(LOG(N12)-INT(LOG(N12)))-ROUND(96*(LOG(N12)-INT(LOG(N12))),0)<0,ROUND(96*(LOG(N12)-INT(LOG(N12))),0)-1,ROUND(96*(LOG(N12)-INT(LOG(N12))),0))/96))*POWER(10,INT(LOG(N12))-2)+INT(0.5+100*POWER(10,(IF(96*(LOG(N12)-INT(LOG(N12)))-ROUND(96*(LOG(N12)-INT(LOG(N12))),0)<0,ROUND(96*(LOG(N12)-INT(LOG(N12))),0)-1,ROUND(96*(LOG(N12)-INT(LOG(N12))),0))+1)/96))*POWER(10,INT(LOG(N12))-2))/2,INT(0.5+100*POWER(10,(IF(96*(LOG(N12)-INT(LOG(N12)))-ROUND(96*(LOG(N12)-INT(LOG(N12))),0)<0,ROUND(96*(LOG(N12)-INT(LOG(N12))),0)-1,ROUND(96*(LOG(N12)-INT(LOG(N12))),0))+1)/96))*POWER(10,INT(LOG(N12))-2),INT(0.5+100*POWER(10,IF(96*(LOG(N12)-INT(LOG(N12)))-ROUND(96*(LOG(N12)-INT(LOG(N12))),0)<0,ROUND(96*(LOG(N12)-INT(LOG(N12))),0)-1,ROUND(96*(LOG(N12)-INT(LOG(N12))),0))/96))*POWER(10,INT(LOG(N12))-2)) -> 13000 | P12: Ω
A13: 1.8 | C13: 0 | D13: 0 | E13: 0 | F13: 0 | M13: Rt2 | N13: ='Variable Management'!#REF!*1000 ->  | O13: =IF(N13="OPEN","OPEN",IF(N13>(INT(0.5+100*POWER(10,IF(96*(LOG(N13)-INT(LOG(N13)))-ROUND(96*(LOG(N13)-INT(LOG(N13))),0)<0,ROUND(96*(LOG(N13)-INT(LOG(N13))),0)-1,ROUND(96*(LOG(N13)-INT(LOG(N13))),0))/96))*POWER(10,INT(LOG(N13))-2)+INT(0.5+100*POWER(10,(IF(96*(LOG(N13)-INT(LOG(N13)))-ROUND(96*(LOG(N13)-INT(LOG(N13))),0)<0,ROUND(96*(LOG(N13)-INT(LOG(N13))),0)-1,ROUND(96*(LOG(N13)-INT(LOG(N13))),0))+1)/96))*POWER(10,INT(LOG(N13))-2))/2,INT(0.5+100*POWER(10,(IF(96*(LOG(N13)-INT(LOG(N13)))-ROUND(96*(LOG(N13)-INT(LOG(N13))),0)<0,ROUND(96*(LOG(N13)-INT(LOG(N13))),0)-1,ROUND(96*(LOG(N13)-INT(LOG(N13))),0))+1)/96))*POWER(10,INT(LOG(N13))-2),INT(0.5+100*POWER(10,IF(96*(LOG(N13)-INT(LOG(N13)))-ROUND(96*(LOG(N13)-INT(LOG(N13))),0)<0,ROUND(96*(LOG(N13)-INT(LOG(N13))),0)-1,ROUND(96*(LOG(N13)-INT(LOG(N13))),0))/96))*POWER(10,INT(LOG(N13))-2))) ->  | P13: Ω
A14: 2.2 | B14: =IF(IF((B$3*10^12-$A15)*(B$3*10^12-$A14)*-1<0,0,1)*IF(ABS(B$3*10^12-$A15)>(B$3*10^12-$A14),$A14,$A15)=B15,0,IF((B$3*10^12-$A15)*(B$3*10^12-$A14)*-1<0,0,1)*IF(ABS(B$3*10^12-$A15)>(B$3*10^12-$A14),$A14,$A15)) ->  | C14: 0 | D14: 0 | E14: 0 | F14: 0
A15: 2.7 | C15: 0 | D15: 0 | E15: 0 | F15: 0
A16: 3.3 | C16: 0 | D16: 0 | E16: 0 | F16: 0 | M16: Rs | N16: =Rs_ideal*1000 ->  | O16: =IF(N16=0,0,IF(N16>(INT(0.5+100*POWER(10,IF(96*(LOG(N16)-INT(LOG(N16)))-ROUND(96*(LOG(N16)-INT(LOG(N16))),0)<0,ROUND(96*(LOG(N16)-INT(LOG(N16))),0)-1,ROUND(96*(LOG(N16)-INT(LOG(N16))),0))/96))*POWER(10,INT(LOG(N16))-2)+INT(0.5+100*POWER(10,(IF(96*(LOG(N16)-INT(LOG(N16)))-ROUND(96*(LOG(N16)-INT(LOG(N16))),0)<0,ROUND(96*(LOG(N16)-INT(LOG(N16))),0)-1,ROUND(96*(LOG(N16)-INT(LOG(N16))),0))+1)/96))*POWER(10,INT(LOG(N16))-2))/2,INT(0.5+100*POWER(10,(IF(96*(LOG(N16)-INT(LOG(N16)))-ROUND(96*(LOG(N16)-INT(LOG(N16))),0)<0,ROUND(96*(LOG(N16)-INT(LOG(N16))),0)-1,ROUND(96*(LOG(N16)-INT(LOG(N16))),0))+1)/96))*POWER(10,INT(LOG(N16))-2),INT(0.5+100*POWER(10,IF(96*(LOG(N16)-INT(LOG(N16)))-ROUND(96*(LOG(N16)-INT(LOG(N16))),0)<0,ROUND(96*(LOG(N16)-INT(LOG(N16))),0)-1,ROUND(96*(LOG(N16)-INT(LOG(N16))),0))/96))*POWER(10,INT(LOG(N16))-2))) ->  | P16: mΩ
A17: 3.9 | C17: 0 | D17: 0 | E17: 0 | F17: 0 | M17: Cres | N17: =Cres ->  | O17: =G4*1000000000000 ->  | P17: pF
A18: 4.7 | C18: 0 | D18: 0 | E18: 0 | F18: 0
A19: 5.6 | C19: 0 | D19: 0 | E19: 0 | F19: 0
A20: 6.8 | C20: 0 | D20: 0 | E20: 0 | F20: 0
A21: 8.2 | C21: 0 | D21: 0 | E21: 0 | F21: 0
A22: 10 | C22: 12 | D22: 0 | E22: 0 | F22: 0 | M22: Cdither | N22: =Cdither_init ->  | O22: =H4 -> 
A23: 12 | C23: 0 | D23: 0 | E23: 0 | F23: 0
A24: 15 | C24: 0 | D24: 0 | E24: 0 | F24: 0
A25: 18 | C25: 0 | D25: 0 | E25: 0 | F25: 0
A26: 22 | C26: 0 | D26: 0 | E26: 0 | F26: 0
A27: 27 | C27: 0 | D27: 0 | E27: 0 | F27: 0
A28: 33 | C28: 0 | D28: 0 | E28: 0 | F28: 0
A29: 39 | C29: 0 | D29: 0 | E29: 0 | F29: 0
A30: 47 | C30: 0 | D30: 0 | E30: 0 | F30: 0 | M30: Rc1 | N30: =O7/1000&" kΩ" -> 100 kΩ | O30: =O7/1000 -> 100 | P30: kΩ
A31: 56 | C31: 0 | D31: 0 | E31: 0 | F31: 0 | M31: Cc1 | N31: =C4*1000000000&" nF" -> 0.012 nF | O31: =C4*1000000000 -> 0.012 | P31: nF
A32: 68 | C32: 0 | D32: 0 | E32: 0 | F32: 0 | M32: Cc2 | N32: =D4*1000000000000&" pF" -> 0 pF | O32: =D4*1000000000000 -> 0 | P32: pF
A33: 82 | C33: 0 | D33: 0 | E33: 0 | F33: 0
A34: =A22*10 -> 100 | C34: 0 | D34: 0 | E34: 0 | F34: 0 | M34: Rc2 | N34: =O8/1000&" kΩ" ->  | O34: =O8/1000 ->  | P34: kΩ
A35: =A23*10 -> 120 | C35: 0 | D35: 0 | E35: 0 | F35: 0 | M35: Cc3 | N35: =I4*1000000000&" nF" ->  | O35: =I4*1000000000 ->  | P35: nF
A36: 150 | C36: 0 | D36: 0 | E36: 0 | F36: 0 | M36: Cc4 | N36: =J4*1000000000000&" pF" ->  | O36: =J4*1000000000000 ->  | P36: pF
A37: 180 | C37: 0 | D37: 0 | E37: 0 | F37: 0
A38: 220 | C38: 0 | D38: 0 | E38: 0 | F38: 0
A39: 270 | C39: =IF(IF((C$3*10^12-$A40)*(C$3*10^12-$A39)*-1<0,0,1)*IF(ABS(C$3*10^12-$A40)>(C$3*10^12-$A39),$A39,$A40)=C40,0,IF((C$3*10^12-$A40)*(C$3*10^12-$A39)*-1<0,0,1)*IF(ABS(C$3*10^12-$A40)>(C$3*10^12-$A39),$A39,$A40)) -> 0 | D39: 0 | E39: 0 | F39: 0
A40: 330 | C40: 0 | D40: 0 | E40: 0 | F40: 0
A41: 390 | C41: 0 | D41: 0 | E41: 0 | F41: 0
A42: 470 | C42: 0 | D42: 0 | E42: 0 | F42: 0
A43: 560 | C43: 0 | D43: 0 | E43: 0 | F43: 0
A44: 680 | C44: 0 | D44: 0 | E44: 0 | F44: 0
A45: =A33*10 -> 820 | C45: 0 | D45: 0 | E45: 0 | F45: 0
A46: 1000 | C46: 0 | D46: 0 | E46: 0 | F46: 0
A47: 1200 | C47: 0 | D47: 0 | E47: 0 | F47: 0
A48: 1500 | C48: 0 | D48: 0 | E48: 0 | F48: 0
A49: 1800 | C49: 0 | D49: 0 | E49: 0 | F49: 0
A50: 2200 | C50: 0 | D50: 0 | E50: 0 | F50: 0
A51: 2700 | C51: 0 | D51: 0 | E51: 0 | F51: 0
A52: 3300 | C52: 0 | D52: 0 | E52: 0 | F52: 0
A53: 3900 | C53: 0 | D53: 0 | E53: 0 | F53: 0
A54: 4700 | C54: 0 | D54: 0 | E54: 0 | F54: 0
A55: 5600 | C55: 0 | D55: 0 | E55: 0 | F55: 0
A56: 6800 | C56: 0 | D56: 0 | E56: 0 | F56: 0
A57: 8200 | C57: 0 | D57: 0 | E57: 0 | F57: 0
A58: 10000 | C58: 0 | D58: 0 | E58: 0 | F58: 0
A59: 12000 | C59: 0 | D59: 0 | E59: 0 | F59: 0
A60: 15000 | C60: 0 | D60: 0 | E60: 0 | F60: 0
A61: 18000 | C61: 0 | D61: 0 | E61: 0 | F61: 0
A62: 22000 | C62: 0 | D62: 0 | E62: 0 | F62: 0
A63: 27000 | C63: 0 | D63: 0 | E63: 0 | F63: 0
A64: 33000 | C64: 0 | D64: 0 | E64: 0 | F64: 0
A65: 39000 | C65: 0 | D65: 0 | E65: 0 | F65: 0
A66: 47000 | C66: 0 | D66: 0 | E66: 0 | F66: 0
A67: 56000 | C67: 0 | D67: 0 | E67: 0 | F67: 0
A68: 68000 | C68: 0 | D68: 0 | E68: 0 | F68: 0
A69: 82000 | C69: 0 | D69: 0 | E69: 0 | F69: 0 | J69: =IF(IF((J$3*10^12-$A70)*(J$3*10^12-$A69)*-1<0,0,1)*IF(ABS(J$3*10^12-$A70)>(J$3*10^12-$A69),$A69,$A70)=J70,0,IF((J$3*10^12-$A70)*(J$3*10^12-$A69)*-1<0,0,1)*IF(ABS(J$3*10^12-$A70)>(J$3*10^12-$A69),$A69,$A70)) -> 
A70: 100000 | C70: 0 | D70: =IF(IF((D$3*10^12-$A71)*(D$3*10^12-$A70)*-1<0,0,1)*IF(ABS(D$3*10^12-$A71)>(D$3*10^12-$A70),$A70,$A71)=D71,0,IF((D$3*10^12-$A71)*(D$3*10^12-$A70)*-1<0,0,1)*IF(ABS(D$3*10^12-$A71)>(D$3*10^12-$A70),$A70,$A71)) -> 0 | E70: 0 | F70: 0
A71: 120000 | B71: =IF(IF((B$3*10^12-$A72)*(B$3*10^12-$A71)*-1<0,0,1)*IF(ABS(B$3*10^12-$A72)>(B$3*10^12-$A71),$A71,$A72)=B72,0,IF((B$3*10^12-$A72)*(B$3*10^12-$A71)*-1<0,0,1)*IF(ABS(B$3*10^12-$A72)>(B$3*10^12-$A71),$A71,$A72)) ->  | C71: =IF(IF((C$3*10^12-$A72)*(C$3*10^12-$A71)*-1<0,0,1)*IF(ABS(C$3*10^12-$A72)>(C$3*10^12-$A71),$A71,$A72)=C72,0,IF((C$3*10^12-$A72)*(C$3*10^12-$A71)*-1<0,0,1)*IF(ABS(C$3*10^12-$A72)>(C$3*10^12-$A71),$A71,$A72)) -> 0 | D71: 0 | E71: 0 | F71: =IF(IF((F$3*10^12-$A72)*(F$3*10^12-$A71)*-1<0,0,1)*IF(ABS(F$3*10^12-$A72)>(F$3*10^12-$A71),$A71,$A72)=F72,0,IF((F$3*10^12-$A72)*(F$3*10^12-$A71)*-1<0,0,1)*IF(ABS(F$3*10^12-$A72)>(F$3*10^12-$A71),$A71,$A72)) -> 0 | G71: =IF(IF((G$3*10^12-$A72)*(G$3*10^12-$A71)*-1<0,0,1)*IF(ABS(G$3*10^12-$A72)>(G$3*10^12-$A71),$A71,$A72)=G72,0,IF((G$3*10^12-$A72)*(G$3*10^12-$A71)*-1<0,0,1)*IF(ABS(G$3*10^12-$A72)>(G$3*10^12-$A71),$A71,$A72)) ->  | H71: =IF(IF((H$3*10^12-$A72)*(H$3*10^12-$A71)*-1<0,0,1)*IF(ABS(H$3*10^12-$A72)>(H$3*10^12-$A71),$A71,$A72)=H72,0,IF((H$3*10^12-$A72)*(H$3*10^12-$A71)*-1<0,0,1)*IF(ABS(H$3*10^12-$A72)>(H$3*10^12-$A71),$A71,$A72)) ->  | I71: =IF(IF((I$3*10^12-$A72)*(I$3*10^12-$A71)*-1<0,0,1)*IF(ABS(I$3*10^12-$A72)>(I$3*10^12-$A71),$A71,$A72)=I72,0,IF((I$3*10^12-$A72)*(I$3*10^12-$A71)*-1<0,0,1)*IF(ABS(I$3*10^12-$A72)>(I$3*10^12-$A71),$A71,$A72)) -> 
A72: 150000 | C72: 0 | D72: 0 | E72: 0 | F72: 0
A73: 180000 | C73: 0 | D73: 0 | E73: 0 | F73: 0
A74: 220000 | C74: 0 | D74: 0 | E74: 0 | F74: 0
A75: 270000 | C75: 0 | D75: 0 | E75: 0 | F75: 0
A76: 330000 | C76: 0 | D76: 0 | E76: 0 | F76: 0
A77: 390000 | C77: 0 | D77: 0 | E77: 0 | F77: 0
A78: 470000 | C78: 0 | D78: 0 | E78: 0 | F78: 0
A79: 560000 | C79: 0 | D79: 0 | E79: 0 | F79: 0
A80: 680000 | C80: 0 | D80: 0 | E80: 0 | F80: 0
A81: 820000 | C81: 0 | D81: 0 | E81: 0 | F81: 0
A82: 1000000 | C82: 0 | D82: 0 | E82: 0 | F82: 0
A83: 1200000 | C83: 0 | D83: 0 | E83: 0 | F83: 0
A84: 1500000 | C84: 0 | D84: 0 | E84: 0 | F84: 0
A85: 1800000 | C85: 0 | D85: 0 | E85: 0 | F85: 0
A86: 2200000 | C86: 0 | D86: 0 | E86: 0 | F86: 0
A87: 2700000 | C87: 0 | D87: 0 | E87: 0 | F87: 0
A88: 3300000 | C88: 0 | D88: 0 | E88: 0 | F88: 0
A89: 3900000 | C89: 0 | D89: 0 | E89: 0 | F89: 0
A90: 4700000 | C90: 0 | D90: 0 | E90: 0 | F90: 0
A91: 5600000 | C91: 0 | D91: 0 | E91: 0 | F91: 0
A92: 6800000 | C92: 0 | D92: 0 | E92: 0 | F92: 0
A93: 8200000 | C93: 0 | D93: 0 | E93: 0 | F93: 0
A94: 10000000 | C94: 0 | D94: 0 | E94: 0 | F94: 0
A95: 12000000 | C95: 0 | D95: 0 | E95: 0 | F95: 0
A96: 15000000 | C96: 0 | D96: 0 | E96: 0 | F96: 0
A97: 18000000 | C97: 0 | D97: 0 | E97: 0 | F97: 22000000
A98: 22000000 | C98: 0 | D98: 0 | E98: 0 | F98: 0
A99: =A87*10 -> 27000000 | C99: 0 | D99: 0 | E99: 0 | F99: 0
A100: 33000000 | C100: 0 | D100: 0 | E100: 0 | F100: 0
A101: 39000000 | C101: 0 | D101: 0 | E101: 0 | F101: 0
A102: 47000000 | C102: 0 | D102: 0 | E102: 47000000 | F102: 0
A103: 56000000 | C103: 0 | D103: 0 | E103: 0 | F103: =IF(IF((F$3*10^12-$A104)*(F$3*10^12-$A103)*-1<0,0,1)*IF(ABS(F$3*10^12-$A104)>(F$3*10^12-$A103),$A103,$A104)=F104,0,IF((F$3*10^12-$A104)*(F$3*10^12-$A103)*-1<0,0,1)*IF(ABS(F$3*10^12-$A104)>(F$3*10^12-$A103),$A103,$A104)) -> 0 | G103: =IF(IF((G$3*10^12-$A104)*(G$3*10^12-$A103)*-1<0,0,1)*IF(ABS(G$3*10^12-$A104)>(G$3*10^12-$A103),$A103,$A104)=G104,0,IF((G$3*10^12-$A104)*(G$3*10^12-$A103)*-1<0,0,1)*IF(ABS(G$3*10^12-$A104)>(G$3*10^12-$A103),$A103,$A104)) ->  | H103: =IF(IF((H$3*10^12-$A104)*(H$3*10^12-$A103)*-1<0,0,1)*IF(ABS(H$3*10^12-$A104)>(H$3*10^12-$A103),$A103,$A104)=H104,0,IF((H$3*10^12-$A104)*(H$3*10^12-$A103)*-1<0,0,1)*IF(ABS(H$3*10^12-$A104)>(H$3*10^12-$A103),$A103,$A104)) ->  | I103: =IF(IF((I$3*10^12-$A104)*(I$3*10^12-$A103)*-1<0,0,1)*IF(ABS(I$3*10^12-$A104)>(I$3*10^12-$A103),$A103,$A104)=I104,0,IF((I$3*10^12-$A104)*(I$3*10^12-$A103)*-1<0,0,1)*IF(ABS(I$3*10^12-$A104)>(I$3*10^12-$A103),$A103,$A104)) -> 
A104: 68000000 | C104: 0 | D104: 0 | E104: 0 | F104: 0
A105: 82000000 | C105: 0 | D105: 0 | E105: 0 | F105: 0
A106: 100000000 | C106: 0 | D106: 0 | E106: 0 | F106: 0
A107: 120000000 | C107: 0 | D107: 0 | E107: 0 | F107: 0
A108: 150000000 | C108: 0 | D108: 0 | E108: 0 | F108: 0
A109: 180000000 | C109: 0 | D109: 0 | E109: 0 | F109: 0
A110: 220000000 | C110: 0 | D110: 0 | E110: 0 | F110: 0
A111: 270000000 | C111: 0 | D111: 0 | E111: 0 | F111: 0
A112: 330000000 | C112: 0 | D112: 0 | E112: 0 | F112: 0
A113: 390000000 | C113: 0 | D113: 0 | E113: 0 | F113: 0
A114: 470000000 | C114: 0 | D114: 0 | E114: 0 | F114: 0
A115: 560000000 | C115: 0 | D115: 0 | E115: 0 | F115: 0
A116: 680000000 | C116: 0 | D116: 0 | E116: 0 | F116: 0
A117: 820000000 | C117: 0 | D117: 0 | E117: 0 | F117: 0
A118: 1000000000 | C118: 0 | D118: 0 | E118: 0 | F118: 0
A119: 1200000000 | C119: 0 | D119: 0 | E119: 0 | F119: 0
A120: 1500000000 | C120: 0 | D120: 0 | E120: 0 | F120: 0
A121: 1800000000 | C121: 0 | D121: 0 | E121: 0 | F121: 0
A122: 2200000000 | C122: 0 | D122: 0 | E122: 0 | F122: 0
A123: 2700000000 | C123: 0 | D123: 0 | E123: 0 | F123: 0
A124: 3300000000 | C124: 0 | D124: 0 | E124: 0 | F124: 0
A125: 3900000000 | C125: 0 | D125: 0 | E125: 0 | F125: 0
A126: 4700000000 | C126: 0 | D126: 0 | E126: 0 | F126: 0
A127: 5600000000 | C127: 0 | D127: 0 | E127: 0 | F127: 0
A128: 6800000000 | C128: 0 | D128: 0 | E128: 0 | F128: 0
A129: 8200000000 | C129: 0 | D129: 0 | E129: 0 | F129: 0
A130: 10000000000 | C130: 0 | D130: 0 | E130: 0 | F130: 0
A131: 12000000000 | C131: 0 | D131: 0 | E131: 0 | F131: 0
A132: 15000000000 | C132: 0 | D132: 0 | E132: 0 | F132: 0
A133: 18000000000 | C133: 0 | D133: 0 | E133: 0 | F133: 0 | J133: =IF(IF((J$3*10^12-$A134)*(J$3*10^12-$A133)*-1<0,0,1)*IF(ABS(J$3*10^12-$A134)>(J$3*10^12-$A133),$A133,$A134)=J134,0,IF((J$3*10^12-$A134)*(J$3*10^12-$A133)*-1<0,0,1)*IF(ABS(J$3*10^12-$A134)>(J$3*10^12-$A133),$A133,$A134)) -> 
A134: 22000000000 | C134: 0 | D134: 0 | E134: =IF(IF((E$3*10^12-$A135)*(E$3*10^12-$A134)*-1<0,0,1)*IF(ABS(E$3*10^12-$A135)>(E$3*10^12-$A134),$A134,$A135)=E135,0,IF((E$3*10^12-$A135)*(E$3*10^12-$A134)*-1<0,0,1)*IF(ABS(E$3*10^12-$A135)>(E$3*10^12-$A134),$A134,$A135)) -> 0 | F134: 0 | J134: =IF(IF((J$3*10^12-$A135)*(J$3*10^12-$A134)*-1<0,0,1)*IF(ABS(J$3*10^12-$A135)>(J$3*10^12-$A134),$A134,$A135)=J135,0,IF((J$3*10^12-$A135)*(J$3*10^12-$A134)*-1<0,0,1)*IF(ABS(J$3*10^12-$A135)>(J$3*10^12-$A134),$A134,$A135)) -> 
A135: 27000000000 | B135: =IF(IF((B$3*10^12-$A136)*(B$3*10^12-$A135)*-1<0,0,1)*IF(ABS(B$3*10^12-$A136)>(B$3*10^12-$A135),$A135,$A136)=B136,0,IF((B$3*10^12-$A136)*(B$3*10^12-$A135)*-1<0,0,1)*IF(ABS(B$3*10^12-$A136)>(B$3*10^12-$A135),$A135,$A136)) ->  | C135: =IF(IF((C$3*10^12-$A136)*(C$3*10^12-$A135)*-1<0,0,1)*IF(ABS(C$3*10^12-$A136)>(C$3*10^12-$A135),$A135,$A136)=C136,0,IF((C$3*10^12-$A136)*(C$3*10^12-$A135)*-1<0,0,1)*IF(ABS(C$3*10^12-$A136)>(C$3*10^12-$A135),$A135,$A136)) -> 0 | D135: 0 | E135: 0 | F135: 0
A136: 33000000000 | C136: 0 | D136: 0 | E136: 0 | F136: 0
A137: 39000000000 | C137: 0 | D137: 0 | E137: 0 | F137: 0
A138: 47000000000 | C138: 0 | D138: 0 | E138: 0 | F138: 0
A139: 56000000000 | C139: 0 | D139: 0 | E139: 0 | F139: 0
A140: 68000000000 | C140: 0 | D140: 0 | E140: 0 | F140: 0
A141: 82000000000 | C141: 0 | D141: 0 | E141: 0 | F141: 0
A142: 100000000000 | C142: 0 | D142: 0 | E142: 0 | F142: 0
A143: 120000000000 | C143: 0 | D143: 0 | E143: 0 | F143: 0
A144: 150000000000 | C144: 0 | D144: 0 | E144: 0 | F144: 0
A145: 180000000000 | C145: 0 | D145: 0 | E145: 0 | F145: 0
A146: 220000000000 | C146: 0 | D146: 0 | E146: 0 | F146: 0
A147: 270000000000 | C147: 0 | D147: 0 | E147: 0 | F147: 0
A148: 330000000000 | C148: 0 | D148: 0 | E148: 0 | F148: 0
A149: 390000000000 | C149: 0 | D149: 0 | E149: 0 | F149: 0
A150: 470000000000 | C150: 0 | D150: 0 | E150: 0 | F150: 0
A151: 560000000000 | C151: 0 | D151: 0 | E151: 0 | F151: 0
A152: 680000000000 | C152: 0 | D152: 0 | E152: 0 | F152: 0
A153: 820000000000 | C153: 0 | D153: 0 | E153: 0 | F153: 0
A154: 1000000000000 | C154: 0 | D154: 0 | E154: 0 | F154: 0
A155: 1200000000000 | C155: 0 | D155: 0 | E155: 0 | F155: 0
A156: 1500000000000 | C156: 0 | D156: 0 | E156: 0 | F156: 0
A157: 1800000000000 | C157: 0 | D157: 0 | E157: 0 | F157: 0
A158: 2200000000000 | C158: 0 | D158: 0 | E158: 0 | F158: 0
A159: 2700000000000 | C159: 2700000000000 | D159: 0 | E159: 2700000000000 | F159: 2700000000000

Sheet Snubber (hidden)
C1: UNITS | D1: STD UNITS
A2: Frequency of Ringing | B2: 85 | C2: MHz | D2: =B2*1000000 -> 85000000 | E2: Hz
A3: SW capacitance | B3: 3000 | C3: pF | D3: =B3*0.000000000001 -> 3e-09 | E3: F
A4: Lpar | B4: =1000000000*1/((D2*2*3.14159)^2*D3) -> 1.168643077 | C4: nH | D4: =B4/1000000000 -> 1.168643077e-09 | E4: H
A5: Csnub | B5: =4*B3 -> 12000 | C5: pF | D5: =B5*0.000000000001 -> 1.2e-08 | E5: F
A6: Rsnub | B6: =SQRT(D4/D3) -> 0.6241375589 | C6: Ω | D6: =B6 -> 0.6241375589 | E6: Ω

Sheet Parallel Output Caps (hidden)
A4: Fsw | B4: =Fsw -> 1000000
A6: C1 | B6: 20 | C6: uF | D6: =B6/1000000 -> 2e-05 | E6: F
A7: R1 | B7: 0.5 | C7: mOhms | D7: =B7/1000 -> 0.0005 | E7: Ohms
A9: C2 | B9: 68 | C9: uF | D9: =B9/1000000 -> 6.8e-05 | E9: F
A10: R2 | B10: 20 | C10: mOhms | D10: =B10/1000 -> 0.02 | E10: Ohms
A13: I1 | B13: =(D6/(D6+D9))*SQRT((D10*D9*B4)^2+1)/SQRT((((D7+D10)*D6*D9/(D9+D6))*B4)^2+1) -> 0.365737222 | C13: %
A14: I2 | B14: =1-B13 -> 0.634262778 | C14: %
A16: I1 | B16: =B13*(Iripple1/(2*SQRT(3))) ->  | C16: A
A17: I2 | B17: =B14*(Iripple1/(2*SQRT(3))) ->  | C17: A
